Workbook

Sheet Indice
B1: Contenido
B3: Flujo de Caja Aeroportuario | C3: FlujoDeCajaAeroportuario!A1
B5: Supuestos generales | C5: SupuestosGenerales!A1
B7: Ingresos Netos
B8: Proyecciones de Demanda | C8: Demanda_G1!A1
C9: Demanda_G3!A1
C10: Demanda_G5!A1
B11: Tarifas | C11: Tarifas_G1!A1
C12: Tarifas_G3!A1
C13: Tarifas_G5!A1
B14: Ingresos Regulados | C14: IngresosReguladosTotal!A1
B15: Ingresos Usuarios no atribuibles | C15: Ingresos no atribuibles'!A1
B16: Transferencias AIJCh | C16: Transferencias!A1
B18: Costos de operación | C18: Opex!A1
B20: Inversiones
B21: Inversiones Programadas | C21: InversionesProgramadas!A1
B22: Activo Inicial | C22: ActivoInicial!A1

Sheet Resumen
A1: Índice
F3: Incremento
F4: =FlujoDeCajaAeroportuario!$D$4 -> 0.07356822134
F6: Cusco | J6: Nazca | N6: Grupo V
D7: Tarifa aprobada RCD 015-2022-OSITRAN | E7: Tarifa actual indexada | F7: Tarifa Propuesta CORPAC | H7: Tarifa aprobada RCD 015-2022-OSITRAN | I7: Tarifa actual indexada | J7: Tarifa Propuesta CORPAC | L7: Tarifa aprobada RCD 015-2022-OSITRAN | M7: Tarifa actual indexada | N7: Tarifa Propuesta CORPAC
B8: Servicios aeroportuarios | C8: Moneda / Unidad | D8: 2022 | E8: 2024 | F8: 2024 | H8: 2022 | I8: 2024 | J8: 2024 | L8: 2022 | M8: 2024 | N8: 2024
B10: TUUA Nacional | C10: USD/Pasajero | D10: =Tarifas_G1!G9 -> 4.76 | E10: =+Tarifas_G1!I9 -> 5.17 | F10: =Tarifas_G1!J9 -> 5.550347704 | H10: =Tarifas_G3!G9 -> 0 | I10: =Tarifas_G3!I9 -> 0 | J10: =+Tarifas_G3!J9 -> 0 | L10: =Tarifas_G5!G9 -> 3.86 | M10: =Tarifas_G5!I9 -> 4.19 | N10: =Tarifas_G5!J9 -> 4.498250847
B11: TUUA Internacional | C11: USD/Pasajero | D11: =Tarifas_G1!G10 -> 13.23 | E11: =+Tarifas_G1!I10 -> 14.37 | F11: =Tarifas_G1!J10 -> 15.42717534 | H11: =Tarifas_G3!G10 -> 0 | I11: =Tarifas_G3!I10 -> 0 | J11: =+Tarifas_G3!J10 -> 0 | L11: =Tarifas_G5!G10 -> 0 | M11: =Tarifas_G5!I10 -> 0 | N11: =M11*(1+$F$4) -> 0
F12: =Tarifas_G1!J11 -> 0 | I12: =Tarifas_G3!I11 -> 0 | J12: =+Tarifas_G3!J11 -> 0 | L12: =Tarifas_G5!G11 -> 0 | M12: =Tarifas_G5!I11 -> 0
B13: Aterrizaje y despegue nacional | D13: =Tarifas_G1!G12 -> 0 | H13: =Tarifas_G3!G12 -> 0 | I13: =Tarifas_G3!I12 -> 0 | J13: =+Tarifas_G3!J12 -> 0 | L13: =Tarifas_G5!G12 -> 0 | M13: =Tarifas_G5!I12 -> 0
B14: Hasta 10 t | C14: USD/Operación | D14: =Tarifas_G1!G13 -> 10.59 | E14: =+Tarifas_G1!I13 -> 11.51 | F14: =Tarifas_G1!J13 -> 12.35677023 | H14: =Tarifas_G3!G13 -> 5.29 | I14: =Tarifas_G3!I13 -> 5.74 | J14: =+Tarifas_G3!J13 -> 6.16228159 | L14: =Tarifas_G5!G13 -> 2.65 | M14: =Tarifas_G5!I13 -> 2.88 | N14: =Tarifas_G5!J13 -> 3.091876477
B15: Más de 10 t hasta 35 t | C15: USD/t | D15: =Tarifas_G1!G14 -> 2.29 | E15: =+Tarifas_G1!I14 -> 2.48 | F15: =Tarifas_G1!J14 -> 2.662449189 | H15: =Tarifas_G3!G14 -> 1.14 | I15: =Tarifas_G3!I14 -> 1.24 | J15: =+Tarifas_G3!J14 -> 1.331224594 | L15: =Tarifas_G5!G14 -> 0.89 | M15: =Tarifas_G5!I14 -> 0.96 | N15: =Tarifas_G5!J14 -> 1.030625492
B16: Más de 35 t hasta 70 t | C16: USD/t | D16: =Tarifas_G1!G15 -> 2.86 | E16: =+Tarifas_G1!I15 -> 3.1 | F16: =Tarifas_G1!J15 -> 3.328061486 | H16: =Tarifas_G3!G15 -> 1.19 | I16: =Tarifas_G3!I15 -> 1.29 | J16: =+Tarifas_G3!J15 -> 1.384903006 | L16: =Tarifas_G5!G15 -> 0.93 | M16: =Tarifas_G5!I15 -> 1.01 | N16: =Tarifas_G5!J15 -> 1.084303904
B17: Más de 70 t hasta 105 t | C17: USD/t | D17: =Tarifas_G1!G16 -> 2.98 | E17: =+Tarifas_G1!I16 -> 3.24 | F17: =Tarifas_G1!J16 -> 3.478361037 | H17: =Tarifas_G3!G16 -> 1.24 | I17: =Tarifas_G3!I16 -> 1.35 | J17: =+Tarifas_G3!J16 -> 1.449317099 | L17: =Tarifas_G5!G16 -> 0.97 | M17: =Tarifas_G5!I16 -> 1.06 | N17: =Tarifas_G5!J16 -> 1.137982315
B18: Más de 105 t | C18: USD/t | D18: =Tarifas_G1!G17 -> 3.06 | E18: =+Tarifas_G1!I17 -> 3.32 | F18: =Tarifas_G1!J17 -> 3.564246495 | H18: =Tarifas_G3!G17 -> 1.27 | I18: =Tarifas_G3!I17 -> 1.38 | J18: =+Tarifas_G3!J17 -> 1.481524145 | L18: =Tarifas_G5!G17 -> 0.99 | M18: =Tarifas_G5!I17 -> 1.08 | N18: =Tarifas_G5!J17 -> 1.159453679
D19: =Tarifas_G1!G18 -> 0 | F19: =Tarifas_G1!J18 -> 0 | H19: =Tarifas_G3!G18 -> 0 | I19: =Tarifas_G3!I18 -> 0 | J19: =+Tarifas_G3!J18 -> 0 | L19: =Tarifas_G5!G18 -> 0 | M19: =Tarifas_G5!I18 -> 0 | N19: =Tarifas_G5!J18 -> 0
B20: Aterrizaje y despegue Internacional | D20: =Tarifas_G1!G19 -> 0 | H20: =Tarifas_G3!G19 -> 0 | I20: =Tarifas_G3!I19 -> 0 | J20: =+Tarifas_G3!J19 -> 0 | L20: =Tarifas_G5!G19 -> 0 | M20: =Tarifas_G5!I19 -> 0 | N20: =Tarifas_G5!J19 -> 0
B21: Hasta 10 t | C21: USD/Operación | D21: =Tarifas_G1!G20 -> 21.17 | E21: =+Tarifas_G1!I20 -> 23 | F21: =Tarifas_G1!J20 -> 24.69206909 | H21: =Tarifas_G3!G20 -> 0 | I21: =Tarifas_G3!I20 -> 0 | J21: =+Tarifas_G3!J20 -> 0 | L21: =Tarifas_G5!G20 -> 0 | M21: =Tarifas_G5!I20 -> 0 | N21: =Tarifas_G5!J20 -> 0
B22: Más de 10 t hasta 35 t | C22: USD/t | D22: =Tarifas_G1!G21 -> 3.93 | E22: =+Tarifas_G1!I21 -> 4.27 | F22: =Tarifas_G1!J21 -> 4.584136305 | H22: =Tarifas_G3!G21 -> 0 | I22: =Tarifas_G3!I21 -> 0 | J22: =+Tarifas_G3!J21 -> 0 | L22: =Tarifas_G5!G21 -> 0 | M22: =Tarifas_G5!I21 -> 0 | N22: =Tarifas_G5!J21 -> 0
B23: Más de 35 t hasta 70 t | C23: USD/t | D23: =Tarifas_G1!G22 -> 4.76 | E23: =+Tarifas_G1!I22 -> 5.17 | F23: =Tarifas_G1!J22 -> 5.550347704 | H23: =Tarifas_G3!G22 -> 0 | I23: =Tarifas_G3!I22 -> 0 | J23: =+Tarifas_G3!J22 -> 0 | L23: =Tarifas_G5!G22 -> 0 | M23: =Tarifas_G5!I22 -> 0 | N23: =Tarifas_G5!J22 -> 0
B24: Más de 70 t hasta 105 t | C24: USD/t | D24: =Tarifas_G1!G23 -> 5.02 | E24: =+Tarifas_G1!I23 -> 5.45 | F24: =Tarifas_G1!J23 -> 5.850946806 | H24: =Tarifas_G3!G23 -> 0 | I24: =Tarifas_G3!I23 -> 0 | J24: =+Tarifas_G3!J23 -> 0 | L24: =Tarifas_G5!G23 -> 0 | M24: =Tarifas_G5!I23 -> 0 | N24: =Tarifas_G5!J23 -> 0
B25: Más de 105 t | C25: USD/t | D25: =Tarifas_G1!G24 -> 5.13 | E25: =+Tarifas_G1!I24 -> 5.58 | F25: =Tarifas_G1!J24 -> 5.990510675 | H25: =Tarifas_G3!G24 -> 0 | I25: =Tarifas_G3!I24 -> 0 | J25: =+Tarifas_G3!J24 -> 0 | L25: =Tarifas_G5!G24 -> 0 | M25: =Tarifas_G5!I24 -> 0 | N25: =Tarifas_G5!J24 -> 0
D26: =Tarifas_G1!G25 -> 0 | F26: =Tarifas_G1!J25 -> 0 | H26: =Tarifas_G3!G25 -> 0 | I26: =Tarifas_G3!I25 -> 0 | J26: =+Tarifas_G3!J25 -> 0 | L26: =Tarifas_G5!G25 -> 0 | M26: =Tarifas_G5!I25 -> 0 | N26: =Tarifas_G5!J25 -> 0
B27: Estacionamiento nacional
B28: Hasta 10 t | C28: USD/h | D28: =Tarifas_G1!G27 -> 0.26 | E28: =+Tarifas_G1!I27 -> 0.28 | F28: =Tarifas_G1!J27 -> 0.300599102 | H28: =Tarifas_G3!G27 -> 0.13 | I28: =Tarifas_G3!I27 -> 0.14 | J28: =+Tarifas_G3!J27 -> 0.150299551 | L28: =Tarifas_G5!G27 -> 0.07 | M28: =Tarifas_G5!I27 -> 0.07 | N28: =Tarifas_G5!J27 -> 0.07514977549
B29: Más de 10 t hasta 35 t | C29: USD/h | D29: =Tarifas_G1!G28 -> 0.06 | E29: =+Tarifas_G1!I28 -> 0.06 | F29: =Tarifas_G1!J28 -> 0.06441409328 | H29: =Tarifas_G3!G28 -> 0.03 | I29: =Tarifas_G3!I28 -> 0.03 | J29: =+Tarifas_G3!J28 -> 0.03220704664 | L29: =Tarifas_G5!G28 -> 0.02 | M29: =Tarifas_G5!I28 -> 0.02 | N29: =Tarifas_G5!J28 -> 0.02147136443
B30: Más de 35 t hasta 70 t | C30: USD/h | D30: =Tarifas_G1!G29 -> 0.07 | E30: =+Tarifas_G1!I29 -> 0.07 | F30: =Tarifas_G1!J29 -> 0.07514977549 | H30: =Tarifas_G3!G29 -> 0.03 | I30: =Tarifas_G3!I29 -> 0.03 | J30: =+Tarifas_G3!J29 -> 0.03220704664 | L30: =Tarifas_G5!G29 -> 0.02 | M30: =Tarifas_G5!I29 -> 0.02 | N30: =Tarifas_G5!J29 -> 0.02147136443
B31: Más de 70 t hasta 105 t | C31: USD/h | D31: =Tarifas_G1!G30 -> 0.07 | E31: =+Tarifas_G1!I30 -> 0.07 | F31: =Tarifas_G1!J30 -> 0.07514977549 | H31: =Tarifas_G3!G30 -> 0.03 | I31: =Tarifas_G3!I30 -> 0.03 | J31: =+Tarifas_G3!J30 -> 0.03220704664 | L31: =Tarifas_G5!G30 -> 0.02 | M31: =Tarifas_G5!I30 -> 0.02 | N31: =Tarifas_G5!J30 -> 0.02147136443
B32: Más de 105 t | C32: USD/h | D32: =Tarifas_G1!G31 -> 0.08 | E32: =+Tarifas_G1!I31 -> 0.08 | F32: =Tarifas_G1!J31 -> 0.08588545771 | H32: =Tarifas_G3!G31 -> 0.03 | I32: =Tarifas_G3!I31 -> 0.03 | J32: =+Tarifas_G3!J31 -> 0.03220704664 | L32: =Tarifas_G5!G31 -> 0.02 | M32: =Tarifas_G5!I31 -> 0.02 | N32: =Tarifas_G5!J31 -> 0.02147136443
D33: =Tarifas_G1!G32 -> 0 | F33: =Tarifas_G1!J32 -> 0 | J33: =+Tarifas_G3!J32 -> 0 | L33: =Tarifas_G5!G32 -> 0 | M33: =Tarifas_G5!I32 -> 0 | N33: =Tarifas_G5!J32 -> 0
B34: Estacionamiento internacional
B35: Hasta 10 t | C35: USD/h | D35: =Tarifas_G1!G34 -> 0.53 | E35: =+Tarifas_G1!I34 -> 0.58 | F35: =Tarifas_G1!J34 -> 0.6226695684 | H35: =Tarifas_G3!G34 -> 0 | I35: =Tarifas_G3!I34 -> 0 | J35: =+Tarifas_G3!J34 -> 0 | L35: =Tarifas_G5!G34 -> 0 | M35: =Tarifas_G5!I34 -> 0 | N35: =Tarifas_G5!J34 -> 0
B36: Más de 10 t hasta 35 t | C36: USD/h | D36: =Tarifas_G1!G35 -> 0.1 | E36: =+Tarifas_G1!I35 -> 0.1 | F36: =Tarifas_G1!J35 -> 0.1073568221 | H36: =Tarifas_G3!G35 -> 0 | I36: =Tarifas_G3!I35 -> 0 | J36: =+Tarifas_G3!J35 -> 0 | L36: =Tarifas_G5!G35 -> 0 | M36: =Tarifas_G5!I35 -> 0 | N36: =Tarifas_G5!J35 -> 0
B37: Más de 35 t hasta 70 t | C37: USD/h | D37: =Tarifas_G1!G36 -> 0.12 | E37: =+Tarifas_G1!I36 -> 0.13 | F37: =Tarifas_G1!J36 -> 0.1395638688 | H37: =Tarifas_G3!G36 -> 0 | I37: =Tarifas_G3!I36 -> 0 | J37: =+Tarifas_G3!J36 -> 0 | L37: =Tarifas_G5!G36 -> 0 | M37: =Tarifas_G5!I36 -> 0 | N37: =Tarifas_G5!J36 -> 0
B38: Más de 70 t hasta 105 t | C38: USD/h | D38: =Tarifas_G1!G37 -> 0.13 | E38: =+Tarifas_G1!I37 -> 0.14 | F38: =Tarifas_G1!J37 -> 0.150299551 | H38: =Tarifas_G3!G37 -> 0 | I38: =Tarifas_G3!I37 -> 0 | J38: =+Tarifas_G3!J37 -> 0 | L38: =Tarifas_G5!G37 -> 0 | M38: =Tarifas_G5!I37 -> 0 | N38: =Tarifas_G5!J37 -> 0
B39: Más de 105 t | C39: USD/h | D39: =Tarifas_G1!G38 -> 0.13 | E39: =+Tarifas_G1!I38 -> 0.14 | F39: =Tarifas_G1!J38 -> 0.150299551 | H39: =Tarifas_G3!G38 -> 0 | I39: =Tarifas_G3!I38 -> 0 | J39: =+Tarifas_G3!J38 -> 0 | L39: =Tarifas_G5!G38 -> 0 | M39: =Tarifas_G5!I38 -> 0 | N39: =Tarifas_G5!J38 -> 0
D40: =Tarifas_G1!G39 -> 0 | F40: =Tarifas_G1!J39 -> 0 | H40: =Tarifas_G3!G39 -> 0 | I40: =Tarifas_G3!I39 -> 0 | J40: =+Tarifas_G3!J39 -> 0 | L40: =Tarifas_G5!G39 -> 0 | M40: =Tarifas_G5!I39 -> 0 | N40: =Tarifas_G5!J39 -> 0
B41: Uso de Mangas | C41: USD/h | D41: =Tarifas_G1!G40 -> 39.7 | E41: =+Tarifas_G1!I40 -> 43.13 | F41: =Tarifas_G1!J40 -> 46.30299739 | H41: =Tarifas_G3!G40 -> 0 | I41: =Tarifas_G3!I40 -> 0 | J41: =+Tarifas_G3!J40 -> 0 | L41: =Tarifas_G5!G40 -> 0 | M41: =Tarifas_G5!I40 -> 0 | N41: =Tarifas_G5!J40 -> 0

Sheet FlujoDeCajaAeroportuario
A1: Índice | B1: Flujo de caja: Servicios Aeroportuarios
B2: Montos expresados en dólares reales
C4: Incremento | D4: 0.07356822134
B7: Año | C7: 2023 | D7: 2024 | E7: 2025 | F7: 2026 | G7: 2027
B9: Total de ingresos | D9: =+D10+D21+D22 -> 32834891.59 | E9: =+E10+E21+E22 -> 34822983.07 | F9: =+F10+F21+F22 -> 36935073.45 | G9: =+G10+G21+G22 -> 39179096.86
B10: Ingresos regulados | D10: =SUM(D$11,D$14,D$17,D$20) -> 20439859.74 | E10: =SUM(E$11,E$14,E$17,E$20) -> 21808166.8 | F10: =SUM(F$11,F$14,F$17,F$20) -> 23269481.25 | G10: =SUM(G$11,G$14,G$17,G$20) -> 24830187.48
B11: TUUA | D11: =SUM(D$12:D$13) -> 12280727.57 | E11: =SUM(E$12:E$13) -> 13092830.07 | F11: =SUM(F$12:F$13) -> 13959678.73 | G11: =SUM(G$12:G$13) -> 14885012.75
B12: Nacional | D12: =IngresosReguladosTotal!E6 -> 11294576.24 | E12: =IngresosReguladosTotal!F6 -> 12047515.52 | F12: =IngresosReguladosTotal!G6 -> 12851652.71 | G12: =IngresosReguladosTotal!H6 -> 13710511.04
B13: Internacional | D13: =IngresosReguladosTotal!E7 -> 986151.3293 | E13: =IngresosReguladosTotal!F7 -> 1045314.547 | F13: =IngresosReguladosTotal!G7 -> 1108026.014 | G13: =IngresosReguladosTotal!H7 -> 1174501.713
B14: Aterrizaje y despegue | D14: =SUM(D$15:D$16) -> 7609148.349 | E14: =SUM(E$15:E$16) -> 8126905.774 | F14: =SUM(F$15:F$16) -> 8680215.774 | G14: =SUM(G$15:G$16) -> 9271536.453
B15: Nacional | D15: =IngresosReguladosTotal!E9 -> 7084909.796 | E15: =IngresosReguladosTotal!F9 -> 7571232.649 | F15: =IngresosReguladosTotal!G9 -> 8091223.16 | G15: =IngresosReguladosTotal!H9 -> 8647223.982
B16: Internacional | D16: =IngresosReguladosTotal!E16 -> 524238.5535 | E16: =IngresosReguladosTotal!F16 -> 555673.1248 | F16: =IngresosReguladosTotal!G16 -> 588992.6136 | G16: =IngresosReguladosTotal!H16 -> 624312.4713
B17: Estacionamiento | D17: =SUM(D$18:D$19) -> 5043.845591 | E17: =SUM(E$18:E$19) -> 5383.609448 | F17: =SUM(F$18:F$19) -> 5746.463467 | G17: =SUM(G$18:G$19) -> 6134.26392
B18: Nacional | D18: =IngresosReguladosTotal!E23 -> 4962.894335 | E18: =IngresosReguladosTotal!F23 -> 5298.032124 | F18: =IngresosReguladosTotal!G23 -> 5656.014828 | G18: =IngresosReguladosTotal!H23 -> 6038.679349
B19: Internacional | D19: =IngresosReguladosTotal!E30 -> 80.95125626 | E19: =IngresosReguladosTotal!F30 -> 85.57732412 | F19: =IngresosReguladosTotal!G30 -> 90.44863831 | G19: =IngresosReguladosTotal!H30 -> 95.58457157
B20: Mangas | D20: =IngresosReguladosTotal!E37 -> 544939.9762 | E20: =IngresosReguladosTotal!F37 -> 583047.3431 | F20: =IngresosReguladosTotal!G37 -> 623840.2838 | G20: =IngresosReguladosTotal!H37 -> 667504.0103
B21: Transferencias AIJCh | D21: =Transferencias!D$46 -> 12393390.91 | E21: =Transferencias!E$46 -> 13013060.45 | F21: =Transferencias!F$46 -> 13663713.48 | G21: =Transferencias!G$46 -> 14346899.15
B22: Usuarios no atribuibles | D22: =+'Ingresos no atribuibles'!O68 -> 1640.948507 | E22: =+'Ingresos no atribuibles'!P68 -> 1755.814902 | F22: =+'Ingresos no atribuibles'!Q68 -> 1878.721946 | G22: =+'Ingresos no atribuibles'!R68 -> 2010.232482
B24: Aporte por regulación | D24: =D$9*SupuestosGenerales!G$27 -> 328348.9159 | E24: =E$9*SupuestosGenerales!H$27 -> 348229.8307 | F24: =F$9*SupuestosGenerales!I$27 -> 369350.7345 | G24: =G$9*SupuestosGenerales!J$27 -> 391790.9686
B26: Ingresos netos | D26: =D$9-D$24 -> 32506542.68 | E26: =E$9-E$24 -> 34474753.24 | F26: =F$9-F$24 -> 36565722.71 | G26: =G$9-G$24 -> 38787305.89
B28: Costos de operación | D28: =SUM(D$29:D$32,D$35:D$36) -> 24393249.88 | E28: =SUM(E$29:E$32,E$35:E$36) -> 26147437.37 | F28: =SUM(F$29:F$32,F$35:F$36) -> 27299527.02 | G28: =SUM(G$29:G$32,G$35:G$36) -> 28373029.25
B29: Suministros y Materiales | D29: =D39+D49 -> 209921.696 | E29: 216181.3136 | F29: 222594.7579 | G29: 229016.7068
B30: Gastos de Personal | D30: =D40+D50 -> 17113198.6 | E30: 18635838.59 | F30: 19537909.72 | G30: 20388746.73
B31: Servicios de terceros excepto mantenimiento | D31: =D41+D51 -> 4451913.57 | E31: 4584664.386 | F31: 4720677.482 | G31: 4856870.939
B32: Mantenimiento | D32: 635072.8975 | E32: =E42+E52 -> 668474.968 | F32: 715478.7527 | G32: =G42+G52 -> 734860.026
B33: Depreciación de activos | D33: 0 | E33: 0 | F33: 0 | G33: 0
B34: Amortización de Intangibles | D34: 0 | E34: 0 | F34: 0 | G34: 0
B35: Seguros y tributos | D35: 1963125.554 | E35: 2021663.644 | F35: 2081640.277 | G35: 2141696.442
B36: Otros Costos | D36: 20017.56154 | E36: 20614.46163 | F36: 21226.03022 | G36: 21838.40979
B38: Costos de operación base | D38: =SUM(D$39:D$42,D$45:D$46) -> 24393249.88 | E38: =SUM(E$39:E$42,E$45:E$46) -> 26132972.42 | F38: =SUM(F$39:F$42,F$45:F$46) -> 27257460.79 | G38: =SUM(G$39:G$42,G$45:G$46) -> 28331009.97
B39: Suministros y Materiales | D39: =Opex!E10 -> 209921.696 | E39: =Opex!F10 -> 216181.3136 | F39: =Opex!G10 -> 222594.7579 | G39: =Opex!H10 -> 229016.7068
B40: Gastos de Personal | D40: =Opex!E11 -> 17113198.6 | E40: =Opex!F11 -> 18635838.59 | F40: =Opex!G11 -> 19537909.72 | G40: =Opex!H11 -> 20388746.73
B41: Servicios de terceros excepto mantenimiento | D41: =Opex!E12 -> 4451913.57 | E41: =Opex!F12 -> 4584664.386 | F41: =Opex!G12 -> 4720677.482 | G41: =Opex!H12 -> 4856870.939
B42: Mantenimiento | D42: =Opex!E13 -> 635072.8975 | E42: =Opex!F13 -> 654010.0229 | F42: =Opex!G13 -> 673412.518 | G42: =Opex!H13 -> 692840.7419
B43: Depreciación de activos | D43: =Opex!E14 -> 0 | E43: =Opex!F14 -> 0 | F43: =Opex!G14 -> 0 | G43: =Opex!H14 -> 0
B44: Amortización de Intangibles | D44: =Opex!E15 -> 0 | E44: =Opex!F15 -> 0 | F44: =Opex!G15 -> 0 | G44: =Opex!H15 -> 0
B45: Seguros y tributos | D45: =Opex!E16 -> 1963125.554 | E45: =Opex!F16 -> 2021663.644 | F45: =Opex!G16 -> 2081640.277 | G45: =Opex!H16 -> 2141696.442
B46: Otros Costos | D46: =Opex!E17 -> 20017.56154 | E46: =Opex!F17 -> 20614.46163 | F46: =Opex!G17 -> 21226.03022 | G46: =Opex!H17 -> 21838.40979
B48: Costos de operación incrementales | D48: =SUM(D$49:D$52,D$55:D$56) -> 0 | E48: =SUM(E$49:E$52,E$55:E$56) -> 14464.94515 | F48: =SUM(F$49:F$52,F$55:F$56) -> 42066.23472 | G48: =SUM(G$49:G$52,G$55:G$56) -> 42019.28411
B49: Suministros y Materiales
B50: Gastos de Personal
B51: Servicios de terceros excepto mantenimiento
B52: Mantenimiento | D52: =Opex!E38 -> 0 | E52: =Opex!F38 -> 14464.94515 | F52: =Opex!G38 -> 42066.23472 | G52: =Opex!H38 -> 42019.28411
B53: Depreciación de activos
B54: Amortización de Intangibles
B55: Seguros y tributos
B56: Otros Costos
B58: Inversión
B59: Activo inicial | C59: =SUM(C$60:C$64)-'CKF-AEROPORTUARIO'!H279 -> 61329113.01
B60: Edificaciones y construcciones | C60: =ActivoInicial!E12 -> 26412934.47
B61: Intangible | C61: =ActivoInicial!E13 -> 17144.18236
B62: Maquinaria y equipo | C62: =ActivoInicial!E14 -> 166807.0971
B63: Otros | C63: =ActivoInicial!E15 -> 7772373.716
B64: Terrenos | C64: =ActivoInicial!E16 -> 27623226.14
B66: Inversiones del periodo | D66: =D$68 -> 2287214.759 | E66: =E$68 -> 2772266.261 | F66: =F$68 -> 2860858.14 | G66: =G$68 -> 4557555.026
B68: No incluidas en el convenio | D68: =SUM(D69:D74) -> 2287214.759 | E68: =SUM(E69:E74) -> 2772266.261 | F68: =SUM(F69:F74) -> 2860858.14 | G68: =SUM(G69:G74) -> 4557555.026
B69: Edificaciones y construcciones | D69: =InversionesProgramadas!D12 -> 1546074.554 | E69: =InversionesProgramadas!E12 -> 2159216.327 | F69: =InversionesProgramadas!F12 -> 1602536.228 | G69: =InversionesProgramadas!G12 -> 2972817.007
B70: Maquinaria y equipo | D70: =InversionesProgramadas!D13 -> 741140.2049 | E70: =InversionesProgramadas!E13 -> 613049.9339 | F70: =InversionesProgramadas!F13 -> 1258321.912 | G70: =InversionesProgramadas!G13 -> 1094713.238
B71: Vehículos | D71: =InversionesProgramadas!D14 -> 0 | E71: =InversionesProgramadas!E14 -> 0 | F71: =InversionesProgramadas!F14 -> 0 | G71: =InversionesProgramadas!G14 -> 490024.7813
B72: Muebles y enseres | D72: =InversionesProgramadas!D15 -> 0 | E72: =InversionesProgramadas!E15 -> 0 | F72: =InversionesProgramadas!F15 -> 0 | G72: =InversionesProgramadas!G15 -> 0
B73: Otros | D73: =InversionesProgramadas!D16 -> 0 | E73: =InversionesProgramadas!E16 -> 0 | F73: =InversionesProgramadas!F16 -> 0 | G73: =InversionesProgramadas!G16 -> 0
B74: Equipos de informática | D74: =InversionesProgramadas!D17 -> 0 | E74: =InversionesProgramadas!E17 -> 0 | F74: =InversionesProgramadas!F17 -> 0 | G74: =InversionesProgramadas!G17 -> 0
B76: Recuperación de la inversión | G76: =$C$59-SUM($D$78:$G$78)+SUM($D$66:$G$66)-SUM($D$85:$G$85) -> 64427246.45
B78: Depreciación activo inicial | D78: =SUM(D$79:D$83) -> 2096454.34 | E78: =SUM(E$79:E$83) -> 2096085.57 | F78: =SUM(F$79:F$83) -> 2095407.841 | G78: =SUM(G$79:G$83) -> 2093069.132
B79: Edificaciones y construcciones | D79: =ActivoInicial!F43 -> 1308275.167 | E79: =ActivoInicial!G43 -> 1308045.04 | F79: =ActivoInicial!H43 -> 1307622.108 | G79: =ActivoInicial!I43 -> 1306162.656
B80: Intangible | D80: =ActivoInicial!F44 -> 1698.357907 | E80: =ActivoInicial!G44 -> 1698.059163 | F80: =ActivoInicial!H44 -> 1697.510128 | G80: =ActivoInicial!I44 -> 1695.615517
B81: Maquinaria y equipo | D81: =ActivoInicial!F45 -> 16524.44814 | E81: =ActivoInicial!G45 -> 16521.54147 | F81: =ActivoInicial!H45 -> 16516.19954 | G81: =ActivoInicial!I45 -> 16497.76562
B82: Otros | D82: =ActivoInicial!F46 -> 769956.3664 | E82: =ActivoInicial!G46 -> 769820.9299 | F82: =ActivoInicial!H46 -> 769572.0229 | G82: =ActivoInicial!I46 -> 768713.0946
B83: Terrenos | D83: =ActivoInicial!F47 -> 0 | E83: =ActivoInicial!G47 -> 0 | F83: =ActivoInicial!H47 -> 0 | G83: =ActivoInicial!I47 -> 0
B85: Depreciación inversiones del periodo | E85: =E87 -> 151417.7482 | F85: =F87 -> 320683.5579 | G85: =G87 -> 526642.5605
B87: No incluidas en el convenio | E87: =SUM(E88:E93) -> 151417.7482 | F87: =SUM(F88:F93) -> 320683.5579 | G87: =SUM(G88:G93) -> 526642.5605
B88: Edificaciones y construcciones | E88: =InversionesProgramadas!E50 -> 77303.72772 | F88: =InversionesProgramadas!F50 -> 185264.5441 | G88: =InversionesProgramadas!G50 -> 265391.3555
B89: Maquinaria y equipo | E89: =InversionesProgramadas!E51 -> 74114.02049 | F89: =InversionesProgramadas!F51 -> 135419.0139 | G89: =InversionesProgramadas!G51 -> 261251.2051
B90: Vehículos | E90: =InversionesProgramadas!E52 -> 0 | F90: =InversionesProgramadas!F52 -> 0 | G90: =InversionesProgramadas!G52 -> 0
B91: Muebles y enseres | E91: =InversionesProgramadas!E53 -> 0 | F91: =InversionesProgramadas!F53 -> 0 | G91: =InversionesProgramadas!G53 -> 0
B92: Otros | E92: =InversionesProgramadas!E54 -> 0 | F92: =InversionesProgramadas!F54 -> 0 | G92: =InversionesProgramadas!G54 -> 0
B93: Equipos de informática | E93: =InversionesProgramadas!E55 -> 0 | F93: =InversionesProgramadas!F55 -> 0 | G93: =InversionesProgramadas!G55 -> 0
B95: Resultado antes de impuestos | D95: =D$26-D$28-D$78-D$85 -> 6016838.462 | E95: =E$26-E$28-E$78-E$85 -> 6079812.552 | F95: =F$26-F$28-F$78-F$85 -> 6850104.291 | G95: =G$26-G$28-G$78-G$85 -> 7794564.947
B97: Impuestos | D97: =+IF(((SupuestosGenerales!G18)*D$95)>0,(SupuestosGenerales!G18*D$95),0) -> 1987060.902 | E97: =+IF(((SupuestosGenerales!H18)*E$95)>0,(SupuestosGenerales!H18*E$95),0) -> 2007858.095 | F97: =+IF(((SupuestosGenerales!I18)*F$95)>0,(SupuestosGenerales!I18*F$95),0) -> 2262246.942 | G97: =+IF(((SupuestosGenerales!J18)*G$95)>0,(SupuestosGenerales!J18*G$95),0) -> 2574155.074
B99: Flujo de caja | C99: =-$C$59 -> -61329113.01 | D99: =D$26-D$28-D$66-D$97 -> 3839017.141 | E99: =E$26-E$28-E$66-E$97 -> 3547191.514 | F99: =F$26-F$28-F$66-F$97 -> 4143090.607 | G99: =G$26-G$28-G$66-G$97+G76 -> 67709812.99
B101: TIR | C101: =IRR(C99:G99) -> 0.07187110583
B102: VAN | C102: =C99+NPV(C103,D99:G99) -> 0
B103: WACC | C103: =SupuestoDemanda!$C$5 -> 0.07187110583
B104: Incremento tarifario | C104: =+D4 -> 0.07356822134

Sheet Opex
A1: Índice | B1: Costos de operación - OPEX
D4: =+SupuestosGenerales!I14 -> 3.766014071 | E4: =+SupuestosGenerales!J14 -> 3.801626957 | F4: =+SupuestosGenerales!K14 -> 3.802295786 | G4: =+SupuestosGenerales!L14 -> 3.803525584 | H4: =+SupuestosGenerales!M14 -> 3.807775487 | J4: Tipo de cambio real
B6: A. Opex Base
C7: Unidad Monetaria | D7: 2023 | E7: 2024 | F7: 2025 | G7: 2026 | H7: 2027
B9: Proyeccion de gastos operativos base | C9: USD | D9: =SUM(D$10:D$17) -> 7020373.766 | E9: =SUM(E$10:E$17) -> 24393249.88 | F9: =SUM(F$10:F$17) -> 26132972.42 | G9: =SUM(G$10:G$17) -> 27257460.79 | H9: =SUM(H$10:H$17) -> 28331009.97 | J9: Anula depreciación y amortización
B10: Suministros y Materiales | C10: USD | D10: =$J10*D20/D$4 -> 258025.2593 | E10: 209921.696 | F10: 216181.3136 | G10: 222594.7579 | H10: 229016.7068 | J10: 1
B11: Gastos de Personal | C11: USD | D11: 0 | E11: 17113198.6 | F11: 18635838.59 | G11: 19537909.72 | H11: 20388746.73 | J11: 1
B12: Servicios de terceros excepto mantenimiento | C12: USD | D12: 4190605.945 | E12: =$J12*E22/E$4 -> 4451913.57 | F12: 4584664.386 | G12: 4720677.482 | H12: 4856870.939 | J12: 1
B13: Mantenimiento | C13: USD | D13: 934008.5719 | E13: 635072.8975 | F13: 654010.0229 | G13: 673412.518 | H13: 692840.7419 | J13: 1
B14: Depreciación de activos | C14: USD | D14: =$J14*D24/D$4 -> 0 | E14: 0 | F14: 0 | G14: 0 | H14: 0 | J14: 0
B15: Amortización de Intangibles | C15: USD | D15: 0 | E15: 0 | F15: 0 | G15: 0 | H15: 0 | J15: 0
B16: Seguros y tributos | C16: USD | D16: 1258383.095 | E16: 1963125.554 | F16: 2021663.644 | G16: 2081640.277 | H16: 2141696.442 | J16: 1
B17: Otros Costos | C17: USD | D17: 379350.8952 | E17: 20017.56154 | F17: 20614.46163 | G17: 21226.03022 | H17: 21838.40979 | J17: 1
B19: Proyeccion de gastos operativos base | C19: PEN | D19: =SUM(D$20:D$27) -> 45219570.03 | E19: =SUM(E$20,E$22:E$27) -> 46510239.66 | F19: =SUM(F$20,F$22:F$27) -> 47905546.85 | G19: =SUM(G$20,G$22:G$27) -> 49342713.25 | H19: =SUM(H$20,H$22:H$27) -> 50822994.65
B20: Suministros y Materiales | C20: PEN | D20: =DataOpexBase!D$9+DataOpexBase!D$21+DataOpexBase!D$33 -> 971726.7573 | E20: =DataOpexBase!M$9+DataOpexBase!M$21+DataOpexBase!M$33 -> 798043.9784 | F20: =E20*SupuestosGenerales!I50 -> 821985.2978 | G20: =F20*SupuestosGenerales!J50 -> 846644.8567 | H20: =G20*SupuestosGenerales!K50 -> 872044.2024
B21: Gastos de Personal | C21: PEN | E21: =FuenteOpexPersonalTotalServicio!AW5+FuenteOpexPersonalTotalServicio!AW6 -> 65057997.1 | F21: =FuenteOpexPersonalTotalServicio!AX5+FuenteOpexPersonalTotalServicio!AX6 -> 70858970.56 | G21: =FuenteOpexPersonalTotalServicio!AY5+FuenteOpexPersonalTotalServicio!AY6 -> 74312939.5 | H21: =FuenteOpexPersonalTotalServicio!AZ5+FuenteOpexPersonalTotalServicio!AZ6 -> 77635770
B22: Servicios de terceros excepto mantenimiento | C22: PEN | D22: =DataOpexBase!D11+DataOpexBase!D23+DataOpexBase!D35 -> 15781880.96 | E22: =DataOpexBase!M11+DataOpexBase!M23+DataOpexBase!M35 -> 16924514.64 | F22: =E22*SupuestosGenerales!I52 -> 17432250.08 | G22: =F22*SupuestosGenerales!J52 -> 17955217.58 | H22: =G22*SupuestosGenerales!K52 -> 18493874.1
B23: Mantenimiento | C23: PEN | D23: =DataOpexBase!D12+DataOpexBase!D24+DataOpexBase!D36 -> 3517489.424 | E23: =DataOpexBase!M12+DataOpexBase!M24+DataOpexBase!M36 -> 2414310.247 | F23: =E23*SupuestosGenerales!I53 -> 2486739.554 | G23: =F23*SupuestosGenerales!J53 -> 2561341.741 | H23: =G23*SupuestosGenerales!K53 -> 2638181.993
B24: Depreciación de activos | C24: PEN | D24: =DataOpexBase!D13+DataOpexBase!D25+DataOpexBase!D37 -> 18611983.33 | E24: =DataOpexBase!M13+DataOpexBase!M25+DataOpexBase!M37 -> 18666312.82 | F24: =E24*SupuestosGenerales!I54 -> 19226302.21 | G24: =F24*SupuestosGenerales!J54 -> 19803091.27 | H24: =G24*SupuestosGenerales!K54 -> 20397184.01
B25: Amortización de Intangibles | C25: PEN | D25: =DataOpexBase!D14+DataOpexBase!D26+DataOpexBase!D38 -> 168760.3092 | E25: =DataOpexBase!M14+DataOpexBase!M26+DataOpexBase!M38 -> 167887.6474 | F25: =E25*SupuestosGenerales!I55 -> 172924.2768 | G25: =F25*SupuestosGenerales!J55 -> 178112.0051 | H25: =G25*SupuestosGenerales!K55 -> 183455.3653
B26: Seguros y tributos | C26: PEN | D26: =DataOpexBase!D15+DataOpexBase!D27+DataOpexBase!D39 -> 4739088.443 | E26: =DataOpexBase!M15+DataOpexBase!M27+DataOpexBase!M39 -> 7463071.025 | F26: =E26*SupuestosGenerales!I56 -> 7686963.156 | G26: =F26*SupuestosGenerales!J56 -> 7917572.05 | H26: =G26*SupuestosGenerales!K56 -> 8155099.212
B27: Otros Costos | C27: PEN | D27: =DataOpexBase!D16+DataOpexBase!D28+DataOpexBase!D40 -> 1428640.809 | E27: =DataOpexBase!M16+DataOpexBase!M28+DataOpexBase!M40 -> 76099.30155 | F27: =E27*SupuestosGenerales!I57 -> 78382.28059 | G27: =F27*SupuestosGenerales!J57 -> 80733.74901 | H27: =G27*SupuestosGenerales!K57 -> 83155.76148
B31: A. Opex Incremental
C32: Unidad Monetaria | D32: 2023 | E32: 2024 | F32: 2025 | G32: 2026 | H32: 2027
B34: Gastos operativos mantenimiento incremental | C34: USD
B35: Suministros y Materiales | C35: USD
B36: Gastos de Personal | C36: USD
B37: Servicios de terceros excepto mantenimiento | C37: USD
B38: Mantenimiento | C38: USD | F38: =F48/F4 -> 14464.94515 | G38: =G48/G4 -> 42066.23472 | H38: =H48/H4 -> 42019.28411
B39: Depreciación de activos | C39: USD
B40: Amortización de Intangibles | C40: USD
B41: Seguros y tributos | C41: USD
B42: Otros Costos | C42: USD
B44: Gastos operativos mantenimiento incremental | C44: PEN
B45: Suministros y Materiales | C45: PEN
B46: Gastos de Personal | C46: PEN
B47: Servicios de terceros excepto mantenimiento | C47: PEN
B48: Mantenimiento | C48: PEN | F48: =+FuenteManteniIncrem!I40 -> 55000 | G48: =+FuenteManteniIncrem!K40 -> 160000 | H48: =+FuenteManteniIncrem!M40 -> 160000
B49: Depreciación de activos | C49: PEN
B50: Amortización de Intangibles | C50: PEN
B51: Seguros y tributos | C51: PEN
B52: Otros Costos | C52: PEN

Sheet FuenteMacro
A1: Índice | B1: Fuente Variables Macroeconómicas
B3: I. BLS - CPI
B4: Año | C4: 2014 | D4: 2015 | E4: 2016 | F4: 2017 | G4: 2018 | H4: 2019 | I4: 2020 | J4: 2021 | K4: 2022 | L4: 2023
B5: ene | C5: 233.916 | D5: 233.707 | E5: 236.916 | F5: 242.839 | G5: 247.867 | H5: 251.712 | I5: 257.971 | J5: 261.582 | K5: 281.148 | L5: 299.17
B6: feb | C6: 234.781 | D6: 234.722 | E6: 237.111 | F6: 243.603 | G6: 248.991 | H6: 252.776 | I6: 258.678 | J6: 263.014 | K6: 283.716 | L6: 300.84
B7: mar | C7: 236.293 | D7: 236.119 | E7: 238.132 | F7: 243.801 | G7: 249.554 | H7: 254.202 | I7: 258.115 | J7: 264.877 | K7: 287.504 | L7: 301.836
B8: abr | C8: 237.072 | D8: 236.599 | E8: 239.261 | F8: 244.524 | G8: 250.546 | H8: 255.548 | I8: 256.389 | J8: 267.054 | K8: 289.109 | L8: 303.363
B9: may | C9: 237.9 | D9: 237.805 | E9: 240.229 | F9: 244.733 | G9: 251.588 | H9: 256.092 | I9: 256.394 | J9: 269.195 | K9: 292.296 | L9: 304.127
B10: jun | C10: 238.343 | D10: 238.638 | E10: 241.018 | F10: 244.955 | G10: 251.989 | H10: 256.143 | I10: 257.797 | J10: 271.696 | K10: 296.311 | L10: 305.109
B11: jul | C11: 238.25 | D11: 238.654 | E11: 240.628 | F11: 244.786 | G11: 252.006 | H11: 256.571 | I11: 259.101 | J11: 273.003 | K11: 296.276 | L11: 305.691
B12: ago | C12: 237.852 | D12: 238.316 | E12: 240.849 | F12: 245.519 | G12: 252.146 | H12: 256.558 | I12: 259.918 | J12: 273.567 | K12: 296.171 | L12: 307.026
B13: set | C13: 238.031 | D13: 237.945 | E13: 241.428 | F13: 246.819 | G13: 252.439 | H13: 256.759 | I13: 260.28 | J13: 274.31 | K13: 296.808 | L13: 307.789
B14: oct | C14: 237.433 | D14: 237.838 | E14: 241.729 | F14: 246.663 | G14: 252.885 | H14: 257.346 | I14: 260.388 | J14: 276.589 | K14: 298.012 | L14: 307.671
B15: nov | C15: 236.151 | D15: 237.336 | E15: 241.353 | F15: 246.669 | G15: 252.038 | H15: 257.208 | I15: 260.229 | J15: 277.948 | K15: 297.711 | L15: 307.051
B16: dic | C16: 234.812 | D16: 236.525 | E16: 241.432 | F16: 246.524 | G16: 251.233 | H16: 256.974 | I16: 260.474 | J16: 278.802 | K16: 296.797 | L16: 306.746
B17: Promedio | C17: =AVERAGE(C5:C16) -> 236.7361667 | D17: 237.017 | E17: 240.0071667 | F17: 245.1195833 | G17: 251.1068333 | H17: 255.6574167 | I17: 258.8111667 | J17: 270.96975 | K17: =AVERAGE(K5:K16) -> 292.6549167 | L17: =AVERAGE(L5:L16) -> 304.7015833
B18: Var% | D18: =+D17/C17-1 -> 0.001186271356 | E18: 0.01261583206 | F18: 0.02130110004 | G18: 0.02442583297 | H18: 0.01812210075 | I18: 0.01233584396 | J18: 0.04697858864 | K18: 0.08002799821 | L18: 0.04116338384
B19: Tomado de: https://data.bls.gov/cgi-bin/surveymost?cu
B20: II. WEO - CPI
B21: Año | C21: 2017 | D21: 2018 | E21: 2019 | F21: 2020 | G21: 2021 | H21: 2022 | I21: 2023 | J21: 2024 | K21: 2025 | L21: 2026 | M21: 2027
B22: CPI | C22: 245.136 | D22: 251.102 | E22: 255.653 | F22: 258.844 | G22: 270.965 | H22: 292.6 | I22: 304.7 | J22: 313.6 | K22: 319.8 | L22: 326.4 | M22: 333.3
B23: Var% | D23: =+D22/C22-1 -> 0.02433751061 | E23: =+E22/D22-1 -> 0.01812410893 | F23: 0.01248176239 | G23: 0.04682743274 | H23: 0.07984426033 | I23: 0.04135338346 | J23: 0.02920905809 | K23: =+K22/J22-1 -> 0.01977040816 | L23: =+L22/K22-1 -> 0.02063789869 | M23: =+M22/L22-1 -> 0.02113970588
B24: Tomado de: https://www.imf.org/en/Publications/WEO/weo-database/2024/April/weo-report?c=111,&s=PCPI,PCPIPCH,&sy=2018&ey=2027&ssm=0&scsm=1&scc=0&ssd=1&ssc=0&sic=0&sort=country&ds=,&br=1
B26: III. INEI - IPC
B27: Año | C27: 2014 | D27: 2015 | E27: 2016 | F27: 2017 | G27: 2018 | H27: 2019 | I27: 2020 | J27: 2021 | K27: 2022 | L27: 2023
B28: ene | C28: 113.360708 | D28: 116.844581 | E28: 122.229583 | F28: 126.014256 | G28: 127.593452 | H28: 130.310118 | I28: 132.770837 | J28: 136.323181 | K28: 100.037268 | L28: 108.704764
B29: feb | C29: 114.041823 | D29: 117.199168 | E29: 122.442374 | F29: 126.421498 | G29: 127.912717 | H29: 130.475301 | I29: 132.9596 | J29: 136.152415 | K29: 100.34884 | L29: 109.024924
B30: mar | C30: 114.633197 | D30: 118.095348 | E30: 123.174724 | F30: 128.07074 | G30: 128.535811 | H30: 131.424577 | I30: 133.818519 | J30: 137.295372 | K30: 101.836672 | L30: 110.391537
B31: abr | C31: 115.08396 | D31: 118.556518 | E31: 123.188774 | F31: 127.740249 | G31: 128.359623 | H31: 131.687532 | I31: 133.95847 | J31: 137.151635 | K31: 102.816232 | L31: 111.005592
B32: may | C32: 115.342934 | D32: 119.22561 | E32: 123.446933 | F32: 127.199476 | G32: 128.383312 | H32: 131.881921 | I32: 134.231951 | J32: 137.517223 | K32: 103.211072 | L32: 111.358436
B33: jun | C33: 115.526534 | D33: 119.621846 | E33: 123.619152 | F33: 126.996976 | G33: 128.812187 | H33: 131.768144 | I33: 133.874764 | J33: 138.231861 | K33: 104.439931 | L33: 111.188314
B34: jul | C34: 116.027125 | D34: 120.161085 | E34: 123.720207 | F34: 127.248793 | G34: 129.305262 | H34: 132.036077 | I34: 134.494187 | J34: 139.624601 | K34: 105.422597 | L34: 111.623134
B35: ago | C35: 115.927783 | D35: 120.614364 | E35: 124.163479 | F35: 128.104192 | G35: 129.475644 | H35: 132.116589 | I35: 134.345922 | J35: 140.999813 | K35: 106.125283 | L35: 112.042985
B36: set | C36: 116.11385 | D36: 120.647579 | E36: 124.419832 | F36: 128.08399 | G36: 129.723825 | H36: 132.125022 | I36: 134.529108 | J36: 141.564408 | K36: 106.679849 | L36: 112.061363
B37: oct | C37: 116.553757 | D37: 120.819863 | E37: 124.934127 | F37: 127.482962 | G37: 129.829788 | H37: 132.271318 | I37: 134.551676 | J37: 142.39067 | K37: 107.050724 | L37: 111.700024
B38: nov | C38: 116.379555 | D38: 121.23557 | E38: 125.296516 | F38: 127.231518 | G38: 129.988749 | H38: 132.415375 | I38: 135.25199 | J38: 142.90069 | K38: 107.604861 | L38: 111.517885
B39: dic | C39: 116.645938 | D39: 121.775943 | E39: 125.715251 | F39: 127.431083 | G39: 130.225039 | H39: 132.699434 | I39: 135.317902 | J39: 144.019367 | K39: 108.459162 | L39: 111.9704
B40: Var% y-o-y | D40: =+D39/C39-1 -> 0.04397928542 | E40: 0.0323488195 | F40: 0.01364855884 | G40: 0.02192523154 | H40: 0.01900091579 | I40: 0.01973232229 | J40: 0.06430387163 | L40: =+L39/K39-1 -> 0.03237382564
B41: Tomado de: https://www.inei.gob.pe/estadisticas/indice-tematico/economia/ (Cambio de año base)
B43: IV. MEF - Inflación
B45: Año | C45: 2020 | D45: 2021 | E45: 2022 | F45: 2023 | G45: 2024 | H45: 2025 | I45: 2026 | J45: 2027
B46: CPI | C46: 0.01973232229 | D46: 0.06430387163 | E46: 0.085 | F46: 0.032 | G46: 0.026 | H46: 0.025 | I46: 0.02 | J46: 0.02
B49: V. MEF - Tipo de cambio
B51: Año | C51: 2020 | D51: 2021 | E51: 2022 | F51: 2023 | G51: 2024 | H51: 2025 | I51: 2026 | J51: 2027
B52: TC prom (S/-USD) | C52: 3.5 | D52: 3.884144047 | E52: 3.84 | F52: 3.75 | G52: 3.74 | H52: 3.78 | I52: 3.8 | J52: 3.8
B53: Tomado de: https://www.mef.gob.pe/contenidos/pol_econ/marco_macro/MMM_2024_2027.pdf
B55: VI. SBS - Tipo de cambio
B57: Año | C57: 2015 | D57: 2016 | E57: 2017 | F57: 2018 | G57: 2019 | H57: 2020 | I57: 2021 | J57: 2022 | K57: 2023
B58: TC prom | C58: =AVERAGEIF($C$62:$C$1805,C$57,$F$62:$F$1805) -> 3.185516129 | D58: =AVERAGEIF($C$62:$C$1805,D$57,$F$62:$F$1805) -> 3.374992032 | E58: 3.261108434 | F58: 3.28624187 | G58: 3.336917671 | H58: 3.496066929 | I58: 3.882629482 | J58: 3.84 | K58: 3.75
B59: Tomado de: https://www.sbs.gob.pe/app/pp/seriesHistoricas2/paso3_TipodeCambio_Descarga.aspx?secu=03&paso=3&opc=1
B61: FECHA | C61: Año | D61: COMPRA | E61: VENTA | F61: Promedio
B62: 2015-01-05 | C62: =YEAR(B62) -> 2015 | D62: 2.989 | E62: 2.992 | F62: =AVERAGE(D62:E62) -> 2.9905
B63: 2015-01-06 | C63: =YEAR(B63) -> 2015 | D63: 2.981 | E63: 2.983 | F63: =AVERAGE(D63:E63) -> 2.982
B64: 2015-01-07 | C64: 2015 | D64: 2.984 | E64: 2.987 | F64: 2.9855
B65: 2015-01-08 | C65: 2015 | D65: 2.986 | E65: 2.989 | F65: 2.9875
B66: 2015-01-09 | C66: 2015 | D66: 2.982 | E66: 2.986 | F66: 2.984
B67: 2015-01-12 | C67: 2015 | D67: 2.987 | E67: 2.989 | F67: 2.988
B68: 2015-01-13 | C68: 2015 | D68: 2.983 | E68: 2.985 | F68: 2.984
B69: 2015-01-14 | C69: 2015 | D69: 2.991 | E69: 2.994 | F69: 2.9925
B70: 2015-01-15 | C70: 2015 | D70: 2.994 | E70: 2.997 | F70: 2.9955
B71: 2015-01-16 | C71: 2015 | D71: 3.007 | E71: 3.013 | F71: 3.01
B72: 2015-01-19 | C72: 2015 | D72: 3.007 | E72: 3.012 | F72: 3.0095
B73: 2015-01-20 | C73: 2015 | D73: 3.007 | E73: 3.009 | F73: 3.008
B74: 2015-01-21 | C74: 2015 | D74: 3.009 | E74: 3.011 | F74: 3.01
B75: 2015-01-22 | C75: 2015 | D75: 3.002 | E75: 3.004 | F75: 3.003
B76: 2015-01-23 | C76: 2015 | D76: 3.009 | E76: 3.012 | F76: 3.0105
B77: 2015-01-26 | C77: 2015 | D77: 3.017 | E77: 3.02 | F77: 3.0185
B78: 2015-01-27 | C78: 2015 | D78: 3.022 | E78: 3.024 | F78: 3.023
B79: 2015-01-28 | C79: 2015 | D79: 3.027 | E79: 3.029 | F79: 3.028
B80: 2015-01-29 | C80: 2015 | D80: 3.042 | E80: 3.045 | F80: 3.0435
B81: 2015-01-30 | C81: 2015 | D81: 3.056 | E81: 3.058 | F81: 3.057
B82: 2015-02-02 | C82: 2015 | D82: 3.057 | E82: 3.06 | F82: 3.0585
B83: 2015-02-03 | C83: 2015 | D83: 3.057 | E83: 3.059 | F83: 3.058
B84: 2015-02-04 | C84: 2015 | D84: 3.059 | E84: 3.062 | F84: 3.0605
B85: 2015-02-05 | C85: 2015 | D85: 3.061 | E85: 3.063 | F85: 3.062
B86: 2015-02-06 | C86: 2015 | D86: 3.065 | E86: 3.068 | F86: 3.0665
B87: 2015-02-09 | C87: 2015 | D87: 3.064 | E87: 3.065 | F87: 3.0645
B88: 2015-02-10 | C88: 2015 | D88: 3.07 | E88: 3.076 | F88: 3.073
B89: 2015-02-11 | C89: 2015 | D89: 3.092 | E89: 3.094 | F89: 3.093
B90: 2015-02-12 | C90: 2015 | D90: 3.079 | E90: 3.082 | F90: 3.0805
B91: 2015-02-13 | C91: 2015 | D91: 3.067 | E91: 3.075 | F91: 3.071
B92: 2015-02-16 | C92: 2015 | D92: 3.08 | E92: 3.085 | F92: 3.0825
B93: 2015-02-17 | C93: 2015 | D93: 3.081 | E93: 3.083 | F93: 3.082
B94: 2015-02-18 | C94: 2015 | D94: 3.083 | E94: 3.086 | F94: 3.0845
B95: 2015-02-19 | C95: 2015 | D95: 3.084 | E95: 3.087 | F95: 3.0855
B96: 2015-02-20 | C96: 2015 | D96: 3.084 | E96: 3.089 | F96: 3.0865
B97: 2015-02-23 | C97: 2015 | D97: 3.087 | E97: 3.09 | F97: 3.0885
B98: 2015-02-24 | C98: 2015 | D98: 3.092 | E98: 3.095 | F98: 3.0935
B99: 2015-02-25 | C99: 2015 | D99: 3.094 | E99: 3.095 | F99: 3.0945
B100: 2015-02-26 | C100: 2015 | D100: 3.091 | E100: 3.094 | F100: 3.0925
B101: 2015-02-27 | C101: 2015 | D101: 3.091 | E101: 3.095 | F101: 3.093
B102: 2015-03-02 | C102: 2015 | D102: 3.093 | E102: 3.097 | F102: 3.095
B103: 2015-03-03 | C103: 2015 | D103: 3.091 | E103: 3.093 | F103: 3.092
B104: 2015-03-04 | C104: 2015 | D104: 3.092 | E104: 3.094 | F104: 3.093
B105: 2015-03-05 | C105: 2015 | D105: 3.097 | E105: 3.098 | F105: 3.0975
B106: 2015-03-06 | C106: 2015 | D106: 3.1 | E106: 3.101 | F106: 3.1005
B107: 2015-03-09 | C107: 2015 | D107: 3.096 | E107: 3.1 | F107: 3.098
B108: 2015-03-10 | C108: 2015 | D108: 3.098 | E108: 3.1 | F108: 3.099
B109: 2015-03-11 | C109: 2015 | D109: 3.098 | E109: 3.101 | F109: 3.0995
B110: 2015-03-12 | C110: 2015 | D110: 3.096 | E110: 3.099 | F110: 3.0975
B111: 2015-03-13 | C111: 2015 | D111: 3.099 | E111: 3.102 | F111: 3.1005
B112: 2015-03-16 | C112: 2015 | D112: 3.095 | E112: 3.099 | F112: 3.097
B113: 2015-03-17 | C113: 2015 | D113: 3.094 | E113: 3.098 | F113: 3.096
B114: 2015-03-18 | C114: 2015 | D114: 3.098 | E114: 3.1 | F114: 3.099
B115: 2015-03-19 | C115: 2015 | D115: 3.095 | E115: 3.096 | F115: 3.0955
B116: 2015-03-20 | C116: 2015 | D116: 3.087 | E116: 3.091 | F116: 3.089
B117: 2015-03-23 | C117: 2015 | D117: 3.077 | E117: 3.08 | F117: 3.0785
B118: 2015-03-24 | C118: 2015 | D118: 3.071 | E118: 3.075 | F118: 3.073
B119: 2015-03-25 | C119: 2015 | D119: 3.064 | E119: 3.066 | F119: 3.065
B120: 2015-03-26 | C120: 2015 | D120: 3.075 | E120: 3.077 | F120: 3.076
B121: 2015-03-27 | C121: 2015 | D121: 3.087 | E121: 3.091 | F121: 3.089
B122: 2015-03-30 | C122: 2015 | D122: 3.092 | E122: 3.096 | F122: 3.094
B123: 2015-03-31 | C123: 2015 | D123: 3.094 | E123: 3.097 | F123: 3.0955
B124: 2015-04-01 | C124: 2015 | D124: 3.093 | E124: 3.095 | F124: 3.094
B125: 2015-04-06 | C125: 2015 | D125: 3.089 | E125: 3.093 | F125: 3.091
B126: 2015-04-07 | C126: 2015 | D126: 3.096 | E126: 3.099 | F126: 3.0975
B127: 2015-04-08 | C127: =YEAR(B127) -> 2015 | D127: 3.101 | E127: 3.104 | F127: =AVERAGE(D127:E127) -> 3.1025
B128: 2015-04-09 | C128: 2015 | D128: 3.111 | E128: 3.113 | F128: 3.112
B129: 2015-04-10 | C129: 2015 | D129: 3.12 | E129: 3.123 | F129: 3.1215
B130: 2015-04-13 | C130: 2015 | D130: 3.124 | E130: 3.125 | F130: 3.1245
B131: 2015-04-14 | C131: 2015 | D131: 3.119 | E131: 3.12 | F131: 3.1195
B132: 2015-04-15 | C132: 2015 | D132: 3.123 | E132: 3.125 | F132: 3.124
B133: 2015-04-16 | C133: 2015 | D133: 3.122 | E133: 3.125 | F133: 3.1235
B134: 2015-04-17 | C134: 2015 | D134: 3.124 | E134: 3.127 | F134: 3.1255
B135: 2015-04-20 | C135: 2015 | D135: 3.123 | E135: 3.132 | F135: 3.1275
B136: 2015-04-21 | C136: 2015 | D136: 3.129 | E136: 3.132 | F136: 3.1305
B137: 2015-04-22 | C137: 2015 | D137: 3.132 | E137: 3.134 | F137: 3.133
B138: 2015-04-23 | C138: 2015 | D138: 3.131 | E138: 3.134 | F138: 3.1325
B139: 2015-04-24 | C139: 2015 | D139: 3.132 | E139: 3.136 | F139: 3.134
B140: 2015-04-27 | C140: 2015 | D140: 3.132 | E140: 3.135 | F140: 3.1335
B141: 2015-04-28 | C141: 2015 | D141: 3.126 | E141: 3.128 | F141: 3.127
B142: 2015-04-29 | C142: 2015 | D142: 3.118 | E142: 3.122 | F142: 3.12
B143: 2015-04-30 | C143: 2015 | D143: 3.124 | E143: 3.127 | F143: 3.1255
B144: 2015-05-04 | C144: 2015 | D144: 3.135 | E144: 3.138 | F144: 3.1365
B145: 2015-05-05 | C145: 2015 | D145: 3.144 | E145: 3.148 | F145: 3.146
B146: 2015-05-06 | C146: 2015 | D146: 3.143 | E146: 3.145 | F146: 3.144
B147: 2015-05-07 | C147: 2015 | D147: 3.152 | E147: 3.153 | F147: 3.1525
B148: 2015-05-08 | C148: 2015 | D148: 3.147 | E148: 3.15 | F148: 3.1485
B149: 2015-05-11 | C149: 2015 | D149: 3.15 | E149: 3.154 | F149: 3.152
B150: 2015-05-12 | C150: 2015 | D150: 3.151 | E150: 3.153 | F150: 3.152
B151: 2015-05-13 | C151: 2015 | D151: 3.151 | E151: 3.153 | F151: 3.152
B152: 2015-05-14 | C152: 2015 | D152: 3.148 | E152: 3.151 | F152: 3.1495
B153: 2015-05-15 | C153: 2015 | D153: 3.145 | E153: 3.148 | F153: 3.1465
B154: 2015-05-18 | C154: 2015 | D154: 3.149 | E154: 3.151 | F154: 3.15
B155: 2015-05-19 | C155: 2015 | D155: 3.151 | E155: 3.155 | F155: 3.153
B156: 2015-05-20 | C156: 2015 | D156: 3.156 | E156: 3.158 | F156: 3.157
B157: 2015-05-21 | C157: 2015 | D157: 3.149 | E157: 3.151 | F157: 3.15
B158: 2015-05-22 | C158: 2015 | D158: 3.146 | E158: 3.148 | F158: 3.147
B159: 2015-05-25 | C159: 2015 | D159: 3.149 | E159: 3.151 | F159: 3.15
B160: 2015-05-26 | C160: 2015 | D160: 3.153 | E160: 3.155 | F160: 3.154
B161: 2015-05-27 | C161: 2015 | D161: 3.154 | E161: 3.156 | F161: 3.155
B162: 2015-05-28 | C162: 2015 | D162: 3.156 | E162: 3.158 | F162: 3.157
B163: 2015-05-29 | C163: 2015 | D163: 3.155 | E163: 3.158 | F163: 3.1565
B164: 2015-06-01 | C164: 2015 | D164: 3.156 | E164: 3.158 | F164: 3.157
B165: 2015-06-02 | C165: 2015 | D165: 3.154 | E165: 3.157 | F165: 3.1555
B166: 2015-06-03 | C166: 2015 | D166: 3.153 | E166: 3.154 | F166: 3.1535
B167: 2015-06-04 | C167: 2015 | D167: 3.147 | E167: 3.149 | F167: 3.148
B168: 2015-06-05 | C168: 2015 | D168: 3.15 | E168: 3.153 | F168: 3.1515
B169: 2015-06-08 | C169: 2015 | D169: 3.151 | E169: 3.154 | F169: 3.1525
B170: 2015-06-09 | C170: 2015 | D170: 3.151 | E170: 3.153 | F170: 3.152
B171: 2015-06-10 | C171: 2015 | D171: 3.152 | E171: 3.154 | F171: 3.153
B172: 2015-06-11 | C172: 2015 | D172: 3.153 | E172: 3.155 | F172: 3.154
B173: 2015-06-12 | C173: 2015 | D173: 3.153 | E173: 3.156 | F173: 3.1545
B174: 2015-06-15 | C174: 2015 | D174: 3.156 | E174: 3.158 | F174: 3.157
B175: 2015-06-16 | C175: 2015 | D175: 3.159 | E175: 3.162 | F175: 3.1605
B176: 2015-06-17 | C176: 2015 | D176: 3.163 | E176: 3.165 | F176: 3.164
B177: 2015-06-18 | C177: 2015 | D177: 3.161 | E177: 3.163 | F177: 3.162
B178: 2015-06-19 | C178: 2015 | D178: 3.165 | E178: 3.167 | F178: 3.166
B179: 2015-06-22 | C179: 2015 | D179: 3.172 | E179: 3.174 | F179: 3.173
B180: 2015-06-23 | C180: 2015 | D180: 3.178 | E180: 3.18 | F180: 3.179
B181: 2015-06-24 | C181: 2015 | D181: 3.176 | E181: 3.177 | F181: 3.1765
B182: 2015-06-25 | C182: 2015 | D182: 3.168 | E182: 3.17 | F182: 3.169
B183: 2015-06-26 | C183: 2015 | D183: 3.169 | E183: 3.173 | F183: 3.171
B184: 2015-06-30 | C184: 2015 | D184: 3.174 | E184: 3.179 | F184: 3.1765
B185: 2015-07-01 | C185: 2015 | D185: 3.177 | E185: 3.179 | F185: 3.178
B186: 2015-07-02 | C186: 2015 | D186: 3.17 | E186: 3.175 | F186: 3.1725
B187: 2015-07-03 | C187: 2015 | D187: 3.169 | E187: 3.174 | F187: 3.1715
B188: 2015-07-06 | C188: 2015 | D188: 3.176 | E188: 3.178 | F188: 3.177
B189: 2015-07-07 | C189: 2015 | D189: 3.179 | E189: 3.182 | F189: 3.1805
B190: 2015-07-08 | C190: 2015 | D190: 3.185 | E190: 3.187 | F190: 3.186
B191: 2015-07-09 | C191: =YEAR(B191) -> 2015 | D191: 3.179 | E191: 3.182 | F191: =AVERAGE(D191:E191) -> 3.1805
B192: 2015-07-10 | C192: 2015 | D192: 3.176 | E192: 3.179 | F192: 3.1775
B193: 2015-07-13 | C193: 2015 | D193: 3.176 | E193: 3.178 | F193: 3.177
B194: 2015-07-14 | C194: 2015 | D194: 3.175 | E194: 3.179 | F194: 3.177
B195: 2015-07-15 | C195: 2015 | D195: 3.18 | E195: 3.182 | F195: 3.181
B196: 2015-07-16 | C196: 2015 | D196: 3.177 | E196: 3.179 | F196: 3.178
B197: 2015-07-17 | C197: 2015 | D197: 3.18 | E197: 3.182 | F197: 3.181
B198: 2015-07-20 | C198: 2015 | D198: 3.182 | E198: 3.186 | F198: 3.184
B199: 2015-07-21 | C199: 2015 | D199: 3.179 | E199: 3.182 | F199: 3.1805
B200: 2015-07-22 | C200: 2015 | D200: 3.183 | E200: 3.187 | F200: 3.185
B201: 2015-07-23 | C201: 2015 | D201: 3.187 | E201: 3.191 | F201: 3.189
B202: 2015-07-24 | C202: 2015 | D202: 3.187 | E202: 3.191 | F202: 3.189
B203: 2015-07-30 | C203: 2015 | D203: 3.189 | E203: 3.193 | F203: 3.191
B204: 2015-07-31 | C204: 2015 | D204: 3.186 | E204: 3.192 | F204: 3.189
B205: 2015-08-03 | C205: 2015 | D205: 3.19 | E205: 3.193 | F205: 3.1915
B206: 2015-08-04 | C206: 2015 | D206: 3.189 | E206: 3.194 | F206: 3.1915
B207: 2015-08-05 | C207: 2015 | D207: 3.198 | E207: 3.202 | F207: 3.2
B208: 2015-08-06 | C208: 2015 | D208: 3.203 | E208: 3.205 | F208: 3.204
B209: 2015-08-07 | C209: 2015 | D209: 3.2 | E209: 3.203 | F209: 3.2015
B210: 2015-08-10 | C210: 2015 | D210: 3.199 | E210: 3.201 | F210: 3.2
... 2100 more rows

Sheet FuenteDemanda
A1: Índice | B1: Fuente Proyecciones de demanda
B3: I. Aterrizaje y Despegue
B4: Información histórica: Operaciones y TM (Fuente: CORPAC S.A.)
B6: Servicio / Rango de PMD | C6: Unidad | D6: Tráfico observado | K6: Tráfico proyectado
D7: 2017 | E7: 2018 | F7: 2019 | G7: 2020 | H7: 2021 | I7: 2022 | J7: 2023 | K7: 2024 | L7: 2025 | M7: 2026 | N7: 2027
B8: A. GRUPO V
B9: Aterrizaje y Despegue nacional
B10: (>0-10) | C10: Operación | D10: 7238 | E10: 8531 | F10: 7462 | G10: 5841 | H10: 8221 | I10: 7961 | J10: 6351 | K10: =+Demanda_G5!I12 -> 6478.013039 | L10: =+Demanda_G5!J12 -> 6737.120567 | M10: =+Demanda_G5!K12 -> 7006.599821 | N10: =+Demanda_G5!L12 -> 7286.845251
B11: (>10-35) | C11: TM | D11: 92817.16 | E11: 55582.32 | F11: 44828.34 | G11: 21930.14 | H11: 62926.21 | I11: 87032.5 | J11: 90651.44 | K11: =+Demanda_G5!I13 -> 92464.36944 | L11: =+Demanda_G5!J13 -> 96162.75876 | M11: =+Demanda_G5!K13 -> 100009.1896 | N11: =+Demanda_G5!L13 -> 104009.2923
B12: (>35-70) | D12: 137921.54 | E12: 156634.6 | F12: 160256.86 | G12: 47045.44 | H12: 67130 | I12: 100820 | J12: 103600 | K12: =+Demanda_G5!I14 -> 105671.8865 | L12: =+Demanda_G5!J14 -> 109898.55 | M12: =+Demanda_G5!K14 -> 114294.4011 | N12: =+Demanda_G5!L14 -> 118865.8744
B13: (>70-105) | D13: 52250 | E13: 100313.6 | F13: 179241 | G13: 68725.2 | H13: 170955.8 | I13: 110239.2 | J13: 77821.6 | K13: =+Demanda_G5!I15 -> 79377.94671 | L13: =+Demanda_G5!J15 -> 82552.90536 | M13: =+Demanda_G5!K15 -> 85854.95333 | N13: =+Demanda_G5!L15 -> 89288.92402
B14: (>105) | D14: 0 | E14: 0 | F14: 0 | G14: 0 | H14: 0 | I14: 0 | J14: 0 | K14: =+Demanda_G5!I16 -> 0 | L14: =+Demanda_G5!J16 -> 0 | M14: =+Demanda_G5!K16 -> 0 | N14: =+Demanda_G5!L16 -> 0
B16: B. CUSCO
B17: Aterrizaje y Despegue nacional
B18: (>0-10) | C18: Operación | D18: 2216 | E18: 2294 | F18: 3115 | G18: 1074 | H18: 2584 | I18: 3181 | J18: 1804 | K18: =+Demanda_G1!I12 -> 2164.512739 | L18: =+Demanda_G1!J12 -> 2316.282378 | M18: =+Demanda_G1!K12 -> 2478.106157 | N18: =+Demanda_G1!L12 -> 2651.899151
B19: (>10-35) | C19: TM | D19: 16540.42 | E19: 2559.65 | F19: 3064.09 | G19: 446.37 | H19: 2999.98 | I19: 3311.1 | J19: 1513.78 | K19: =+Demanda_G1!I13 -> 1816.536 | L19: =+Demanda_G1!J13 -> 1939.530625 | M19: =+Demanda_G1!K13 -> 2076.716938 | N19: =+Demanda_G1!L13 -> 2223.364375
B20: (>35-70) | D20: 741799.27 | E20: 767285.03 | F20: 500041.77 | G20: 68454.32 | H20: 68102.48 | I20: 110749.41 | J20: 251235.95 | K20: =+Demanda_G1!I14 -> 301482.4602 | L20: =+Demanda_G1!J14 -> 322585.9945 | M20: =+Demanda_G1!K14 -> 345166.9008 | N20: =+Demanda_G1!L14 -> 369329.411
B21: (>70-105) | D21: 1272429.4 | E21: 1498116.9 | F21: 1694727.65 | G21: 495130.2 | H21: 785877.3 | I21: 1447977.95 | J21: 1327884.24 | K21: =+Demanda_G1!I15 -> 1593461.088 | L21: =+Demanda_G1!J15 -> 1705002.149 | M21: =+Demanda_G1!K15 -> 1824351.891 | N21: =+Demanda_G1!L15 -> 1952056.031
B22: (>105) | D22: 0 | E22: 0 | F22: 0 | G22: 0 | H22: 364.64 | I22: 0 | J22: 0 | K22: =+Demanda_G1!I16 -> 0 | L22: =+Demanda_G1!J16 -> 0 | M22: =+Demanda_G1!K16 -> 0 | N22: =+Demanda_G1!L16 -> 0
B24: Aterrizaje y Despegue internacional
B25: (>0-10) | C25: Operación | D25: 21 | E25: 14 | F25: 41 | G25: 8 | H25: 4 | I25: 35 | J25: 20 | K25: =+Demanda_G1!I19 -> 24 | L25: =+Demanda_G1!J19 -> 25 | M25: =+Demanda_G1!K19 -> 26 | N25: =+Demanda_G1!L19 -> 27
B26: (>10-35) | C26: TM | D26: 5907.73 | E26: 6599.01 | F26: 18702.63 | G26: 337.15 | H26: 62.88 | I26: 872.53 | J26: 576.23 | K26: =+Demanda_G1!I20 -> 691 | L26: =+Demanda_G1!J20 -> 732 | M26: =+Demanda_G1!K20 -> 775 | N26: =+Demanda_G1!L20 -> 821
B27: (>35-70) | D27: 38972.27 | E27: 44434.14 | F27: 28401.15 | G27: 10350.96 | H27: 342.48 | I27: 8939.04 | J27: 1845.77 | K27: =+Demanda_G1!I21 -> 2214 | L27: =+Demanda_G1!J21 -> 2346 | M27: =+Demanda_G1!K21 -> 2486 | N27: =+Demanda_G1!L21 -> 2635
B28: (>70-105) | D28: 41347.6 | E28: 55385.2 | F28: 66586.59 | G28: 23437.8 | H28: 0 | I28: 2233.8 | J28: 16388.4 | K28: =+Demanda_G1!I22 -> 86856 | L28: =+Demanda_G1!J22 -> 92067 | M28: =+Demanda_G1!K22 -> 97591 | N28: =+Demanda_G1!L22 -> 103446
B29: (>105) | D29: 0 | E29: 0 | F29: 0 | G29: 0 | H29: 0 | I29: 0 | J29: 0 | K29: =+Demanda_G1!I23 -> 0 | L29: =+Demanda_G1!J23 -> 0 | M29: =+Demanda_G1!K23 -> 0 | N29: =+Demanda_G1!L23 -> 0
B31: C. NAZCA
B32: Aterrizaje y Despegue nacional
B33: (>0-10) | C33: Operación | D33: 36840 | E33: 38931 | F33: 36187 | G33: 6660 | H33: 9986 | I33: 23208 | J33: 20242 | K33: =+Demanda_G3!I9 -> 30363 | L33: =+Demanda_G3!J9 -> 32488.38909 | M33: =+Demanda_G3!K9 -> 34762.21673 | N33: =+Demanda_G3!L9 -> 37195.35447
B34: (>10-35) | C34: TM | D34: 110.3 | E34: 154.3 | F34: 25.2 | G34: 0 | H34: 0 | I34: 0 | J34: 0 | K34: =+Demanda_G3!I10 -> 0 | L34: =+Demanda_G3!J10 -> 0 | M34: =+Demanda_G3!K10 -> 0 | N34: =+Demanda_G3!L10 -> 0
B35: (>35-70) | E35: 216.8 | F35: 0 | G35: 0 | H35: 0 | I35: 0 | J35: 0 | K35: =+Demanda_G3!I11 -> 0 | L35: =+Demanda_G3!J11 -> 0 | M35: =+Demanda_G3!K11 -> 0 | N35: =+Demanda_G3!L11 -> 0
B36: (>70-105) | D36: 0 | E36: 0 | F36: 0 | G36: 0 | H36: 0 | I36: 0 | J36: 0 | K36: =+Demanda_G3!I12 -> 0 | L36: =+Demanda_G3!J12 -> 0 | M36: =+Demanda_G3!K12 -> 0 | N36: =+Demanda_G3!L12 -> 0
B37: (>105) | D37: 0 | E37: 0 | F37: 0 | G37: 0 | H37: 0 | I37: 0 | J37: 0 | K37: =+Demanda_G3!I13 -> 0 | L37: =+Demanda_G3!J13 -> 0 | M37: =+Demanda_G3!K13 -> 0 | N37: =+Demanda_G3!L13 -> 0
B39: D. TOTAL: GRUPO V + CUSCO + NAZCA
B40: Aterrizaje y Despegue nacional
B41: (>0-10) | C41: Operación | D41: =+D10+D18+D33 -> 46294 | E41: 49756 | F41: 46764 | G41: 13575 | H41: 20791 | I41: 34350 | J41: 28397 | K41: 39005.52578 | L41: =+L10+L18+L33 -> 41541.79204 | M41: 44246.92271 | N41: 47134.09887
B42: (>10-35) | C42: TM | D42: 109467.88 | E42: 58296.27 | F42: 47917.63 | G42: 22376.51 | H42: 65926.19 | I42: 90343.6 | J42: 92165.22 | K42: 94280.90544 | L42: 98102.28938 | M42: 102085.9066 | N42: 106232.6566
B43: (>35-70) | D43: 879720.81 | E43: 924136.43 | F43: 660298.63 | G43: 115499.76 | H43: 135232.48 | I43: 211569.41 | J43: 354835.95 | K43: 407154.3467 | L43: 432484.5445 | M43: 459461.302 | N43: 488195.2853
B44: (>70-105) | D44: 1324679.4 | E44: 1598430.5 | F44: 1873968.65 | G44: 563855.4 | H44: 956833.1 | I44: 1558217.15 | J44: 1405705.84 | K44: 1672839.035 | L44: 1787555.054 | M44: 1910206.844 | N44: 2041344.955
B45: (>105) | D45: 0 | E45: 0 | F45: 0 | G45: 0 | H45: 364.64 | I45: 0 | J45: 0 | K45: 0 | L45: 0 | M45: 0 | N45: 0
B47: II. TUUA
B48: Información histórica: Pasajeros de Salida (Fuente: CORPAC S.A.)
B50: TUUA | C50: Unidad | D50: Tráfico observado | K50: Tráfico proyectado
D51: 2017 | E51: 2018 | F51: 2019 | G51: 2020 | H51: 2021 | I51: 2022 | J51: 2023 | K51: 2024 | L51: 2025 | M51: 2026 | N51: 2027
B52: A. GRUPO V | C52: Pasajeros de Salida | D52: =D53 -> 250191 | E52: 289443 | F52: 330328 | G52: 123244 | H52: 252491 | I52: 313183 | J52: 273715 | K52: =K53 -> 279189 | L52: =L53 -> 290356 | M52: =M53 -> 301970 | N52: =N53 -> 314048
B53: TUUA NACIONAL | D53: 250191 | E53: 289443 | F53: 330328 | G53: 123244 | H53: 252491 | I53: 313183 | J53: 273715 | K53: =+Demanda_G5!I8 -> 279189 | L53: =+Demanda_G5!J8 -> 290356 | M53: =+Demanda_G5!K8 -> 301970 | N53: =+Demanda_G5!L8 -> 314048
B54: B. CUSCO | D54: =SUM(D55:D56) -> 1692068 | E54: 1883360 | F54: 1969485 | G54: 509705 | H54: 780046 | I54: 1472763 | J54: 1519281 | K54: 1872587 | L54: 2003028 | M54: 2142561 | N54: 2291821
B55: TUUA NACIONAL | D55: 1644246 | E55: 1823409 | F55: 1897955 | G55: 487147 | H55: 780016 | I55: 1464576 | J55: 1507220 | K55: =+Demanda_G1!I8 -> 1808664 | L55: =+Demanda_G1!J8 -> 1935270 | M55: =+Demanda_G1!K8 -> 2070738 | N55: =+Demanda_G1!L8 -> 2215689
B56: TUUA INTERNACIONAL | D56: 47822 | E56: 59951 | F56: 71530 | G56: 22558 | H56: 30 | I56: 8187 | J56: 12061 | K56: =+Demanda_G1!I9 -> 63923 | L56: =+Demanda_G1!J9 -> 67758 | M56: =+Demanda_G1!K9 -> 71823 | N56: =+Demanda_G1!L9 -> 76132
B57: C. NAZCA 1/ | D57: 87407 | E57: 95891 | F57: 97506 | G57: 15711 | H57: 0 | I57: 0 | J57: 0 | K57: 0 | L57: 0 | M57: 0 | N57: 0
B58: 1/ El servicio de TUUA no es prestado por CORPAC sino por la MDVA.
B60: III. Mangas
B61: Información histórica: Horas demandadas (Fuente: CORPAC S.A.)
C63: Unidad | D63: Tráfico observado | K63: Tráfico proyectado
D64: 2017 | E64: 2018 | F64: 2019 | G64: 2020 | H64: 2021 | I64: 2022 | J64: 2023 | K64: 2024 | L64: 2025 | M64: 2026 | N64: 2027
B65: Mangas | C65: HORAS | D65: 10896 | E65: 12801 | F65: 13004 | G65: 2431 | H65: =+Demanda_G1!F39 -> 4677 | I65: =+Demanda_G1!G39 -> 9220 | J65: =+Demanda_G1!H39 -> 9808 | K65: =+Demanda_G1!I39 -> 11769 | L65: =+Demanda_G1!J39 -> 12592 | M65: =+Demanda_G1!K39 -> 13473 | N65: =+Demanda_G1!L39 -> 14416

Sheet Transferencias
A1: Índice | B1: Fuente Transferencias LAP
B2: I. Tasa de crecimiento promedio de los Pax salida de LAP (2014 - 2021)
C3: Año / Mes | D3: 2013 | E3: 2014 | F3: 2015 | G3: 2016 | H3: 2017 | I3: 2018 | J3: 2019 | K3: 2020 | L3: 2021 | M3: 2022 | N3: 2023
B4: PAX SALIDA | C4: 1 | D4: 234048 | E4: 242209 | F4: 257275 | G4: 277668 | H4: 300336 | I4: 325073 | J4: 364326 | K4: 366764 | L4: 74414 | M4: 207998 | N4: 297191
C5: 2 | D5: 209209 | E5: 220848 | F5: 231814 | G5: 256204 | H5: 264393 | I5: 285092 | J5: 322304 | K5: 342488 | L5: 44656 | M5: 206297 | N5: 265269
C6: 3 | D6: 233491 | E6: 240495 | F6: 250626 | G6: 274160 | H6: 284676 | I6: 308661 | J6: 340047 | K6: 170062 | L6: 62082 | M6: 241846 | N6: 284397
C7: 4 | D7: 229271 | E7: 231794 | F7: 249107 | G7: 255755 | H7: 285215 | I7: 313275 | J7: 341043 | K7: 0 | L7: 82062 | M7: 256286 | N7: 283442
C8: 5 | D8: 246808 | E8: 253751 | F8: 269571 | G8: 288104 | H8: 308182 | I8: 332234 | J8: 370581 | K8: 0 | L8: 111594 | M8: 273271 | N8: 296748
C9: 6 | D9: 226106 | E9: 223379 | F9: 240263 | G9: 264892 | H9: 280908 | I9: 308991 | J9: 334682 | K9: 0 | L9: 118014 | M9: 255379 | N9: 279809
C10: 7 | D10: 260179 | E10: 262337 | F10: 288591 | G10: 319852 | H10: 337122 | I10: 355097 | J10: 392512 | K10: 3 | L10: 143141 | M10: 304014 | N10: 337372
C11: 8 | D11: 272038 | E11: 281054 | F11: 297601 | G11: 321775 | H11: 348716 | I11: 374772 | J11: 403980 | K11: 5179 | L11: 143499 | M11: 309906 | N11: 340276
C12: 9 | D12: 240933 | E12: 244405 | F12: 263397 | G12: 284312 | H12: 309278 | I12: 334475 | J12: 356301 | K12: 7466 | L12: 142330 | M12: 288870 | N12: 316559
C13: 10 | D13: 261806 | E13: 259633 | F13: 281754 | G13: 299655 | H13: 330719 | I13: 352259 | J13: 380124 | K13: 15869 | L13: 174754 | M13: 312919 | N13: 340035
C14: 11 | D14: 239859 | E14: 235186 | F14: 252351 | G14: 271879 | H14: 291826 | I14: 323492 | J14: 354910 | K14: 45412 | L14: 193751 | M14: 299419 | N14: 320754
C15: 12 | D15: 217481 | E15: 224730 | F15: 237209 | G15: 258694 | H15: 284975 | I15: 323957 | J15: 339313 | K15: 69428 | L15: =+L14 -> 193751 | M15: 295926 | N15: 319389
C16: Total | D16: =+SUM(D4:D15) -> 2871229 | E16: =+SUM(E4:E15) -> 2919821 | F16: 3119559 | G16: 3372950 | H16: 3626346 | I16: 3937378 | J16: 4300123 | K16: =+SUM(K4:K15) -> 1022671 | L16: =+SUM(L4:L15) -> 1484048 | M16: =+SUM(M4:M15) -> 3252131 | N16: =+SUM(N4:N15) -> 3681241
C17: Var% | E17: =+E16/D16-1 -> 0.01692376331 | F17: 0.06840761814 | G17: 0.08122654516 | H17: 0.07512592834 | I17: 0.08577008372 | J17: 0.09212856881 | K17: -0.7621763377 | L17: 0.451149001 | M17: =+M16/L16-1 -> 1.191392057 | N17: =+N16/M16-1 -> 0.1319473293
B19: II. Estimaciones 2022 - 2024 respecto a la recuperación de 2019
B20: Pax salida LAP 2019 | C20: =+J16 -> 4300123
B22: Año | C22: Recuperación | D22: Fuente | E22: Proyección | F22: Var%
B23: 2021 | C23: 0.5482803051 | D23: Calculado | E23: =+L16 -> 1484048 | F23: -
B24: 2022 | C24: 0.8487447414 | D24: Calculado | E24: =+M16 -> 3252131 | F24: =(E24/$E$23)-1 -> 1.191392057
B25: 2023 | C25: 0.8528982588 | D25: Calculado | E25: =+N16 -> 3681241 | F25: =+E25/E24-1 -> 0.1319473293
B26: 2024 | C26: 0.9040721544 | D26: Calculado | E26: =+C26*$C$20 -> 3887621.465 | F26: =(E26/E25)-1 -> 0.05606274205
B27: 2025 | C27: 0.9492757621 | D27: Proyección | E27: =+C27*$C$20 -> 4082002.538 | F27: =(E27/E26)-1 -> 0.05
B28: 2026 | C28: 0.9967395502 | D28: Proyección | E28: =+C28*$C$20 -> 4286102.665 | F28: =(E28/E27)-1 -> 0.05
B29: 2027 | C29: 1.046576528 | D29: Proyección | E29: =+C29*$C$20 -> 4500407.798 | F29: =(E29/E28)-1 -> 0.05
C35: =+SupuestosGenerales!I14 -> 3.766014071 | D35: =+Opex!E4 -> 3.801626957 | E35: =+Opex!F4 -> 3.802295786 | F35: =+Opex!G4 -> 3.803525584 | G35: =+Opex!H4 -> 3.807775487 | I35: Tipo de cambio real
B37: III. Transferencia de LAP
C39: 2023
B40: Transferencia LAP (Soles) 1/ | C40: 74093107.47 | F40: Si con distribucion de TUUA internacional
B41: Transferencia LAP (Soles) 1/ Asignado a Cusco, Nazca y Grupo V | C41: =+D97 -> 44195939.02
B42: 1/ Para los Ingresos de TUUA Internacional de LAP, se toman los datos historicos en soles de las transferencias por la contabilidad regulatoria 2021-2023 .
C44: 2023 | D44: 2024 | E44: 2025 | F44: 2026 | G44: 2027
B45: Ingresos TUUA Internacional1/ (Dólares) | C45: =C46/0.2 -> 58677341.86 | D45: =+C45*(1+F26) -> 61966954.54 | E45: =+D45*(1+F27) -> 65065302.27 | F45: =+E45*(1+F28) -> 68318567.38 | G45: =+F45*(1+F29) -> 71734495.75
B46: Transferencia 20% CORPAC (Dolares) | C46: =C41/C35 -> 11735468.37 | D46: =+D45*0.2 -> 12393390.91 | E46: =+E45*0.2 -> 13013060.45 | F46: =+F45*0.2 -> 13663713.48 | G46: =+G45*0.2 -> 14346899.15
D49: =D45/C45 -> 1.056062742 | E49: =E45/D45 -> 1.05 | F49: =F45/E45 -> 1.05 | G49: =G45/F45 -> 1.05
B53: Resumen Resultados - a Diciembre 2023 | E53: MONTO 20% TUUA | F53: 74093107.47
B56: AEROPUERTOS | E56: MONTO PYR | F56: 10031648.05
B57: ►Metodo 3: driver usando los costos de pista y rodadura
B58: Aeropuertos | C58: % DISTRIBUCION | D58: DISTRIBUCION 20% TUUA AL INGRESO DE CADA AEROPUERTO
B59: Lima | C59: 0.2283933483 | D59: 16922372.9
B60: Cusco | C60: 0.2047619032 | D60: 15171445.7
B61: Iquitos | C61: 0.02005806092 | D61: 1486164.064
B62: Piura | C62: 0.01099135423 | D62: 814383.5903
B63: Arequipa | C63: 0.01819268212 | D63: 1347952.352
B64: Nazca | C64: 0.04583556984 | D64: 3396099.802
B65: Juliaca | C65: 0.00561821552 | D65: 416271.0463
B66: Tumbes | C66: 0.006127137366 | D66: 453978.6473
B67: Tarapoto | C67: 0.009272926988 | D67: 687059.9759
B68: Mazamari | C68: 0.02988692799 | D68: 2214415.368
B69: Trujillo | C69: 0.01323066885 | D69: 980301.3693
B70: Pucallpa | C70: 0.01253197765 | D70: 928533.167
B71: Chiclayo | C71: 0.01415562057 | D71: 1048833.916
B72: Tacna | C72: 0.01159692975 | D72: 859252.5625
B73: Talara | C73: 0.006808287557 | D73: 504447.1816
B74: Cajamarca | C74: 0.01152179748 | D74: 853685.7789
B75: Chachapoyas | C75: 0.003245684892 | D75: 240482.8795
B76: Puerto Maldonado | C76: 0.005889504416 | D76: 436371.6837
B77: Tingo Maria | C77: 0.02530136898 | D77: 1874657.051
B78: Huanuco | C78: 0.03102582694 | D78: 2298799.93
B79: Atalaya | C79: 0.01686710367 | D79: 1249736.125
B80: Jauja | C80: 0.03401287994 | D80: 2520119.969
B81: Andahuaylas | C81: 0.01931447858 | D81: 1431069.737
B82: Pisco | C82: 0.01385963149 | D82: 1026903.166
B83: Anta | C83: 0.002118828438 | D83: 156990.5831
B84: Ayacucho | C84: 0.009895435729 | D84: 733183.583
B85: Chimbote | C85: 0.03598448148 | D85: 2666202.054
B86: Yurimaguas | C86: 0.03498565968 | D86: 2592196.243
B87: Juanjui | C87: 0.01290814303 | D87: 956404.4291
B88: Ilo | C88: 0.0290681341 | D88: 2153748.384
B89: Jaen | C89: 0.03382258605 | D89: 2506020.503
B90: Rioja | C90: 0.01842912835 | D90: 1365471.387
B91: Tocache | C91: 0.0002526187496 | D91: 18717.30816
B92: Moquegua | C92: 0.005119271422 | D92: 379302.7276
B93: Otros | C93: 0.01891582566 | D93: 1401532.303
B94: TOTAL | C94: 1 | D94: 74093107.47
B95: OTROS: Breu, Caballococha, Ciro Alegria, Contamana, Iñapari, Iberia, Las Salinas, Moyobamba, Oyon, Puerto Esperanza, Rodriguez de Mendoza, Saposoa, Sihuas, Tocache, Atico, Vitor, Uchiza, Galilea y Shipajilla-Tingo Maria.
B97: Transferencia LAP (Soles) 1/ Asignado a Cusco, Nazca y Grupo V | D97: =D93+D60+D64+SUM(D68,D77:D81,D85:D92) -> 44195939.02
B98: Transferencia LAP (Soles) 1/ Asignado aeropuertos concesionados | D98: =SUM(D59,D61:D62,M623,D66:D67,D69:D71,D73:D75,D82:D83,D84,D76,D72,D65,D63) -> 29897168.45

Sheet SupuestosGenerales
A1: Índice | B1: Supuestos Generales
B2: I. Supuestos macroeconómicos:
B3: Indicador1/ | C3: Fuente | E3: 2019 | F3: 2020 | G3: 2021 | H3: 2022 | I3: 2023 | J3: 2024 | K3: 2025 | L3: 2026 | M3: 2027
B4: Estados Unidos
B5: Inflación anual, CPI (%) | H5: =+H6/G6-1 -> 0.07984426033 | I5: 0.04135338346 | J5: 0.02920905809 | K5: 0.01977040816 | L5: 0.02063789869 | M5: 0.02113970588
B6: CPI (prom anual) | C6: BLS (2019-23); WEO (2024-27) | E6: =+FuenteMacro!H17 -> 255.6574167 | F6: =+FuenteMacro!I17 -> 258.8111667 | G6: =+FuenteMacro!G22 -> 270.965 | H6: =+FuenteMacro!H22 -> 292.6 | I6: =+FuenteMacro!I22 -> 304.7 | J6: =+FuenteMacro!J22 -> 313.6 | K6: =+FuenteMacro!K22 -> 319.8 | L6: =+FuenteMacro!L22 -> 326.4 | M6: =+FuenteMacro!M22 -> 333.3
B7: CPI US (Base 2021) | G7: 100 | H7: 108.0027998 | I7: 112.4485605 | J7: 115.7324757 | K7: 118.020554 | L7: 120.4562502 | M7: 123.0026599
B8: Perú
B9: Inflación anual, IPC (%) | H9: =+H11/G11-1 -> 0.08459162 | I9: 0.03237382564 | J9: 0.025 | K9: 0.025 | L9: 0.023 | M9: 0.02
B10: IPC Lima Met (Diciembre) | C10: INEI (2019-23); MEF (2024-27) | E10: =+FuenteMacro!H39 -> 132.699434 | F10: =+FuenteMacro!I39 -> 135.317902 | G10: =+F10*(1+FuenteMacro!D46) -> 144.019367 | H10: =+G10*(1+FuenteMacro!E46) -> 156.2610132 | I10: =+H10*(1+FuenteMacro!F46) -> 161.2613656 | J10: =+I10*(1+FuenteMacro!G46) -> 165.4541611 | K10: =+J10*(1+FuenteMacro!H46) -> 169.5905152 | L10: =+K10*(1+FuenteMacro!I46) -> 172.9823255 | M10: =+L10*(1+FuenteMacro!J46) -> 176.441972
B11: IPC PE (Base 2021) | G11: 100 | H11: 108.459162 | I11: 111.9704 | J11: 114.76966 | K11: 117.6389015 | L11: 120.3445962 | M11: 122.7514882
B12: Tipo de cambio (S/ por USD)
B13: TC nominal (promedio anual) | C13: SBS (2019-20); MEF (2021-24) | E13: =+FuenteMacro!G58 -> 3.336917671 | F13: =+FuenteMacro!H58 -> 3.496066929 | G13: =+FuenteMacro!D52 -> 3.884144047 | H13: =+FuenteMacro!E52 -> 3.84 | I13: 3.75 | J13: 3.77 | K13: 3.79 | L13: 3.8 | M13: 3.8
B14: TC real | G14: =+G13*G7/G11 -> 3.884144047 | H14: 3.823842483 | I14: 3.766014071 | J14: 3.801626957 | K14: 3.802295786 | L14: 3.803525584 | M14: 3.807775487
B15: Impuestos
B16: Impuesto a la renta | C16: SUNAT | E16: - | F16: - | G16: 0.295 | H16: 0.295 | I16: =H16 -> 0.295 | J16: =I16 -> 0.295 | K16: 0.295 | L16: 0.295 | M16: 0.295
B17: Participación a los trabajadores | C17: SUNAT | E17: - | F17: - | G17: 0.05 | H17: 0.05 | I17: =H17 -> 0.05 | J17: =I17 -> 0.05 | K17: 0.05 | L17: 0.05 | M17: 0.05
B18: Impuesto a la renta efectivo | E18: - | F18: - | G18: =G16+G17*(1-G16) -> 0.33025 | H18: =H16+H17*(1-H16) -> 0.33025 | I18: =I16+I17*(1-I16) -> 0.33025 | J18: =J16+J17*(1-J16) -> 0.33025 | K18: 0.33025 | L18: 0.33025 | M18: 0.33025
B19: Fuente FMI: https://www.imf.org/en/Publications/WEO/weo-database/2024/April/weo-report?c=111,&s=PCPI,PCPIPCH,&sy=2018&ey=2027&ssm=0&scsm=1&scc=0&ssd=1&ssc=0&sic=0&sort=country&ds=,&br=1
B20: Fuente BLS: https://data.bls.gov/cgi-bin/surveymost?cu
B21: Fuente INEI: https://www.inei.gob.pe/estadisticas/indice-tematico/economia/
B22: Fuente MEF: https://epdoc2.elperuano.pe/EpPo/VistaNLSE.asp?Referencias=MjMxODE4OC0xMjAyNDA4MjM=
B23: Fuente SBS: https://www.sbs.gob.pe/app/pp/seriesHistoricas2/paso3_TipodeCambio_Descarga.aspx?secu=03&paso=3&opc=1
B25: II. Contribuciones
F26: 2020 | G26: 2021 | H26: 2022 | I26: 2023 | J26: 2024
B27: Aporte por regulación | F27: 0.01 | G27: 0.01 | H27: 0.01 | I27: 0.01 | J27: 0.01
B29: III. Supuesto Depreciación de Inversiones Programadas
B30: Tipo de activo | C30: Tasa de depreciación
B31: Edificaciones y construcciones | C31: 0.05
B32: Maquinaria y equipo | C32: 0.1
B33: Vehículos | C33: 0.2
B34: Muebles y enseres | C34: 0.1
B35: Otros | C35: 0.1
B36: Equipos de informática | C36: 0.25
B38: IV. Supuesto Depreciación de Activo Inicial
B39: Depreciación de Activos | C39: Tasa de depreciación
B40: Edificaciones y construcciones | C40: 0.05
B41: Intangible | C41: 0.1
B42: Maquinaria y equipo | C42: 0.1
B43: Otros | C43: 0.1
B44: Terrenos | C44: 0
B46: V. Incremento anual de los costos operativos en relación al año 2020
I47: 2025 | J47: 2026 | K47: 2027
B48: Incremento vegetativo anual | I48: 0.03 | J48: 0.03 | K48: 0.03
B49: Gastos
B50: Suministros y Materiales | I50: 1.03 | J50: 1.03 | K50: 1.03
B51: Gastos de Personal
B52: Servicios de terceros excepto mantenimiento | I52: 1.03 | J52: 1.03 | K52: 1.03
B53: Mantenimiento | I53: 1.03 | J53: 1.03 | K53: 1.03
B54: Depreciación de activos | I54: 1.03 | J54: 1.03 | K54: 1.03
B55: Amortización de Intangibles | I55: 1.03 | J55: 1.03 | K55: 1.03
B56: Seguros y tributos | I56: 1.03 | J56: 1.03 | K56: 1.03
B57: Otros Costos | I57: 1.03 | J57: 1.03 | K57: 1.03
B59: VI BD Variables Macroeconomicas
B61: 1. Consumer Price Index - USA
B62: Base: 1982-84 = 100
B64: a) Fuente: U.S. Bureau of Labor Statistics
B65: Año | C65: 2017 | D65: 2018 | E65: 2019 | F65: 2020 | G65: 2021 | H65: 2022 | I65: 2023
B66: ene | C66: 242.839 | D66: 247.867 | E66: 251.712 | F66: 257.971 | G66: 261.582 | H66: 281.148 | I66: 299.17
B67: feb | C67: 243.603 | D67: 248.991 | E67: 252.776 | F67: 258.678 | G67: 263.014 | H67: 283.716 | I67: 300.84
B68: mar | C68: 243.801 | D68: 249.554 | E68: 254.202 | F68: 258.115 | G68: 264.877 | H68: 287.504 | I68: 301.836
B69: abr | C69: 244.524 | D69: 250.546 | E69: 255.548 | F69: 256.389 | G69: 267.054 | H69: 289.109 | I69: 303.363
B70: may | C70: 244.733 | D70: 251.588 | E70: 256.092 | F70: 256.394 | G70: 269.195 | H70: 292.296 | I70: 304.127
B71: jun | C71: 244.955 | D71: 251.989 | E71: 256.143 | F71: 257.797 | G71: 271.696 | H71: 296.311 | I71: 305.109
B72: jul | C72: 244.786 | D72: 252.006 | E72: 256.571 | F72: 259.101 | G72: 273.003 | H72: 296.276 | I72: 305.691
B73: ago | C73: 245.519 | D73: 252.146 | E73: 256.558 | F73: 259.918 | G73: 273.567 | H73: 296.171 | I73: 307.026
B74: set | C74: 246.819 | D74: 252.439 | E74: 256.759 | F74: 260.28 | G74: 274.31 | H74: 296.808 | I74: 307.789
B75: oct | C75: 246.663 | D75: 252.885 | E75: 257.346 | F75: 260.388 | G75: 276.589 | H75: 298.012 | I75: 307.671
B76: nov | C76: 246.669 | D76: 252.038 | E76: 257.208 | F76: 260.229 | G76: 277.948 | H76: 297.711 | I76: 307.051
B77: dic | C77: 246.524 | D77: 251.233 | E77: 256.974 | F77: 260.474 | G77: 278.802 | H77: 296.797 | I77: 306.746
B78: CPI Promedio | C78: 245.1195833 | D78: 251.1068333 | E78: 255.6574167 | F78: 258.8111667 | G78: 270.96975 | H78: 292.6549167 | I78: 304.7015833
B79: Var. % | D79: 0.02442583297 | E79: 0.01812210075 | F79: 0.01233584396 | G79: 0.04697858864 | H79: 0.08002799821 | I79: 0.04116338384
B80: Tomado de: https://data.bls.gov/cgi-bin/surveymost?cu
B82: b) Fuente: World Economic Outlook, Octubre 2021 - International Monetary Fund
B83: Año | C83: 2019 | D83: 2020 | E83: 2021 | F83: 2022 | G83: 2023 | H83: 2024 | I83: 2025 | J83: 2026 | K83: 2027
B84: CPI | C84: 255.647 | D84: 258.838 | E84: 270.965 | F84: 292.6 | G84: 304.7 | H84: 313.6 | I84: 319.8 | J84: 326.4 | K84: 333.3
B85: Var. % | D85: 0.01248205533 | E85: 0.04685169875 | F85: 0.07984426033 | G85: 0.04135338346 | H85: 0.02920905809 | I85: 0.01977040816 | J85: 0.02063789869 | K85: 0.02113970588
B86: Tomado de: https://www.imf.org/en/Publications/WEO/weo-database/2024/April/weo-report?c=111,&s=PCPI,PCPIPCH,&sy=2018&ey=2027&ssm=0&scsm=1&scc=0&ssd=1&ssc=0&sic=0&sort=country&ds=,&br=1
B88: 2. Índice de Precios al Consumidor de Lima Metropolitana - Perú
B89: Base: 2009 = 100
B91: Fuente: INEI
B92: Año | C92: 2017 | D92: 2018 | E92: 2019 | F92: 2020 | G92: 2021 | H92: 2022 | I92: 2023
B93: ene | C93: 126.014256 | D93: 127.593452 | E93: 130.310118 | F93: 132.770837 | G93: 136.323181 | H93: 100.037268 | I93: 108.704764
B94: feb | C94: 126.421498 | D94: 127.912717 | E94: 130.475301 | F94: 132.9596 | G94: 136.152415 | H94: 100.34884 | I94: 109.024924
B95: mar | C95: 128.07074 | D95: 128.535811 | E95: 131.424577 | F95: 133.818519 | G95: 137.295372 | H95: 101.836672 | I95: 110.391537
B96: abr | C96: 127.740249 | D96: 128.359623 | E96: 131.687532 | F96: 133.95847 | G96: 137.151635 | H96: 102.816232 | I96: 111.005592
B97: may | C97: 127.199476 | D97: 128.383312 | E97: 131.881921 | F97: 134.231951 | G97: 137.517223 | H97: 103.211072 | I97: 111.358436
B98: jun | C98: 126.996976 | D98: 128.812187 | E98: 131.768144 | F98: 133.874764 | G98: 138.231861 | H98: 104.439931 | I98: 111.188314
B99: jul | C99: 127.248793 | D99: 129.305262 | E99: 132.036077 | F99: 134.494187 | G99: 139.624601 | H99: 105.422597 | I99: 111.623134
B100: ago | C100: 128.104192 | D100: 129.475644 | E100: 132.116589 | F100: 134.345922 | G100: 140.999813 | H100: 106.125283 | I100: 112.042985
B101: set | C101: 128.08399 | D101: 129.723825 | E101: 132.125022 | F101: 134.529108 | G101: 141.564408 | H101: 106.679849 | I101: 112.061363
B102: oct | C102: 127.482962 | D102: 129.829788 | E102: 132.271318 | F102: 134.551676 | G102: 142.39067 | H102: 107.050724 | I102: 111.700024
B103: nov | C103: 127.231518 | D103: 129.988749 | E103: 132.415375 | F103: 135.25199 | G103: 142.90069 | H103: 107.604861 | I103: 111.517885
B104: dic | C104: 127.431083 | D104: 130.225039 | E104: 132.699434 | F104: 135.317902 | G104: 144.019367 | H104: 108.459162 | I104: 111.9704
B105: Var% dic/dic | D105: 0.02192523154 | E105: 0.01900091579 | F105: 0.01973232229 | G105: 0.06430387163 | I105: 0.03237382564
B106: Tomado de: https://www.inei.gob.pe/estadisticas/indice-tematico/economia/ (Cambio de año base)
B108: 3. Tasa de inflación - Perú
B110: Fuente: Marco Macroeconómico Multianual 2024-2027
B111: Año | C111: 2020 | D111: 2021 | E111: 2022 | F111: 2023 | G111: 2024 | H111: 2025 | I111: 2026 | J111: 2027
B112: Var% IPC | C112: 0.01973232229 | D112: 0.06430387163 | E112: 0.085 | F112: 0.032 | G112: 0.026 | H112: 0.025 | I112: 0.02 | J112: 0.02
B113: Tomado de: https://www.mef.gob.pe/contenidos/pol_econ/marco_macro/cuadros_estadisticos_IAPM_2024_2027.xlsx
B115: 4. Tipo de Cambio - Perú (Soles por Dólar US)
B117: a) Fuente: Marco Macroeconómico Multianual 2024-2027
B118: Año | C118: 2020 | D118: 2021 | E118: 2022 | F118: 2023 | G118: 2024 | H118: 2025 | I118: 2026 | J118: 2027
B119: Tipo de cambio prom | C119: 3.497201659 | D119: 3.884144047 | E119: 3.84 | F119: 3.75 | G119: 3.74 | H119: 3.78 | I119: 3.8 | J119: 3.8
B120: Tomado de: https://www.mef.gob.pe/contenidos/pol_econ/marco_macro/MMM_2024_2027.pdf
B122: b) Fuente: SBS
B123: Año | C123: 2017 | D123: 2018 | E123: 2019 | F123: 2020 | G123: 2021 | H123: 2022 | I123: 2023
B124: Tipo de cambio prom | C124: 3.261108434 | D124: 3.28624187 | E124: 3.336917671 | F124: 3.496066929 | G124: 3.882629482 | H124: 3.84 | I124: 3.75
B125: Tomado de: https://www.sbs.gob.pe/app/pp/seriesHistoricas2/paso3_TipodeCambio_Descarga.aspx?secu=03&paso=3&opc=1
B127: FECHA | C127: Año | D127: COMPRA | E127: VENTA | F127: Promedio
B128: 2017-01-02 | C128: 2017 | D128: 3.359 | E128: 3.363 | F128: 3.361
B129: 2017-01-03 | C129: 2017 | D129: 3.376 | E129: 3.378 | F129: 3.377
B130: 2017-01-04 | C130: 2017 | D130: 3.388 | E130: 3.391 | F130: 3.3895
B131: 2017-01-05 | C131: 2017 | D131: 3.369 | E131: 3.373 | F131: 3.371
B132: 2017-01-06 | C132: 2017 | D132: 3.371 | E132: 3.375 | F132: 3.373
B133: 2017-01-09 | C133: 2017 | D133: 3.379 | E133: 3.382 | F133: 3.3805
B134: 2017-01-10 | C134: 2017 | D134: 3.387 | E134: 3.39 | F134: 3.3885
B135: 2017-01-11 | C135: 2017 | D135: 3.391 | E135: 3.392 | F135: 3.3915
B136: 2017-01-12 | C136: 2017 | D136: 3.363 | E136: 3.366 | F136: 3.3645
B137: 2017-01-13 | C137: 2017 | D137: 3.363 | E137: 3.366 | F137: 3.3645
B138: 2017-01-16 | C138: 2017 | D138: 3.364 | E138: 3.371 | F138: 3.3675
B139: 2017-01-17 | C139: 2017 | D139: 3.349 | E139: 3.353 | F139: 3.351
B140: 2017-01-18 | C140: 2017 | D140: 3.346 | E140: 3.351 | F140: 3.3485
B141: 2017-01-19 | C141: 2017 | D141: 3.334 | E141: 3.338 | F141: 3.336
B142: 2017-01-20 | C142: 2017 | D142: 3.301 | E142: 3.306 | F142: 3.3035
B143: 2017-01-23 | C143: 2017 | D143: 3.286 | E143: 3.292 | F143: 3.289
B144: 2017-01-24 | C144: 2017 | D144: 3.281 | E144: 3.284 | F144: 3.2825
B145: 2017-01-25 | C145: 2017 | D145: 3.275 | E145: 3.279 | F145: 3.277
B146: 2017-01-26 | C146: 2017 | D146: 3.299 | E146: 3.301 | F146: 3.3
B147: 2017-01-27 | C147: 2017 | D147: 3.288 | E147: 3.294 | F147: 3.291
B148: 2017-01-30 | C148: 2017 | D148: 3.287 | E148: 3.29 | F148: 3.2885
B149: 2017-01-31 | C149: 2017 | D149: 3.282 | E149: 3.287 | F149: 3.2845
B150: 2017-02-01 | C150: 2017 | D150: 3.269 | E150: 3.272 | F150: 3.2705
B151: 2017-02-02 | C151: 2017 | D151: 3.255 | E151: 3.262 | F151: 3.2585
B152: 2017-02-03 | C152: 2017 | D152: 3.245 | E152: 3.249 | F152: 3.247
B153: 2017-02-06 | C153: 2017 | D153: 3.274 | E153: 3.277 | F153: 3.2755
B154: 2017-02-07 | C154: 2017 | D154: 3.291 | E154: 3.293 | F154: 3.292
B155: 2017-02-08 | C155: 2017 | D155: 3.287 | E155: 3.29 | F155: 3.2885
B156: 2017-02-09 | C156: 2017 | D156: 3.272 | E156: 3.275 | F156: 3.2735
B157: 2017-02-10 | C157: 2017 | D157: 3.252 | E157: 3.256 | F157: 3.254
B158: 2017-02-13 | C158: 2017 | D158: 3.262 | E158: 3.267 | F158: 3.2645
B159: 2017-02-14 | C159: 2017 | D159: 3.263 | E159: 3.265 | F159: 3.264
B160: 2017-02-15 | C160: 2017 | D160: 3.248 | E160: 3.257 | F160: 3.2525
B161: 2017-02-16 | C161: 2017 | D161: 3.245 | E161: 3.249 | F161: 3.247
B162: 2017-02-17 | C162: 2017 | D162: 3.259 | E162: 3.263 | F162: 3.261
B163: 2017-02-20 | C163: 2017 | D163: 3.248 | E163: 3.254 | F163: 3.251
B164: 2017-02-21 | C164: 2017 | D164: 3.247 | E164: 3.25 | F164: 3.2485
B165: 2017-02-22 | C165: 2017 | D165: 3.241 | E165: 3.245 | F165: 3.243
B166: 2017-02-23 | C166: 2017 | D166: 3.24 | E166: 3.243 | F166: 3.2415
B167: 2017-02-24 | C167: 2017 | D167: 3.249 | E167: 3.252 | F167: 3.2505
B168: 2017-02-27 | C168: 2017 | D168: 3.25 | E168: 3.255 | F168: 3.2525
B169: 2017-02-28 | C169: 2017 | D169: 3.259 | E169: 3.263 | F169: 3.261
B170: 2017-03-01 | C170: 2017 | D170: 3.262 | E170: 3.265 | F170: 3.2635
B171: 2017-03-02 | C171: 2017 | D171: 3.271 | E171: 3.274 | F171: 3.2725
B172: 2017-03-03 | C172: 2017 | D172: 3.283 | E172: 3.286 | F172: 3.2845
B173: 2017-03-06 | C173: 2017 | D173: 3.288 | E173: 3.292 | F173: 3.29
B174: 2017-03-07 | C174: 2017 | D174: 3.291 | E174: 3.294 | F174: 3.2925
B175: 2017-03-08 | C175: 2017 | D175: 3.291 | E175: 3.294 | F175: 3.2925
B176: 2017-03-09 | C176: 2017 | D176: 3.294 | E176: 3.296 | F176: 3.295
B177: 2017-03-10 | C177: 2017 | D177: 3.281 | E177: 3.285 | F177: 3.283
B178: 2017-03-13 | C178: 2017 | D178: 3.285 | E178: 3.288 | F178: 3.2865
B179: 2017-03-14 | C179: 2017 | D179: 3.282 | E179: 3.29 | F179: 3.286
B180: 2017-03-15 | C180: 2017 | D180: 3.266 | E180: 3.269 | F180: 3.2675
B181: 2017-03-16 | C181: 2017 | D181: 3.247 | E181: 3.251 | F181: 3.249
B182: 2017-03-17 | C182: 2017 | D182: 3.247 | E182: 3.251 | F182: 3.249
B183: 2017-03-20 | C183: 2017 | D183: 3.247 | E183: 3.251 | F183: 3.249
B184: 2017-03-21 | C184: 2017 | D184: 3.243 | E184: 3.247 | F184: 3.245
B185: 2017-03-22 | C185: 2017 | D185: 3.249 | E185: 3.252 | F185: 3.2505
B186: 2017-03-23 | C186: 2017 | D186: 3.244 | E186: 3.246 | F186: 3.245
B187: 2017-03-24 | C187: 2017 | D187: 3.241 | E187: 3.244 | F187: 3.2425
B188: 2017-03-27 | C188: 2017 | D188: 3.246 | E188: 3.248 | F188: 3.247
B189: 2017-03-28 | C189: 2017 | D189: 3.242 | E189: 3.246 | F189: 3.244
B190: 2017-03-29 | C190: 2017 | D190: 3.24 | E190: 3.243 | F190: 3.2415
B191: 2017-03-30 | C191: 2017 | D191: 3.24 | E191: 3.245 | F191: 3.2425
B192: 2017-03-31 | C192: 2017 | D192: 3.246 | E192: 3.249 | F192: 3.2475
B193: 2017-04-03 | C193: 2017 | D193: 3.245 | E193: 3.25 | F193: 3.2475
B194: 2017-04-04 | C194: 2017 | D194: 3.25 | E194: 3.252 | F194: 3.251
B195: 2017-04-05 | C195: 2017 | D195: 3.247 | E195: 3.249 | F195: 3.248
B196: 2017-04-06 | C196: 2017 | D196: 3.246 | E196: 3.248 | F196: 3.247
B197: 2017-04-07 | C197: 2017 | D197: 3.245 | E197: 3.248 | F197: 3.2465
B198: 2017-04-10 | C198: 2017 | D198: 3.244 | E198: 3.247 | F198: 3.2455
B199: 2017-04-11 | C199: 2017 | D199: 3.249 | E199: 3.251 | F199: 3.25
B200: 2017-04-12 | C200: 2017 | D200: 3.252 | E200: 3.254 | F200: 3.253
B201: 2017-04-17 | C201: 2017 | D201: 3.249 | E201: 3.251 | F201: 3.25
B202: 2017-04-18 | C202: 2017 | D202: 3.25 | E202: 3.253 | F202: 3.2515
B203: 2017-04-19 | C203: 2017 | D203: 3.248 | E203: 3.251 | F203: 3.2495
B204: 2017-04-20 | C204: 2017 | D204: 3.242 | E204: 3.245 | F204: 3.2435
B205: 2017-04-21 | C205: 2017 | D205: 3.241 | E205: 3.244 | F205: 3.2425
B206: 2017-04-24 | C206: 2017 | D206: 3.24 | E206: 3.243 | F206: 3.2415
B207: 2017-04-25 | C207: 2017 | D207: 3.244 | E207: 3.247 | F207: 3.2455
B208: 2017-04-26 | C208: 2017 | D208: 3.247 | E208: 3.25 | F208: 3.2485
B209: 2017-04-27 | C209: 2017 | D209: 3.246 | E209: 3.249 | F209: 3.2475
B210: 2017-04-28 | C210: 2017 | D210: 3.242 | E210: 3.246 | F210: 3.244
B211: 2017-05-02 | C211: 2017 | D211: 3.247 | E211: 3.249 | F211: 3.248
B212: 2017-05-03 | C212: 2017 | D212: 3.249 | E212: 3.252 | F212: 3.2505
B213: 2017-05-04 | C213: 2017 | D213: 3.265 | E213: 3.269 | F213: 3.267
B214: 2017-05-05 | C214: 2017 | D214: 3.27 | E214: 3.274 | F214: 3.272
B215: 2017-05-08 | C215: 2017 | D215: 3.282 | E215: 3.286 | F215: 3.284
B216: 2017-05-09 | C216: 2017 | D216: 3.286 | E216: 3.288 | F216: 3.287
... 1814 more rows

Sheet EjecucionInversiones
A1: < | B1: Fuente Ejecución de Inversiones CORPAC 2015 - 2020 | AC1: EJECUCIÓN DE INVERSIONES - PERIODO 2022 - 2023
B2: Expresado en USD | AC2: Fuente: CORPAC S.A.
AC3: (Expresado en dólares)
B4: I. Ejecución de inversiones
B5: Descripción | C5: 2015 | F5: 2016 | I5: 2017 | L5: 2018 | O5: 2019 | R5: 2020 | U5: 2021 | X5: TOTAL | AC5: Descripción | AD5: SERVICIO | AE5: 2022 | AH5: 2023 | AK5: TOTAL 2022-2023
C6: Programado para el año | D6: Ejecución en el año | E6: % avance anual | F6: Programado para el año | G6: Ejecución en el año | H6: % avance anual | I6: Programado para el año | J6: Ejecución en el año | K6: % avance anual | L6: Programado para el año | M6: Ejecución en el año | N6: % avance anual | O6: Programado para el año | P6: Ejecución en el año | Q6: % avance anual | R6: Programado para el año | S6: Ejecución en el año | T6: % avance anual | U6: Programado para el año | V6: Ejecución en el año | W6: % avance anual | X6: Programado 2015-2021 | Y6: Ejecución 2015- 2021 | Z6: % Ejecutado | AD6: ASIGNADO | AE6: Programado para el año | AF6: Ejecutado en el año | AG6: PORCENTAJE EJECUTADO | AH6: Programado para el año | AI6: Ejecutado en el año | AJ6: PORCENTAJE EJECUTADO | AK6: Programado para el año | AL6: Ejecutado en el año | AM6: PORCENTAJE EJECUTADO
B7: 1. Mobiliario, Enseres y equipos de oficina aeropuertos provincias | C7: 216863.2506 | D7: 49173.53034 | E7: =D7/C7 -> 0.2267490237 | F7: 200747.3373 | G7: 64128.40237 | H7: =G7/F7 -> 0.3194483336 | I7: 123662.3656 | J7: 110414.1321 | K7: =J7/I7 -> 0.8928677013 | L7: 89623.28975 | M7: 79010.64153 | N7: =M7/L7 -> 0.8815860448 | O7: 49879.15408 | P7: 16100.30211 | Q7: =P7/O7 -> 0.3227861902 | R7: 32831.47353 | S7: 18044.34907 | T7: =S7/R7 -> 0.549605215 | X7: =C7+F7+I7+L7+O7+R7+U7 -> 713606.8708 | Y7: =D7+G7+J7+M7+P7+S7+V7 -> 336871.3575 | Z7: =+Y7/X7*100 -> 47.20685455
B8: 2. Equipos de terminal Aeropuertos de Provincias | X8: =C8+F8+I8+L8+O8+R8+U8 -> 0 | Y8: =D8+G8+J8+M8+P8+S8+V8 -> 0 | AC8: AEROPUERTO DE CUSCO | AE8: =+AE9 -> 3333808.594 | AF8: =+AF9 -> 159061.9792 | AG8: =+AF8/AE8*100 -> 4.771179109 | AH8: =+AH9 -> 3982588 | AI8: =+AI9 -> 566792.5333 | AJ8: =+AI8/AH8*100 -> 14.2317642 | AK8: =+AK9 -> 7316396.594 | AL8: =+AL9 -> 725854.5125 | AM8: =+AL8/AK8*100 -> 9.920929015
B9: - 15 Camionetas sedes aeropuertos | F9: 50887.57396 | G9: 50887.57396 | H9: =G9/F9 -> 1 | I9: 303306.298 | J9: 303306.298 | K9: =J9/I9 -> 1 | X9: =C9+F9+I9+L9+O9+R9+U9 -> 354193.872 | Y9: 354193.872 | Z9: 100 | AC9: GASTOS DE CAPITAL NO LIGADO A PROYECTOS | AE9: =SUM(AE10:AE16) -> 3333808.594 | AF9: =SUM(AF10:AF16) -> 159061.9792 | AG9: =+AF9/AE9*100 -> 4.771179109 | AH9: =SUM(AH10:AH16) -> 3982588 | AI9: =SUM(AI10:AI16) -> 566792.5333 | AJ9: =+AI9/AH9*100 -> 14.2317642 | AK9: =SUM(AK10:AK16) -> 7316396.594 | AL9: =SUM(AL10:AL16) -> 725854.5125 | AM9: =+AL9/AK9*100 -> 9.920929015
B10: - Butacas (Cusco, Andahuaylas, Huánuco, Jaén, Ilo, Moquegua) | F10: 226980.7692 | G10: 217365.3846 | H10: =G10/F10 -> 0.9576378887 | I10: 405362.8264 | J10: 405362.8264 | K10: =J10/I10 -> 1 | R10: 55383.97711 | S10: 55383.97711 | T10: =S10/R10 -> 1 | U10: =369892/SupuestosGenerales!G14 -> 95231.27761 | V10: =369892/SupuestosGenerales!G14 -> 95231.27761 | W10: =V10/U10 -> 1 | X10: 782958.8504 | Y10: 773343.4658 | Z10: 98.77191699 | AC10: - Adquisición de equipos de terminal | AD10: TUUA | AE10: =456550/FuenteMacro!E52 -> 118893.2292 | AF10: =109615/FuenteMacro!E52 -> 28545.57292 | AG10: =+AF10/AE10*100 -> 24.00941846 | AH10: =2629650/FuenteMacro!F52 -> 701240 | AI10: =(257314+48573)/FuenteMacro!F52 -> 81569.86667 | AJ10: =+AI10/AH10*100 -> 11.63223243 | AK10: =+AE10+AH10 -> 820133.2292 | AL10: =+AF10+AI10 -> 110115.4396 | AM10: =+AL10/AK10*100 -> 13.42653067
B11: - Carritos portaequipajes (Andahuaylas, Huánuco, Jaén) | F11: 39081.06509 | G11: 39081.06509 | H11: =G11/F11 -> 1 | R11: 20068.95565 | S11: 20068.95565 | T11: =S11/R11 -> 1 | X11: 59150.02074 | Y11: 59150.02074 | Z11: 100 | AC11: - Fajas transportadoras de equipajes (Convenio DU-006-18) | AD11: TUUA | AK11: =+AE11+AH11 -> 0 | AL11: 0
B12: - Sistema de CCTV para terminal Cusco | F12: 59171.59763 | G12: 22063.90533 | H12: =G12/F12 -> 0.37288 | I12: 283829.4931 | J12: 283829.4931 | K12: =J12/I12 -> 1 | X12: 343001.0907 | Y12: 305893.3984 | Z12: 89.18146522 | AC12: - Equipos de seguridad | AD12: TUUA | AH12: =232212/FuenteMacro!F52 -> 61923.2 | AK12: 61923.2 | AL12: 0 | AM12: 0
B13: - Adquisición de equipamiento y sistema de información para pasajeros Cusco | F13: 79380.47337 | G13: 79380.17751 | H13: =G13/F13 -> 0.9999962729 | X13: 79380.47337 | Y13: 79380.17751 | Z13: 99.99962729 | AC13: - Equipos de Salvamento y Extinción de Incendios | AD13: A/D -TUUA | AE13: =(52000+97500)/FuenteMacro!E52 -> 38932.29167 | AG13: =+AF13/AE13*100 -> 0 | AH13: =312669/FuenteMacro!F52 -> 83378.4 | AJ13: =+AI13/AH13*100 -> 0 | AK13: 122310.6917 | AL13: 0 | AM13: =+AL13/AK13*100 -> 0
B14: - Ascensor (Cusco) | I14: 96331.49002 | J14: 96331.79724 | K14: 1 | X14: 96331.49002 | Y14: 96331.79724 | Z14: 100.0003189 | AC14: - Cerco perimetrico(Convenio MTC CORPAC DU -006-18) | AD14: A/D-TUUA | AK14: 0 | AL14: 0
B15: - Ómnibus (Cusco) | L15: 561708.118 | M15: 561708.118 | N15: =M15/L15 -> 1 | X15: 561708.118 | Y15: 561708.118 | Z15: 100 | AC15: - Inversiones Convenio (Convenio MTC CORPAC DU -006-18) | AD15: A/D-TUUA | AE15: =(10997460+84746)/FuenteMacro!E52 -> 2885991.146 | AG15: =+AF15/AE15*100 -> 0 | AH15: =11760174/FuenteMacro!F52 -> 3136046.4 | AI15: =(1620568+199017)/FuenteMacro!F52 -> 485222.6667 | AJ15: =+AI15/AH15*100 -> 15.47243264 | AK15: 6022037.546 | AL15: 485222.6667 | AM15: =+AL15/AK15*100 -> 8.05745004
B16: - Overhaul de puentes de embarque (Cusco) | L16: 931405.5944 | M16: 931405.5944 | N16: =M16/L16 -> 1 | X16: 931405.5944 | Y16: 931405.5944 | Z16: 100 | AC16: - Estudios (Convenio MTC CORPAC DU -006-18) | AD16: A/D-TUUA | AE16: =(419501+694068)/FuenteMacro!E52 -> 289991.9271 | AF16: =(332528+23051+145604)/FuenteMacro!E52 -> 130516.4062 | AG16: =+AF16/AE16*100 -> 45.00691021 | AK16: 289991.9271 | AL16: 130516.4062 | AM16: =+AL16/AK16*100 -> 45.00691021
B17: . Fajas transportadoras de equipajes (Ilo, Jaén) | U17: =943608/SupuestosGenerales!G14 -> 242938.4669 | V17: =918048/SupuestosGenerales!G14 -> 236357.8665 | W17: =V17/U17 -> 0.9729124806 | X17: =C17+F17+I17+L17+O17+R17+U17 -> 242938.4669 | Y17: =D17+G17+J17+M17+P17+S17+V17 -> 236357.8665 | Z17: 97.29124806
B18: . Teleindicador de vuelo (Ilo, Jauja, Moquegua) | U18: =89493/SupuestosGenerales!G14 -> 23040.5976 | V18: =89493/SupuestosGenerales!G14 -> 23040.5976 | W18: =V18/U18 -> 1 | X18: =C18+F18+I18+L18+O18+R18+U18 -> 23040.5976 | Y18: =D18+G18+J18+M18+P18+S18+V18 -> 23040.5976 | Z18: 100 | AC18: AEROPUERTO DE CHIMBOTE | AE18: =+AE19 -> 5989.583333 | AF18: =+AF19 -> 0 | AG18: =+AF18/AE18*100 -> 0 | AH18: =+AH19 -> 509776.2667 | AI18: =+AI19 -> 19061.33333 | AJ18: =+AI18/AH18*100 -> 3.739156681 | AK18: =+AK19 -> 515765.85 | AL18: =+AL19 -> 19061.33333 | AM18: =+AL18/AK18*100 -> 3.695733894
B19: - Sistemas integrales TUUA (Jauja, Huánuco, Ilo, Jaen) | O19: 146653.7764 | P19: 146653.7764 | Q19: =P19/O19 -> 1 | U19: =721186/SupuestosGenerales!G14 -> 185674.3703 | V19: =721186/SupuestosGenerales!G14 -> 185674.3703 | W19: =V19/U19 -> 1 | X19: 332328.1467 | Y19: 332328.1467 | Z19: 100 | AC19: GASTOS DE CAPITAL NO LIGADO A PROYECTOS | AE19: =SUM(AE20:AE24) -> 5989.583333 | AF19: =SUM(AF20:AF24) -> 0 | AG19: =+AF19/AE19*100 -> 0 | AH19: =SUM(AH20:AH24) -> 509776.2667 | AI19: =SUM(AI20:AI24) -> 19061.33333 | AJ19: =+AI19/AH19*100 -> 3.739156681 | AK19: =SUM(AK20:AK24) -> 515765.85 | AL19: =SUM(AL20:AL24) -> 19061.33333 | AM19: =+AL19/AK19*100 -> 3.695733894
B20: - Equipos diversos (Cusco) | F20: 165507.3964 | G20: 92332.24852 | H20: =G20/F20 -> 0.5578738504 | I20: 151722.2734 | J20: 104230.1075 | K20: =J20/I20 -> 0.6869796054 | L20: 16537.85345 | M20: 13497.71967 | N20: =M20/L20 -> 0.8161711985 | O20: 77977.03927 | P20: 20680.66465 | Q20: =P20/O20 -> 0.2652147971 | R20: 51492.98999 | S20: 18263.80544 | T20: =S20/R20 -> 0.3546852774 | U20: =801600/SupuestosGenerales!G14 -> 206377.516 | V20: =530224/SupuestosGenerales!G14 -> 136509.8703 | W20: =V20/U20 -> 0.6614570858 | X20: 669615.0685 | Y20: 385514.4161 | Z20: 57.57254193 | AC20: - Adquisición de equipos de terminal | AD20: TUUA | AI20: =(2339+2468)/FuenteMacro!F52 -> 1281.866667 | AJ20: 0 | AK20: =+AE20+AH20 -> 0 | AL20: 1281.866667 | AM20: 0
B21: - Equipos diversos Aeropuertos provincias | C21: 218019.1764 | D21: 187381.3266 | E21: =D21/C21 -> 0.8594717665 | F21: 389287.2781 | G21: 369000.5917 | H21: =G21/F21 -> 0.9478876205 | I21: 232777.8802 | J21: 179221.8126 | K21: =J21/I21 -> 0.7699263025 | L21: 244335.9684 | M21: 263283.3688 | N21: 1 | O21: 72341.38973 | P21: 5782.477341 | Q21: =P21/O21 -> 0.0799331802 | R21: 18003.14735 | S21: 4914.16309 | T21: =S21/R21 -> 0.2729613325 | U21: =95673/SupuestosGenerales!G14 -> 24631.68174 | V21: =104449/SupuestosGenerales!G14 -> 26891.12421 | W21: =V21/U21 -> 1.091729119 | X21: 1199396.522 | Y21: 1036474.864 | Z21: 86.41636402 | AC21: - Equipos de seguridad | AD21: TUUA | AE21: =23000/FuenteMacro!E52 -> 5989.583333 | AG21: =+AF21/AE21*100 -> 0 | AH21: =32000/FuenteMacro!F52 -> 8533.333333 | AK21: 14522.91667 | AL21: 0 | AM21: 0
B22: 3. Equipos de Seguridad | X22: 0 | Y22: 0 | AC22: - Equipos de Salvamento y Extinción de Incendios | AD22: A/D | AH22: =100000/FuenteMacro!F52 -> 26666.66667 | AJ22: =+AI22/AH22*100 -> 0 | AK22: 26666.66667 | AL22: 0 | AM22: =+AL22/AK22*100 -> 0
B23: - Máquinas de rayos X (Cusco (2), Andahuaylas, Atalaya, Chimbote, Huánuco, Ilo, Jauja, Juanjuí, Nasca, Mazamari, Rioja, Tingo María, Yurimaguas) | F23: 102647.6331 | G23: 102647.6331 | H23: =G23/F23 -> 1 | L23: 579718.7595 | M23: 579718.7595 | N23: =M23/L23 -> 1 | R23: 124366.5236 | S23: 124366.5236 | T23: =S23/R23 -> 1 | X23: 806732.9162 | Y23: 806732.9162 | Z23: 100 | AC23: - Construcción Cuartel SEI | AD23: A/D | AH23: =1779661/FuenteMacro!F52 -> 474576.2667 | AK23: 474576.2667 | AL23: 0 | AM23: 0
B24: - Pórticos detectores de metal (Cusco (4), Andahuaylas, Atalaya, Ilo, Jaén, Juanjuí, Mazamari, Nasca, Rioja, Tingo María, Yurimaguas). | F24: 58072.48521 | G24: 43934.91124 | H24: =G24/F24 -> 0.7565529714 | I24: 57142.85714 | J24: 57142.85714 | K24: =J24/I24 -> 1 | L24: 28002.43235 | M24: 25813.31712 | N24: =M24/L24 -> 0.9218241042 | O24: 93515.40785 | P24: 77764.35045 | Q24: =P24/O24 -> 0.831567249 | X24: 236733.1826 | Y24: 204655.436 | Z24: 86.44983088 | AC24: - Cerco perimetrico (Estudios) | AD24: A/D -TUUA | AI24: =66673/FuenteMacro!F52 -> 17779.46667 | AK24: 0 | AL24: 17779.46667 | AM24: 0
B25: - Equipos de comunicaciones- transceptores | R25: 785626.3233 | S25: 785626.3233 | T25: =S25/R25 -> 1 | X25: 785626.3233 | Y25: 785626.3233 | Z25: 100
B26: . Casetas de seguridad y vigilancia | U26: =618636/SupuestosGenerales!G14 -> 159272.1569 | V26: =626779/SupuestosGenerales!G14 -> 161368.6291 | W26: =V26/U26 -> 1.013162829 | X26: =C26+F26+I26+L26+O26+R26+U26 -> 159272.1569 | Y26: =D26+G26+J26+M26+P26+S26+V26 -> 161368.6291 | Z26: =+Y26/X26*100 -> 101.3162829 | AC26: AEROPUERTO DE HUANUCO | AE26: =+AE27 -> 5989.583333 | AF26: =+AF27 -> 0 | AG26: =+AF26/AE26*100 -> 0 | AH26: =+AH27 -> 53133.33333 | AI26: =+AI27 -> 1592 | AJ26: =+AI26/AH26*100 -> 2.996235885 | AK26: =+AK27 -> 59122.91667 | AL26: =+AL27 -> 1592 | AM26: =+AL26/AK26*100 -> 2.692695303
B27: - Equipos diversos | C27: 219914.1779 | D27: 9187.676831 | E27: =D27/C27 -> 0.04177846521 | F27: 18153.84615 | G27: 18181.6568 | H27: 1 | I27: 13824.88479 | J27: 2768.356375 | K27: =J27/I27 -> 0.2002444444 | O27: 21344.41088 | P27: 3217.522659 | Q27: =P27/O27 -> 0.1507430998 | U27: =60847/SupuestosGenerales!G14 -> 15665.48492 | V27: =0/SupuestosGenerales!G14 -> 0 | W27: =V27/U27 -> 0 | X27: =C27+F27+I27+L27+O27+R27+U27 -> 288902.8047 | Y27: =D27+G27+J27+M27+P27+S27+V27 -> 33355.21267 | Z27: 11.54547901 | AC27: GASTOS DE CAPITAL NO LIGADO A PROYECTOS | AE27: =SUM(AE28:AE30) -> 5989.583333 | AF27: =SUM(AF28:AF30) -> 0 | AG27: =+AF27/AE27*100 -> 0 | AH27: =SUM(AH28:AH30) -> 53133.33333 | AI27: =SUM(AI28:AI30) -> 1592 | AJ27: =+AI27/AH27*100 -> 2.996235885 | AK27: =SUM(AK28:AK30) -> 59122.91667 | AL27: =SUM(AL28:AL30) -> 1592 | AM27: =+AL27/AK27*100 -> 2.692695303
B28: 4. Equipos de Salvamento y Extinción de Incendios | X28: 0 | Y28: 0 | AC28: - Adquisición de equipos de terminal | AD28: TUUA | AH28: =10000/FuenteMacro!F52 -> 2666.666667 | AI28: =5970/FuenteMacro!F52 -> 1592 | AK28: =+AE28+AH28 -> 2666.666667 | AL28: 1592 | AM28: 0
B29: - Equipos de respiración autónoma | C29: 84911.97737 | D29: 84911.97737 | E29: =D29/C29 -> 1 | I29: 354083.5637 | J29: 354083.5637 | K29: =J29/I29 -> 1 | X29: 438995.5411 | Y29: 438995.5411 | Z29: 100 | AC29: - Equipos de seguridad | AD29: TUUA | AH29: =43250/FuenteMacro!F52 -> 11533.33333 | AK29: 11533.33333 | AL29: 0 | AM29: 0
B30: - Equipo de corte hidráulico | C30: 101701.3518 | D30: 101701.3518 | E30: =D30/C30 -> 1 | I30: 12624.57757 | J30: 12624.57757 | K30: =J30/I30 -> 1 | X30: 114325.9293 | Y30: 114325.9293 | Z30: 100 | AC30: - Equipos de Salvamento y Extinción de Incendios | AD30: A/D -TUUA | AE30: =23000/FuenteMacro!E52 -> 5989.583333 | AG30: =+AF30/AE30*100 -> 0 | AH30: =146000/FuenteMacro!F52 -> 38933.33333 | AJ30: =+AI30/AH30*100 -> 0 | AK30: 44922.91667 | AL30: 0 | AM30: =+AL30/AK30*100 -> 0
B31: - Trajes de mercancías peligrosas | C31: 27973.27884 | D31: 27973.27884 | E31: =D31/C31 -> 1 | O31: 16314.1994 | P31: 12182.77946 | Q31: =P31/O31 -> 0.7467592593 | X31: 44287.47824 | Y31: 40156.0583 | Z31: 90.6713588
B32: - Trajes de aproximación | F32: 125769.5266 | G32: 125769.5266 | H32: =G32/F32 -> 1 | I32: 57204.30108 | J32: 57204.30108 | K32: =J32/I32 -> 1 | O32: 195658.006 | P32: 179776.1329 | Q32: =P32/O32 -> 0.9188284015 | X32: 378631.8337 | Y32: 362749.9606 | Z32: 95.80545752 | AC32: AEROPUERTO DE ILO | AE32: =+AE33 -> 32128.38542 | AF32: =+AF33 -> 187350.5208 | AG32: =+AF32/AE32*100 -> 583.1308309 | AH32: =+AH33 -> 52133.33333 | AI32: =+AI33 -> 0 | AJ32: =+AI32/AH32*100 -> 0 | AK32: =+AK33 -> 84261.71875 | AL32: =+AL33 -> 187350.5208 | AM32: =+AL32/AK32*100 -> 222.3435786
B33: - Extintores | C33: 26388.24269 | D33: 26388.24269 | E33: =D33/C33 -> 1 | F33: 81025.14793 | G33: 81025.14793 | H33: =G33/F33 -> 1 | X33: 107413.3906 | Y33: 107413.3906 | Z33: 100 | AC33: GASTOS DE CAPITAL NO LIGADO A PROYECTOS | AE33: =SUM(AE34:AE40) -> 32128.38542 | AF33: =SUM(AF34:AF40) -> 187350.5208 | AG33: =+AF33/AE33*100 -> 583.1308309 | AH33: =SUM(AH34:AH40) -> 52133.33333 | AI33: =SUM(AI34:AI40) -> 0 | AJ33: =+AI33/AH33*100 -> 0 | AK33: =SUM(AK34:AK40) -> 84261.71875 | AL33: =SUM(AL34:AL40) -> 187350.5208 | AM33: =+AL33/AK33*100 -> 222.3435786
B34: - Implementación bases SEI | C34: 47154.98271 | D34: 3063.81641 | E34: =D34/C34 -> 0.06497333333 | F34: 156514.2012 | G34: 160650.5917 | H34: 1 | L34: 54019.4588 | M34: 56974.76437 | N34: 1 | U34: =120000/SupuestosGenerales!G14 -> 30894.83772 | V34: =35662/SupuestosGenerales!G14 -> 9181.430856 | W34: =V34/U34 -> 0.2971833333 | X34: 288583.4804 | Y34: 229870.6033 | Z34: 79.65480319 | AC34: - Adquisición de equipos de terminal | AD34: TUUA | AE34: =(10500+47500)/FuenteMacro!E52 -> 15104.16667 | AF34: =(2235+42749)/FuenteMacro!E52 -> 11714.58333 | AG34: =+AF34/AE34*100 -> 77.55862069 | AH34: =10000/FuenteMacro!F52 -> 2666.666667 | AJ34: =+AI34/AH34*100 -> 0 | AK34: =+AE34+AH34 -> 17770.83333 | AL34: 11714.58333 | AM34: =+AL34/AK34*100 -> 65.92028136
B35: - Vehículos SEI (Cusco (2), Andahuaylas, Atalaya, Chimbote, Ilo, Jaén, Juanjuí, Jauja, Huánuco, Mazamari, Nasca, Rioja, Tingo María, Yurimaguas) | I35: 4275997.849 | J35: 4275998.157 | K35: =J35/I35 -> 1.000000072 | L35: 1946917.908 | M35: 1946917.908 | N35: =M35/L35 -> 1 | O35: 4593326.586 | P35: 4770497.885 | Q35: 1 | X35: 10816242.34 | Y35: 10993413.95 | Z35: 101.6380144 | AC35: - Equipos de seguridad | AD35: TUUA | AH35: =39500/FuenteMacro!F52 -> 10533.33333 | AK35: 10533.33333 | AL35: 0 | AM35: 0
B36: - 14 Sistemas de compresora y equipo de llenado | U36: =640444/SupuestosGenerales!G14 -> 164886.7787 | V36: =640444/SupuestosGenerales!G14 -> 164886.7787 | W36: =V36/U36 -> 1 | X36: =C36+F36+I36+L36+O36+R36+U36 -> 164886.7787 | Y36: =D36+G36+J36+M36+P36+S36+V36 -> 164886.7787 | Z36: =+Y36/X36*100 -> 100 | AC36: - Equipos de Salvamento y Extinción de Incendios | AD36: A/D -TUUA | AE36: =23000/FuenteMacro!E52 -> 5989.583333 | AG36: =+AF36/AE36*100 -> 0 | AH36: =146000/FuenteMacro!F52 -> 38933.33333 | AJ36: =+AI36/AH36*100 -> 0 | AK36: 44922.91667 | AL36: 0 | AM36: =+AL36/AK36*100 -> 0
B37: - Equipos diversos y otros | C37: 115108.7708 | D37: 9747.249293 | E37: =D37/C37 -> 0.08467859767 | F37: 17159.76331 | G37: 8265.680473 | H37: =G37/F37 -> 0.4816896552 | I37: 31612.90323 | J37: 11914.59293 | K37: =J37/I37 -> 0.3768901846 | L37: 12161.75129 | M37: 913.347522 | N37: =M37/L37 -> 0.0751 | U37: =150000/SupuestosGenerales!G14 -> 38618.54715 | V37: =62340/SupuestosGenerales!G14 -> 16049.86819 | W37: =V37/U37 -> 0.4156 | X37: 214661.7358 | Y37: 46890.73842 | Z37: 21.84401344 | AC37: - Cerco perimetrico- (Convenio MTC/CORPAC S.A.DU -006-18) | AD37: A/D -TUUA | AE37: =42373/FuenteMacro!E52 -> 11034.63542 | AF37: =+(654474/FuenteMacro!E52) -> 170435.9375 | AG37: =+AF37/AE37*100 -> 1544.554315 | AK37: 11034.63542 | AL37: 170435.9375 | AM37: =+AL37/AK37*100 -> 1544.554315
B38: 5. Equipos de Informática | C38: 1662020.748 | D38: 783509.9025 | E38: =D38/C38 -> 0.471420049 | F38: 602950.2959 | G38: 868936.6864 | H38: 1 | I38: 163286.3287 | J38: 27560.9831 | K38: =J38/I38 -> 0.1687892876 | L38: 645111.5841 | M38: 415398.2974 | N38: =M38/L38 -> 0.6439169713 | O38: 963145.0151 | P38: 787673.4139 | Q38: =P38/O38 -> 0.8178139341 | R38: 76108.72675 | S38: 26215.73677 | T38: =S38/R38 -> 0.3444511278 | U38: =517689/SupuestosGenerales!G14 -> 133282.647 | V38: =501643/SupuestosGenerales!G14 -> 129151.4923 | W38: =V38/U38 -> 0.9690045568 | X38: 4245905.346 | Y38: 3038446.512 | Z38: 71.5618052 | AC38: - Construcción Cuartel SEI -(Convenio MTC/CORPAC S.A.DU -006-18) | AD38: A/D | AK38: 0 | AL38: 0 | AM38: 0
B39: 6. Cercos perimétrico | C39: 805223.2003 | D39: 389510.2169 | E39: =D39/C39 -> 0.4837295011 | F39: 154854.7337 | G39: 148459.7633 | H39: =G39/F39 -> 0.9587034231 | I39: 218402.765 | J39: 218402.765 | K39: =J39/I39 -> 1 | R39: 138124.4635 | S39: 127600 | T39: =S39/R39 -> 0.9238044931 | U39: =186631/SupuestosGenerales!G14 -> 48049.45382 | V39: =0/SupuestosGenerales!G14 -> 0 | W39: =V39/U39 -> 0 | X39: 1364654.616 | Y39: 883972.7452 | Z39: 64.77629831 | AC39: - Rehabilitación de franjas de pista y plataforma de pista (DU -006-18) | AD39: A/D | AK39: 0 | AL39: 0 | AM39: 0
B40: 7. Inversiones Convenio de Cooperación Institucional CORPAC S.A/MTC (DU-006-2018) | X40: 0 | Y40: 0 | AC40: - Estudios y supervisión (Convenio MTC/CORPAC S.A.DU -006-18) | AD40: A/D | AF40: =19968/FuenteMacro!E52 -> 5200 | AK40: 0 | AL40: 5200 | AM40: 0
B41: - Elaboración expediente técnicos obras Arptos. Cusco, Ilo y Moquegua | O41: 40660.72508 | P41: 38956.79758 | Q41: =P41/O41 -> 0.958094021 | R41: 636785.1216 | S41: 519603.1474 | T41: =S41/R41 -> 0.8159787811 | X41: 677445.8467 | Y41: 558559.9449 | Z41: 82.4508627
B42: - Estudios y Supervisión en Aeropuertos de Cusco, Ilo y Moquegua. | U42: =2390964/SupuestosGenerales!G14 -> 615570.3731 | V42: =1555764/SupuestosGenerales!G14 -> 400542.3026 | W42: =V42/U42 -> 0.6506848284 | X42: =C42+F42+I42+L42+O42+R42+U42 -> 615570.3731 | Y42: =D42+G42+J42+M42+P42+S42+V42 -> 400542.3026 | Z42: =+Y42/X42*100 -> 65.06848284 | AC42: AERODROMO DE JAÉN | AE42: =+AE43 -> 34855.98958 | AF42: =+AF43 -> 807.8125 | AG42: =+AF42/AE42*100 -> 2.317571556 | AH42: =+AH43 -> 122523.2 | AI42: =+AI43 -> 73922.93333 | AJ42: =+AI42/AH42*100 -> 60.33382521 | AK42: =+AK43 -> 157379.1896 | AL42: =+AL43 -> 74730.74583 | AM42: =+AL42/AK42*100 -> 47.4845156
B43: - Cerco perimétrico del Aeropuerto del Cusco | R43: 334425.1788 | S43: 310565.3791 | T43: =S43/R43 -> 0.9286542963 | U43: =539460/SupuestosGenerales!G14 -> 138887.743 | V43: =518671/SupuestosGenerales!G14 -> 133535.4698 | W43: =V43/U43 -> 0.9614633152 | X43: 473312.9218 | Y43: 444100.8489 | Z43: 93.82816916 | AC43: GASTOS DE CAPITAL NO LIGADO A PROYECTOS | AE43: =SUM(AE44:AE47) -> 34855.98958 | AF43: =SUM(AF44:AF47) -> 807.8125 | AG43: =+AF43/AE43*100 -> 2.317571556 | AH43: =SUM(AH44:AH47) -> 122523.2 | AI43: =SUM(AI44:AI47) -> 73922.93333 | AJ43: =+AI43/AH43*100 -> 60.33382521 | AK43: =SUM(AK44:AK47) -> 157379.1896 | AL43: =SUM(AL44:AL47) -> 74730.74583 | AM43: =+AL43/AK43*100 -> 47.4845156
B44: - Cerco perimétrico del Aeropuerto del Ilo | U44: =6447859/SupuestosGenerales!G14 -> 1660046.312 | V44: =6447858/SupuestosGenerales!G14 -> 1660046.054 | W44: =V44/U44 -> 0.9999998449 | X44: =C44+F44+I44+L44+O44+R44+U44 -> 1660046.312 | Y44: =D44+G44+J44+M44+P44+S44+V44 -> 1660046.054 | Z44: =+Y44/X44*100 -> 99.99998449 | AC44: - Adquisición de equipos de terminal | AD44: TUUA | AE44: =60000/FuenteMacro!E52 -> 15625 | AG44: =+AF44/AE44*100 -> 0 | AH44: =20000/FuenteMacro!F52 -> 5333.333333 | AI44: =(129831+26750+60916)/FuenteMacro!F52 -> 57999.2 | AJ44: =+AI44/AH44*100 -> 1087.485 | AK44: =+AE44+AH44 -> 20958.33333 | AL44: 57999.2 | AM44: =+AL44/AK44*100 -> 276.7357455
B45: - Vía perimetral (Cusco) | R45: 456536.1946 | S45: 408972.5322 | T45: =S45/R45 -> 0.8958162289 | X45: 456536.1946 | Y45: 408972.5322 | Z45: 89.58162289 | AC45: - Equipos de seguridad | AD45: TUUA | AH45: =243462/FuenteMacro!F52 -> 64923.2 | AJ45: =+AI45/AH45*100 -> 0 | AK45: 64923.2 | AL45: 0 | AM45: =+AL45/AK45*100 -> 0
B46: - Cuartel SEI (Ilo) | R46: 258277.2532 | S46: 127002.5751 | T46: =S46/R46 -> 0.4917296182 | U46: =555031/SupuestosGenerales!G14 -> 142896.6056 | V46: =641581/SupuestosGenerales!G14 -> 165179.5073 | W46: =V46/U46 -> 1.155937236 | X46: 401173.8588 | Y46: 292182.0824 | Z46: 72.83178502 | AC46: - Equipos de Salvamento y Extinción de Incendios | AD46: A/D -TUUA | AE46: =(50847+23000)/FuenteMacro!E52 -> 19230.98958 | AF46: =3102/FuenteMacro!E52 -> 807.8125 | AG46: =+AF46/AE46*100 -> 4.200576868 | AH46: =196000/FuenteMacro!F52 -> 52266.66667 | AI46: =59714/FuenteMacro!F52 -> 15923.73333 | AJ46: =+AI46/AH46*100 -> 30.46632653 | AK46: 71497.65625 | AL46: 16731.54583 | AM46: =+AL46/AK46*100 -> 23.4015305
B47: - Torre de control (Ilo) | R47: 360884.6924 | S47: 229901.8598 | T47: =S47/R47 -> 0.6370507384 | X47: 360884.6924 | Y47: 229901.8598 | Z47: 63.70507384 | AC47: - Ampliación Cuartel SEI | AD47: A/D
B48: - Supervisión de obras Cusco, Ilo y Moquegua | R48: 106676.1087 | S48: 107305.8655 | T48: 1 | X48: 106676.1087 | Y48: 107305.8655 | Z48: 100.5903447
B49: - Vehículo SEI Aeropuerto de Moquegua | L49: 229699.9088 | M49: 229699.9088 | N49: =M49/L49 -> 1 | R49: 520024.3205 | S49: 520024.3205 | T49: =S49/R49 -> 1 | X49: 749724.2292 | Y49: 749724.2292 | Z49: 100 | AC49: AEROPUERTO DE JAUJA | AE49: =+AE50 -> 5989.583333 | AF49: =+AF50 -> 0 | AG49: =+AF49/AE49*100 -> 0 | AH49: =+AH50 -> 66466.66667 | AI49: =+AI50 -> 0 | AJ49: =+AI49/AH49*100 -> 0 | AK49: =+AK50 -> 72456.25 | AL49: =+AL50 -> 0 | AM49: =+AL49/AK49*100 -> 0
B50: 8. Otras Inversiones | X50: 0 | Y50: 0 | AC50: GASTOS DE CAPITAL NO LIGADO A PROYECTOS | AE50: =SUM(AE51:AE54) -> 5989.583333 | AF50: =SUM(AF51:AF54) -> 0 | AG50: =+AF50/AE50*100 -> 0 | AH50: =SUM(AH51:AH54) -> 66466.66667 | AI50: =SUM(AI51:AI54) -> 0 | AJ50: =+AI50/AH50*100 -> 0 | AK50: =SUM(AK51:AK54) -> 72456.25 | AL50: =SUM(AL51:AL54) -> 0 | AM50: =+AL50/AK50*100 -> 0
B51: - Tasaciones, titulación, adquisición de terreno | C51: 55957.24615 | D51: 44739.39013 | E51: =D51/C51 -> 0.7995280899 | F51: 59171.59763 | G51: 67.15976331 | H51: =G51/F51 -> 0.001135 | I51: 25607.37327 | J51: 10246.39017 | K51: =J51/I51 -> 0.4001343699 | L51: 10701.12496 | M51: 4620.249316 | N51: =M51/L51 -> 0.4317536084 | U51: =50000/SupuestosGenerales!G14 -> 12872.84905 | V51: =6528/SupuestosGenerales!G14 -> 1680.679172 | W51: =V51/U51 -> 0.13056 | X51: 164310.1911 | Y51: 61353.86855 | Z51: 37.34026974 | AC51: - Adquisición de equipos de terminal | AD51: TUUA | AH51: =10000/FuenteMacro!F52 -> 2666.666667 | AK51: =+AE51+AH51 -> 2666.666667 | AL51: 0 | AM51: 0
B52: - Equipos de ingeniería | C52: 14552.02766 | D52: 13541.65357 | E52: =D52/C52 -> 0.9305681573 | F52: 45414.20118 | G52: 21800.29586 | H52: =G52/F52 -> 0.4800325733 | I52: 36055.29954 | J52: 28732.10445 | K52: =J52/I52 -> 0.7968899114 | U52: =233304/SupuestosGenerales!G14 -> 60065.74349 | V52: =0/SupuestosGenerales!G14 -> 0 | W52: =V52/U52 -> 0 | X52: =C52+F52+I52+L52+O52+R52+U52 -> 156087.2719 | Y52: =D52+G52+J52+M52+P52+S52+V52 -> 64074.05388 | Z52: 41.05014657 | AC52: - Equipos de seguridad | AD52: TUUA | AH52: =43250/FuenteMacro!F52 -> 11533.33333 | AK52: 11533.33333 | AL52: 0 | AM52: 0
B53: - Estudios de ingeniería | F53: 45118.3432 | G53: 20680.47337 | H53: =G53/F53 -> 0.4583606557 | I53: 43342.54992 | J53: 12620.58372 | K53: =J53/I53 -> 0.2911823079 | L53: 22842.50532 | M53: 14597.14199 | N53: =M53/L53 -> 0.6390341945 | O53: 101148.3384 | P53: 92485.49849 | Q53: =P53/O53 -> 0.9143550945 | R53: 70318.74106 | S53: 13578.8269 | T53: =S53/R53 -> 0.1931039534 | U53: =326700/SupuestosGenerales!G14 -> 84111.19569 | V53: =11865/SupuestosGenerales!G14 -> 3054.727079 | W53: =V53/U53 -> 0.03631772268 | X53: =C53+F53+I53+L53+O53+R53+U53 -> 366881.6736 | Y53: =D53+G53+J53+M53+P53+S53+V53 -> 157017.2515 | Z53: 42.79779091 | AC53: - Equipos de Salvamento y Extinción de Incendios | AD53: A/D -TUUA | AE53: =23000/FuenteMacro!E52 -> 5989.583333 | AG53: =+AF53/AE53*100 -> 0 | AH53: =196000/FuenteMacro!F52 -> 52266.66667 | AJ53: =+AI53/AH53*100 -> 0 | AK53: 58256.25 | AL53: 0 | AM53: =+AL53/AK53*100 -> 0
B54: - Habilitación provisional del terminal del aeropuerto de Huánuco | F54: 466802.071 | G54: 462787.574 | H54: =G54/F54 -> 0.9914000016 | X54: 466802.071 | Y54: 462787.574 | Z54: 99.14000016 | AC54: - Cerco perimetrico | AD54: A/D -TUUA | AK54: 0 | AL54: 0 | AM54: 0
B55: . Activo fijo administrativo | U55: =61420/SupuestosGenerales!G14 -> 15813.00777 | V55: =23573/SupuestosGenerales!G14 -> 6069.033413 | W55: =V55/U55 -> 0.3838000651 | X55: 15813.00777 | Y55: 6069.033413 | Z55: =+Y55/X55*100 -> 38.38000651
B56: . Inversiones varias a nivel nacional | U56: =40153/SupuestosGenerales!G14 -> 10337.67016 | V56: =8455/SupuestosGenerales!G14 -> 2176.798774 | W56: =V56/U56 -> 0.2105695714 | X56: 10337.67016 | Y56: 2176.798774 | Z56: =+Y56/X56*100 -> 21.05695714 | AC56: TOTAL | AE56: =+AE49+AE42+AE32+AE26+AE18+AE8 -> 3418761.719 | AF56: =+AF49+AF42+AF32+AF26+AF18+AF8 -> 347220.3125 | AG56: =+AF56/AE56*100 -> 10.15631802 | AH56: =+AH49+AH42+AH32+AH26+AH18+AH8 -> 4786620.8 | AI56: =+AI49+AI42+AI32+AI26+AI18+AI8 -> 661368.8 | AJ56: =+AI56/AH56*100 -> 13.81702933 | AK56: =+AK49+AK42+AK32+AK26+AK18+AK8 -> 8205382.519 | AL56: =+AL49+AL42+AL32+AL26+AL18+AL8 -> 1008589.113 | AM56: =+AL56/AK56*100 -> 12.29179883
B57: - Obras diversas (Cusco) | I57: 41719.81567 | J57: 41719.81567 | K57: =J57/I57 -> 1 | X57: 41719.81567 | Y57: 41719.81567 | Z57: 100
B58: - Otras inversiones | C58: 265968.249 | D58: 234002.2006 | E58: =D58/C58 -> 0.8798125395 | F58: 185678.9941 | G58: 184520.1183 | H58: =G58/F58 -> 0.9937587138 | I58: 356174.1935 | J58: 241965.8986 | K58: =J58/I58 -> 0.6793470807 | L58: 72819.09395 | M58: 56968.0754 | N58: =M58/L58 -> 0.7823233209 | O58: 137966.7674 | P58: 24006.0423 | Q58: =P58/O58 -> 0.1739987299 | X58: 1018607.298 | Y58: 741462.3352 | Z58: 72.79177527 | AE58: 2022 | AH58: 2023 | AK58: TOTAL 2022-2023
X59: 0 | Y59: 0 | AC59: DESCRIPCIÓN | AE59: PROGRAMADO | AF59: EJECUTADO | AG59: % | AH59: PROGRAMADO | AI59: EJECUTADO | AJ59: % | AK59: PROGRAMADO | AL59: EJECUTADO | AM59: %
B60: Total | C60: =SUM(C7:C59) -> 3861756.68 | D60: =SUM(D7:D59) -> 1964831.814 | E60: =AVERAGE(E7:E58) -> 0.6316221088 | F60: =SUM(F7:F59) -> 3330376.331 | G60: =SUM(G7:G59) -> 3181966.568 | H60: =AVERAGE(H7:H58) -> 0.7853344073 | I60: =SUM(I7:I59) -> 7284071.889 | J60: =SUM(J7:J59) -> 6835681.413 | K60: =AVERAGE(K7:K58) -> 0.7744405366 | L60: =+SUM(L7:L59) -> 5445605.351 | M60: =+SUM(M7:M59) -> 5180527.212 | N60: =AVERAGE(N7:N58) -> 0.8127806295 | O60: =+SUM(O7:O59) -> 6509930.816 | P60: =+SUM(P7:P59) -> 6175777.644 | Q60: =AVERAGE(Q7:Q58) -> 0.6292379967 | R60: =+SUM(R7:R59) -> 4045934.192 | S60: =+SUM(S7:S59) -> 3417438.34 | T60: =AVERAGE(T7:T58) -> 0.7298730037 | U60: =SUM(U7:U59) -> 4109165.316 | V60: =SUM(V7:V59) -> 3556627.878 | W60: =AVERAGE(W7:W58) -> 0.6341082722 | X60: =SUM(X7:X59) -> 34586840.58 | Y60: =+SUM(Y7:Y59) -> 30312850.87 | Z60: =+Y60/X60*100 -> 87.64272875 | AC60: AEROPUERTO DE JUANJUI | AE60: =+AE61 -> 5989.583333 | AF60: =+AF61 -> 1432.291667 | AG60: =+AF60/AE60*100 -> 23.91304348 | AH60: =+AH61 -> 368517.3333 | AI60: =+AI61 -> 1695.466667 | AJ60: =+AI60/AH60*100 -> 0.4600778616 | AK60: =+AK61 -> 374506.9167 | AL60: =+AL61 -> 3127.758333 | AM60: =+AL60/AK60*100 -> 0.8351670408
B61: * Considera tipo de cambio: 2015 S/3.181, 2016 S/ 3.38, 2017 S/3.255, 2018 S/3.289, 2019 S/3.31, 2020 S/3.495, 2021 S/ 3.884 | AC61: GASTOS DE CAPITAL NO LIGADO A PROYECTOS | AE61: =SUM(AE62:AE65) -> 5989.583333 | AF61: =SUM(AF62:AF65) -> 1432.291667 | AG61: =+AF61/AE61*100 -> 23.91304348 | AH61: =SUM(AH62:AH65) -> 368517.3333 | AI61: =SUM(AI62:AI65) -> 1695.466667 | AJ61: =+AI61/AH61*100 -> 0.4600778616 | AK61: =SUM(AK62:AK65) -> 374506.9167 | AL61: =SUM(AL62:AL65) -> 3127.758333 | AM61: =+AL61/AK61*100 -> 0.8351670408
B62: Promedio 2015-2023 | C62: =AVERAGE(E60,H60,K60,N60,Q60,T60,W60,AG166,AJ166) -> 0.6219681167 | AC62: - Adquisición de equipos de terminal | AD62: TUUA | AF62: =5500/FuenteMacro!E52 -> 1432.291667 | AH62: =10000/FuenteMacro!F52 -> 2666.666667 | AI62: =(4958+1400)/FuenteMacro!F52 -> 1695.466667 | AK62: =+AE62+AH62 -> 2666.666667 | AL62: 3127.758333 | AM62: =+AL62/AK62*100 -> 117.2909375
AC63: - Equipos de seguridad | AD63: TUUA | AH63: =39500/FuenteMacro!F52 -> 10533.33333 | AK63: 10533.33333 | AL63: 0
B64: II. Proyección de Ejecución de inversiones | AC64: - Equipos de Salvamento y Extinción de Incendios | AD64: A/D -TUUA | AE64: =23000/FuenteMacro!E52 -> 5989.583333 | AG64: =+AF64/AE64*100 -> 0 | AH64: =146000/FuenteMacro!F52 -> 38933.33333 | AJ64: =+AI64/AH64*100 -> 0 | AK64: 44922.91667 | AL64: 0 | AM64: =+AL64/AK64*100 -> 0
B65: Año | C65: 2020 | D65: 2021 | E65: 2022 | F65: 2023 | G65: 2024 | AC65: - Ampliación Cuartel SEI | AD65: A/D | AH65: =1186440/FuenteMacro!F52 -> 316384 | AK65: 316384 | AL65: 0
B66: Porcentaje de ejecución de Inversiones | C66: =$C$62 -> 0.6219681167 | D66: =$C$62 -> 0.6219681167 | E66: =$C$62 -> 0.6219681167 | F66: =$C$62 -> 0.6219681167 | G66: =$C$62 -> 0.6219681167
B67: Sin convenio | C67: =SupuestoDemanda!$C$4 -> 0.6219681167 | D67: =SupuestoDemanda!$C$4 -> 0.6219681167 | E67: =$D$67 -> 0.6219681167 | F67: =$D$67 -> 0.6219681167 | G67: =$D$67 -> 0.6219681167 | AC67: AERODROMO DE MAZAMARI | AE67: =+AE68 -> 5989.583333 | AF67: =+AF68 -> 0 | AG67: =+AF67/AE67*100 -> 0 | AH67: =+AH68 -> 6133.333333 | AI67: =+AI68 -> 4374.666667 | AJ67: =+AI67/AH67*100 -> 71.32608696 | AK67: =+AK68 -> 12122.91667 | AL67: =+AL68 -> 4374.666667 | AM67: =+AL67/AK67*100 -> 36.08592542
AC68: GASTOS DE CAPITAL NO LIGADO A PROYECTOS | AE68: =SUM(AE69:AE71) -> 5989.583333 | AF68: =SUM(AF69:AF71) -> 0 | AG68: =+AF68/AE68*100 -> 0 | AH68: =SUM(AH69:AH71) -> 6133.333333 | AI68: =SUM(AI69:AI72) -> 4374.666667 | AJ68: =+AI68/AH68*100 -> 71.32608696 | AK68: =SUM(AK69:AK71) -> 12122.91667 | AL68: =SUM(AL69:AL71) -> 4374.666667 | AM68: =+AL68/AK68*100 -> 36.08592542
AC69: - Equipos de seguridad | AD69: TUUA | AE69: 0 | AF69: 0 | AG69: 0 | AH69: 0 | AI69: =(3555+12850)/FuenteMacro!F52 -> 4374.666667 | AJ69: 0 | AK69: =+AE69+AH69 -> 0 | AL69: =+AF69+AI69 -> 4374.666667 | AM69: 0
AC70: - Equipos de Salvamento y Extinción de Incendios | AD70: A/D -TUUA | AE70: =23000/FuenteMacro!E52 -> 5989.583333 | AG70: =+AF70/AE70*100 -> 0 | AH70: =23000/FuenteMacro!F52 -> 6133.333333 | AJ70: =+AI70/AH70*100 -> 0 | AK70: =+AE70+AH70 -> 12122.91667 | AL70: =+AF70+AI70 -> 0 | AM70: =+AL70/AK70*100 -> 0
AC71: - Ampliación Cuartel SEI | AD71: A/D
AC73: AEROPUERTO DE NAZCA | AE73: =+AE74 -> 128464.0625 | AF73: =+AF74 -> 0 | AG73: =+AF73/AE73*100 -> 0 | AH73: =+AH74 -> 504478.1333 | AI73: =+AI74 -> 1762.666667 | AJ73: =+AI73/AH73*100 -> 0.3494039781 | AK73: =+AK74 -> 632942.1958 | AL73: =+AL74 -> 1762.666667 | AM73: =+AL73/AK73*100 -> 0.2784877795
AC74: GASTOS DE CAPITAL NO LIGADO A PROYECTOS | AE74: =SUM(AE75:AE79) -> 128464.0625 | AF74: =SUM(AF75:AF79) -> 0 | AG74: =+AF74/AE74*100 -> 0 | AH74: =SUM(AH75:AH79) -> 504478.1333 | AI74: =SUM(AI75:AI79) -> 1762.666667 | AJ74: =+AI74/AH74*100 -> 0.3494039781 | AK74: =SUM(AK75:AK79) -> 632942.1958 | AL74: =SUM(AL75:AL79) -> 1762.666667 | AM74: =+AL74/AK74*100 -> 0.2784877795
AC75: - Adquisición de equipos de terminal | AD75: TUUA | AE75: =4200/FuenteMacro!E52 -> 1093.75 | AG75: =+AF75/AE75*100 -> 0 | AI75: =6610/FuenteMacro!F52 -> 1762.666667 | AK75: =+AE75+AH75 -> 1093.75 | AL75: 1762.666667 | AM75: 0
AC76: - Equipos de seguridad | AD76: TUUA | AH76: =43250/FuenteMacro!F52 -> 11533.33333 | AK76: 11533.33333 | AL76: 0 | AM76: 0
AC77: - Equipos de Salvamento y Extinción de Incendios | AD77: A/D -TUUA | AE77: =23000/FuenteMacro!E52 -> 5989.583333 | AG77: =+AF77/AE77*100 -> 0 | AH77: =196000/FuenteMacro!F52 -> 52266.66667 | AJ77: =+AI77/AH77*100 -> 0 | AK77: 58256.25 | AL77: 0 | AM77: =+AL77/AK77*100 -> 0
AC78: - Cerco perimetrico | AD78: A/D -TUUA | AE78: =466102/FuenteMacro!E52 -> 121380.7292 | AG78: =+AF78/AE78*100 -> 0 | AH78: =466102/FuenteMacro!F52 -> 124293.8667 | AJ78: =+AI78/AH78*100 -> 0 | AK78: 245674.5958 | AL78: 0 | AM78: =+AL78/AK78*100 -> 0
AC79: - Cuartel SEI | AD79: A/D | AH79: =1186441/FuenteMacro!F52 -> 316384.2667 | AJ79: =+AI79/AH79*100 -> 0 | AK79: 316384.2667 | AL79: 0 | AM79: =+AL79/AK79*100 -> 0
AC81: AEROPUERTO DE RIOJA | AE81: =+AE82 -> 24348.95833 | AF81: =+AF82 -> 4440.104167 | AG81: =+AF81/AE81*100 -> 18.23529412 | AH81: =+AH82 -> 369517.6 | AI81: =+AI82 -> 1826.666667 | AJ81: =+AI81/AH81*100 -> 0.4943382038 | AK81: =+AK82 -> 393866.5583 | AL81: =+AL82 -> 6266.770833 | AM81: =+AL81/AK81*100 -> 1.59108985
AC82: GASTOS DE CAPITAL NO LIGADO A PROYECTOS | AE82: =SUM(AE83:AE86) -> 24348.95833 | AF82: =SUM(AF83:AF86) -> 4440.104167 | AG82: =+AF82/AE82*100 -> 18.23529412 | AH82: =SUM(AH83:AH86) -> 369517.6 | AI82: =SUM(AI83:AI86) -> 1826.666667 | AJ82: =+AI82/AH82*100 -> 0.4943382038 | AK82: =SUM(AK83:AK86) -> 393866.5583 | AL82: =SUM(AL83:AL86) -> 6266.770833 | AM82: =+AL82/AK82*100 -> 1.59108985
AC83: - Adquisición de equipos de terminal | AD83: TUUA | AE83: =(60000+2000+8500)/FuenteMacro!E52 -> 18359.375 | AF83: =17050/FuenteMacro!E52 -> 4440.104167 | AG83: =+AF83/AE83*100 -> 24.18439716 | AH83: =10000/FuenteMacro!F52 -> 2666.666667 | AI83: =(6530+320)/FuenteMacro!F52 -> 1826.666667 | AJ83: =+AI83/AH83*100 -> 68.5 | AK83: =+AE83+AH83 -> 21026.04167 | AL83: 6266.770833 | AM83: =+AL83/AK83*100 -> 29.80480555
AC84: - Equipos de seguridad | AD84: TUUA | AH84: =43250/FuenteMacro!F52 -> 11533.33333 | AK84: 11533.33333 | AL84: 0 | AM84: 0
AC85: - Equipos de Salvamento y Extinción de Incendios | AD85: A/D -TUUA | AE85: =23000/FuenteMacro!E52 -> 5989.583333 | AG85: =+AF85/AE85*100 -> 0 | AH85: =146000/FuenteMacro!F52 -> 38933.33333 | AJ85: =+AI85/AH85*100 -> 0 | AK85: 44922.91667 | AL85: 0 | AM85: =+AL85/AK85*100 -> 0
AC86: - Construcción Cuartel SEI | AD86: A/D | AH86: =1186441/FuenteMacro!F52 -> 316384.2667 | AK86: 316384.2667 | AL86: 0 | AM86: 0
AC88: AEROPUERTO DE TINGO MARIA | AE88: =+AE90 -> 20833.33333 | AF88: =+AF90 -> 1312.239583 | AG88: =+AF88/AE88*100 -> 6.29875 | AH88: =+AH90 -> 192856.2667 | AI88: =+AI90 -> 50545.33333 | AJ88: =+AI88/AH88*100 -> 26.20881043 | AK88: =+AK90 -> 213689.6 | AL88: =+AL90 -> 51857.57292 | AM88: =+AL88/AK88*100 -> 24.26771023
AC90: GASTOS DE CAPITAL NO LIGADO A PROYECTOS | AE90: =SUM(AE91:AE93) -> 20833.33333 | AF90: =SUM(AF91:AF93) -> 1312.239583 | AG90: =+AF90/AE90*100 -> 6.29875 | AH90: =SUM(AH91:AH93) -> 192856.2667 | AI90: =SUM(AI91:AI93) -> 50545.33333 | AJ90: =+AI90/AH90*100 -> 26.20881043 | AK90: =SUM(AK91:AK93) -> 213689.6 | AL90: =SUM(AL91:AL93) -> 51857.57292 | AM90: =+AL90/AK90*100 -> 24.26771023
AC91: - Adquisición de equipos de terminal | AD91: TUUA | AE91: =(27000+30000)/FuenteMacro!E52 -> 14843.75 | AF91: =2581/FuenteMacro!E52 -> 672.1354167 | AG91: =+AF91/AE91*100 -> 4.528070175 | AH91: =280000/FuenteMacro!F52 -> 74666.66667 | AI91: =129831/FuenteMacro!F52 -> 34621.6 | AJ91: =+AI91/AH91*100 -> 46.36821429 | AK91: =+AE91+AH91 -> 89510.41667 | AL91: 35293.73542 | AM91: =+AL91/AK91*100 -> 39.42975212
AC92: - Equipos de seguridad | AD92: c | AF92: =2458/FuenteMacro!E52 -> 640.1041667 | AH92: =247211/FuenteMacro!F52 -> 65922.93333 | AJ92: =+AI92/AH92*100 -> 0 | AK92: 65922.93333 | AL92: 640.1041667 | AM92: =+AL92/AK92*100 -> 0.9709885988
AC93: - Equipos de Salvamento y Extinción de Incendios | AD93: A/D -TUUA | AE93: =23000/FuenteMacro!E52 -> 5989.583333 | AG93: =+AF93/AE93*100 -> 0 | AH93: =196000/FuenteMacro!F52 -> 52266.66667 | AI93: =59714/FuenteMacro!F52 -> 15923.73333 | AJ93: =+AI93/AH93*100 -> 30.46632653 | AK93: 58256.25 | AL93: 15923.73333 | AM93: =+AL93/AK93*100 -> 27.33394843
AC95: AEROPUERTO DE TOCACHE | AE95: =+AE96 -> 0 | AF95: =+AF96 -> 0 | AG95: 0 | AH95: =+AH96 -> 19333.33333 | AI95: =+AI96 -> 0 | AJ95: 0 | AK95: =+AK96 -> 19333.33333 | AL95: =+AL96 -> 0 | AM95: 0
AC96: GASTOS DE CAPITAL NO LIGADO A PROYECTOS | AE96: =SUM(AE97:AE102) -> 0 | AF96: =SUM(AF97:AF102) -> 0 | AH96: =SUM(AH97:AH102) -> 19333.33333 | AI96: =SUM(AI97:AI102) -> 0 | AK96: =SUM(AK97:AK102) -> 19333.33333 | AL96: =SUM(AL97:AL102) -> 0 | AM96: 0
AC97: - Adquisición de equipos de terminal | AD97: TUUA | AH97: =65000/FuenteMacro!F52 -> 17333.33333 | AK97: =+AE97+AH97 -> 17333.33333 | AL97: 0 | AM97: 0
AC98: - Equipos de seguridad | AD98: TUUA | AH98: =7500/FuenteMacro!F52 -> 2000 | AK98: 2000 | AL98: 0 | AM98: 0
AC99: - Equipos de Salvamento y Extinción de Incendios | AD99: A/D -TUUA | AK99: 0 | AL99: 0 | AM99: 0
AC100: . Vehículo SEI | AD100: A/D | AK100: 0 | AL100: 0 | AM100: 0
AC101: - Cerco perimetrico | AD101: A/D -TUUA | AK101: 0 | AL101: 0 | AM101: 0
AC102: - Ampliación Cuartel SEI | AD102: A/D | AK102: 0 | AL102: 0 | AM102: 0
AC104: AEROPUERTO DE YURIMAGUAS | AE104: =+AE105 -> 49479.16667 | AF104: =+AF105 -> 1223.958333 | AG104: =+AF104/AE104*100 -> 2.473684211 | AH104: =+AH105 -> 302856.5333 | AI104: =+AI105 -> 12025.06667 | AJ104: =+AI104/AH104*100 -> 3.970548872 | AK104: =+AK105 -> 352335.7 | AL104: =+AL105 -> 13249.025 | AM104: =+AL104/AK104*100 -> 3.760341345
AC105: GASTOS DE CAPITAL NO LIGADO A PROYECTOS | AE105: =SUM(AE106:AE108) -> 49479.16667 | AF105: =SUM(AF106:AF108) -> 1223.958333 | AG105: =+AF105/AE105*100 -> 2.473684211 | AH105: =SUM(AH106:AH108) -> 302856.5333 | AI105: =SUM(AI106:AI108) -> 12025.06667 | AJ105: =+AI105/AH105*100 -> 3.970548872 | AK105: =SUM(AK106:AK108) -> 352335.7 | AL105: =SUM(AL106:AL108) -> 13249.025 | AM105: =+AL105/AK105*100 -> 3.760341345
AC106: - Adquisición de equipos de terminal | AD106: TUUA | AE106: =(27000+60000+45000+30000+5000)/FuenteMacro!E52 -> 43489.58333 | AF106: =4700/FuenteMacro!E52 -> 1223.958333 | AG106: =+AF106/AE106*100 -> 2.814371257 | AH106: =700000/FuenteMacro!F52 -> 186666.6667 | AI106: =(16758+28336)/FuenteMacro!F52 -> 12025.06667 | AJ106: =+AI106/AH106*100 -> 6.442 | AK106: =+AE106+AH106 -> 230156.25 | AL106: 13249.025 | AM106: =+AL106/AK106*100 -> 5.756534963
AC107: - Equipos de seguridad | AD107: TUUA | AH107: =239712/FuenteMacro!F52 -> 63923.2 | AK107: 63923.2 | AL107: 0 | AM107: 0
AC108: - Equipos de Salvamento y Extinción de Incendios | AD108: A/D -TUUA | AE108: =23000/FuenteMacro!E52 -> 5989.583333 | AG108: =+AF108/AE108*100 -> 0 | AH108: =196000/FuenteMacro!F52 -> 52266.66667 | AJ108: =+AI108/AH108*100 -> 0 | AK108: 58256.25 | AL108: 0 | AM108: =+AL108/AK108*100 -> 0
AC111: TOTAL | AE111: =AE60+AE67+AE73+AE81+AE88+AE95+AE104 -> 235104.6875 | AF111: =AF60+AF67+AF73+AF81+AF88+AF104 -> 8408.59375 | AG111: =+AF111/AE111*100 -> 3.576531731 | AH111: =AH60+AH67+AH73+AH81+AH88+AH95+AH104 -> 1763692.533 | AI111: =AI60+AI67+AI73+AI81+AI88+AI104 -> 72229.86667 | AJ111: =+AI111/AH111*100 -> 4.095377471 | AK111: =AK60+AK67+AK73+AK81+AK88+AK95+AK104 -> 1998797.221 | AL111: =AL60+AL67+AL73+AL81+AL88+AL104 -> 80638.46042 | AM111: =+AL111/AK111*100 -> 4.034349236
AC112: AEROPORTUARIO
AD113: SERVICIO | AE113: 2022 | AH113: 2023 | AK113: TOTAL 2022-2023
AC114: DESCRIPCIÓN | AD114: ASIGNADO | AE114: PROGRAMADO | AF114: EJECUTADO | AG114: % | AH114: PROGRAMADO | AI114: EJECUTADO | AJ114: % | AK114: PROGRAMADO | AL114: EJECUTADO | AM114: %
AC116: AERÓDROMO DE ATALAYA | AE116: =+AE117 -> 7291.666667 | AF116: =+AF117 -> 0 | AG116: =+AF116/AE116*100 -> 0 | AH116: =+AH117 -> 56866.66667 | AI116: =+AI117 -> 7899.733333 | AJ116: =+AI116/AH116*100 -> 13.89167644 | AK116: =+AK117 -> 64158.33333 | AL116: =+AL117 -> 7899.733333 | AM116: =+AL116/AK116*100 -> 12.3128718
AC117: GASTOS DE CAPITAL NO LIGADO A PROYECTOS | AE117: =SUM(AE118:AE121) -> 7291.666667 | AF117: =SUM(AF118:AF121) -> 0 | AG117: =+AF117/AE117*100 -> 0 | AH117: =SUM(AH118:AH121) -> 56866.66667 | AI117: =SUM(AI118:AI121) -> 7899.733333 | AJ117: =+AI117/AH117*100 -> 13.89167644 | AK117: =SUM(AK118:AK121) -> 64158.33333 | AL117: =SUM(AL118:AL121) -> 7899.733333 | AM117: =+AL117/AK117*100 -> 12.3128718
AC118: - Adquisición de equipos de terminal | AD118: TUUA | AE118: =5000/FuenteMacro!E52 -> 1302.083333 | AG118: =+AF118/AE118*100 -> 0 | AH118: =70000/FuenteMacro!F52 -> 18666.66667 | AI118: =(2217+27407)/FuenteMacro!F52 -> 7899.733333 | AJ118: =+AI118/AH118*100 -> 42.32 | AK118: =+AE118+AH118 -> 19968.75 | AL118: 7899.733333 | AM118: =+AL118/AK118*100 -> 39.56047992
AC119: - Equipos de seguridad | AD119: TUUA | AH119: =43250/FuenteMacro!F52 -> 11533.33333 | AK119: 11533.33333 | AL119: 0 | AM119: 0
AC120: - Equipos de Salvamento y Extinción de Incendios | AD120: A/D -TUUA | AE120: =23000/FuenteMacro!E52 -> 5989.583333 | AG120: =+AF120/AE120*100 -> 0 | AH120: =100000/FuenteMacro!F52 -> 26666.66667 | AJ120: =+AI120/AH120*100 -> 0 | AK120: 32656.25 | AL120: 0 | AM120: =+AL120/AK120*100 -> 0
AC121: - Construcción Cuartel SEI | AD121: A/D
AC123: AEROPUERTO DE ANDAHUAYLAS | AE123: =+AE124 -> 10546.875 | AF123: =+AF124 -> 1111.197917 | AG123: =+AF123/AE123*100 -> 10.53580247 | AH123: =+AH124 -> 62200 | AI123: =+AI124 -> 0 | AJ123: =+AI123/AH123*100 -> 0 | AK123: =+AK124 -> 72746.875 | AL123: =+AL124 -> 1111.197917 | AM123: =+AL123/AK123*100 -> 1.52748543
AC124: GASTOS DE CAPITAL NO LIGADO A PROYECTOS | AE124: =SUM(AE125:AE127) -> 10546.875 | AF124: =SUM(AF125:AF127) -> 1111.197917 | AG124: =+AF124/AE124*100 -> 10.53580247 | AH124: =SUM(AH125:AH127) -> 62200 | AI124: =SUM(AI125:AI127) -> 0 | AJ124: =+AI124/AH124*100 -> 0 | AK124: =SUM(AK125:AK127) -> 72746.875 | AL124: =SUM(AL125:AL127) -> 1111.197917 | AM124: =+AL124/AK124*100 -> 1.52748543
AC125: - Adquisición de equipos de terminal | AD125: TUUA | AE125: =(1600+15900)/FuenteMacro!E52 -> 4557.291667 | AF125: =(1220+3047)/FuenteMacro!E52 -> 1111.197917 | AG125: =+AF125/AE125*100 -> 24.38285714 | AH125: =40000/FuenteMacro!F52 -> 10666.66667 | AJ125: =+AI125/AH125*100 -> 0 | AK125: =+AE125+AH125 -> 15223.95833 | AL125: 1111.197917 | AM125: =+AL125/AK125*100 -> 7.299007869
AC126: - Equipos de seguridad | AD126: TUUA | AH126: =43250/FuenteMacro!F52 -> 11533.33333 | AK126: 11533.33333 | AL126: 0 | AM126: 0
AC127: - Equipos de Salvamento y Extinción de Incendios | AD127: A/D -TUUA | AE127: =23000/FuenteMacro!E52 -> 5989.583333 | AG127: =+AF127/AE127*100 -> 0 | AH127: =150000/FuenteMacro!F52 -> 40000 | AJ127: =+AI127/AH127*100 -> 0 | AK127: 45989.58333 | AL127: 0 | AM127: =+AL127/AK127*100 -> 0
AC129: AERODROMO DE MOQUEGUA | AE129: =+AE130 -> 1329788.021 | AF129: =+AF130 -> 1587100 | AG129: =+AF129/AE129*100 -> 119.3498494 | AH129: =+AH130 -> 1538116.267 | AI129: =+AI130 -> 754630.1333 | AJ129: =+AI129/AH129*100 -> 49.06196948 | AK129: =+AK130 -> 2867904.288 | AL129: =+AL130 -> 2341730.133 | AM129: =+AL129/AK129*100 -> 81.65300856
AC130: GASTOS DE CAPITAL NO LIGADO A PROYECTOS | AE130: =SUM(AE131:AE139) -> 1329788.021 | AF130: =SUM(AF131:AF139) -> 1587100 | AG130: =+AF130/AE130*100 -> 119.3498494 | AH130: =SUM(AH131:AH139) -> 1538116.267 | AI130: =SUM(AI131:AI139) -> 754630.1333 | AJ130: =+AI130/AH130*100 -> 49.06196948 | AK130: =SUM(AK131:AK139) -> 2867904.288 | AL130: =SUM(AL131:AL139) -> 2341730.133 | AM130: =+AL130/AK130*100 -> 81.65300856
AC131: - Equipos de terminal | AD131: TUUA | AH131: =437500/FuenteMacro!F52 -> 116666.6667 | AK131: =+AE131+AH131 -> 116666.6667 | AL131: 0 | AM131: 0
AC132: - Equipos de seguridad | AD132: TUUA | AE132: =133474/FuenteMacro!E52 -> 34758.85417 | AG132: =+AF132/AE132*100 -> 0 | AH132: =47000/FuenteMacro!F52 -> 12533.33333 | AJ132: =+AI132/AH132*100 -> 0 | AK132: 47292.1875 | AL132: 0 | AM132: =+AL132/AK132*100 -> 0
AC133: - Equipos de Salvamento y Extinción de Incendios | AD133: A/D -TUUA | AE133: =(50847+11500)/FuenteMacro!E52 -> 16236.19792 | AG133: =+AF133/AE133*100 -> 0 | AH133: =146000/FuenteMacro!F52 -> 38933.33333 | AI133: =59714/FuenteMacro!F52 -> 15923.73333 | AJ133: =+AI133/AH133*100 -> 40.9 | AK133: 55169.53125 | AL133: 15923.73333 | AM133: =+AL133/AK133*100 -> 28.86327466
AC134: . Vehículo SEI (DU-006-18) | AD134: A/D | AK134: 0 | AL134: 0 | AM134: 0
AC135: - Cerco perimetrico (DU-006-18) | AD135: A/D -TUUA | AE135: =1388484/FuenteMacro!E52 -> 361584.375 | AG135: =+AF135/AE135*100 -> 0 | AH135: =1388494/FuenteMacro!F52 -> 370265.0667 | AI135: =2413831/FuenteMacro!F52 -> 643688.2667 | AJ135: =+AI135/AH135*100 -> 173.8452597 | AK135: 731849.4417 | AL135: 643688.2667 | AM135: =+AL135/AK135*100 -> 87.95364593
AC136: - Construcción Cuartel SEI (DU-006-18) | AD136: A/D | AE136: =101695/FuenteMacro!E52 -> 26483.07292 | AF136: =171316/FuenteMacro!E52 -> 44613.54167 | AG136: =+AF136/AE136*100 -> 168.4605929 | AH136: =915255/FuenteMacro!F52 -> 244068 | AJ136: =+AI136/AH136*100 -> 0 | AK136: 270551.0729 | AL136: 44613.54167 | AM136: =+AL136/AK136*100 -> 16.48987793
AC137: - Terminal de pasajeros (DU-006-18) | AD137: TUUA | AE137: =805084/FuenteMacro!E52 -> 209657.2917 | AG137: =+AF137/AE137*100 -> 0 | AH137: =805084/FuenteMacro!F52 -> 214689.0667 | AJ137: =+AI137/AH137*100 -> 0 | AK137: 424346.3583 | AL137: 0 | AM137: =+AL137/AK137*100 -> 0
AC138: - Rehabilitación de la pista aterrizaje y plataforma de aeronaves (DU-006-18) | AD138: A/D | AE138: =2028603/FuenteMacro!E52 -> 528282.0312 | AF138: =5821747/FuenteMacro!E52 -> 1516079.948 | AG138: =+AF138/AE138*100 -> 286.9830617 | AH138: =2028603/FuenteMacro!F52 -> 540960.8 | AJ138: =+AI138/AH138*100 -> 0 | AK138: 1069242.831 | AL138: 1516079.948 | AM138: =+AL138/AK138*100 -> 141.7900503
AC139: - Estudios y supervisión (DU-006-18) | AD139: TUUA | AE139: =(315514+271185)/FuenteMacro!E52 -> 152786.1979 | AF139: =101401/FuenteMacro!E52 -> 26406.51042 | AG139: =+AF139/AE139*100 -> 17.28330882 | AI139: =(72210+284108)/FuenteMacro!F52 -> 95018.13333 | AK139: 152786.1979 | AL139: 121424.6438 | AM139: =+AL139/AK139*100 -> 79.47356856
AC141: AERODROMO RODRIGUEZ DE MENDOZA | AE141: =+AE142 -> 0 | AF141: =+AF142 -> 0 | AG141: 0 | AH141: =+AH142 -> 416212.8 | AI141: =+AI142 -> 34621.6 | AJ141: =+AI141/AH141*100 -> 8.318244898 | AK141: =+AK142 -> 416212.8 | AL141: =+AL142 -> 34621.6 | AM141: =+AL141/AK141*100 -> 8.318244898
AC142: GASTOS DE CAPITAL NO LIGADO A PROYECTOS | AE142: =SUM(AE143:AE145) -> 0 | AF142: =SUM(AF143:AF145) -> 0 | AG142: 0 | AH142: =SUM(AH143:AH145) -> 416212.8 | AI142: =SUM(AI143:AI145) -> 34621.6 | AJ142: =+AI142/AH142*100 -> 8.318244898 | AK142: =SUM(AK143:AK145) -> 416212.8 | AL142: =SUM(AL143:AL145) -> 34621.6 | AM142: =+AL142/AK142*100 -> 8.318244898
AC143: - Equipos de terminal | AD143: TUUA | AH143: =10000/FuenteMacro!F52 -> 2666.666667 | AI143: =129831/FuenteMacro!F52 -> 34621.6 | AJ143: =+AI143/AH143*100 -> 1298.31 | AK143: =+AE143+AH143 -> 2666.666667 | AL143: 34621.6 | AM143: =+AL143/AK143*100 -> 1298.31
AC144: - Equipos de seguridad | AD144: TUUA | AH144: =11250/FuenteMacro!F52 -> 3000 | AK144: 3000 | AL144: 0 | AM144: 0
AC145: - Cerco perimetrico | AD145: A/D -TUUA | AH145: =1539548/FuenteMacro!F52 -> 410546.1333 | AK145: 410546.1333 | AL145: 0 | AM145: 0
AC147: AERODROMO DE SAPOSOA | AE147: =+AE148 -> 0 | AF147: =+AF148 -> 0 | AG147: 0 | AH147: =+AH148 -> 790960.5333 | AI147: =+AI148 -> 0 | AJ147: 0 | AK147: =+AK148 -> 790960.5333 | AL147: =+AL148 -> 0 | AM147: 0
AC148: GASTOS DE CAPITAL NO LIGADO A PROYECTOS | AE148: =+AE149+AE150 -> 0 | AF148: =+AF149+AF150 -> 0 | AG148: 0 | AH148: =+AH149+AH150 -> 790960.5333 | AI148: =+AI149+AI150 -> 0 | AJ148: 0 | AK148: =+AK149+AK150 -> 790960.5333 | AL148: =+AL149+AL150 -> 0 | AM148: 0
AC149: - Cerco perimetrico | AD149: A/D -TUUA | AH149: =2966102/FuenteMacro!F52 -> 790960.5333 | AK149: =+AE149+AH149 -> 790960.5333 | AL149: =+AF149+AI149 -> 0 | AM149: 0
AC150: - Ampliación Cuartel SEI | AD150: A/D | AK150: =+AE150+AH150 -> 0 | AL150: =+AF150+AI150 -> 0 | AM150: 0
AC151: TOTAL | AE151: =+AE147+AE141+AE129+AE123+AE116 -> 1347626.563 | AF151: =+AF147+AF141+AF129+AF123+AF116 -> 1588211.198 | AG151: =+AF151/AE151*100 -> 117.8524706 | AH151: =+AH147+AH141+AH129+AH123+AH116 -> 2864356.267 | AI151: =+AI147+AI141+AI129+AI123+AI116 -> 797151.4667 | AJ151: =+AI151/AH151*100 -> 27.83003902 | AK151: =+AK147+AK141+AK129+AK123+AK116 -> 4211982.829 | AL151: =+AL147+AL141+AL129+AL123+AL116 -> 2385362.665 | AM151: =+AL151/AK151*100 -> 56.63277277
AK152: 3.778795557 | AL152: 3.809923386
AE153: 2022 | AH153: 2023 | AK153: TOTAL 2022-2023
AC154: DESCRIPCIÓN | AE154: PROGRAMADO | AF154: EJECUTADO | AG154: % | AH154: PROGRAMADO | AI154: EJECUTADO | AJ154: % | AK154: PROGRAMADO | AL154: EJECUTADO | AM154: %
AC155: SEDE CENTRAL | AE155: =+AE156 -> 303208.8542 | AF155: =+AF156 -> 278222.3958 | AG155: =+AF155/AE155*100 -> 91.75932431 | AH155: =+AH156 -> 1139200 | AI155: 384045.0667 | AJ155: =+AI155/AH155*100 -> 33.71182116 | AK155: 1442408.854 | AL155: 662267.4625 | AM155: =+AL155/AK155*100 -> 45.91399038
AC156: GASTOS DE CAPITAL NO LIGADO A PROYECTOS | AE156: =+AE157 -> 303208.8542 | AF156: =+AF157 -> 278222.3958 | AG156: 91.75932431 | AH156: 1139200 | AI156: 384045.0667 | AJ156: =+AI156/AH156*100 -> 33.71182116 | AK156: 1442408.854 | AL156: 662267.4625 | AM156: 45.91399038
AC157: SEDE CENTRAL | AE157: =SUM(AE158:AE161) -> 303208.8542 | AF157: =SUM(AF158:AF161) -> 278222.3958 | AG157: 91.75932431 | AH157: =SUM(AH158:AH161) -> 1139200 | AI157: =SUM(AI158:AI161) -> 384045.0667 | AJ157: =+AI157/AH157*100 -> 33.71182116 | AK157: =SUM(AK158:AK161) -> 1442408.854 | AL157: =SUM(AL158:AL161) -> 662267.4625 | AM157: 45.91399038
AC158: Equipos de Seguridad | AD158: TUUA | AE158: =(133475+210000)/FuenteMacro!E52 -> 89446.61458 | AF158: =90250/FuenteMacro!E52 -> 23502.60417 | AG158: 26.27556591 | AI158: =16034/FuenteMacro!F52 -> 4275.733333 | AK158: =+AE158+AH158 -> 89446.61458 | AL158: 27778.3375 | AM158: 31.05577291
AC159: Equipos de Salvamento y Extinción de Incendios | AD159: TUUA | AE159: =(50847+60000)/FuenteMacro!E52 -> 28866.40625 | AF159: =85265/FuenteMacro!E52 -> 22204.42708 | AG159: 76.92134203 | AH159: =3300000/FuenteMacro!F52 -> 880000 | AI159: =(57450+222373)/FuenteMacro!F52 -> 74619.46667 | AJ159: =+AI159/AH159*100 -> 8.479484848 | AK159: 908866.4062 | AL159: 96823.89375 | AM159: 10.65325917
AC160: Equipos de Informatica | AD160: A/D -TUUA | AE160: =710000/FuenteMacro!E52 -> 184895.8333 | AF160: =297214/FuenteMacro!E52 -> 77399.47917 | AG160: 41.86112676 | AH160: =972000/FuenteMacro!F52 -> 259200 | AI160: =1020380/FuenteMacro!F52 -> 272101.3333 | AJ160: =+AI160/AH160*100 -> 104.9773663 | AK160: 444095.8333 | AL160: 349500.8125 | AM160: 78.69941266
AC161: Otras inversiones | AD161: TUUA | AF161: =(436379+159266)/FuenteMacro!E52 -> 155115.8854 | AI161: =123932/FuenteMacro!F52 -> 33048.53333 | AK161: 0 | AL161: 188164.4188
AC164: TOTAL | AE164: =SUM(AE158:AE163) -> 303208.8542 | AF164: =SUM(AF158:AF163) -> 278222.3958 | AG164: =+AF164/AE164*100 -> 91.75932431 | AH164: =SUM(AH158:AH163) -> 1139200 | AI164: =SUM(AI158:AI163) -> 384045.0667 | AJ164: =+AI164/AH164*100 -> 33.71182116 | AK164: =SUM(AK158:AK163) -> 1442408.854 | AL164: =SUM(AL158:AL163) -> 662267.4625 | AM164: =+AL164/AK164*100 -> 45.91399038
AC166: Gastos de capital no ligado a Proyectos TOTALES FINALES | AE166: =+AE164+AE151+AE111+AE56 -> 5304701.823 | AF166: =+AF164+AF151+AF111+AF56 -> 2222062.5 | AG166: =+AF166/AE166 -> 0.4188854669 | AH166: =+AH164+AH151+AH111+AH56 -> 10553869.6 | AI166: =+AI164+AI151+AI111+AI56 -> 1914795.2 | AJ166: =+AI166/AH166 -> 0.181430629 | AK166: =+AK164+AK151+AK111+AK56 -> 15858571.42 | AL166: =+AL164+AL151+AL111+AL56 -> 4136857.7 | AM166: =+AL166/AK166*100 -> 26.08594173

Sheet SupuestoDemanda
A1: Índice
B2: Incremento | C2: =FlujoDeCajaAeroportuario!$D$4 -> 0.07356822134
B3: VAN USD Reales 2024 | C3: =FlujoDeCajaAeroportuario!C102 -> 0
B4: Supuesto ejecución de inversiones | C4: =EjecucionInversiones!C62 -> 0.6219681167
B5: Supuesto WACC | C5: =+WACC!C17 -> 0.07187110583
B7: I. Supuestos Recuperación de la demanda
E8: Recuperación % | F8: Fuente
B9: A. Supuesto Demanda 2023
B10: Fuente Estadistica regulatoria CORPAC | F10: Declaración Estadística
B11: B. Supuesto TUUA Nacional y Mangas
B12: Supuesto de recuperación del 2024 | E12: 0.02
B13: Supuesto de recuperación del 2025 | E13: 0.02
B14: Supuesto de recuperación del 2026 | E14: 0.03
B15: Supuesto de recuperación del 2027 | E15: 0.03
B16: C. Supuesto A/D Nacional
B17: Ratio Pax Salida / TM | F17: Declaración Estadística
B24: II. Fuente Aterrizaje/Despegue Nacional
C25: Aterrizaje/Despegue Nacional | L25: Pasajeros Salida Nacional | U25: Ratio Pasajeros Salida/A-D
C26: 2019 | D26: 2020 | E26: 2021 | F26: 2022 | G26: 2023 | H26: 2024 | I26: 2025 | J26: 2026 | K26: 2027 | L26: 2019 | M26: 2020 | N26: 2021 | O26: 2022 | P26: 2023 | Q26: 2024 | R26: 2025 | S26: 2026 | T26: 2027 | U26: 2019 | V26: 2020 | W26: 2021 | X26: 2022 | Y26: 2023
B27: A. Cusco
B28: Hasta 10 TM (N° Operaciones) | C28: 3115 | D28: 1074 | E28: 2584 | F28: 3181 | G28: 1804 | H28: =+Q28/$Y$28 -> 2164.512739 | I28: =+R28/$Y$28 -> 2316.282378 | J28: =+S28/$Y$28 -> 2478.106157 | K28: =+T28/$Y$28 -> 2651.899151 | L28: 7875 | M28: 1483 | N28: 4662 | O28: 6444 | P28: 3768 | Q28: =INT(Demanda_G1!$I$8*$P$29) -> 4521 | R28: =INT(Demanda_G1!$J$8*$P$29) -> 4838 | S28: =INT(Demanda_G1!$K$8*$P$29) -> 5176 | T28: =INT(Demanda_G1!$L$8*$P$29) -> 5539 | U28: =+L28/C28 -> 2.528089888 | V28: =+M28/D28 -> 1.380819367 | W28: =+N28/E28 -> 1.804179567 | X28: =+O28/F28 -> 2.025778057 | Y28: =+P28/G28 -> 2.088691796
L29: =+L28/Demanda_G1!$D$8 -> 0.004149202694 | M29: =+M28/Demanda_G1!$E$8 -> 0.003044255635 | N29: =+N28/Demanda_G1!$F$8 -> 0.005976800476 | O29: =+O28/Demanda_G1!$G$8 -> 0.004399908233 | P29: =+P28/Demanda_G1!$H$8 -> 0.002499966826
B30: Más de 10 TM hasta 35 TM | C30: 3064.09 | D30: 446.37 | E30: 2999.98 | F30: 3311.1 | G30: 1513.78 | H30: =+Q30/$Y$30 -> 1816.536 | I30: =+R30/$Y$30 -> 1939.530625 | J30: =+S30/$Y$30 -> 2076.716938 | K30: =+T30/$Y$30 -> 2223.364375 | L30: 850 | M30: 44 | N30: 189 | O30: 784 | P30: 320 | Q30: =INT(Demanda_G1!$I$8*$P$31) -> 384 | R30: =INT(Demanda_G1!$J$8*$P$31) -> 410 | S30: =INT(Demanda_G1!$K$8*$P$31) -> 439 | T30: =INT(Demanda_G1!$L$8*$P$31) -> 470 | U30: =+L30/C30 -> 0.2774069952 | V30: =+M30/D30 -> 0.09857293277 | W30: =+N30/E30 -> 0.06300042 | X30: =+O30/F30 -> 0.2367793181 | Y30: =+P30/G30 -> 0.2113913515
L31: =+L30/Demanda_G1!$D$8 -> 0.0004478504496 | M31: =+M30/Demanda_G1!$E$8 -> 9.032181251e-05 | N31: =+N30/Demanda_G1!$F$8 -> 0.000242302722 | O31: =+O30/Demanda_G1!$G$8 -> 0.0005353085125 | P31: =+P30/Demanda_G1!$H$8 -> 0.0002123114078
B32: Más de 35 TM hasta 70 TM | C32: 500041.77 | D32: 68454.32 | E32: 68180.04 | F32: 110749.41 | G32: 251235.95 | H32: =+Q32/$Y$32 -> 301482.4602 | I32: =+R32/$Y$32 -> 322585.9945 | J32: =+S32/$Y$32 -> 345166.9008 | K32: =+T32/$Y$32 -> 369329.411 | L32: 404066 | M32: 49635 | N32: 54258 | O32: 89453 | P32: 221753 | Q32: =INT(Demanda_G1!$I$8*$P$33) -> 266103 | R32: =INT(Demanda_G1!$J$8*$P$33) -> 284730 | S32: =INT(Demanda_G1!$K$8*$P$33) -> 304661 | T32: =INT(Demanda_G1!$L$8*$P$33) -> 325988 | U32: =+L32/C32 -> 0.8080644943 | V32: =+M32/D32 -> 0.7250820693 | W32: =+N32/E32 -> 0.7958047546 | X32: =+O32/F32 -> 0.8077063345 | Y32: =+P32/G32 -> 0.882648363
L33: =+L32/Demanda_G1!$D$8 -> 0.2128954585 | M33: =+M32/Demanda_G1!$E$8 -> 0.1018891628 | N33: =+N32/Demanda_G1!$F$8 -> 0.06956011159 | O33: =+O32/Demanda_G1!$G$8 -> 0.06107774537 | P33: =+P32/Demanda_G1!$H$8 -> 0.1471271613
B34: Más de 70 TM hasta 105 TM | C34: 1694727.65 | D34: 495130.2 | E34: 785877.3 | F34: 1447977.95 | G34: 1327884.24 | H34: =+Q34/$Y$34 -> 1593461.088 | I34: =+R34/$Y$34 -> 1705002.149 | J34: =+S34/$Y$34 -> 1824351.891 | K34: =+T34/$Y$34 -> 1952056.031 | L34: 1485164 | M34: 435985 | N34: 686874 | O34: 1331844 | P34: 1267740 | Q34: =INT(Demanda_G1!I8*$P$35) -> 1521288 | R34: =INT(Demanda_G1!J8*$P$35) -> 1627777 | S34: =INT(Demanda_G1!K8*$P$35) -> 1741721 | T34: =INT(Demanda_G1!L8*$P$35) -> 1863641 | U34: =+L34/C34 -> 0.8763437594 | V34: =+M34/D34 -> 0.8805461675 | W34: =+N34/E34 -> 0.874021937 | X34: =+O34/F34 -> 0.9197957745 | Y34: =+P34/G34 -> 0.9547067145
L35: =+L34/Demanda_G1!$D$8 -> 0.7825074883 | M35: =+M34/Demanda_G1!$E$8 -> 0.8949762597 | N35: =+N34/Demanda_G1!$F$8 -> 0.8805896289 | O35: =+O34/Demanda_G1!$G$8 -> 0.9093717226 | P35: =+P34/Demanda_G1!$H$8 -> 0.8411114502
B36: Más de 105 TM | C36: 0 | D36: 0 | E36: 365 | F36: 0 | G36: 0 | H36: 0 | I36: 0 | J36: 0 | K36: 0 | L36: 0 | M36: 0 | N36: 160 | O36: =N36 -> 160 | P36: =O36 -> 160 | Q36: =INT(Demanda_G1!I8*$P$37) -> 192 | R36: =INT(Demanda_G1!J8*$P$37) -> 205 | S36: =INT(Demanda_G1!K8*$P$37) -> 219 | T36: =INT(Demanda_G1!L8*$P$37) -> 235 | W36: =+N36/E36 -> 0.4383561644 | X36: =IFERROR((O36/F36),0) -> 0 | Y36: =IFERROR((P36/G36),0) -> 0
L37: =+L36/Demanda_G1!$D$8 -> 0 | M37: =+M36/Demanda_G1!$E$8 -> 0 | N37: =+N36/Demanda_G1!$F$8 -> 0.0002051239975 | O37: =+O36/Demanda_G1!$G$8 -> 0.0001092466352 | P37: =+P36/Demanda_G1!$H$8 -> 0.0001061557039
B38: B. Nazca | L38: =L39+L41+L43 -> 97506 | M38: =M39+M41+M43 -> 15711 | N38: =N39+N41+N43 -> 21816 | O38: =+O39 -> 57913 | P38: =+P39 -> 48410 | Q38: =INT(P38*(1+Demanda_G3!I2)) -> 72615 | R38: =INT(Q38*(1+Demanda_G3!J2)) -> 77698 | S38: =INT(R38*(1+Demanda_G3!K2)) -> 83136 | T38: =INT(S38*(1+Demanda_G3!L2)) -> 88955
B39: Hasta 10 TM (N° Operaciones) | C39: 36187 | D39: 6660 | E39: 9986 | F39: 23208 | G39: 20242 | H39: =+Q39/$Y$39 -> 30363 | I39: =+R39/$Y$39 -> 32488.38909 | J39: =+S39/$Y$39 -> 34762.21673 | K39: =+T39/$Y$39 -> 37195.35447 | L39: 97506 | M39: 15711 | N39: 21816 | O39: 57913 | P39: 48410 | Q39: =+Q38*$P$40 -> 72615 | R39: =+R38*$P$40 -> 77698 | S39: =+S38*$P$40 -> 83136 | T39: =+T38*$P$40 -> 88955 | U39: =L39/C39 -> 2.694503551 | V39: =M39/D39 -> 2.359009009 | W39: =N39/E39 -> 2.184658522 | X39: =O39/F39 -> 2.495389521 | Y39: =P39/G39 -> 2.391562099
L40: =L39/L38 -> 1 | M40: =M39/M38 -> 1 | N40: =N39/N38 -> 1 | O40: =O39/O38 -> 1 | P40: =P39/P38 -> 1
B41: Más de 10 TM hasta 35 TM | C41: 25.2 | D41: 0 | E41: 0 | F41: 0 | G41: 0 | K41: 0 | L41: 0 | M41: 0 | N41: 0 | O41: =+O38*$N$42 -> 0 | P41: =+P38*O42 -> 0 | Q41: =+Q38*P42 -> 0 | R41: =+R38*Q42 -> 0 | S41: =+S38*R42 -> 0 | T41: =+T38*S42 -> 0 | U41: 0 | V41: 0 | W41: 0 | X41: 0 | Y41: 0
L42: =L41/L38 -> 0 | M42: =M41/M38 -> 0 | N42: =N41/N38 -> 0 | O42: =O41/O38 -> 0 | P42: =P41/P38 -> 0
B43: Más de 35 TM hasta 70 TM | C43: 0 | D43: 0 | E43: 0 | F43: 0 | G43: 0 | K43: 0 | L43: 0 | M43: 0 | N43: 0 | O43: =+O38*$N$44 -> 0 | P43: =+P38*O44 -> 0 | Q43: =+Q38*P44 -> 0 | R43: =+R38*Q44 -> 0 | S43: =+S38*R44 -> 0 | T43: =+T38*S44 -> 0 | U43: 0 | V43: 0 | W43: 0 | X43: 0 | Y43: 0
L44: =+L43/L38 -> 0 | M44: =+M43/M38 -> 0 | N44: =+N43/N38 -> 0 | O44: =+O43/O38 -> 0 | P44: =+P43/P38 -> 0
B45: C. Grupo V
B46: Hasta 10 TM (N° Operaciones) | C46: 7462 | D46: 5841 | E46: 8221 | F46: 7961 | G46: 6351 | H46: =+Q46/$Y$46 -> 6478.013039 | I46: =+R46/$Y$46 -> 6737.120567 | J46: =+S46/$Y$46 -> 7006.599821 | K46: =+T46/Y46 -> 7286.845251 | L46: 19140 | M46: 13884 | N46: 22788 | O46: 20835 | P46: 15318 | Q46: =Demanda_G5!I8*$P$47 -> 15624.34321 | R46: =Demanda_G5!J8*$P$47 -> 16249.2856 | S46: =Demanda_G5!K8*$P$47 -> 16899.24359 | T46: =Demanda_G5!L8*$P$47 -> 17575.16857 | U46: =L46/C46 -> 2.56499598 | V46: =M46/D46 -> 2.376990241 | W46: =N46/E46 -> 2.771925557 | X46: =O46/F46 -> 2.617133526 | Y46: =P46/G46 -> 2.411903637
L47: =+L46/Demanda_G5!$D$8 -> 0.05794240876 | M47: =+M46/Demanda_G5!$E$8 -> 0.1126545714 | N47: =+N46/Demanda_G5!$F$8 -> 0.09025272188 | O47: =+O46/Demanda_G5!$G$8 -> 0.06652659946 | P47: =+P46/Demanda_G5!$H$8 -> 0.05596331951
B48: Más de 10 TM hasta 35 TM | C48: 44828.34 | D48: 21930.14 | E48: 62926.21 | F48: 87032.5 | G48: 90651.44 | H48: =+Q48/$Y$48 -> 92464.36944 | I48: =+R48/$Y$48 -> 96162.75876 | J48: =+S48/$Y$48 -> 100009.1896 | K48: =+T48/Y48 -> 104009.2923 | L48: 33926 | M48: 17449 | N48: 63854 | O48: 105441 | P48: 105726 | Q48: =Demanda_G5!I8*$P$49 -> 107840.4041 | R48: =Demanda_G5!J8*$P$49 -> 112153.804 | S48: =Demanda_G5!K8*$P$49 -> 116639.8634 | T48: =Demanda_G5!L8*$P$49 -> 121305.149 | U48: =L48/C48 -> 0.7567980434 | V48: =M48/D48 -> 0.7956629552 | W48: =N48/E48 -> 1.014744095 | X48: =O48/F48 -> 1.211512941 | Y48: =P48/G48 -> 1.166291457
L49: =+L48/Demanda_G5!$D$8 -> 0.1027039791 | M49: =+M48/Demanda_G5!$E$8 -> 0.1415809289 | N49: =+N48/Demanda_G5!$F$8 -> 0.2528961428 | O49: =+O48/Demanda_G5!$G$8 -> 0.3366753623 | P49: =+P48/Demanda_G5!$H$8 -> 0.3862630839
B50: Más de 35 TM hasta 70 TM | C50: 160256.86 | D50: 47045.44 | E50: 67726.65984 | F50: 100820 | G50: 103600 | H50: =+Q50/$Y$50 -> 105671.8865 | I50: =+R50/$Y$50 -> 109898.55 | J50: =+S50/$Y$50 -> 114294.4011 | K50: =+T50/Y50 -> 118865.8744 | L50: 121266 | M50: 36215 | N50: 52983 | O50: 81885 | P50: 85428 | Q50: =(Demanda_G5!I8)*$P$51 -> 87136.46637 | R50: =(Demanda_G5!J8)*$P$51 -> 90621.75024 | S50: =(Demanda_G5!K8)*$P$51 -> 94246.54535 | T50: =(Demanda_G5!L8)*$P$51 -> 98016.15748 | U50: =L50/C50 -> 0.7566977164 | V50: =M50/D50 -> 0.7697876776 | W50: =N50/E50 -> 0.7823064082 | X50: =O50/F50 -> 0.8121900417 | Y50: =P50/G50 -> 0.8245945946
L51: =+L50/Demanda_G5!$D$8 -> 0.3671078443 | M51: =+M50/Demanda_G5!$E$8 -> 0.2938479764 | N51: =+N50/Demanda_G5!$F$8 -> 0.2098411429 | O51: =+O50/Demanda_G5!$G$8 -> 0.2614605518 | P51: =+P50/Demanda_G5!$H$8 -> 0.3121056573
B52: Más de 70 TM hasta 105 TM | C52: 179241 | D52: 68725.2 | E52: 170955.8 | F52: 110239.2 | G52: 77821.6 | H52: =+Q52/$Y$52 -> 79377.94671 | I52: =+R52/$Y$52 -> 82552.90536 | J52: =+S52/$Y$52 -> 85854.95333 | K52: =+T52/Y52 -> 89288.92402 | L52: 155996 | M52: 55696 | N52: 107804 | O52: 94475 | P52: 66337 | Q52: =(Demanda_G5!I8)*$P$53 -> 67663.66729 | R52: =(Demanda_G5!J8)*$P$53 -> 70370.07826 | S52: =(Demanda_G5!K8)*$P$53 -> 73184.82323 | T52: =(Demanda_G5!L8)*$P$53 -> 76112.02227 | U52: =L52/C52 -> 0.8703142696 | V52: =M52/D52 -> 0.8104159755 | W52: =N52/E52 -> 0.6305957446 | X52: =O52/F52 -> 0.8570000508 | Y52: =P52/G52 -> 0.8524240057
L53: =+L52/Demanda_G5!$D$8 -> 0.4722457678 | M53: =+M52/Demanda_G5!$E$8 -> 0.4519165233 | N53: =+N52/Demanda_G5!$F$8 -> 0.4269617531 | O53: =+O52/Demanda_G5!$G$8 -> 0.3016606904 | P53: =+P52/Demanda_G5!$H$8 -> 0.242357927
B55: III. Fuente Mangas 2021
B57: Mangas | C57: 2019 | D57: 2020 | E57: 2021 | F57: 2022 | G57: 2023
B58: Total | C58: =+SUM(C59:C70) -> 13071 | D58: =+SUM(D59:D70) -> 2431 | E58: =+SUM(E59:E70) -> 4677 | F58: =+SUM(F59:F70) -> 9220 | G58: =+SUM(G59:G70) -> 9808
B59: ene | C59: 1067 | D59: 879 | E59: 21 | F59: 675 | G59: 760
B60: feb | C60: 954 | D60: 920 | E60: 25 | F60: 523 | G60: 544
B61: mar | C61: 982 | D61: 584 | E61: 33 | F61: 588 | G61: 586
B62: abr | C62: 1088 | D62: 28 | E62: 114 | F62: 605 | G62: 736
B63: may | C63: 1168 | D63: 1 | E63: 284 | F63: 636 | G63: 800
B64: jun | C64: 1095 | D64: 0 | E64: 250 | F64: 782 | G64: 775
B65: jul | C65: 1189 | D65: 0 | E65: 428 | F65: 600 | G65: 930
B66: ago | C66: 1225 | D66: 0 | E66: 520 | F66: 974 | G66: 990
B67: set | C67: 1159 | D67: 0 | E67: 626 | F67: 937 | G67: 890
B68: oct | C68: 998 | D68: 0 | E68: 991 | F68: 994 | G68: 915
B69: nov | C69: 1073 | D69: 0 | E69: 675 | F69: 1008 | G69: 934
B70: dic | C70: 1073 | D70: 19 | E70: 710 | F70: 898 | G70: 948
B73: IV. Supuesto Horas de Estacionamiento
C75: naves que usan el serv. de estac. en % - 2019 | E75: Operaciones
C76: 1:30-2:30 | D76: >2:30 | E76: 2019 | F76: 2020 | G76: 2021 | H76: 2022 | I76: 2023 | J76: 2024 | K76: 2025 | L76: 2026 | M76: 2027
B77: A. Cusco
B78: Nacional
B79: Hasta 10 TM | C79: 0.1286756941 | D79: 0.2506799745 | E79: 3115 | F79: 1074 | G79: 2584 | H79: 3181 | I79: 1804 | J79: =I79*((Demanda_G1!I12/Demanda_G1!H12)) -> 2164.512739 | K79: =J79*((Demanda_G1!J12/Demanda_G1!I12)) -> 2316.282378 | L79: =K79*((Demanda_G1!K12/Demanda_G1!J12)) -> 2478.106157 | M79: =L79*((Demanda_G1!L12/Demanda_G1!K12)) -> 2651.899151
B80: Más de 10 TM hasta 35 TM | C80: 0.1296799981 | D80: 0.2506799745 | E80: 201 | F80: 31 | G80: 222 | H80: 237 | I80: 111 | J80: =I80*((Demanda_G1!I13/Demanda_G1!H13)) -> 133.2 | K80: =J80*((Demanda_G1!J13/Demanda_G1!I13)) -> 142.21875 | L80: =K80*((Demanda_G1!K13/Demanda_G1!J13)) -> 152.278125 | M80: =L80*((Demanda_G1!L13/Demanda_G1!K13)) -> 163.03125
B81: Más de 35 TM hasta 70 TM | C81: 0.1290148003 | D81: 0.2543824561 | E81: 7726 | F81: 980 | G81: 976 | H81: 1587 | I81: 3595 | J81: =I81*((Demanda_G1!I14/Demanda_G1!H14)) -> 4313.990273 | K81: =J81*((Demanda_G1!J14/Demanda_G1!I14)) -> 4615.966188 | L81: =K81*((Demanda_G1!K14/Demanda_G1!J14)) -> 4939.0822 | M81: =L81*((Demanda_G1!L14/Demanda_G1!K14)) -> 5284.829788
B82: Más de 70 TM hasta 105 TM | C82: 0.1287028778 | D82: 0.2561851556 | E82: 22199 | F82: 6474 | G82: 10258 | H82: 18910 | I82: 17352 | J82: =I82*((Demanda_G1!I15/Demanda_G1!H15)) -> 20822.4 | K82: =J82*((Demanda_G1!J15/Demanda_G1!I15)) -> 22279.95212 | L82: =K82*((Demanda_G1!K15/Demanda_G1!J15)) -> 23839.54343 | M82: =L82*((Demanda_G1!L15/Demanda_G1!K15)) -> 25508.30504
B83: Internacional
B84: Hasta 10 TM | C84: 0.1687025015 | D84: 0.3287898834 | E84: 41 | F84: 8 | G84: 4 | H84: 35 | I84: 20 | J84: =I84*((Demanda_G1!I19/Demanda_G1!H19)) -> 24 | K84: =J84*((Demanda_G1!J19/Demanda_G1!I19)) -> 25 | L84: =K84*((Demanda_G1!K19/Demanda_G1!J19)) -> 26 | M84: =L84*((Demanda_G1!L19/Demanda_G1!K19)) -> 27
B85: Más de 10 TM hasta 35 TM | C85: 0.1289935539 | D85: 0.2545052463 | E85: 785 | F85: 27 | G85: 3 | H85: 43 | I85: 35 | J85: =I85*((Demanda_G1!I20/Demanda_G1!H20)) -> 41.98784722 | K85: =J85*((Demanda_G1!J20/Demanda_G1!I20)) -> 44.47916667 | L85: =K85*((Demanda_G1!K20/Demanda_G1!J20)) -> 47.09201389 | M85: =L85*((Demanda_G1!L20/Demanda_G1!K20)) -> 49.88715278
B86: Más de 35 TM hasta 70 TM | C86: 0.2549283987 | D86: 0.4987911475 | E86: 416 | F86: 294 | G86: 8 | H86: 133 | I86: 31 | J86: =I86*((Demanda_G1!I21/Demanda_G1!H21)) -> 37.2 | K86: =J86*((Demanda_G1!J21/Demanda_G1!I21)) -> 39.41788618 | L86: =K86*((Demanda_G1!K21/Demanda_G1!J21)) -> 41.7701897 | M86: =L86*((Demanda_G1!L21/Demanda_G1!K21)) -> 44.27371274
B87: Más de 70 TM hasta 105 TM | C87: 0.1852177144 | D87: 0.08191737324 | E87: 875 | F87: 1813 | G87: 0 | H87: 29 | I87: 213 | J87: =I87*((Demanda_G1!I22/Demanda_G1!H22)) -> 1128.894801 | K87: =J87*((Demanda_G1!J22/Demanda_G1!I22)) -> 1196.62381 | L87: =K87*((Demanda_G1!K22/Demanda_G1!J22)) -> 1268.420979 | M87: =L87*((Demanda_G1!L22/Demanda_G1!K22)) -> 1344.520259
B88: B. Nazca
B89: Nacional
B90: Hasta 10 TM | C90: 0.128657578 | D90: 0.2564469578 | E90: 36187 | F90: 6660 | G90: 9986 | H90: 23208 | I90: 20242 | J90: =I90*((Demanda_G3!I9/Demanda_G3!H9)) -> 30363 | K90: =J90*((Demanda_G3!J9/Demanda_G3!I9)) -> 32488.38909 | L90: =K90*((Demanda_G3!K9/Demanda_G3!J9)) -> 34762.21673 | M90: =L90*((Demanda_G3!L9/Demanda_G3!K9)) -> 37195.35447
B91: C. Grupo V
B92: Nacional
B93: Hasta 10 TM | C93: 0.1286696548 | D93: 0.2563771619 | E93: 7462 | F93: 5841 | G93: 8221 | H93: 7961 | I93: 6351 | J93: =I93*((Demanda_G5!I12/Demanda_G5!H12)) -> 6478.013039 | K93: =J93*((Demanda_G5!J12/Demanda_G5!I12)) -> 6737.120567 | L93: =K93*((Demanda_G5!K12/Demanda_G5!J12)) -> 7006.599821 | M93: =L93*((Demanda_G5!L12/Demanda_G5!K12)) -> 7286.845251
B94: Más de 10 TM hasta 35 TM | C94: 0.1303861885 | D94: 0.2464567678 | E94: 2274 | F94: 1352 | G94: 3212 | H94: 4120 | I94: 4459 | J94: =I94*((Demanda_G5!I13/Demanda_G5!H13)) -> 4548.197189 | K94: =J94*((Demanda_G5!J13/Demanda_G5!I13)) -> 4730.115953 | L94: =K94*((Demanda_G5!K13/Demanda_G5!J13)) -> 4919.316682 | M94: =L94*((Demanda_G5!L13/Demanda_G5!K13)) -> 5116.076316
B95: Más de 35 TM hasta 70 TM | C95: 0.1290542767 | D95: 0.2541543097 | E95: 2498 | F95: 674 | G95: 959 | H95: 1441 | I95: 1480 | J95: =I95*((Demanda_G5!I14/Demanda_G5!H14)) -> 1509.598378 | K95: =J95*((Demanda_G5!J14/Demanda_G5!I14)) -> 1569.979285 | L95: =K95*((Demanda_G5!K14/Demanda_G5!J14)) -> 1632.777159 | M95: =L95*((Demanda_G5!L14/Demanda_G5!K14)) -> 1698.083919
B96: Más de 70 TM hasta 105 TM | C96: 0.1288541079 | D96: 0.2553111487 | E96: 2359 | F96: 899 | G96: 2235 | H96: 1441 | I96: 1011 | J96: =I96*((Demanda_G5!I15/Demanda_G5!H15)) -> 1031.226843 | K96: =J96*((Demanda_G5!J15/Demanda_G5!I15)) -> 1072.473848 | L96: =K96*((Demanda_G5!K15/Demanda_G5!J15)) -> 1115.371915 | M96: =L96*((Demanda_G5!L15/Demanda_G5!K15)) -> 1159.983837
I97: *Para la proyeccion utilizar la tasa de crecimiento de la demanda de aterrizaje y despegue

Sheet Demanda_G1
A1: Índice | B1: Proyecciones de Demanda Cusco
I2: 0.2 | J2: 0.07 | K2: 0.07 | L2: 0.07 | M2: Pasajeros nacional
I3: 4.3 | J3: 0.06 | K3: 0.06 | L3: 0.06 | M3: Pasajeros internacional
I4: 0.2 | J4: 0.06 | K4: 0.06 | L4: 0.06 | M4: Aeronaves internacional
B6: Servicio | C6: Unidad de cobro | D6: 2019 | E6: 2020 | F6: 2021 | G6: 2022 | H6: 2023 | I6: 2024 | J6: 2025 | K6: 2026 | L6: 2027
B8: TUUA Nacional | C8: Pasajero | D8: =INT(FuenteDemanda!F55) -> 1897955 | E8: =INT(FuenteDemanda!G55) -> 487147 | F8: =INT(FuenteDemanda!H55) -> 780016 | G8: =INT(FuenteDemanda!I55) -> 1464576 | H8: =INT(FuenteDemanda!J55) -> 1507220 | I8: =INT(H8*(1+I$2)) -> 1808664 | J8: =INT(I8*(1+J$2)) -> 1935270 | K8: =INT(J8*(1+K$2)) -> 2070738 | L8: =INT(K8*(1+L$2)) -> 2215689
B9: TUUA Internacional | C9: Pasajero | D9: =INT(FuenteDemanda!F56) -> 71530 | E9: =INT(FuenteDemanda!G56) -> 22558 | F9: =INT(FuenteDemanda!H56) -> 30 | G9: =INT(FuenteDemanda!I56) -> 8187 | H9: =INT(FuenteDemanda!J56) -> 12061 | I9: =INT(H9*(1+I$3)) -> 63923 | J9: =INT(I9*(1+J$3)) -> 67758 | K9: =INT(J9*(1+K$3)) -> 71823 | L9: =INT(K9*(1+L$3)) -> 76132
B11: Aterrizaje y despegue nacional
B12: Hasta 10 t | C12: Operación | D12: =+SupuestoDemanda!C28 -> 3115 | E12: =+SupuestoDemanda!D28 -> 1074 | F12: =+SupuestoDemanda!E28 -> 2584 | G12: =+SupuestoDemanda!F28 -> 3181 | H12: =+SupuestoDemanda!G28 -> 1804 | I12: =+SupuestoDemanda!H28 -> 2164.512739 | J12: =+SupuestoDemanda!I28 -> 2316.282378 | K12: =+SupuestoDemanda!J28 -> 2478.106157 | L12: =+SupuestoDemanda!K28 -> 2651.899151
B13: Más de 10 t hasta 35 t | C13: t | D13: =+SupuestoDemanda!C30 -> 3064.09 | E13: =+SupuestoDemanda!D30 -> 446.37 | F13: =+SupuestoDemanda!E30 -> 2999.98 | G13: =+SupuestoDemanda!F30 -> 3311.1 | H13: =+SupuestoDemanda!G30 -> 1513.78 | I13: =+SupuestoDemanda!H30 -> 1816.536 | J13: =+SupuestoDemanda!I30 -> 1939.530625 | K13: =+SupuestoDemanda!J30 -> 2076.716938 | L13: =+SupuestoDemanda!K30 -> 2223.364375
B14: Más de 35 t hasta 70 t | C14: t | D14: =+SupuestoDemanda!C32 -> 500041.77 | E14: =+SupuestoDemanda!D32 -> 68454.32 | F14: =+SupuestoDemanda!E32 -> 68180.04 | G14: =+SupuestoDemanda!F32 -> 110749.41 | H14: =+SupuestoDemanda!G32 -> 251235.95 | I14: =+SupuestoDemanda!H32 -> 301482.4602 | J14: =+SupuestoDemanda!I32 -> 322585.9945 | K14: =+SupuestoDemanda!J32 -> 345166.9008 | L14: =+SupuestoDemanda!K32 -> 369329.411
B15: Más de 70 t hasta 105 t | C15: t | D15: =INT(FuenteDemanda!F21) -> 1694727 | E15: =+SupuestoDemanda!D34 -> 495130.2 | F15: =+SupuestoDemanda!E34 -> 785877.3 | G15: =+SupuestoDemanda!F34 -> 1447977.95 | H15: =+SupuestoDemanda!G34 -> 1327884.24 | I15: =+SupuestoDemanda!H34 -> 1593461.088 | J15: =+SupuestoDemanda!I34 -> 1705002.149 | K15: =+SupuestoDemanda!J34 -> 1824351.891 | L15: =+SupuestoDemanda!K34 -> 1952056.031
B16: Más de 105 t | C16: t | D16: =INT(FuenteDemanda!F22) -> 0 | E16: =INT(FuenteDemanda!G22) -> 0 | F16: =INT(FuenteDemanda!H22) -> 364 | G16: =INT(FuenteDemanda!I22) -> 0 | H16: =INT(FuenteDemanda!J22) -> 0 | I16: =+SupuestoDemanda!H36 -> 0 | J16: =+SupuestoDemanda!I36 -> 0 | K16: =+SupuestoDemanda!J36 -> 0 | L16: =+SupuestoDemanda!K36 -> 0
B18: Aterrizaje y despegue Internacional
B19: Hasta 10 t | C19: Operación | D19: =INT(FuenteDemanda!F25) -> 41 | E19: =INT(FuenteDemanda!G25) -> 8 | F19: =INT(FuenteDemanda!H25) -> 4 | G19: =INT(FuenteDemanda!I25) -> 35 | H19: =INT(FuenteDemanda!J25) -> 20 | I19: =INT(H19*(1+I$4)) -> 24 | J19: =INT(I19*(1+J4)) -> 25 | K19: =INT(J19*(1+K$4)) -> 26 | L19: 27
B20: Más de 10 t hasta 35 t | C20: t | D20: =INT(FuenteDemanda!F26) -> 18702 | E20: =INT(FuenteDemanda!G26) -> 337 | F20: =INT(FuenteDemanda!H26) -> 62 | G20: =INT(FuenteDemanda!I26) -> 872 | H20: =INT(FuenteDemanda!J26) -> 576 | I20: =INT(H20*(1+I$4)) -> 691 | J20: =INT(I20*(1+J$4)) -> 732 | K20: 775 | L20: 821
B21: Más de 35 t hasta 70 t | C21: t | D21: =INT(FuenteDemanda!F27) -> 28401 | E21: =INT(FuenteDemanda!G27) -> 10350 | F21: =INT(FuenteDemanda!H27) -> 342 | G21: =INT(FuenteDemanda!I27) -> 8939 | H21: =INT(FuenteDemanda!J27) -> 1845 | I21: =INT(H21*(1+I$4)) -> 2214 | J21: =INT(I21*(1+J$4)) -> 2346 | K21: 2486 | L21: 2635
B22: Más de 70 t hasta 105 t | C22: t | D22: =INT(FuenteDemanda!F28) -> 66586 | E22: =INT(FuenteDemanda!G28) -> 23437 | F22: =INT(FuenteDemanda!H28) -> 0 | G22: =INT(FuenteDemanda!I28) -> 2233 | H22: =INT(FuenteDemanda!J28) -> 16388 | I22: =INT(H22*(1+I$3)) -> 86856 | J22: =INT(I22*(1+J$3)) -> 92067 | K22: =INT(J22*(1+K$3)) -> 97591 | L22: =INT(K22*(1+L$3)) -> 103446
B23: Más de 105 t | C23: t | D23: =INT(FuenteDemanda!F29) -> 0 | E23: =INT(FuenteDemanda!G29) -> 0 | F23: =INT(FuenteDemanda!H29) -> 0 | G23: =INT(FuenteDemanda!I29) -> 0 | H23: =INT(FuenteDemanda!J29) -> 0 | I23: =INT(H23*(1+I$4)) -> 0 | J23: =INT(I23*(1+J$4)) -> 0 | K23: =INT(J23*(1+K$4)) -> 0 | L23: =INT(K23*(1+L$4)) -> 0
B25: Estacionamiento nacional
B26: Hasta 10 t | C26: Operación | D26: =+SupuestoDemanda!E79*SupuestoDemanda!$C$79+SupuestoDemanda!E79*SupuestoDemanda!$D$79*2 -> 1962.561028 | E26: =+SupuestoDemanda!F79*SupuestoDemanda!$C$79+SupuestoDemanda!F79*SupuestoDemanda!$D$79*2 -> 676.6582806 | F26: =+SupuestoDemanda!G79*SupuestoDemanda!$C$79+SupuestoDemanda!G79*SupuestoDemanda!$D$79*2 -> 1628.012101 | G26: =+SupuestoDemanda!H79*SupuestoDemanda!$C$79+SupuestoDemanda!H79*SupuestoDemanda!$D$79*2 -> 2004.14338 | H26: =+SupuestoDemanda!I79*SupuestoDemanda!$C$79+SupuestoDemanda!I79*SupuestoDemanda!$D$79*2 -> 1136.5843 | I26: =+SupuestoDemanda!J79*SupuestoDemanda!$C$79+SupuestoDemanda!J79*SupuestoDemanda!$D$79*2 -> 1363.720175 | J26: =+SupuestoDemanda!K79*SupuestoDemanda!$C$79+SupuestoDemanda!K79*SupuestoDemanda!$D$79*2 -> 1459.340457 | K26: =+SupuestoDemanda!L79*SupuestoDemanda!$C$79+SupuestoDemanda!L79*SupuestoDemanda!$D$79*2 -> 1561.295206 | L26: =+SupuestoDemanda!M79*SupuestoDemanda!$C$79+SupuestoDemanda!M79*SupuestoDemanda!$D$79*2 -> 1670.790987
B27: Más de 10 t hasta 35 t | C27: t | D27: =+SupuestoDemanda!E80*SupuestoDemanda!$C$79+SupuestoDemanda!E80*SupuestoDemanda!$D$80*2 -> 126.6371642 | E27: =+SupuestoDemanda!F80*SupuestoDemanda!$C$79+SupuestoDemanda!F80*SupuestoDemanda!$D$80*2 -> 19.53110493 | F27: =+SupuestoDemanda!G80*SupuestoDemanda!$C$79+SupuestoDemanda!G80*SupuestoDemanda!$D$80*2 -> 139.8679127 | G27: =+SupuestoDemanda!H80*SupuestoDemanda!$C$79+SupuestoDemanda!H80*SupuestoDemanda!$D$80*2 -> 149.3184474 | H27: =+SupuestoDemanda!I80*SupuestoDemanda!$C$79+SupuestoDemanda!I80*SupuestoDemanda!$D$80*2 -> 69.93395637 | I27: =+SupuestoDemanda!J80*SupuestoDemanda!$C$79+SupuestoDemanda!J80*SupuestoDemanda!$D$80*2 -> 83.92074765 | J27: =+SupuestoDemanda!K80*SupuestoDemanda!$C$79+SupuestoDemanda!K80*SupuestoDemanda!$D$80*2 -> 89.6028816 | K27: =+SupuestoDemanda!L80*SupuestoDemanda!$C$79+SupuestoDemanda!L80*SupuestoDemanda!$D$80*2 -> 95.9406464 | L27: =+SupuestoDemanda!M80*SupuestoDemanda!$C$79+SupuestoDemanda!M80*SupuestoDemanda!$D$80*2 -> 102.7154984
B28: Más de 35 t hasta 70 t | C28: t | D28: =+SupuestoDemanda!E81*SupuestoDemanda!$C$81+SupuestoDemanda!E81*SupuestoDemanda!$D$81*2 -> 4927.486058 | E28: =+SupuestoDemanda!F81*SupuestoDemanda!$C$81+SupuestoDemanda!F81*SupuestoDemanda!$D$81*2 -> 625.0241182 | F28: =+SupuestoDemanda!G81*SupuestoDemanda!$C$81+SupuestoDemanda!G81*SupuestoDemanda!$D$81*2 -> 622.4729994 | G28: =+SupuestoDemanda!H81*SupuestoDemanda!$C$81+SupuestoDemanda!H81*SupuestoDemanda!$D$81*2 -> 1012.156404 | H28: =+SupuestoDemanda!I81*SupuestoDemanda!$C$81+SupuestoDemanda!I81*SupuestoDemanda!$D$81*2 -> 2292.818066 | I28: =+SupuestoDemanda!J81*SupuestoDemanda!$C$81+SupuestoDemanda!J81*SupuestoDemanda!$D$81*2 -> 2751.375476 | J28: =+SupuestoDemanda!K81*SupuestoDemanda!$C$81+SupuestoDemanda!K81*SupuestoDemanda!$D$81*2 -> 2943.969588 | K28: =+SupuestoDemanda!L81*SupuestoDemanda!$C$81+SupuestoDemanda!L81*SupuestoDemanda!$D$81*2 -> 3150.046425 | L28: =+SupuestoDemanda!M81*SupuestoDemanda!$C$81+SupuestoDemanda!M81*SupuestoDemanda!$D$81*2 -> 3370.557223
B29: Más de 70 t hasta 105 t | C29: t | D29: =+SupuestoDemanda!E82*SupuestoDemanda!$C$82+SupuestoDemanda!E82*SupuestoDemanda!$D$82*2 -> 14231.18372 | E29: =+SupuestoDemanda!F82*SupuestoDemanda!$C$82+SupuestoDemanda!F82*SupuestoDemanda!$D$82*2 -> 4150.307826 | F29: =+SupuestoDemanda!G82*SupuestoDemanda!$C$82+SupuestoDemanda!G82*SupuestoDemanda!$D$82*2 -> 6576.128773 | G29: =+SupuestoDemanda!H82*SupuestoDemanda!$C$82+SupuestoDemanda!H82*SupuestoDemanda!$D$82*2 -> 12122.694 | H29: =+SupuestoDemanda!I82*SupuestoDemanda!$C$82+SupuestoDemanda!I82*SupuestoDemanda!$D$82*2 -> 11123.90198 | I29: =+SupuestoDemanda!J82*SupuestoDemanda!$C$82+SupuestoDemanda!J82*SupuestoDemanda!$D$82*2 -> 13348.68237 | J29: =+SupuestoDemanda!K82*SupuestoDemanda!$C$82+SupuestoDemanda!K82*SupuestoDemanda!$D$82*2 -> 14283.07996 | K29: =+SupuestoDemanda!L82*SupuestoDemanda!$C$82+SupuestoDemanda!L82*SupuestoDemanda!$D$82*2 -> 15282.89213 | L29: =+SupuestoDemanda!M82*SupuestoDemanda!$C$82+SupuestoDemanda!M82*SupuestoDemanda!$D$82*2 -> 16352.69046
B30: Más de 105 t | C30: t | D30: =+SupuestoDemanda!E83*SupuestoDemanda!C83+SupuestoDemanda!$E$83*SupuestoDemanda!$D$83*2 -> 0 | E30: =+SupuestoDemanda!F83*SupuestoDemanda!D83+SupuestoDemanda!$E$83*SupuestoDemanda!$D$83*2 -> 0 | F30: =+SupuestoDemanda!G83*SupuestoDemanda!E83+SupuestoDemanda!$E$83*SupuestoDemanda!$D$83*2 -> 0 | G30: =+SupuestoDemanda!H83*SupuestoDemanda!F83+SupuestoDemanda!$E$83*SupuestoDemanda!$D$83*2 -> 0 | H30: =+SupuestoDemanda!I83*SupuestoDemanda!G83+SupuestoDemanda!$E$83*SupuestoDemanda!$D$83*2 -> 0 | I30: =+SupuestoDemanda!J83*SupuestoDemanda!H83+SupuestoDemanda!$E$83*SupuestoDemanda!$D$83*2 -> 0 | J30: =+SupuestoDemanda!K83*SupuestoDemanda!I83+SupuestoDemanda!$E$83*SupuestoDemanda!$D$83*2 -> 0 | K30: =+SupuestoDemanda!L83*SupuestoDemanda!J83+SupuestoDemanda!$E$83*SupuestoDemanda!$D$83*2 -> 0 | L30: =+SupuestoDemanda!M83*SupuestoDemanda!K83+SupuestoDemanda!$E$83*SupuestoDemanda!$D$83*2 -> 0
B32: Estacionamiento internacional
B33: Hasta 10 t | C33: Operación | D33: =+SupuestoDemanda!E84*SupuestoDemanda!$C$84+SupuestoDemanda!E84*SupuestoDemanda!$D$84*2 -> 33.877573 | E33: =+SupuestoDemanda!F84*SupuestoDemanda!$C$84+SupuestoDemanda!F84*SupuestoDemanda!$D$84*2 -> 6.610258146 | F33: =+SupuestoDemanda!G84*SupuestoDemanda!$C$84+SupuestoDemanda!G84*SupuestoDemanda!$D$84*2 -> 3.305129073 | G33: =+SupuestoDemanda!H84*SupuestoDemanda!$C$84+SupuestoDemanda!H84*SupuestoDemanda!$D$84*2 -> 28.91987939 | H33: =+SupuestoDemanda!I84*SupuestoDemanda!$C$84+SupuestoDemanda!I84*SupuestoDemanda!$D$84*2 -> 16.52564536 | I33: =+SupuestoDemanda!J84*SupuestoDemanda!$C$84+SupuestoDemanda!J84*SupuestoDemanda!$D$84*2 -> 19.83077444 | J33: =+SupuestoDemanda!K84*SupuestoDemanda!$C$84+SupuestoDemanda!K84*SupuestoDemanda!$D$84*2 -> 20.65705671 | K33: =+SupuestoDemanda!L84*SupuestoDemanda!$C$84+SupuestoDemanda!L84*SupuestoDemanda!$D$84*2 -> 21.48333897 | L33: =+SupuestoDemanda!M84*SupuestoDemanda!$C$84+SupuestoDemanda!M84*SupuestoDemanda!$D$84*2 -> 22.30962124
B34: Más de 10 t hasta 35 t | C34: t | D34: =+SupuestoDemanda!E85*SupuestoDemanda!$C$85+SupuestoDemanda!E85*SupuestoDemanda!$D$85*2 -> 500.8331765 | E34: =+SupuestoDemanda!F85*SupuestoDemanda!$C$85+SupuestoDemanda!F85*SupuestoDemanda!$D$85*2 -> 17.22610926 | F34: =+SupuestoDemanda!G85*SupuestoDemanda!$C$85+SupuestoDemanda!G85*SupuestoDemanda!$D$85*2 -> 1.914012139 | G34: =+SupuestoDemanda!H85*SupuestoDemanda!$C$85+SupuestoDemanda!H85*SupuestoDemanda!$D$85*2 -> 27.434174 | H34: =+SupuestoDemanda!I85*SupuestoDemanda!$C$85+SupuestoDemanda!I85*SupuestoDemanda!$D$85*2 -> 22.33014163 | I34: =+SupuestoDemanda!J85*SupuestoDemanda!$C$85+SupuestoDemanda!J85*SupuestoDemanda!$D$85*2 -> 26.78841643 | J34: =+SupuestoDemanda!K85*SupuestoDemanda!$C$85+SupuestoDemanda!K85*SupuestoDemanda!$D$85*2 -> 28.37788832 | K34: =+SupuestoDemanda!L85*SupuestoDemanda!$C$85+SupuestoDemanda!L85*SupuestoDemanda!$D$85*2 -> 30.04489542 | L34: =+SupuestoDemanda!M85*SupuestoDemanda!$C$85+SupuestoDemanda!M85*SupuestoDemanda!$D$85*2 -> 31.82820534
B35: Más de 35 t hasta 70 t | C35: t | D35: =+SupuestoDemanda!E86*SupuestoDemanda!$C$86+SupuestoDemanda!E86*SupuestoDemanda!$D$86*2 -> 521.0444486 | E35: =+SupuestoDemanda!F86*SupuestoDemanda!$C$86+SupuestoDemanda!F86*SupuestoDemanda!$D$86*2 -> 368.2381439 | F35: =+SupuestoDemanda!G86*SupuestoDemanda!$C$86+SupuestoDemanda!G86*SupuestoDemanda!$D$86*2 -> 10.02008555 | G35: =+SupuestoDemanda!H86*SupuestoDemanda!$C$86+SupuestoDemanda!H86*SupuestoDemanda!$D$86*2 -> 166.5839223 | H35: =+SupuestoDemanda!I86*SupuestoDemanda!$C$86+SupuestoDemanda!I86*SupuestoDemanda!$D$86*2 -> 38.8278315 | I35: =+SupuestoDemanda!J86*SupuestoDemanda!$C$86+SupuestoDemanda!J86*SupuestoDemanda!$D$86*2 -> 46.59339781 | J35: =+SupuestoDemanda!K86*SupuestoDemanda!$C$86+SupuestoDemanda!K86*SupuestoDemanda!$D$86*2 -> 49.37132396 | K35: =+SupuestoDemanda!L86*SupuestoDemanda!$C$86+SupuestoDemanda!L86*SupuestoDemanda!$D$86*2 -> 52.31760928 | L35: =+SupuestoDemanda!M86*SupuestoDemanda!$C$86+SupuestoDemanda!M86*SupuestoDemanda!$D$86*2 -> 55.45329865
B36: Más de 70 t hasta 105 t | C36: t | D36: =+SupuestoDemanda!E87*SupuestoDemanda!$C$87+SupuestoDemanda!E87*SupuestoDemanda!$D$87*2 -> 305.4209033 | E36: =+SupuestoDemanda!F87*SupuestoDemanda!$C$87+SupuestoDemanda!F87*SupuestoDemanda!$D$87*2 -> 632.8321116 | F36: =+SupuestoDemanda!G87*SupuestoDemanda!$C$87+SupuestoDemanda!G87*SupuestoDemanda!$D$87*2 -> 0 | G36: =+SupuestoDemanda!H87*SupuestoDemanda!$C$87+SupuestoDemanda!H87*SupuestoDemanda!$D$87*2 -> 10.12252137 | H36: =+SupuestoDemanda!I87*SupuestoDemanda!$C$87+SupuestoDemanda!I87*SupuestoDemanda!$D$87*2 -> 74.34817417 | I36: =+SupuestoDemanda!J87*SupuestoDemanda!$C$87+SupuestoDemanda!J87*SupuestoDemanda!$D$87*2 -> 394.0435084 | J36: =+SupuestoDemanda!K87*SupuestoDemanda!$C$87+SupuestoDemanda!K87*SupuestoDemanda!$D$87*2 -> 417.6844857 | K36: =+SupuestoDemanda!L87*SupuestoDemanda!$C$87+SupuestoDemanda!L87*SupuestoDemanda!$D$87*2 -> 442.7454641 | L36: =+SupuestoDemanda!M87*SupuestoDemanda!$C$87+SupuestoDemanda!M87*SupuestoDemanda!$D$87*2 -> 469.308105
B37: Más de 105 t | C37: t | D37: =+SupuestoDemanda!E88*SupuestoDemanda!$C$88+SupuestoDemanda!E88*SupuestoDemanda!$D$88*2 -> 0 | E37: =+SupuestoDemanda!F88*SupuestoDemanda!$C$88+SupuestoDemanda!F88*SupuestoDemanda!$D$88*2 -> 0 | F37: =+SupuestoDemanda!G88*SupuestoDemanda!$C$88+SupuestoDemanda!G88*SupuestoDemanda!$D$88*2 -> 0 | G37: =+SupuestoDemanda!H88*SupuestoDemanda!$C$88+SupuestoDemanda!H88*SupuestoDemanda!$D$88*2 -> 0 | H37: =+SupuestoDemanda!I88*SupuestoDemanda!$C$88+SupuestoDemanda!I88*SupuestoDemanda!$D$88*2 -> 0 | I37: =+SupuestoDemanda!J88*SupuestoDemanda!$C$88+SupuestoDemanda!J88*SupuestoDemanda!$D$88*2 -> 0 | J37: =+SupuestoDemanda!K88*SupuestoDemanda!$C$88+SupuestoDemanda!K88*SupuestoDemanda!$D$88*2 -> 0 | K37: =+SupuestoDemanda!L88*SupuestoDemanda!$C$88+SupuestoDemanda!L88*SupuestoDemanda!$D$88*2 -> 0 | L37: =+SupuestoDemanda!M88*SupuestoDemanda!$C$88+SupuestoDemanda!M88*SupuestoDemanda!$D$88*2 -> 0
B39: Uso de Mangas | C39: h | D39: =INT(FuenteDemanda!F65) -> 13004 | E39: =INT(FuenteDemanda!G65) -> 2431 | F39: =+SupuestoDemanda!E58 -> 4677 | G39: =+SupuestoDemanda!F58 -> 9220 | H39: =+SupuestoDemanda!G58 -> 9808 | I39: =INT(H39*(1+I$2)) -> 11769 | J39: =INT(I39*(1+J$2)) -> 12592 | K39: =INT(J39*(1+K$2)) -> 13473 | L39: =INT(K39*(1+L$2)) -> 14416

Sheet Demanda_G3
A1: Índice | B1: Proyecciones de Demanda Nazca
I2: 0.5 | J2: 0.07 | K2: 0.07 | L2: 0.07 | M2: Pasajeros nacional
B6: Servicio | C6: Unidad de cobro | D6: 2019 | E6: 2020 | F6: 2021 | G6: 2022 | H6: 2023 | I6: 2024 | J6: 2025 | K6: 2026 | L6: 2027
B8: Aterrizaje y despegue nacional
B9: Hasta 10 t | C9: Operación | D9: =INT(FuenteDemanda!F33) -> 36187 | E9: =INT(FuenteDemanda!G33) -> 6660 | F9: =SupuestoDemanda!E39 -> 9986 | G9: =SupuestoDemanda!F39 -> 23208 | H9: =SupuestoDemanda!G39 -> 20242 | I9: =SupuestoDemanda!H39 -> 30363 | J9: =SupuestoDemanda!I39 -> 32488.38909 | K9: =SupuestoDemanda!J39 -> 34762.21673 | L9: =SupuestoDemanda!K39 -> 37195.35447
B10: Más de 10 t hasta 35 t | C10: t | D10: =INT(FuenteDemanda!F34) -> 25 | E10: =INT(FuenteDemanda!G34) -> 0 | F10: =INT(0) -> 0 | G10: =SupuestoDemanda!F41 -> 0 | H10: =SupuestoDemanda!G41 -> 0 | I10: =INT(0) -> 0 | J10: =INT(0) -> 0 | K10: =INT(0) -> 0 | L10: =INT(0) -> 0
B11: Más de 35 t hasta 70 t | C11: t | D11: =INT(FuenteDemanda!F35) -> 0 | E11: =INT(FuenteDemanda!G35) -> 0 | F11: =INT(0) -> 0 | G11: 0 | H11: 0 | I11: 0 | J11: 0 | K11: 0 | L11: 0
B12: Más de 70 t hasta 105 t | C12: t | D12: =INT(FuenteDemanda!F36) -> 0 | E12: =INT(FuenteDemanda!G36) -> 0 | F12: 0 | G12: 0 | H12: 0 | I12: 0 | J12: 0 | K12: 0 | L12: 0
B13: Más de 105 t | C13: t | D13: =INT(FuenteDemanda!F37) -> 0 | E13: =INT(FuenteDemanda!G37) -> 0 | F13: 0 | G13: 0 | H13: 0 | I13: 0 | J13: 0 | K13: 0 | L13: 0
B15: Aterrizaje y despegue Internacional
B16: Hasta 10 t | C16: Operación | D16: 0 | E16: 0 | F16: =INT(0) -> 0 | G16: =INT(0) -> 0 | H16: 0 | I16: =$H$16*I$4 -> 0 | J16: =$H$16*J$4 -> 0 | K16: =$H$16*K$4 -> 0 | L16: =$H$16*L$4 -> 0
B17: Más de 10 t hasta 35 t | C17: t | D17: 0 | E17: 0 | F17: =INT(0) -> 0 | G17: 0 | H17: 0 | I17: =$H$16*I$4 -> 0 | J17: 0 | K17: 0 | L17: 0
B18: Más de 35 t hasta 70 t | C18: t | D18: 0 | E18: 0 | F18: =INT(0) -> 0 | G18: 0 | H18: 0 | I18: 0 | J18: 0 | K18: 0 | L18: 0
B19: Más de 70 t hasta 105 t | C19: t | D19: 0 | E19: 0 | F19: =INT(0) -> 0 | G19: 0 | H19: 0 | I19: 0 | J19: 0 | K19: 0 | L19: 0
B20: Más de 105 t | C20: t | D20: 0 | E20: 0 | F20: =INT(0) -> 0 | G20: 0 | H20: 0 | I20: 0 | J20: 0 | K20: 0 | L20: 0
B22: Estacionamiento nacional
B23: Hasta 10 t | C23: Operación | D23: =+SupuestoDemanda!E90*SupuestoDemanda!$C$90+SupuestoDemanda!E90*SupuestoDemanda!$D$90*2 -> 23215.8239 | E23: =+SupuestoDemanda!F90*SupuestoDemanda!$C$90+SupuestoDemanda!F90*SupuestoDemanda!$D$90*2 -> 4272.732947 | F23: =+SupuestoDemanda!G90*SupuestoDemanda!$C$90+SupuestoDemanda!G90*SupuestoDemanda!$D$90*2 -> 6406.533214 | G23: =+SupuestoDemanda!H90*SupuestoDemanda!$C$90+SupuestoDemanda!H90*SupuestoDemanda!$D$90*2 -> 14889.12706 | H23: =+SupuestoDemanda!I90*SupuestoDemanda!$C$90+SupuestoDemanda!I90*SupuestoDemanda!$D$90*2 -> 12986.28533 | I23: =+SupuestoDemanda!J90*SupuestoDemanda!$C$90+SupuestoDemanda!J90*SupuestoDemanda!$D$90*2 -> 19479.428 | J23: =+SupuestoDemanda!K90*SupuestoDemanda!$C$90+SupuestoDemanda!K90*SupuestoDemanda!$D$90*2 -> 20842.97455 | K23: =+SupuestoDemanda!L90*SupuestoDemanda!$C$90+SupuestoDemanda!L90*SupuestoDemanda!$D$90*2 -> 22301.75206 | L23: =+SupuestoDemanda!M90*SupuestoDemanda!$C$90+SupuestoDemanda!M90*SupuestoDemanda!$D$90*2 -> 23862.73521
B24: Más de 10 t hasta 35 t | C24: t | D24: 0 | E24: 0 | F24: =INT(0) -> 0 | G24: =INT(0) -> 0 | H24: 0 | I24: 0 | J24: 0 | K24: 0 | L24: 0
B25: Más de 35 t hasta 70 t | C25: t | D25: 0 | E25: 0 | F25: =INT(0) -> 0 | G25: 0 | H25: 0 | I25: 0 | J25: 0 | K25: 0 | L25: 0
B26: Más de 70 t hasta 105 t | C26: t | D26: 0 | E26: 0 | F26: =INT(0) -> 0 | G26: 0 | H26: 0 | I26: 0 | J26: 0 | K26: 0 | L26: 0
B27: Más de 105 t | C27: t | D27: 0 | E27: 0 | F27: =INT(0) -> 0 | G27: 0 | H27: 0 | I27: 0 | J27: 0 | K27: 0 | L27: 0
B29: Estacionamiento internacional
B30: Hasta 10 t | C30: Operación | D30: =D16 -> 0 | E30: 0 | F30: =E30*F$4 -> 0 | G30: 0 | H30: 0 | I30: =$D$30*I$4 -> 0 | J30: =$D$30*J$4 -> 0 | K30: =$D$30*K$4 -> 0 | L30: =$D$30*L$4 -> 0
B31: Más de 10 t hasta 35 t | C31: t | D31: 0 | E31: 0 | F31: 0 | G31: 0 | H31: 0 | I31: =$D$31*I$4 -> 0 | J31: =$D$31*J$4 -> 0 | K31: =$D$31*K$4 -> 0 | L31: =$D$31*L$4 -> 0
B32: Más de 35 t hasta 70 t | C32: t | D32: 0 | E32: 0 | F32: 0 | G32: 0 | H32: 0 | I32: =$D$32*I$4 -> 0 | J32: =$D$32*J$4 -> 0 | K32: =$D$32*K$4 -> 0 | L32: =$D$32*L$4 -> 0
B33: Más de 70 t hasta 105 t | C33: t | D33: 0 | E33: 0 | F33: 0 | G33: 0 | H33: 0 | I33: =$D$33*I$4 -> 0 | J33: =$D$33*J$4 -> 0 | K33: =$D$33*K$4 -> 0 | L33: =$D$33*L$4 -> 0
B34: Más de 105 t | C34: t | D34: 0 | E34: 0 | F34: 0 | G34: 0 | H34: 0 | I34: =$D$34*I$4 -> 0 | J34: =$D$34*J$4 -> 0 | K34: =$D$34*K$4 -> 0 | L34: =$D$34*L$4 -> 0
B36: Uso de Mangas | C36: h | D36: 0 | E36: 0 | F36: 0 | G36: 0 | H36: 0 | I36: =$D$36*I2 -> 0 | J36: =$D$36*J2 -> 0 | K36: =$D$36*K2 -> 0 | L36: =$D$36*L2 -> 0

Sheet Demanda_G5
A1: Índice | B1: Proyecciones de Demanda Grupo V
I2: 0.02 | J2: 0.04 | K2: 0.04 | L2: 0.04 | M2: Pasajeros nacional
B6: Servicio | C6: Unidad de cobro | D6: 2019 | E6: 2020 | F6: 2021 | G6: 2022 | H6: 2023 | I6: 2024 | J6: 2025 | K6: 2026 | L6: 2027
B8: TUUA Nacional | C8: Pasajero | D8: =INT(FuenteDemanda!F53) -> 330328 | E8: =INT(FuenteDemanda!G53) -> 123244 | F8: =INT(FuenteDemanda!H53) -> 252491 | G8: =INT(FuenteDemanda!I53) -> 313183 | H8: =INT(FuenteDemanda!J53) -> 273715 | I8: =INT(H8*(1+I$2)) -> 279189 | J8: =INT(I8*(1+J$2)) -> 290356 | K8: =INT(J8*(1+K$2)) -> 301970 | L8: =INT(K8*(1+L$2)) -> 314048
B9: TUUA Internacional | C9: Pasajero | D9: =INT(0) -> 0 | E9: =INT(0) -> 0 | F9: =INT(0) -> 0 | G9: =INT(0) -> 0 | H9: =INT(0) -> 0 | I9: =INT(D9*I$3) -> 0 | J9: =INT(D9*J$3) -> 0 | K9: =INT(D9*K$3) -> 0
B11: Aterrizaje y despegue nacional
B12: Hasta 10 t | C12: Operación | D12: =INT(FuenteDemanda!F10) -> 7462 | E12: =INT(FuenteDemanda!G10) -> 5841 | F12: =INT(FuenteDemanda!H10) -> 8221 | G12: =INT(FuenteDemanda!I10) -> 7961 | H12: =INT(FuenteDemanda!J10) -> 6351 | I12: =+SupuestoDemanda!H46 -> 6478.013039 | J12: =+SupuestoDemanda!I46 -> 6737.120567 | K12: =+SupuestoDemanda!J46 -> 7006.599821 | L12: =+SupuestoDemanda!K46 -> 7286.845251
B13: Más de 10 t hasta 35 t | C13: t | D13: =INT(FuenteDemanda!F11) -> 44828 | E13: =INT(FuenteDemanda!G11) -> 21930 | F13: =INT(FuenteDemanda!H11) -> 62926 | G13: =INT(FuenteDemanda!I11) -> 87032 | H13: =INT(FuenteDemanda!J11) -> 90651 | I13: =+SupuestoDemanda!H48 -> 92464.36944 | J13: =+SupuestoDemanda!I48 -> 96162.75876 | K13: =+SupuestoDemanda!J48 -> 100009.1896 | L13: =+SupuestoDemanda!K48 -> 104009.2923
B14: Más de 35 t hasta 70 t | C14: t | D14: =INT(FuenteDemanda!F12) -> 160256 | E14: =INT(FuenteDemanda!G12) -> 47045 | F14: =INT(FuenteDemanda!H12) -> 67130 | G14: =INT(FuenteDemanda!I12) -> 100820 | H14: =INT(FuenteDemanda!J12) -> 103600 | I14: =+SupuestoDemanda!H50 -> 105671.8865 | J14: =+SupuestoDemanda!I50 -> 109898.55 | K14: =+SupuestoDemanda!J50 -> 114294.4011 | L14: =+SupuestoDemanda!K50 -> 118865.8744
B15: Más de 70 t hasta 105 t | C15: t | D15: =INT(FuenteDemanda!F13) -> 179241 | E15: =INT(FuenteDemanda!G13) -> 68725 | F15: =INT(FuenteDemanda!H13) -> 170955 | G15: =INT(FuenteDemanda!I13) -> 110239 | H15: =INT(FuenteDemanda!J13) -> 77821 | I15: =+SupuestoDemanda!H52 -> 79377.94671 | J15: =+SupuestoDemanda!I52 -> 82552.90536 | K15: =+SupuestoDemanda!J52 -> 85854.95333 | L15: =+SupuestoDemanda!K52 -> 89288.92402
B16: Más de 105 t | C16: t | D16: =INT(FuenteDemanda!F14) -> 0 | E16: =INT(FuenteDemanda!G14) -> 0 | F16: =INT(FuenteDemanda!H14) -> 0 | G16: =INT(FuenteDemanda!I14) -> 0 | H16: =INT(FuenteDemanda!J14) -> 0 | I16: =+SupuestoDemanda!F54 -> 0 | J16: =+SupuestoDemanda!G54 -> 0 | K16: =+SupuestoDemanda!H54 -> 0 | L16: =+SupuestoDemanda!I54 -> 0
B18: Aterrizaje y despegue Internacional
B19: Hasta 10 t | C19: Operación | D19: 0 | E19: 0 | F19: =INT(0) -> 0 | G19: =INT(0) -> 0 | H19: 0 | I19: =$D$19*I$4 -> 0 | J19: =$D$19*J$4 -> 0 | K19: =$D$19*K$4 -> 0 | L19: =$D$19*L$4 -> 0
B20: Más de 10 t hasta 35 t | C20: t | D20: 0 | E20: 0 | F20: =INT(0) -> 0 | G20: 0 | H20: 0 | I20: =$D$20*I$4 -> 0 | J20: =$D$20*J$4 -> 0 | K20: =$D$20*K$4 -> 0 | L20: =$D$20*L$4 -> 0
B21: Más de 35 t hasta 70 t | C21: t | D21: 0 | E21: 0 | F21: =INT(0) -> 0 | G21: 0 | H21: 0 | I21: =$D$21*I$4 -> 0 | J21: =$D$21*J$4 -> 0 | K21: =$D$21*K$4 -> 0 | L21: =$D$21*L$4 -> 0
B22: Más de 70 t hasta 105 t | C22: t | D22: 0 | E22: 0 | F22: =INT(0) -> 0 | G22: 0 | H22: 0 | I22: =$D$22*I$4 -> 0 | J22: =$D$22*J$4 -> 0 | K22: =$D$22*K$4 -> 0 | L22: =$D$22*L$4 -> 0
B23: Más de 105 t | C23: t | D23: 0 | E23: 0 | F23: =INT(0) -> 0 | G23: 0 | H23: 0 | I23: =$D$23*I$4 -> 0 | J23: =$D$23*J$4 -> 0 | K23: =$D$23*K$4 -> 0 | L23: =$D$23*L$4 -> 0
B25: Estacionamiento nacional
B26: Hasta 10 t | C26: Operación | D26: =+SupuestoDemanda!E93*SupuestoDemanda!$C$93+SupuestoDemanda!E93*SupuestoDemanda!$D$93*2 -> 4786.305728 | E26: =+SupuestoDemanda!F93*SupuestoDemanda!$C$93+SupuestoDemanda!F93*SupuestoDemanda!$D$93*2 -> 3746.557459 | F26: =+SupuestoDemanda!G93*SupuestoDemanda!$C$93+SupuestoDemanda!G93*SupuestoDemanda!$D$93*2 -> 5273.146528 | G26: =+SupuestoDemanda!H93*SupuestoDemanda!$C$93+SupuestoDemanda!H93*SupuestoDemanda!$D$93*2 -> 5106.376294 | H26: =+SupuestoDemanda!I93*SupuestoDemanda!$C$93+SupuestoDemanda!I93*SupuestoDemanda!$D$93*2 -> 4073.683688 | I26: =+SupuestoDemanda!J93*SupuestoDemanda!$C$93+SupuestoDemanda!J93*SupuestoDemanda!$D$93*2 -> 4155.152897 | J26: =+SupuestoDemanda!K93*SupuestoDemanda!$C$93+SupuestoDemanda!K93*SupuestoDemanda!$D$93*2 -> 4321.350678 | K26: =+SupuestoDemanda!L93*SupuestoDemanda!$C$93+SupuestoDemanda!L93*SupuestoDemanda!$D$93*2 -> 4494.201134 | L26: =+SupuestoDemanda!M93*SupuestoDemanda!$C$93+SupuestoDemanda!M93*SupuestoDemanda!$D$93*2 -> 4673.957273
B27: Más de 10 t hasta 35 t | C27: t | D27: =+SupuestoDemanda!E94*SupuestoDemanda!$C$94+SupuestoDemanda!E94*SupuestoDemanda!$D$94*2 -> 1417.383573 | E27: =+SupuestoDemanda!F94*SupuestoDemanda!$C$94+SupuestoDemanda!F94*SupuestoDemanda!$D$94*2 -> 842.7012271 | F27: =+SupuestoDemanda!G94*SupuestoDemanda!$C$94+SupuestoDemanda!G94*SupuestoDemanda!$D$94*2 -> 2002.038714 | G27: =+SupuestoDemanda!H94*SupuestoDemanda!$C$94+SupuestoDemanda!H94*SupuestoDemanda!$D$94*2 -> 2567.994864 | H27: =+SupuestoDemanda!I94*SupuestoDemanda!$C$94+SupuestoDemanda!I94*SupuestoDemanda!$D$94*2 -> 2779.29347 | I27: =+SupuestoDemanda!J94*SupuestoDemanda!$C$93+SupuestoDemanda!J94*SupuestoDemanda!$D$93*2 -> 2917.322736 | J27: =+SupuestoDemanda!K94*SupuestoDemanda!$C$93+SupuestoDemanda!K94*SupuestoDemanda!$D$93*2 -> 3034.009794 | K27: =+SupuestoDemanda!L94*SupuestoDemanda!$C$93+SupuestoDemanda!L94*SupuestoDemanda!$D$93*2 -> 3155.367678 | L27: =+SupuestoDemanda!M94*SupuestoDemanda!$C$93+SupuestoDemanda!M94*SupuestoDemanda!$D$93*2 -> 3281.574026
B28: Más de 35 t hasta 70 t | C28: t | D28: =+SupuestoDemanda!E95*SupuestoDemanda!$C$95+SupuestoDemanda!E95*SupuestoDemanda!$D$95*2 -> 1592.132514 | E28: =+SupuestoDemanda!F95*SupuestoDemanda!$C$95+SupuestoDemanda!F95*SupuestoDemanda!$D$95*2 -> 429.5825919 | F28: =+SupuestoDemanda!G95*SupuestoDemanda!$C$95+SupuestoDemanda!G95*SupuestoDemanda!$D$95*2 -> 611.2310173 | G28: =+SupuestoDemanda!H95*SupuestoDemanda!$C$95+SupuestoDemanda!H95*SupuestoDemanda!$D$95*2 -> 918.4399332 | H28: =+SupuestoDemanda!I95*SupuestoDemanda!$C$95+SupuestoDemanda!I95*SupuestoDemanda!$D$95*2 -> 943.2970861 | I28: =+SupuestoDemanda!J95*SupuestoDemanda!$C$93+SupuestoDemanda!J95*SupuestoDemanda!$D$93*2 -> 968.2925976 | J28: =+SupuestoDemanda!K95*SupuestoDemanda!$C$93+SupuestoDemanda!K95*SupuestoDemanda!$D$93*2 -> 1007.022359 | K28: =+SupuestoDemanda!L95*SupuestoDemanda!$C$93+SupuestoDemanda!L95*SupuestoDemanda!$D$93*2 -> 1047.302421 | L28: =+SupuestoDemanda!M95*SupuestoDemanda!$C$93+SupuestoDemanda!M95*SupuestoDemanda!$D$93*2 -> 1089.191744
B29: Más de 70 t hasta 105 t | C29: t | D29: =+SupuestoDemanda!E96*SupuestoDemanda!$C$96+SupuestoDemanda!E96*SupuestoDemanda!$D$96*2 -> 1508.52484 | E29: =+SupuestoDemanda!F96*SupuestoDemanda!$C$96+SupuestoDemanda!F96*SupuestoDemanda!$D$96*2 -> 574.8892884 | F29: =+SupuestoDemanda!G96*SupuestoDemanda!$C$96+SupuestoDemanda!G96*SupuestoDemanda!$D$96*2 -> 1429.229766 | G29: =+SupuestoDemanda!H96*SupuestoDemanda!$C$96+SupuestoDemanda!H96*SupuestoDemanda!$D$96*2 -> 921.4855001 | H29: =+SupuestoDemanda!I96*SupuestoDemanda!$C$96+SupuestoDemanda!I96*SupuestoDemanda!$D$96*2 -> 646.5106458 | I29: =+SupuestoDemanda!J96*SupuestoDemanda!$C$93+SupuestoDemanda!J96*SupuestoDemanda!$D$93*2 -> 661.4536242 | J29: =+SupuestoDemanda!K96*SupuestoDemanda!$C$93+SupuestoDemanda!K96*SupuestoDemanda!$D$93*2 -> 687.9104424 | K29: =+SupuestoDemanda!L96*SupuestoDemanda!$C$93+SupuestoDemanda!L96*SupuestoDemanda!$D$93*2 -> 715.4262915 | L29: =+SupuestoDemanda!M96*SupuestoDemanda!$C$93+SupuestoDemanda!M96*SupuestoDemanda!$D$93*2 -> 744.0414478
B30: Más de 105 t | C30: t | D30: =+SupuestoDemanda!E97*SupuestoDemanda!$C$97+SupuestoDemanda!E97*SupuestoDemanda!$D$97*2 -> 0 | E30: =+SupuestoDemanda!F97*SupuestoDemanda!$C$97+SupuestoDemanda!F97*SupuestoDemanda!$D$97*2 -> 0 | F30: =+SupuestoDemanda!G97*SupuestoDemanda!$C$97+SupuestoDemanda!G97*SupuestoDemanda!$D$97*2 -> 0 | G30: =+SupuestoDemanda!H97*SupuestoDemanda!$C$97+SupuestoDemanda!H97*SupuestoDemanda!$D$97*2 -> 0 | H30: 0 | I30: =+SupuestoDemanda!H97*SupuestoDemanda!$C$97+SupuestoDemanda!H97*SupuestoDemanda!$D$97*2 -> 0 | J30: 0 | K30: =+SupuestoDemanda!J97*SupuestoDemanda!$C$97+SupuestoDemanda!J97*SupuestoDemanda!$D$97*2 -> 0 | L30: =+SupuestoDemanda!K97*SupuestoDemanda!$C$97+SupuestoDemanda!K97*SupuestoDemanda!$D$97*2 -> 0
B32: Estacionamiento internacional
B33: Hasta 10 t | C33: Operación | D33: 0 | E33: 0 | F33: =INT(0) -> 0 | G33: =INT(0) -> 0 | H33: 0 | I33: =$D$33*I$4 -> 0 | J33: =$D$33*J$4 -> 0 | K33: =$D$33*K$4 -> 0 | L33: =$D$33*L$4 -> 0
B34: Más de 10 t hasta 35 t | C34: t | D34: 0 | E34: 0 | F34: =INT(0) -> 0 | G34: 0 | H34: 0 | I34: =$D$34*I$4 -> 0 | J34: =$D$34*J$4 -> 0 | K34: =$D$34*K$4 -> 0 | L34: =$D$34*L$4 -> 0
B35: Más de 35 t hasta 70 t | C35: t | D35: 0 | E35: 0 | F35: =INT(0) -> 0 | G35: 0 | H35: 0 | I35: =$D$35*I$4 -> 0 | J35: =$D$35*J$4 -> 0 | K35: =$D$35*K$4 -> 0 | L35: =$D$35*L$4 -> 0
B36: Más de 70 t hasta 105 t | C36: t | D36: 0 | E36: 0 | F36: =INT(0) -> 0 | G36: 0 | H36: 0 | I36: =$D$36*I$4 -> 0 | J36: =$D$36*J$4 -> 0 | K36: =$D$36*K$4 -> 0 | L36: =$D$36*L$4 -> 0
B37: Más de 105 t | C37: t | D37: 0 | E37: 0 | F37: =INT(0) -> 0 | G37: 0 | H37: 0 | I37: =$D$37*I$4 -> 0 | J37: =$D$37*J$4 -> 0 | K37: =$D$37*K$4 -> 0 | L37: =$D$37*L$4 -> 0
B39: Uso de Mangas | C39: h | D39: 0 | E39: 0 | F39: =INT(0) -> 0 | G39: =INT(0) -> 0 | H39: =INT(0) -> 0 | I39: =$D$39*I2 -> 0 | J39: =$D$39*J2 -> 0 | K39: =$D$39*K2 -> 0 | L39: =$D$39*L2 -> 0

Sheet Tarifas_G1
A1: Índice | B1: Tarifas Cusco
J3: Incremento
J4: =FlujoDeCajaAeroportuario!$D$4 -> 0.07356822134
D6: Tarifa Vigente | J6: Tarifa Propuesta CORPAC
B7: Servicios aeroportuarios | C7: Moneda / Unidad | D7: 2019 | E7: 2020 | F7: 2021 | G7: 2022 | H7: 2023 | I7: 2024 | J7: 2024 | K7: 2025 | L7: 2026 | M7: 2027
B9: TUUA Nacional | C9: USD/Pasajero | D9: 3.6 | E9: 3.6 | F9: 3.6 | G9: 4.76 | H9: 5 | I9: 5.17 | J9: =I9*(1+$J$4) -> 5.550347704 | K9: =J9 -> 5.550347704 | L9: 5.550347704 | M9: 5.550347704
B10: TUUA Internacional | C10: USD/Pasajero | D10: 10 | E10: 10 | F10: 10 | G10: 13.23 | H10: 13.89 | I10: 14.37 | J10: =I10*(1+$J$4) -> 15.42717534 | K10: 15.42717534 | L10: 15.42717534 | M10: 15.42717534
B12: Aterrizaje y despegue nacional
B13: Hasta 10 t | C13: USD/Operación | D13: 8 | E13: 8 | F13: 8 | G13: 10.59 | H13: 11.12 | I13: 11.51 | J13: =I13*(1+$J$4) -> 12.35677023 | K13: =J13 -> 12.35677023 | L13: 12.35677023 | M13: 12.35677023
B14: Más de 10 t hasta 35 t | C14: USD/t | D14: 1.73 | E14: 1.73 | F14: 1.73 | G14: 2.29 | H14: 2.4 | I14: 2.48 | J14: =I14*(1+$J$4) -> 2.662449189 | K14: 2.662449189 | L14: 2.662449189 | M14: 2.662449189
B15: Más de 35 t hasta 70 t | C15: USD/t | D15: 2.16 | E15: 2.16 | F15: 2.16 | G15: 2.86 | H15: 3 | I15: 3.1 | J15: =I15*(1+$J$4) -> 3.328061486 | K15: 3.328061486 | L15: 3.328061486 | M15: 3.328061486
B16: Más de 70 t hasta 105 t | C16: USD/t | D16: 2.25 | E16: 2.25 | F16: 2.25 | G16: 2.98 | H16: 3.13 | I16: 3.24 | J16: =I16*(1+$J$4) -> 3.478361037 | K16: 3.478361037 | L16: 3.478361037 | M16: 3.478361037
B17: Más de 105 t | C17: USD/t | D17: 2.31 | E17: 2.31 | F17: 2.31 | G17: 3.06 | H17: 3.21 | I17: 3.32 | J17: =I17*(1+$J$4) -> 3.564246495 | K17: 3.564246495 | L17: 3.564246495 | M17: 3.564246495
B19: Aterrizaje y despegue Internacional
B20: Hasta 10 t | C20: USD/Operación | D20: 16 | E20: 16 | F20: 16 | G20: 21.17 | H20: 22.23 | I20: 23 | J20: =I20*(1+$J$4) -> 24.69206909 | K20: =J20 -> 24.69206909 | L20: 24.69206909 | M20: 24.69206909
B21: Más de 10 t hasta 35 t | C21: USD/t | D21: 2.97 | E21: 2.97 | F21: 2.97 | G21: 3.93 | H21: 4.13 | I21: 4.27 | J21: =I21*(1+$J$4) -> 4.584136305 | K21: 4.584136305 | L21: 4.584136305 | M21: 4.584136305
B22: Más de 35 t hasta 70 t | C22: USD/t | D22: 3.6 | E22: 3.6 | F22: 3.6 | G22: 4.76 | H22: 5 | I22: 5.17 | J22: =I22*(1+$J$4) -> 5.550347704 | K22: 5.550347704 | L22: 5.550347704 | M22: 5.550347704
B23: Más de 70 t hasta 105 t | C23: USD/t | D23: 3.79 | E23: 3.79 | F23: 3.79 | G23: 5.02 | H23: 5.27 | I23: 5.45 | J23: =I23*(1+$J$4) -> 5.850946806 | K23: 5.850946806 | L23: 5.850946806 | M23: 5.850946806
B24: Más de 105 t | C24: USD/t | D24: 3.88 | E24: 3.88 | F24: 3.88 | G24: 5.13 | H24: 5.39 | I24: 5.58 | J24: =I24*(1+$J$4) -> 5.990510675 | K24: 5.990510675 | L24: 5.990510675 | M24: 5.990510675
B26: Estacionamiento nacional | D26: 0.025 | E26: 0.025 | F26: 0.025 | J26: 0.025 | K26: 0.025 | L26: 0.025 | M26: 0.025
B27: Hasta 10 t | C27: USD/h | D27: =D$26*D13 -> 0.2 | E27: =E$26*E13 -> 0.2 | F27: =F$26*F13 -> 0.2 | G27: 0.26 | H27: 0.27 | I27: 0.28 | J27: =I27*(1+$J$4) -> 0.300599102 | K27: =J27 -> 0.300599102 | L27: 0.300599102 | M27: 0.300599102
B28: Más de 10 t hasta 35 t | C28: USD/h | D28: =D$26*D14 -> 0.04325 | E28: 0.04325 | F28: =F$26*F14 -> 0.04325 | G28: 0.06 | H28: 0.06 | I28: 0.06 | J28: =I28*(1+$J$4) -> 0.06441409328 | K28: 0.06441409328 | L28: 0.06441409328 | M28: 0.06441409328
B29: Más de 35 t hasta 70 t | C29: USD/h | D29: 0.054 | E29: 0.054 | F29: =F$26*F15 -> 0.054 | G29: 0.07 | H29: 0.07 | I29: 0.07 | J29: =I29*(1+$J$4) -> 0.07514977549 | K29: 0.07514977549 | L29: 0.07514977549 | M29: 0.07514977549
B30: Más de 70 t hasta 105 t | C30: USD/h | D30: 0.05625 | E30: 0.05625 | F30: =F$26*F16 -> 0.05625 | G30: 0.07 | H30: 0.07 | I30: 0.07 | J30: =I30*(1+$J$4) -> 0.07514977549 | K30: 0.07514977549 | L30: 0.07514977549 | M30: 0.07514977549
B31: Más de 105 t | C31: USD/h | D31: 0.05775 | E31: 0.05775 | F31: =F$26*F17 -> 0.05775 | G31: 0.08 | H31: 0.08 | I31: 0.08 | J31: =I31*(1+$J$4) -> 0.08588545771 | K31: 0.08588545771 | L31: 0.08588545771 | M31: 0.08588545771
B33: Estacionamiento internacional | D33: =$D$26 -> 0.025 | E33: 0.025 | F33: 0.025 | J33: 0.025 | K33: 0.025 | L33: 0.025 | M33: 0.025
B34: Hasta 10 t | C34: USD/h | D34: =D$33*D20 -> 0.4 | E34: =E$33*E20 -> 0.4 | F34: =F$33*F20 -> 0.4 | G34: 0.53 | H34: 0.56 | I34: 0.58 | J34: =I34*(1+$J$4) -> 0.6226695684 | K34: =J34 -> 0.6226695684 | L34: 0.6226695684 | M34: 0.6226695684
B35: Más de 10 t hasta 35 t | C35: USD/h | D35: =D$33*D21 -> 0.07425 | E35: 0.07425 | F35: =F$33*F21 -> 0.07425 | G35: 0.1 | H35: 0.1 | I35: 0.1 | J35: =I35*(1+$J$4) -> 0.1073568221 | K35: 0.1073568221 | L35: 0.1073568221 | M35: 0.1073568221
B36: Más de 35 t hasta 70 t | C36: USD/h | D36: 0.09 | E36: 0.09 | F36: =F$33*F22 -> 0.09 | G36: 0.12 | H36: 0.13 | I36: 0.13 | J36: =I36*(1+$J$4) -> 0.1395638688 | K36: 0.1395638688 | L36: 0.1395638688 | M36: 0.1395638688
B37: Más de 70 t hasta 105 t | C37: USD/h | D37: 0.09475 | E37: 0.09475 | F37: =F$33*F23 -> 0.09475 | G37: 0.13 | H37: 0.14 | I37: 0.14 | J37: =I37*(1+$J$4) -> 0.150299551 | K37: 0.150299551 | L37: 0.150299551 | M37: 0.150299551
B38: Más de 105 t | C38: USD/h | D38: 0.097 | E38: 0.097 | F38: =F$33*F24 -> 0.097 | G38: 0.13 | H38: 0.14 | I38: 0.14 | J38: =I38*(1+$J$4) -> 0.150299551 | K38: 0.150299551 | L38: 0.150299551 | M38: 0.150299551
B40: Uso de Mangas | C40: USD/h | D40: 30 | E40: 30 | F40: 30 | G40: 39.7 | H40: 41.68 | I40: 43.13 | J40: =I40*(1+$J$4) -> 46.30299739 | K40: =J40 -> 46.30299739 | L40: =K40 -> 46.30299739 | M40: =L40 -> 46.30299739

Sheet Tarifas_G3
A1: Índice | B1: Tarifas Nazca
J3: Incremento
J4: =FlujoDeCajaAeroportuario!$D$4 -> 0.07356822134
D6: Tarifa Vigente | J6: Tarifa Propuesta CORPAC
B7: Servicios aeroportuarios | C7: Moneda / Unidad | D7: 2019 | E7: 2020 | F7: 2021 | G7: 2022 | H7: 2023 | I7: 2024 | J7: 2024 | K7: 2025 | L7: 2026 | M7: 2027
B9: TUUA Nacional | C9: USD/Pasajero | D9: 2.92 | E9: 2.92 | F9: 2.92 | G9: 0 | H9: 0 | I9: 0 | J9: 0 | K9: 0 | L9: 0 | M9: 0
B10: TUUA Internacional | C10: USD/Pasajero | D10: 0 | E10: 0 | F10: 0 | G10: 0 | H10: 0 | I10: 0 | J10: =F10*(1+$J$4) -> 0 | K10: =J10 -> 0 | L10: =K10 -> 0 | M10: 0
B12: Aterrizaje y despegue nacional
B13: Hasta 10 t | C13: USD/Operación | D13: 4 | E13: 4 | F13: 4 | G13: 5.29 | H13: 5.55 | I13: 5.74 | J13: =I13*(1+$J$4) -> 6.16228159 | K13: =J13 -> 6.16228159 | L13: =K13 -> 6.16228159 | M13: =L13 -> 6.16228159
B14: Más de 10 t hasta 35 t | C14: USD/t | D14: 0.86 | E14: 0.86 | F14: 0.86 | G14: 1.14 | H14: 1.2 | I14: 1.24 | J14: =I14*(1+$J$4) -> 1.331224594 | K14: 1.331224594 | L14: 1.331224594 | M14: 1.331224594
B15: Más de 35 t hasta 70 t | C15: USD/t | D15: 0.9 | E15: 0.9 | F15: 0.9 | G15: 1.19 | H15: 1.25 | I15: 1.29 | J15: =I15*(1+$J$4) -> 1.384903006 | K15: 1.384903006 | L15: 1.384903006 | M15: 1.384903006
B16: Más de 70 t hasta 105 t | C16: USD/t | D16: 0.94 | E16: 0.94 | F16: 0.94 | G16: 1.24 | H16: 1.3 | I16: 1.35 | J16: =I16*(1+$J$4) -> 1.449317099 | K16: 1.449317099 | L16: 1.449317099 | M16: 1.449317099
B17: Más de 105 t | C17: USD/t | D17: 0.96 | E17: 0.96 | F17: 0.96 | G17: 1.27 | H17: 1.33 | I17: 1.38 | J17: =I17*(1+$J$4) -> 1.481524145 | K17: 1.481524145 | L17: 1.481524145 | M17: 1.481524145
B19: Aterrizaje y despegue Internacional
B20: Hasta 10 t | C20: USD/Operación | D20: 0 | E20: 0 | F20: =E20*(1+$J$4) -> 0 | J20: =F20 -> 0 | K20: =J20 -> 0 | L20: 0 | M20: 0
B21: Más de 10 t hasta 35 t | C21: USD/t | D21: 0 | E21: 0 | F21: =E21*(1+$J$4) -> 0 | J21: =F21 -> 0 | K21: 0 | L21: 0 | M21: 0
B22: Más de 35 t hasta 70 t | C22: USD/t | D22: 0 | E22: 0 | F22: =E22*(1+$J$4) -> 0 | J22: =F22 -> 0 | K22: 0 | L22: 0 | M22: 0
B23: Más de 70 t hasta 105 t | C23: USD/t | D23: 0 | E23: 0 | F23: =E23*(1+$J$4) -> 0 | J23: =F23 -> 0 | K23: 0 | L23: 0 | M23: 0
B24: Más de 105 t | C24: USD/t | D24: 0 | E24: 0 | F24: =E24*(1+$J$4) -> 0 | J24: =F24 -> 0 | K24: 0 | L24: 0 | M24: 0
B26: Estacionamiento nacional | D26: 0.025 | E26: 0.025 | F26: 0.025 | J26: 0.025 | K26: 0.025 | L26: 0.025 | M26: 0.025
B27: Hasta 10 t | C27: USD/h | D27: =D$26*D13 -> 0.1 | E27: =E$26*E13 -> 0.1 | F27: =F$26*F13 -> 0.1 | G27: 0.13 | H27: 0.14 | I27: 0.14 | J27: =I27*(1+$J$4) -> 0.150299551 | K27: =J27 -> 0.150299551 | L27: 0.150299551 | M27: 0.150299551
B28: Más de 10 t hasta 35 t | C28: USD/h | D28: =D$26*D14 -> 0.0215 | E28: 0.0215 | F28: =F$26*F14 -> 0.0215 | G28: 0.03 | H28: 0.03 | I28: 0.03 | J28: =I28*(1+$J$4) -> 0.03220704664 | K28: 0.03220704664 | L28: 0.03220704664 | M28: 0.03220704664
B29: Más de 35 t hasta 70 t | C29: USD/h | D29: 0.0225 | E29: 0.0225 | F29: =F$26*F15 -> 0.0225 | G29: 0.03 | H29: 0.03 | I29: 0.03 | J29: =I29*(1+$J$4) -> 0.03220704664 | K29: 0.03220704664 | L29: 0.03220704664 | M29: 0.03220704664
B30: Más de 70 t hasta 105 t | C30: USD/h | D30: 0.0235 | E30: 0.0235 | F30: =F$26*F16 -> 0.0235 | G30: 0.03 | H30: 0.03 | I30: 0.03 | J30: =I30*(1+$J$4) -> 0.03220704664 | K30: 0.03220704664 | L30: 0.03220704664 | M30: 0.03220704664
B31: Más de 105 t | C31: USD/h | D31: 0.024 | E31: 0.024 | F31: =F$26*F17 -> 0.024 | G31: 0.03 | H31: 0.03 | I31: 0.03 | J31: =I31*(1+$J$4) -> 0.03220704664 | K31: 0.03220704664 | L31: 0.03220704664 | M31: 0.03220704664
B33: Estacionamiento internacional | D33: 0.025 | E33: 0.025 | F33: =$D$26 -> 0.025 | J33: =$D$26 -> 0.025 | K33: =$D$26 -> 0.025 | L33: =$D$26 -> 0.025 | M33: =$D$26 -> 0.025
B34: Hasta 10 t | C34: USD/h | D34: =D$33*D20 -> 0 | E34: =E$33*E20 -> 0 | F34: =F$33*F20 -> 0 | J34: =J$26*$J20 -> 0 | K34: =J34 -> 0 | L34: 0 | M34: 0
B35: Más de 10 t hasta 35 t | C35: USD/h | D35: =$D$33*$D21 -> 0 | E35: =E$33*E21 -> 0 | F35: 0 | J35: =J$26*$J21 -> 0 | K35: 0 | L35: 0 | M35: 0
B36: Más de 35 t hasta 70 t | C36: USD/h | D36: =$D$33*$D22 -> 0 | E36: 0 | F36: 0 | J36: =J$26*$J22 -> 0 | K36: 0 | L36: 0 | M36: 0
B37: Más de 70 t hasta 105 t | C37: USD/h | D37: =$D$33*$D23 -> 0 | E37: 0 | F37: 0 | J37: =J$26*$J23 -> 0 | K37: 0 | L37: 0 | M37: 0
B38: Más de 105 t | C38: USD/h | D38: =$D$33*$D24 -> 0 | E38: 0 | F38: 0 | J38: =J$26*$J24 -> 0 | K38: 0 | L38: 0 | M38: 0
B40: Uso de Mangas | C40: USD/h | D40: 0 | E40: 0 | F40: 0 | J40: =F40*(1+$J$4) -> 0 | K40: =J40 -> 0 | L40: =K40 -> 0 | M40: =L40 -> 0

Sheet Tarifas_G5
A1: Índice | B1: Tarifas Grupo V
J3: Incremento
J4: =FlujoDeCajaAeroportuario!$D$4 -> 0.07356822134
D6: Tarifa Vigente | J6: Tarifa Propuesta CORPAC
B7: Servicios aeroportuarios | C7: Moneda / Unidad | D7: 2019 | E7: 2020 | F7: 2021 | G7: 2022 | H7: 2023 | I7: 2024 | J7: 2024 | K7: 2025 | L7: 2026 | M7: 2027
B9: TUUA Nacional | C9: USD/Pasajero | D9: 2.92 | E9: 2.92 | F9: 2.92 | G9: 3.86 | H9: 4.05 | I9: 4.19 | J9: =I9*(1+$J$4) -> 4.498250847 | K9: =J9 -> 4.498250847 | L9: 4.498250847 | M9: 4.498250847
B10: TUUA Internacional | C10: USD/Pasajero | D10: 0 | E10: 0 | J10: =F10*(1+$J$4) -> 0 | K10: 0 | L10: 0 | M10: 0
B12: Aterrizaje y despegue nacional
B13: Hasta 10 t | C13: USD/Operación | D13: 2 | E13: 2 | F13: 2 | G13: 2.65 | H13: 2.78 | I13: 2.88 | J13: =I13*(1+$J$4) -> 3.091876477 | K13: =J13 -> 3.091876477 | L13: 3.091876477 | M13: 3.091876477
B14: Más de 10 t hasta 35 t | C14: USD/t | D14: 0.67 | E14: 0.67 | F14: 0.67 | G14: 0.89 | H14: 0.93 | I14: 0.96 | J14: =I14*(1+$J$4) -> 1.030625492 | K14: 1.030625492 | L14: 1.030625492 | M14: 1.030625492
B15: Más de 35 t hasta 70 t | C15: USD/t | D15: 0.7 | E15: 0.7 | F15: 0.7 | G15: 0.93 | H15: 0.98 | I15: 1.01 | J15: =I15*(1+$J$4) -> 1.084303904 | K15: 1.084303904 | L15: 1.084303904 | M15: 1.084303904
B16: Más de 70 t hasta 105 t | C16: USD/t | D16: 0.73 | E16: 0.73 | F16: 0.73 | G16: 0.97 | H16: 1.02 | I16: 1.06 | J16: =I16*(1+$J$4) -> 1.137982315 | K16: 1.137982315 | L16: 1.137982315 | M16: 1.137982315
B17: Más de 105 t | C17: USD/t | D17: 0.75 | E17: 0.75 | F17: 0.75 | G17: 0.99 | H17: 1.04 | I17: 1.08 | J17: =I17*(1+$J$4) -> 1.159453679 | K17: 1.159453679 | L17: 1.159453679 | M17: 1.159453679
B19: Aterrizaje y despegue Internacional | J19: =F19*(1+$J$4) -> 0
B20: Hasta 10 t | C20: USD/Operación | D20: 0 | E20: 0 | F20: 0 | G20: 0 | H20: 0 | J20: 0 | K20: =J20 -> 0 | L20: 0 | M20: 0
B21: Más de 10 t hasta 35 t | C21: USD/t | D21: 0 | E21: 0 | F21: 0 | G21: 0 | H21: 0 | J21: 0 | K21: 0 | L21: 0 | M21: 0
B22: Más de 35 t hasta 70 t | C22: USD/t | D22: 0 | E22: 0 | F22: 0 | G22: 0 | H22: 0 | J22: 0 | K22: 0 | L22: 0 | M22: 0
B23: Más de 70 t hasta 105 t | C23: USD/t | D23: 0 | E23: 0 | F23: 0 | G23: 0 | H23: 0 | J23: 0 | K23: 0 | L23: 0 | M23: 0
B24: Más de 105 t | C24: USD/t | D24: 0 | E24: 0 | F24: 0 | G24: 0 | H24: 0 | J24: 0 | K24: 0 | L24: 0 | M24: 0
B26: Estacionamiento nacional | D26: 0.025 | E26: 0.025 | F26: 0.025 | J26: 0.025 | K26: 0.025 | L26: 0.025 | M26: 0.025
B27: Hasta 10 t | C27: USD/h | D27: =D$26*D13 -> 0.05 | E27: =E$26*E13 -> 0.05 | F27: =F$26*F13 -> 0.05 | G27: 0.07 | H27: 0.07 | I27: 0.07 | J27: =I27*(1+$J$4) -> 0.07514977549 | K27: =J27 -> 0.07514977549 | L27: 0.07514977549 | M27: 0.07514977549
B28: Más de 10 t hasta 35 t | C28: USD/h | D28: =D$26*D14 -> 0.01675 | E28: 0.01675 | F28: =F$26*F14 -> 0.01675 | G28: 0.02 | H28: 0.02 | I28: 0.02 | J28: =I28*(1+$J$4) -> 0.02147136443 | K28: 0.02147136443 | L28: 0.02147136443 | M28: 0.02147136443
B29: Más de 35 t hasta 70 t | C29: USD/h | D29: 0.0175 | E29: 0.0175 | F29: =F$26*F15 -> 0.0175 | G29: 0.02 | H29: 0.02 | I29: 0.02 | J29: =I29*(1+$J$4) -> 0.02147136443 | K29: 0.02147136443 | L29: 0.02147136443 | M29: 0.02147136443
B30: Más de 70 t hasta 105 t | C30: USD/h | D30: 0.01825 | E30: 0.01825 | F30: =F$26*F16 -> 0.01825 | G30: 0.02 | H30: 0.02 | I30: 0.02 | J30: =I30*(1+$J$4) -> 0.02147136443 | K30: 0.02147136443 | L30: 0.02147136443 | M30: 0.02147136443
B31: Más de 105 t | C31: USD/h | D31: 0.01875 | E31: 0.01875 | F31: =F$26*F17 -> 0.01875 | G31: 0.02 | H31: 0.02 | I31: 0.02 | J31: =I31*(1+$J$4) -> 0.02147136443 | K31: 0.02147136443 | L31: 0.02147136443 | M31: 0.02147136443
B33: Estacionamiento internacional | D33: =$D$26 -> 0.025 | E33: 0.025 | F33: 0.025 | J33: 0.025 | K33: 0.025 | L33: 0.025 | M33: 0.025
B34: Hasta 10 t | C34: USD/h | D34: =D$33*D20 -> 0 | E34: =E$33*E20 -> 0 | F34: =F$26*$F20 -> 0 | G34: 0 | H34: 0 | J34: =J$33*$J20 -> 0 | K34: =J34 -> 0 | L34: 0 | M34: 0
B35: Más de 10 t hasta 35 t | C35: USD/h | D35: =D$33*D21 -> 0 | E35: 0 | F35: 0 | G35: 0 | H35: 0 | J35: =J$33*$J21 -> 0 | K35: 0 | L35: 0 | M35: 0
B36: Más de 35 t hasta 70 t | C36: USD/h | D36: 0 | E36: 0 | F36: 0 | G36: 0 | H36: 0 | J36: =J$33*$J22 -> 0 | K36: 0 | L36: 0 | M36: 0
B37: Más de 70 t hasta 105 t | C37: USD/h | D37: 0 | E37: 0 | F37: 0 | G37: 0 | H37: 0 | J37: =J$33*$J23 -> 0 | K37: 0 | L37: 0 | M37: 0
B38: Más de 105 t | C38: USD/h | D38: 0 | E38: 0 | F38: 0 | G38: 0 | H38: 0 | J38: =J$33*$J24 -> 0 | K38: 0 | L38: 0 | M38: 0
B40: Uso de Mangas | C40: USD/h | D40: 0 | E40: 0 | F40: 0 | G40: 0 | H40: 0 | J40: =F40*(1+$J$4) -> 0 | K40: =J40 -> 0 | L40: =K40 -> 0 | M40: =L40 -> 0

Sheet DataIngresosRegulados
A1: Índice | B1: Ingresos por servicios regulados
B2: Montos expresados en USD
B4: I. Cusco
B5: Servicios aeroportuarios (USD) | E5: 2024 | F5: 2025 | G5: 2026 | H5: 2027 | I5: 2025 | J5: 2026 | K5: 2027
B7: TUUA Nacional | E7: =Demanda_G1!I8*Tarifas_G1!J9 -> 10038714.08 | F7: =Demanda_G1!J8*Tarifas_G1!K9 -> 10741421.4 | G7: =Demanda_G1!K8*Tarifas_G1!L9 -> 11493315.9 | H7: =Demanda_G1!L8*Tarifas_G1!M9 -> 12297844.35
B8: TUUA Internacional | E8: =Demanda_G1!I9*Tarifas_G1!J10 -> 986151.3293 | F8: =Demanda_G1!J9*Tarifas_G1!K10 -> 1045314.547 | G8: =Demanda_G1!K9*Tarifas_G1!L10 -> 1108026.014 | H8: =Demanda_G1!L9*Tarifas_G1!M10 -> 1174501.713
B10: Aterrizaje y despegue nacional | E10: =SUM(E11:E15) -> 6577567.949 | F10: =SUM(F11:F15) -> 7037984.739 | G10: =SUM(G11:G15) -> 7530641.747 | H10: =SUM(H11:H15) -> 8057795.132
B11: Hasta 10 t | E11: =Demanda_G1!I12*Tarifas_G1!J13 -> 26746.38657 | F11: =Demanda_G1!J12*Tarifas_G1!K13 -> 28621.76913 | G11: =Demanda_G1!K12*Tarifas_G1!L13 -> 30621.38838 | H11: =Demanda_G1!L12*Tarifas_G1!M13 -> 32768.90847
B12: Más de 10 t hasta 35 t | E12: =Demanda_G1!I13*Tarifas_G1!J14 -> 4836.4348 | F12: =Demanda_G1!J13*Tarifas_G1!K14 -> 5163.901739 | G12: =Demanda_G1!K13*Tarifas_G1!L14 -> 5529.153326 | H12: =Demanda_G1!L13*Tarifas_G1!M14 -> 5919.594677
B13: Más de 35 t hasta 70 t | E13: =Demanda_G1!I14*Tarifas_G1!J15 -> 1003352.165 | F13: =Demanda_G1!J14*Tarifas_G1!K15 -> 1073586.024 | G13: =Demanda_G1!K14*Tarifas_G1!L15 -> 1148736.669 | H13: =Demanda_G1!L14*Tarifas_G1!M15 -> 1229150.988
B14: Más de 70 t hasta 105 t | E14: =Demanda_G1!I15*Tarifas_G1!J16 -> 5542632.963 | F14: =Demanda_G1!J15*Tarifas_G1!K16 -> 5930613.044 | G14: =Demanda_G1!K15*Tarifas_G1!L16 -> 6345754.536 | H14: =Demanda_G1!L15*Tarifas_G1!M16 -> 6789955.641
B15: Más de 105 t | E15: =Demanda_G1!I16*Tarifas_G1!J17 -> 0 | F15: =Demanda_G1!J16*Tarifas_G1!K17 -> 0 | G15: =Demanda_G1!K16*Tarifas_G1!L17 -> 0 | H15: =Demanda_G1!L16*Tarifas_G1!M17 -> 0
B17: Aterrizaje y despegue Internacional | E17: =SUM(E18:E22) -> 524238.5535 | F17: =SUM(F18:F22) -> 555673.1248 | G17: =SUM(G18:G22) -> 588992.6136 | H17: =SUM(H18:H22) -> 624312.4713
B18: Hasta 10 t | E18: =Demanda_G1!I19*Tarifas_G1!J20 -> 592.6096582 | F18: =Demanda_G1!J19*Tarifas_G1!K20 -> 617.3017273 | G18: =Demanda_G1!K19*Tarifas_G1!L20 -> 641.9937964 | H18: =Demanda_G1!L19*Tarifas_G1!M20 -> 666.6858654
B19: Más de 10 t hasta 35 t | E19: =Demanda_G1!I20*Tarifas_G1!J21 -> 3167.638187 | F19: =Demanda_G1!J20*Tarifas_G1!K21 -> 3355.587775 | G19: =Demanda_G1!K20*Tarifas_G1!L21 -> 3552.705636 | H19: =Demanda_G1!L20*Tarifas_G1!M21 -> 3763.575906
B20: Más de 35 t hasta 70 t | E20: =Demanda_G1!I21*Tarifas_G1!J22 -> 12288.46982 | F20: =Demanda_G1!J21*Tarifas_G1!K22 -> 13021.11571 | G20: =Demanda_G1!K21*Tarifas_G1!L22 -> 13798.16439 | H20: =Demanda_G1!L21*Tarifas_G1!M22 -> 14625.1662
B21: Más de 70 t hasta 105 t | E21: =Demanda_G1!I22*Tarifas_G1!J23 -> 508189.8358 | F21: =Demanda_G1!J22*Tarifas_G1!K23 -> 538679.1196 | G21: =Demanda_G1!K22*Tarifas_G1!L23 -> 570999.7498 | H21: =Demanda_G1!L22*Tarifas_G1!M23 -> 605257.0433
B22: Más de 105 t | E22: =Demanda_G1!I23*Tarifas_G1!J24 -> 0 | F22: =Demanda_G1!J23*Tarifas_G1!K24 -> 0 | G22: =Demanda_G1!K23*Tarifas_G1!L24 -> 0 | H22: =Demanda_G1!L23*Tarifas_G1!M24 -> 0
B24: Estacionamiento nacional | E24: =SUM(E25:E29) -> 1625.254472 | F24: =SUM(F25:F29) -> 1739.057025 | G24: =SUM(G25:G29) -> 1860.735061 | H24: =SUM(H25:H29) -> 1991.052231
B25: Hasta 10 t | E25: =Demanda_G1!I26*Tarifas_G1!J27 -> 409.93306 | F25: =Demanda_G1!J26*Tarifas_G1!K27 -> 438.6764309 | G25: =Demanda_G1!K26*Tarifas_G1!L27 -> 469.3239369 | H25: =Demanda_G1!L26*Tarifas_G1!M27 -> 502.2382701
B26: Más de 10 t hasta 35 t | E26: =Demanda_G1!I27*Tarifas_G1!J28 -> 5.405678867 | F26: =Demanda_G1!J27*Tarifas_G1!K28 -> 5.771688374 | G26: =Demanda_G1!K27*Tarifas_G1!L28 -> 6.179929746 | H26: =Demanda_G1!L27*Tarifas_G1!M28 -> 6.616325697
B27: Más de 35 t hasta 70 t | E27: =Demanda_G1!I28*Tarifas_G1!J29 -> 206.7652493 | F27: =Demanda_G1!J28*Tarifas_G1!K29 -> 221.2386536 | G27: =Demanda_G1!K28*Tarifas_G1!L29 -> 236.7252816 | H27: =Demanda_G1!L28*Tarifas_G1!M29 -> 253.2966186
B28: Más de 70 t hasta 105 t | E28: =Demanda_G1!I29*Tarifas_G1!J30 -> 1003.150483 | F28: =Demanda_G1!J29*Tarifas_G1!K30 -> 1073.370252 | G28: =Demanda_G1!K29*Tarifas_G1!L30 -> 1148.505913 | H28: =Demanda_G1!L29*Tarifas_G1!M30 -> 1228.901017
B29: Más de 105 t | E29: =Demanda_G1!I30*Tarifas_G1!J31 -> 0 | F29: =Demanda_G1!J30*Tarifas_G1!K31 -> 0 | G29: =Demanda_G1!K30*Tarifas_G1!L31 -> 0 | H29: =Demanda_G1!L30*Tarifas_G1!M31 -> 0
B31: Estacionamiento internacional | E31: =SUM(E32:E36) -> 80.95125626 | F31: =SUM(F32:F36) -> 85.57732412 | G31: =SUM(G32:G36) -> 90.44863831 | H31: =SUM(H32:H36) -> 95.58457157
B32: Hasta 10 t | E32: =Demanda_G1!I33*Tarifas_G1!J34 -> 12.34801976 | F32: =Demanda_G1!J33*Tarifas_G1!K34 -> 12.86252058 | G32: =Demanda_G1!K33*Tarifas_G1!L34 -> 13.37702141 | H32: =Demanda_G1!L33*Tarifas_G1!M34 -> 13.89152223
B33: Más de 10 t hasta 35 t | E33: =Demanda_G1!I34*Tarifas_G1!J35 -> 2.875919258 | F33: =Demanda_G1!J34*Tarifas_G1!K35 -> 3.046559909 | G33: =Demanda_G1!K34*Tarifas_G1!L35 -> 3.225524493 | H33: =Demanda_G1!L34*Tarifas_G1!M35 -> 3.41697498
B34: Más de 35 t hasta 70 t | E34: =Demanda_G1!I35*Tarifas_G1!J36 -> 6.502754857 | F34: =Demanda_G1!J35*Tarifas_G1!K36 -> 6.890452979 | G34: =Demanda_G1!K35*Tarifas_G1!L36 -> 7.301647956 | H34: =Demanda_G1!L35*Tarifas_G1!M36 -> 7.739276896
B35: Más de 70 t hasta 105 t | E35: =Demanda_G1!I36*Tarifas_G1!J37 -> 59.22456238 | F35: =Demanda_G1!J36*Tarifas_G1!K37 -> 62.77779065 | G35: =Demanda_G1!K36*Tarifas_G1!L37 -> 66.54444445 | H35: =Demanda_G1!L36*Tarifas_G1!M37 -> 70.53679746
B36: Más de 105 t | E36: =Demanda_G1!I37*Tarifas_G1!J38 -> 0 | F36: =Demanda_G1!J37*Tarifas_G1!K38 -> 0 | G36: =Demanda_G1!K37*Tarifas_G1!L38 -> 0 | H36: =Demanda_G1!L37*Tarifas_G1!M38 -> 0
B38: Uso de Mangas | E38: =Demanda_G1!I39*Tarifas_G1!J40 -> 544939.9762 | F38: =Demanda_G1!J39*Tarifas_G1!K40 -> 583047.3431 | G38: =Demanda_G1!K39*Tarifas_G1!L40 -> 623840.2838 | H38: =Demanda_G1!L39*Tarifas_G1!M40 -> 667504.0103
B40: II. Nazca
B41: Servicios aeroportuarios (USD) | E41: 2024 | F41: 2025 | G41: 2026 | H41: 2027 | I41: 2025 | J41: 2026 | K41: 2027
B43: Aterrizaje y despegue nacional | E43: =SUM(E44:E48) -> 187105.3559 | F43: =SUM(F44:F48) -> 200202.602 | G43: =SUM(G44:G48) -> 214214.5682 | H43: =SUM(H44:H48) -> 229208.2481
B44: Hasta 10 t | E44: =Demanda_G3!I9*Tarifas_G3!J13 -> 187105.3559 | F44: =Demanda_G3!J9*Tarifas_G3!K13 -> 200202.602 | G44: =Demanda_G3!K9*Tarifas_G3!L13 -> 214214.5682 | H44: =Demanda_G3!L9*Tarifas_G3!M13 -> 229208.2481
B45: Más de 10 t hasta 35 t | E45: =Demanda_G3!F10*Tarifas_G3!F14 -> 0 | F45: =Demanda_G3!I10*Tarifas_G3!J14 -> 0 | G45: =Demanda_G3!J10*Tarifas_G3!K14 -> 0 | H45: =Demanda_G3!K10*Tarifas_G3!L14 -> 0
B46: Más de 35 t hasta 70 t | E46: =Demanda_G3!F11*Tarifas_G3!F15 -> 0 | F46: =Demanda_G3!I11*Tarifas_G3!J15 -> 0 | G46: =Demanda_G3!J11*Tarifas_G3!K15 -> 0 | H46: =Demanda_G3!K11*Tarifas_G3!L15 -> 0
B47: Más de 70 t hasta 105 t | E47: =Demanda_G3!F12*Tarifas_G3!F16 -> 0 | F47: =Demanda_G3!I12*Tarifas_G3!J16 -> 0 | G47: =Demanda_G3!J12*Tarifas_G3!K16 -> 0 | H47: =Demanda_G3!K12*Tarifas_G3!L16 -> 0
B48: Más de 105 t | E48: =Demanda_G3!F13*Tarifas_G3!F17 -> 0 | F48: =Demanda_G3!I13*Tarifas_G3!J17 -> 0 | G48: =Demanda_G3!J13*Tarifas_G3!K17 -> 0 | H48: =Demanda_G3!K13*Tarifas_G3!L17 -> 0
B50: Aterrizaje y despegue Internacional | E50: =SUM(E51:E55) -> 0 | F50: =SUM(F51:F55) -> 0 | G50: =SUM(G51:G55) -> 0 | H50: =SUM(H51:H55) -> 0
B51: Hasta 10 t | E51: =Demanda_G3!F16*Tarifas_G3!F20 -> 0 | F51: =Demanda_G3!I16*Tarifas_G3!J20 -> 0 | G51: =Demanda_G3!J16*Tarifas_G3!K20 -> 0 | H51: =Demanda_G3!K16*Tarifas_G3!L20 -> 0
B52: Más de 10 t hasta 35 t | E52: =Demanda_G3!F17*Tarifas_G3!F21 -> 0 | F52: =Demanda_G3!I17*Tarifas_G3!J21 -> 0 | G52: =Demanda_G3!J17*Tarifas_G3!K21 -> 0 | H52: =Demanda_G3!K17*Tarifas_G3!L21 -> 0
B53: Más de 35 t hasta 70 t | E53: =Demanda_G3!F18*Tarifas_G3!F22 -> 0 | F53: =Demanda_G3!I18*Tarifas_G3!J22 -> 0 | G53: =Demanda_G3!J18*Tarifas_G3!K22 -> 0 | H53: =Demanda_G3!K18*Tarifas_G3!L22 -> 0
B54: Más de 70 t hasta 105 t | E54: =Demanda_G3!F19*Tarifas_G3!F23 -> 0 | F54: =Demanda_G3!I19*Tarifas_G3!J23 -> 0 | G54: =Demanda_G3!J19*Tarifas_G3!K23 -> 0 | H54: =Demanda_G3!K19*Tarifas_G3!L23 -> 0
B55: Más de 105 t | E55: =Demanda_G3!F20*Tarifas_G3!F24 -> 0 | F55: =Demanda_G3!I20*Tarifas_G3!J24 -> 0 | G55: =Demanda_G3!J20*Tarifas_G3!K24 -> 0 | H55: =Demanda_G3!K20*Tarifas_G3!L24 -> 0
B57: Estacionamiento nacional | E57: =SUM(E58:E62) -> 2927.749282 | F57: =SUM(F58:F62) -> 3132.689715 | G57: =SUM(G58:G62) -> 3351.943321 | H57: =SUM(H58:H62) -> 3586.558388
B58: Hasta 10 t | E58: =Demanda_G3!I23*Tarifas_G3!J27 -> 2927.749282 | F58: =Demanda_G3!J23*Tarifas_G3!K27 -> 3132.689715 | G58: =Demanda_G3!K23*Tarifas_G3!L27 -> 3351.943321 | H58: =Demanda_G3!L23*Tarifas_G3!M27 -> 3586.558388
B59: Más de 10 t hasta 35 t | E59: =Demanda_G3!F24*Tarifas_G3!F28 -> 0 | F59: =Demanda_G3!I24*Tarifas_G3!J28 -> 0 | G59: =Demanda_G3!J24*Tarifas_G3!K28 -> 0 | H59: =Demanda_G3!K24*Tarifas_G3!L28 -> 0
B60: Más de 35 t hasta 70 t | E60: =Demanda_G3!F25*Tarifas_G3!F29 -> 0 | F60: =Demanda_G3!I25*Tarifas_G3!J29 -> 0 | G60: =Demanda_G3!J25*Tarifas_G3!K29 -> 0 | H60: =Demanda_G3!K25*Tarifas_G3!L29 -> 0
B61: Más de 70 t hasta 105 t | E61: =Demanda_G3!F26*Tarifas_G3!F30 -> 0 | F61: =Demanda_G3!I26*Tarifas_G3!J30 -> 0 | G61: =Demanda_G3!J26*Tarifas_G3!K30 -> 0 | H61: =Demanda_G3!K26*Tarifas_G3!L30 -> 0
B62: Más de 105 t | E62: =Demanda_G3!F27*Tarifas_G3!F31 -> 0 | F62: =Demanda_G3!I27*Tarifas_G3!J31 -> 0 | G62: =Demanda_G3!J27*Tarifas_G3!K31 -> 0 | H62: =Demanda_G3!K27*Tarifas_G3!L31 -> 0
B64: Estacionamiento internacional | E64: =SUM(E65:E69) -> 0 | F64: =SUM(F65:F69) -> 0 | G64: =SUM(G65:G69) -> 0 | H64: =SUM(H65:H69) -> 0
B65: Hasta 10 t | E65: =Demanda_G3!F30*Tarifas_G3!F34 -> 0 | F65: =Demanda_G3!I30*Tarifas_G3!J34 -> 0 | G65: =Demanda_G3!J30*Tarifas_G3!K34 -> 0 | H65: =Demanda_G3!K30*Tarifas_G3!L34 -> 0
B66: Más de 10 t hasta 35 t | E66: =Demanda_G3!F31*Tarifas_G3!F35 -> 0 | F66: =Demanda_G3!I31*Tarifas_G3!J35 -> 0 | G66: =Demanda_G3!J31*Tarifas_G3!K35 -> 0 | H66: =Demanda_G3!K31*Tarifas_G3!L35 -> 0
B67: Más de 35 t hasta 70 t | E67: =Demanda_G3!F32*Tarifas_G3!F36 -> 0 | F67: =Demanda_G3!I32*Tarifas_G3!J36 -> 0 | G67: =Demanda_G3!J32*Tarifas_G3!K36 -> 0 | H67: =Demanda_G3!K32*Tarifas_G3!L36 -> 0
B68: Más de 70 t hasta 105 t | E68: =Demanda_G3!F33*Tarifas_G3!F37 -> 0 | F68: =Demanda_G3!I33*Tarifas_G3!J37 -> 0 | G68: =Demanda_G3!J33*Tarifas_G3!K37 -> 0 | H68: =Demanda_G3!K33*Tarifas_G3!L37 -> 0
B69: Más de 105 t | E69: =Demanda_G3!F34*Tarifas_G3!F38 -> 0 | F69: =Demanda_G3!I34*Tarifas_G3!J38 -> 0 | G69: =Demanda_G3!J34*Tarifas_G3!K38 -> 0 | H69: =Demanda_G3!K34*Tarifas_G3!L38 -> 0
B71: Uso de Mangas | E71: =Demanda_G3!F36*Tarifas_G3!F40 -> 0 | F71: =Demanda_G3!I36*Tarifas_G3!J40 -> 0 | G71: =Demanda_G3!J36*Tarifas_G3!K40 -> 0 | H71: =Demanda_G3!K36*Tarifas_G3!L40 -> 0
B73: III. Grupo V
B74: Servicios aeroportuarios (USD) | E74: 2024 | F74: 2025 | G74: 2026 | H74: 2027 | I74: 2025 | J74: 2026 | K74: 2027
B76: TUUA Nacional | E76: =Demanda_G5!I8*Tarifas_G5!J9 -> 1255862.156 | F76: =Demanda_G5!J8*Tarifas_G5!K9 -> 1306094.123 | G76: =Demanda_G5!K8*Tarifas_G5!L9 -> 1358336.808 | H76: =Demanda_G5!L8*Tarifas_G5!M9 -> 1412666.682
B77: TUUA Internacional | E77: =Demanda_G5!F9*Tarifas_G5!F10 -> 0 | F77: =Demanda_G5!I9*Tarifas_G5!J10 -> 0 | G77: =Demanda_G5!J9*Tarifas_G5!K10 -> 0 | H77: =Demanda_G5!K9*Tarifas_G5!L10 -> 0
B79: Aterrizaje y despegue nacional | E79: =SUM(E80:E84) -> 320236.4909 | F79: =SUM(F80:F84) -> 333045.3082 | G79: =SUM(G80:G84) -> 346366.8453 | H79: =SUM(H80:H84) -> 360220.6015
B80: Hasta 10 t | E80: =Demanda_G5!I12*Tarifas_G5!J13 -> 20029.21614 | F80: =Demanda_G5!J12*Tarifas_G5!K13 -> 20830.34461 | G80: =Demanda_G5!K12*Tarifas_G5!L13 -> 21663.54117 | H80: =Demanda_G5!L12*Tarifas_G5!M13 -> 22530.02543
B81: Más de 10 t hasta 35 t | E81: =Demanda_G5!I13*Tarifas_G5!J14 -> 95296.13629 | F81: =Demanda_G5!J13*Tarifas_G5!K14 -> 99107.7906 | G81: =Demanda_G5!K13*Tarifas_G5!L14 -> 103072.0203 | H81: =Demanda_G5!L13*Tarifas_G5!M14 -> 107194.6281
B82: Más de 35 t hasta 70 t | E82: =Demanda_G5!I14*Tarifas_G5!J15 -> 114580.439 | F82: =Demanda_G5!J14*Tarifas_G5!K15 -> 119163.4267 | G82: =Demanda_G5!K14*Tarifas_G5!L15 -> 123929.8653 | H82: =Demanda_G5!L14*Tarifas_G5!M15 -> 128886.7316
B83: Más de 70 t hasta 105 t | E83: =Demanda_G5!I15*Tarifas_G5!J16 -> 90330.69952 | F83: =Demanda_G5!J15*Tarifas_G5!K16 -> 93943.74632 | G83: =Demanda_G5!K15*Tarifas_G5!L16 -> 97701.41852 | H83: =Demanda_G5!L15*Tarifas_G5!M16 -> 101609.2164
B84: Más de 105 t | E84: =Demanda_G5!I16*Tarifas_G5!J17 -> 0 | F84: =Demanda_G5!J16*Tarifas_G5!K17 -> 0 | G84: =Demanda_G5!K16*Tarifas_G5!L17 -> 0 | H84: =Demanda_G5!L16*Tarifas_G5!M17 -> 0
B86: Aterrizaje y despegue Internacional | E86: =SUM(E87:E91) -> 0 | F86: =SUM(F87:F91) -> 0 | G86: =SUM(G87:G91) -> 0 | H86: =SUM(H87:H91) -> 0
B87: Hasta 10 t | E87: =Demanda_G5!F19*Tarifas_G5!F20 -> 0 | F87: =Demanda_G5!I19*Tarifas_G5!J20 -> 0 | G87: =Demanda_G5!J19*Tarifas_G5!K20 -> 0 | H87: =Demanda_G5!K19*Tarifas_G5!L20 -> 0
B88: Más de 10 t hasta 35 t | E88: =Demanda_G5!F20*Tarifas_G5!F21 -> 0 | F88: =Demanda_G5!I20*Tarifas_G5!J21 -> 0 | G88: =Demanda_G5!J20*Tarifas_G5!K21 -> 0 | H88: =Demanda_G5!K20*Tarifas_G5!L21 -> 0
B89: Más de 35 t hasta 70 t | E89: =Demanda_G5!F21*Tarifas_G5!F22 -> 0 | F89: =Demanda_G5!I21*Tarifas_G5!J22 -> 0 | G89: =Demanda_G5!J21*Tarifas_G5!K22 -> 0 | H89: =Demanda_G5!K21*Tarifas_G5!L22 -> 0
B90: Más de 70 t hasta 105 t | E90: =Demanda_G5!F22*Tarifas_G5!F23 -> 0 | F90: =Demanda_G5!I22*Tarifas_G5!J23 -> 0 | G90: =Demanda_G5!J22*Tarifas_G5!K23 -> 0 | H90: =Demanda_G5!K22*Tarifas_G5!L23 -> 0
B91: Más de 105 t | E91: =Demanda_G5!F23*Tarifas_G5!F24 -> 0 | F91: =Demanda_G5!I23*Tarifas_G5!J24 -> 0 | G91: =Demanda_G5!J23*Tarifas_G5!K24 -> 0 | H91: =Demanda_G5!K23*Tarifas_G5!L24 -> 0
B93: Estacionamiento nacional | E93: =SUM(E94:E98) -> 409.890582 | F93: =SUM(F94:F98) -> 426.2853831 | G93: =SUM(G94:G98) -> 443.3364461 | H93: =SUM(H94:H98) -> 461.0687294
B94: Hasta 10 t | E94: =Demanda_G5!I26*Tarifas_G5!J27 -> 312.2588073 | F94: =Demanda_G5!J26*Tarifas_G5!K27 -> 324.7485333 | G94: =Demanda_G5!K26*Tarifas_G5!L27 -> 337.7382062 | H94: =Demanda_G5!L26*Tarifas_G5!M27 -> 351.2468397
B95: Más de 10 t hasta 35 t | E95: =Demanda_G5!I27*Tarifas_G5!J28 -> 62.63889962 | F95: =Demanda_G5!J27*Tarifas_G5!K28 -> 65.14432996 | G95: =Demanda_G5!K27*Tarifas_G5!L28 -> 67.75004931 | H95: =Demanda_G5!L27*Tarifas_G5!M28 -> 70.4598718
B96: Más de 35 t hasta 70 t | E96: =Demanda_G5!I28*Tarifas_G5!J29 -> 20.79056324 | F96: =Demanda_G5!J28*Tarifas_G5!K29 -> 21.62214406 | G96: =Demanda_G5!K28*Tarifas_G5!L29 -> 22.48701195 | H96: =Demanda_G5!L28*Tarifas_G5!M29 -> 23.38643286
B97: Más de 70 t hasta 105 t | E97: =Demanda_G5!I29*Tarifas_G5!J30 -> 14.20231182 | F97: =Demanda_G5!J29*Tarifas_G5!K30 -> 14.7703758 | G97: =Demanda_G5!K29*Tarifas_G5!L30 -> 15.36117863 | H97: =Demanda_G5!L29*Tarifas_G5!M30 -> 15.97558508
B98: Más de 105 t | E98: =Demanda_G5!I30*Tarifas_G5!J31 -> 0 | F98: =Demanda_G5!J30*Tarifas_G5!K31 -> 0 | G98: =Demanda_G5!K30*Tarifas_G5!L31 -> 0 | H98: =Demanda_G5!L30*Tarifas_G5!M31 -> 0
B100: Estacionamiento internacional | E100: =SUM(E101:E105) -> 0 | F100: =SUM(F101:F105) -> 0 | G100: =SUM(G101:G105) -> 0 | H100: =SUM(H101:H105) -> 0
B101: Hasta 10 t | E101: =Demanda_G5!F33*Tarifas_G5!F34 -> 0 | F101: =Demanda_G5!I33*Tarifas_G5!J34 -> 0 | G101: =Demanda_G5!J33*Tarifas_G5!K34 -> 0 | H101: =Demanda_G5!K33*Tarifas_G5!L34 -> 0
B102: Más de 10 t hasta 35 t | E102: =Demanda_G5!F34*Tarifas_G5!F35 -> 0 | F102: =Demanda_G5!I34*Tarifas_G5!J35 -> 0 | G102: =Demanda_G5!J34*Tarifas_G5!K35 -> 0 | H102: =Demanda_G5!K34*Tarifas_G5!L35 -> 0
B103: Más de 35 t hasta 70 t | E103: =Demanda_G5!F35*Tarifas_G5!F36 -> 0 | F103: =Demanda_G5!I35*Tarifas_G5!J36 -> 0 | G103: =Demanda_G5!J35*Tarifas_G5!K36 -> 0 | H103: =Demanda_G5!K35*Tarifas_G5!L36 -> 0
B104: Más de 70 t hasta 105 t | E104: =Demanda_G5!F36*Tarifas_G5!F37 -> 0 | F104: =Demanda_G5!I36*Tarifas_G5!J37 -> 0 | G104: =Demanda_G5!J36*Tarifas_G5!K37 -> 0 | H104: =Demanda_G5!K36*Tarifas_G5!L37 -> 0
B105: Más de 105 t | E105: =Demanda_G5!F37*Tarifas_G5!F38 -> 0 | F105: =Demanda_G5!I37*Tarifas_G5!J38 -> 0 | G105: =Demanda_G5!J37*Tarifas_G5!K38 -> 0 | H105: =Demanda_G5!K37*Tarifas_G5!L38 -> 0
B107: Uso de Mangas | E107: =Demanda_G5!F39*Tarifas_G5!F40 -> 0 | F107: =Demanda_G5!I39*Tarifas_G5!J40 -> 0 | G107: =Demanda_G5!J39*Tarifas_G5!K40 -> 0 | H107: =Demanda_G5!K39*Tarifas_G5!L40 -> 0

Sheet IngresosReguladosTotal
A1: Índice | B1: Ingresos regulados totales
B2: Montos expresados en USD
B4: Servicios aeroportuarios | E4: 2024 | F4: 2025 | G4: 2026 | H4: 2027
B6: TUUA nacional | C6: =DataIngresosRegulados!C7+DataIngresosRegulados!C76 -> 0 | D6: =DataIngresosRegulados!D7+DataIngresosRegulados!D76 -> 0 | E6: =DataIngresosRegulados!E7+DataIngresosRegulados!E76 -> 11294576.24 | F6: =DataIngresosRegulados!F7+DataIngresosRegulados!F76 -> 12047515.52 | G6: =DataIngresosRegulados!G7+DataIngresosRegulados!G76 -> 12851652.71 | H6: =DataIngresosRegulados!H7+DataIngresosRegulados!H76 -> 13710511.04
B7: TUUA internacional | C7: =DataIngresosRegulados!C8+DataIngresosRegulados!C77 -> 0 | D7: =DataIngresosRegulados!D8+DataIngresosRegulados!D77 -> 0 | E7: =DataIngresosRegulados!E8+DataIngresosRegulados!E77 -> 986151.3293 | F7: =DataIngresosRegulados!F8+DataIngresosRegulados!F77 -> 1045314.547 | G7: =DataIngresosRegulados!G8+DataIngresosRegulados!G77 -> 1108026.014 | H7: =DataIngresosRegulados!H8+DataIngresosRegulados!H77 -> 1174501.713
B9: Aterrizaje y despegue nacional | C9: =SUM(C10:C14) -> 0 | D9: 0 | E9: 7084909.796 | F9: 7571232.649 | G9: =SUM(G10:G14) -> 8091223.16 | H9: 8647223.982
B10: Hasta 10 t | C10: =DataIngresosRegulados!C11+DataIngresosRegulados!C44+DataIngresosRegulados!C80 -> 0 | D10: =DataIngresosRegulados!D11+DataIngresosRegulados!D44+DataIngresosRegulados!D80 -> 0 | E10: =DataIngresosRegulados!E11+DataIngresosRegulados!E44+DataIngresosRegulados!E80 -> 233880.9586 | F10: =DataIngresosRegulados!F11+DataIngresosRegulados!F44+DataIngresosRegulados!F80 -> 249654.7157 | G10: =DataIngresosRegulados!G11+DataIngresosRegulados!G44+DataIngresosRegulados!G80 -> 266499.4978 | H10: =DataIngresosRegulados!H11+DataIngresosRegulados!H44+DataIngresosRegulados!H80 -> 284507.182
B11: Más de 10 t hasta 35 t | C11: =DataIngresosRegulados!C12+DataIngresosRegulados!C45+DataIngresosRegulados!C81 -> 0 | D11: =DataIngresosRegulados!D12+DataIngresosRegulados!D45+DataIngresosRegulados!D81 -> 0 | E11: =DataIngresosRegulados!E12+DataIngresosRegulados!E45+DataIngresosRegulados!E81 -> 100132.5711 | F11: =DataIngresosRegulados!F12+DataIngresosRegulados!F45+DataIngresosRegulados!F81 -> 104271.6923 | G11: =DataIngresosRegulados!G12+DataIngresosRegulados!G45+DataIngresosRegulados!G81 -> 108601.1736 | H11: =DataIngresosRegulados!H12+DataIngresosRegulados!H45+DataIngresosRegulados!H81 -> 113114.2227
B12: Más de 35 t hasta 70 t | C12: =DataIngresosRegulados!C13+DataIngresosRegulados!C46+DataIngresosRegulados!C82 -> 0 | D12: =DataIngresosRegulados!D13+DataIngresosRegulados!D46+DataIngresosRegulados!D82 -> 0 | E12: =DataIngresosRegulados!E13+DataIngresosRegulados!E46+DataIngresosRegulados!E82 -> 1117932.604 | F12: =DataIngresosRegulados!F13+DataIngresosRegulados!F46+DataIngresosRegulados!F82 -> 1192749.451 | G12: =DataIngresosRegulados!G13+DataIngresosRegulados!G46+DataIngresosRegulados!G82 -> 1272666.534 | H12: =DataIngresosRegulados!H13+DataIngresosRegulados!H46+DataIngresosRegulados!H82 -> 1358037.72
B13: Más de 70 t hasta 105 t | C13: =DataIngresosRegulados!C14+DataIngresosRegulados!C47+DataIngresosRegulados!C83 -> 0 | D13: =DataIngresosRegulados!D14+DataIngresosRegulados!D47+DataIngresosRegulados!D83 -> 0 | E13: =DataIngresosRegulados!E14+DataIngresosRegulados!E47+DataIngresosRegulados!E83 -> 5632963.662 | F13: =DataIngresosRegulados!F14+DataIngresosRegulados!F47+DataIngresosRegulados!F83 -> 6024556.79 | G13: =DataIngresosRegulados!G14+DataIngresosRegulados!G47+DataIngresosRegulados!G83 -> 6443455.954 | H13: =DataIngresosRegulados!H14+DataIngresosRegulados!H47+DataIngresosRegulados!H83 -> 6891564.857
B14: Más de 105 t | C14: =DataIngresosRegulados!C15+DataIngresosRegulados!C48+DataIngresosRegulados!C84 -> 0 | D14: =DataIngresosRegulados!D15+DataIngresosRegulados!D48+DataIngresosRegulados!D84 -> 0 | E14: =DataIngresosRegulados!E15+DataIngresosRegulados!E48+DataIngresosRegulados!E84 -> 0 | F14: =DataIngresosRegulados!F15+DataIngresosRegulados!F48+DataIngresosRegulados!F84 -> 0 | G14: =DataIngresosRegulados!G15+DataIngresosRegulados!G48+DataIngresosRegulados!G84 -> 0 | H14: =DataIngresosRegulados!H15+DataIngresosRegulados!H48+DataIngresosRegulados!H84 -> 0
B16: Aterrizaje y despegue internacional | C16: =SUM(C17:C21) -> 0 | D16: 0 | E16: 524238.5535 | F16: 555673.1248 | G16: 588992.6136 | H16: 624312.4713
B17: Hasta 10 t | C17: =DataIngresosRegulados!C18+DataIngresosRegulados!C51+DataIngresosRegulados!C87 -> 0 | D17: =DataIngresosRegulados!D18+DataIngresosRegulados!D51+DataIngresosRegulados!D87 -> 0 | E17: =DataIngresosRegulados!E18+DataIngresosRegulados!E51+DataIngresosRegulados!E87 -> 592.6096582 | F17: =DataIngresosRegulados!F18+DataIngresosRegulados!F51+DataIngresosRegulados!F87 -> 617.3017273 | G17: =DataIngresosRegulados!G18+DataIngresosRegulados!G51+DataIngresosRegulados!G87 -> 641.9937964 | H17: =DataIngresosRegulados!H18+DataIngresosRegulados!H51+DataIngresosRegulados!H87 -> 666.6858654
B18: Más de 10 t hasta 35 t | C18: =DataIngresosRegulados!C19+DataIngresosRegulados!C52+DataIngresosRegulados!C88 -> 0 | D18: =DataIngresosRegulados!D19+DataIngresosRegulados!D52+DataIngresosRegulados!D88 -> 0 | E18: =DataIngresosRegulados!E19+DataIngresosRegulados!E52+DataIngresosRegulados!E88 -> 3167.638187 | F18: =DataIngresosRegulados!F19+DataIngresosRegulados!F52+DataIngresosRegulados!F88 -> 3355.587775 | G18: =DataIngresosRegulados!G19+DataIngresosRegulados!G52+DataIngresosRegulados!G88 -> 3552.705636 | H18: =DataIngresosRegulados!H19+DataIngresosRegulados!H52+DataIngresosRegulados!H88 -> 3763.575906
B19: Más de 35 t hasta 70 t | C19: =DataIngresosRegulados!C20+DataIngresosRegulados!C53+DataIngresosRegulados!C89 -> 0 | D19: =DataIngresosRegulados!D20+DataIngresosRegulados!D53+DataIngresosRegulados!D89 -> 0 | E19: =DataIngresosRegulados!E20+DataIngresosRegulados!E53+DataIngresosRegulados!E89 -> 12288.46982 | F19: =DataIngresosRegulados!F20+DataIngresosRegulados!F53+DataIngresosRegulados!F89 -> 13021.11571 | G19: =DataIngresosRegulados!G20+DataIngresosRegulados!G53+DataIngresosRegulados!G89 -> 13798.16439 | H19: =DataIngresosRegulados!H20+DataIngresosRegulados!H53+DataIngresosRegulados!H89 -> 14625.1662
B20: Más de 70 t hasta 105 t | C20: =DataIngresosRegulados!C21+DataIngresosRegulados!C54+DataIngresosRegulados!C90 -> 0 | D20: =DataIngresosRegulados!D21+DataIngresosRegulados!D54+DataIngresosRegulados!D90 -> 0 | E20: =DataIngresosRegulados!E21+DataIngresosRegulados!E54+DataIngresosRegulados!E90 -> 508189.8358 | F20: =DataIngresosRegulados!F21+DataIngresosRegulados!F54+DataIngresosRegulados!F90 -> 538679.1196 | G20: =DataIngresosRegulados!G21+DataIngresosRegulados!G54+DataIngresosRegulados!G90 -> 570999.7498 | H20: =DataIngresosRegulados!H21+DataIngresosRegulados!H54+DataIngresosRegulados!H90 -> 605257.0433
B21: Más de 105 t | C21: =DataIngresosRegulados!C22+DataIngresosRegulados!C55+DataIngresosRegulados!C91 -> 0 | D21: =DataIngresosRegulados!D22+DataIngresosRegulados!D55+DataIngresosRegulados!D91 -> 0 | E21: =DataIngresosRegulados!E22+DataIngresosRegulados!E55+DataIngresosRegulados!E91 -> 0 | F21: =DataIngresosRegulados!F22+DataIngresosRegulados!F55+DataIngresosRegulados!F91 -> 0 | G21: =DataIngresosRegulados!G22+DataIngresosRegulados!G55+DataIngresosRegulados!G91 -> 0 | H21: =DataIngresosRegulados!H22+DataIngresosRegulados!H55+DataIngresosRegulados!H91 -> 0
B23: Estacionamiento nacional | C23: =SUM(C24:C28) -> 0 | D23: 0 | E23: 4962.894335 | F23: 5298.032124 | G23: 5656.014828 | H23: 6038.679349
B24: Hasta 10 t | C24: =DataIngresosRegulados!C25+DataIngresosRegulados!C58+DataIngresosRegulados!C94 -> 0 | D24: =DataIngresosRegulados!D25+DataIngresosRegulados!D58+DataIngresosRegulados!D94 -> 0 | E24: =DataIngresosRegulados!E25+DataIngresosRegulados!E58+DataIngresosRegulados!E94 -> 3649.941149 | F24: =DataIngresosRegulados!F25+DataIngresosRegulados!F58+DataIngresosRegulados!F94 -> 3896.11468 | G24: =DataIngresosRegulados!G25+DataIngresosRegulados!G58+DataIngresosRegulados!G94 -> 4159.005464 | H24: =DataIngresosRegulados!H25+DataIngresosRegulados!H58+DataIngresosRegulados!H94 -> 4440.043498
B25: Más de 10 t hasta 35 t | C25: =DataIngresosRegulados!C26+DataIngresosRegulados!C59+DataIngresosRegulados!C95 -> 0 | D25: =DataIngresosRegulados!D26+DataIngresosRegulados!D59+DataIngresosRegulados!D95 -> 0 | E25: =DataIngresosRegulados!E26+DataIngresosRegulados!E59+DataIngresosRegulados!E95 -> 68.04457849 | F25: =DataIngresosRegulados!F26+DataIngresosRegulados!F59+DataIngresosRegulados!F95 -> 70.91601834 | G25: =DataIngresosRegulados!G26+DataIngresosRegulados!G59+DataIngresosRegulados!G95 -> 73.92997906 | H25: =DataIngresosRegulados!H26+DataIngresosRegulados!H59+DataIngresosRegulados!H95 -> 77.0761975
B26: Más de 35 t hasta 70 t | C26: =DataIngresosRegulados!C27+DataIngresosRegulados!C60+DataIngresosRegulados!C96 -> 0 | D26: =DataIngresosRegulados!D27+DataIngresosRegulados!D60+DataIngresosRegulados!D96 -> 0 | E26: =DataIngresosRegulados!E27+DataIngresosRegulados!E60+DataIngresosRegulados!E96 -> 227.5558125 | F26: =DataIngresosRegulados!F27+DataIngresosRegulados!F60+DataIngresosRegulados!F96 -> 242.8607977 | G26: =DataIngresosRegulados!G27+DataIngresosRegulados!G60+DataIngresosRegulados!G96 -> 259.2122936 | H26: =DataIngresosRegulados!H27+DataIngresosRegulados!H60+DataIngresosRegulados!H96 -> 276.6830514
B27: Más de 70 t hasta 105 t | C27: =DataIngresosRegulados!C28+DataIngresosRegulados!C61+DataIngresosRegulados!C97 -> 0 | D27: =DataIngresosRegulados!D28+DataIngresosRegulados!D61+DataIngresosRegulados!D97 -> 0 | E27: =DataIngresosRegulados!E28+DataIngresosRegulados!E61+DataIngresosRegulados!E97 -> 1017.352795 | F27: =DataIngresosRegulados!F28+DataIngresosRegulados!F61+DataIngresosRegulados!F97 -> 1088.140628 | G27: =DataIngresosRegulados!G28+DataIngresosRegulados!G61+DataIngresosRegulados!G97 -> 1163.867091 | H27: =DataIngresosRegulados!H28+DataIngresosRegulados!H61+DataIngresosRegulados!H97 -> 1244.876602
B28: Más de 105 t | C28: =DataIngresosRegulados!C29+DataIngresosRegulados!C62+DataIngresosRegulados!C98 -> 0 | D28: =DataIngresosRegulados!D29+DataIngresosRegulados!D62+DataIngresosRegulados!D98 -> 0 | E28: =DataIngresosRegulados!E29+DataIngresosRegulados!E62+DataIngresosRegulados!E98 -> 0 | F28: =DataIngresosRegulados!F29+DataIngresosRegulados!F62+DataIngresosRegulados!F98 -> 0 | G28: =DataIngresosRegulados!G29+DataIngresosRegulados!G62+DataIngresosRegulados!G98 -> 0 | H28: =DataIngresosRegulados!H29+DataIngresosRegulados!H62+DataIngresosRegulados!H98 -> 0
B30: Estacionamiento internacional | C30: =SUM(C31:C35) -> 0 | D30: 0 | E30: 80.95125626 | F30: 85.57732412 | G30: 90.44863831 | H30: 95.58457157
B31: Hasta 10 t | C31: =DataIngresosRegulados!C32+DataIngresosRegulados!C65+DataIngresosRegulados!C101 -> 0 | D31: =DataIngresosRegulados!D32+DataIngresosRegulados!D65+DataIngresosRegulados!D101 -> 0 | E31: =DataIngresosRegulados!E32+DataIngresosRegulados!E65+DataIngresosRegulados!E101 -> 12.34801976 | F31: =DataIngresosRegulados!F32+DataIngresosRegulados!F65+DataIngresosRegulados!F101 -> 12.86252058 | G31: =DataIngresosRegulados!G32+DataIngresosRegulados!G65+DataIngresosRegulados!G101 -> 13.37702141 | H31: =DataIngresosRegulados!H32+DataIngresosRegulados!H65+DataIngresosRegulados!H101 -> 13.89152223
B32: Más de 10 t hasta 35 t | C32: =DataIngresosRegulados!C33+DataIngresosRegulados!C66+DataIngresosRegulados!C102 -> 0 | D32: =DataIngresosRegulados!D33+DataIngresosRegulados!D66+DataIngresosRegulados!D102 -> 0 | E32: =DataIngresosRegulados!E33+DataIngresosRegulados!E66+DataIngresosRegulados!E102 -> 2.875919258 | F32: =DataIngresosRegulados!F33+DataIngresosRegulados!F66+DataIngresosRegulados!F102 -> 3.046559909 | G32: =DataIngresosRegulados!G33+DataIngresosRegulados!G66+DataIngresosRegulados!G102 -> 3.225524493 | H32: =DataIngresosRegulados!H33+DataIngresosRegulados!H66+DataIngresosRegulados!H102 -> 3.41697498
B33: Más de 35 t hasta 70 t | C33: =DataIngresosRegulados!C34+DataIngresosRegulados!C67+DataIngresosRegulados!C103 -> 0 | D33: =DataIngresosRegulados!D34+DataIngresosRegulados!D67+DataIngresosRegulados!D103 -> 0 | E33: =DataIngresosRegulados!E34+DataIngresosRegulados!E67+DataIngresosRegulados!E103 -> 6.502754857 | F33: =DataIngresosRegulados!F34+DataIngresosRegulados!F67+DataIngresosRegulados!F103 -> 6.890452979 | G33: =DataIngresosRegulados!G34+DataIngresosRegulados!G67+DataIngresosRegulados!G103 -> 7.301647956 | H33: =DataIngresosRegulados!H34+DataIngresosRegulados!H67+DataIngresosRegulados!H103 -> 7.739276896
B34: Más de 70 t hasta 105 t | C34: =DataIngresosRegulados!C35+DataIngresosRegulados!C68+DataIngresosRegulados!C104 -> 0 | D34: =DataIngresosRegulados!D35+DataIngresosRegulados!D68+DataIngresosRegulados!D104 -> 0 | E34: =DataIngresosRegulados!E35+DataIngresosRegulados!E68+DataIngresosRegulados!E104 -> 59.22456238 | F34: =DataIngresosRegulados!F35+DataIngresosRegulados!F68+DataIngresosRegulados!F104 -> 62.77779065 | G34: =DataIngresosRegulados!G35+DataIngresosRegulados!G68+DataIngresosRegulados!G104 -> 66.54444445 | H34: =DataIngresosRegulados!H35+DataIngresosRegulados!H68+DataIngresosRegulados!H104 -> 70.53679746
B35: Más de 105 t | C35: =DataIngresosRegulados!C36+DataIngresosRegulados!C69+DataIngresosRegulados!C105 -> 0 | D35: =DataIngresosRegulados!D36+DataIngresosRegulados!D69+DataIngresosRegulados!D105 -> 0 | E35: =DataIngresosRegulados!E36+DataIngresosRegulados!E69+DataIngresosRegulados!E105 -> 0 | F35: =DataIngresosRegulados!F36+DataIngresosRegulados!F69+DataIngresosRegulados!F105 -> 0 | G35: =DataIngresosRegulados!G36+DataIngresosRegulados!G69+DataIngresosRegulados!G105 -> 0 | H35: =DataIngresosRegulados!H36+DataIngresosRegulados!H69+DataIngresosRegulados!H105 -> 0
B37: Uso de Mangas | C37: =DataIngresosRegulados!C38+DataIngresosRegulados!C71+DataIngresosRegulados!C107 -> 0 | D37: =DataIngresosRegulados!D38+DataIngresosRegulados!D71+DataIngresosRegulados!D107 -> 0 | E37: =DataIngresosRegulados!E38+DataIngresosRegulados!E71+DataIngresosRegulados!E107 -> 544939.9762 | F37: =DataIngresosRegulados!F38+DataIngresosRegulados!F71+DataIngresosRegulados!F107 -> 583047.3431 | G37: =DataIngresosRegulados!G38+DataIngresosRegulados!G71+DataIngresosRegulados!G107 -> 623840.2838 | H37: =DataIngresosRegulados!H38+DataIngresosRegulados!H71+DataIngresosRegulados!H107 -> 667504.0103
B39: Total ingresos regulados | E39: =+E6+E7+E9+E16+E23+E30+E37 -> 20439859.74 | F39: =+F6+F7+F9+F16+F23+F30+F37 -> 21808166.8 | G39: =+G6+G7+G9+G16+G23+G30+G37 -> 23269481.25 | H39: =+H6+H7+H9+H16+H23+H30+H37 -> 24830187.48

Sheet Ingresos no atribuibles
A1: Índice | B1: Ingresos totales (Usuarios no atribuibles)
B3: I. Ingresos 2017 - 2020
B5: Servicios | D5: 2013 | E5: =D5+1 -> 2014 | F5: 2015 | G5: 2016 | H5: 2017 | I5: 2018 | J5: 2019 | K5: 2020 | L5: =K5+1 -> 2021 | M5: =L5+1 -> 2022 | N5: =M5+1 -> 2023
B6: PEN
B7: SNAR Nacional | D7: 27567342.71 | E7: 30442559.42 | F7: 35829654.75 | G7: 40503543.98 | H7: 43052814.27 | I7: 41025757.85 | J7: 45909588.68 | K7: 18134529.4 | L7: 30272741.3 | M7: 38846816.78 | N7: 36013126.67
B8: SNAR Internacional | D8: 49743452.48 | E8: 55787699.61 | F8: 73887223.54 | G8: 84954054.25 | H8: 86951687.9 | I8: 78813976.16 | J8: 82295669.15 | K8: 27439909.27 | L8: 37252709.67 | M8: 58739578.96 | N8: 59880854.57
B9: Aproximación | D9: 8178529.21 | E9: 9353214.703 | F9: 12377551.35 | G9: 13775449 | H9: 14800188.8 | I9: 15928635.19 | J9: 17280854.52 | K9: 6441449.03 | L9: 10610934.72 | M9: 17495377.66 | N9: 21652974.44
B10: Sobrevuelo | D10: 63601150.73 | E10: 69564492.29 | F10: 76930967.8 | G10: 93586740.16 | H10: 95475429.82 | I10: 83463263.9 | J10: 88139139.92 | K10: 52119666.8 | L10: 71095450.25 | M10: 93723332.98 | N10: 84947876.58
B11: Pista y Rodadura | D11: 5140137.29 | E11: 5520901.73 | F11: 7679136.23 | G11: 9113523.256 | H11: 8934732.66 | I11: 10139230.24 | J11: 10111800.48 | K11: 2795176.5 | L11: 4673213.05 | M11: 9595331.091 | N11: 10031648.05
B12: TC Nominal | F12: =FuenteMacro!C58 -> 3.185516129 | G12: =FuenteMacro!D58 -> 3.374992032 | H12: =FuenteMacro!E58 -> 3.261108434 | I12: =FuenteMacro!F58 -> 3.28624187 | J12: =FuenteMacro!G58 -> 3.336917671 | K12: =FuenteMacro!H58 -> 3.496066929 | L12: =FuenteMacro!I58 -> 3.882629482 | M12: =FuenteMacro!J58 -> 3.84 | N12: =FuenteMacro!K58 -> 3.75
B13: USD
B14: SNAR Nacional | F14: =+F7/$F$12 -> 11247676.45 | G14: =+G7/$G$12 -> 12001078.4 | H14: =+H7/$H$12 -> 13201895.96 | I14: =+I7/$I$12 -> 12484095.66 | J14: =+J7/$J$12 -> 13758082.52 | K14: =+K7/$K$12 -> 5187123.064 | L14: =+L7/$L$12 -> 7796968.896 | M14: =+M7/$M$12 -> 10116358.54 | N14: =+N7/$N$12 -> 9603500.446
B15: SNAR Internacional | F15: =+F8/$F$12 -> 23194741.62 | G15: =+G8/$G$12 -> 25171631.06 | H15: =+H8/$H$12 -> 26663231.13 | I15: =+I8/$I$12 -> 23983011.38 | J15: =+J8/$J$12 -> 24662181.47 | K15: =+K8/$K$12 -> 7848794.038 | L15: =+L8/$L$12 -> 9594711.48 | M15: =+M8/$M$12 -> 15296765.35 | N15: =+N8/$N$12 -> 15968227.89
B16: Aproximación | F16: =+F9/$F$12 -> 3885571.71 | G16: =+G9/$G$12 -> 4081624.156 | H16: =+H9/$H$12 -> 4538392.116 | I16: =+I9/$I$12 -> 4847067.205 | J16: =+J9/$J$12 -> 5178687.707 | K16: =+K9/$K$12 -> 1842484.472 | L16: =+L9/$L$12 -> 2732924.882 | M16: =+M9/$M$12 -> 4556087.932 | N16: =+N9/$N$12 -> 5774126.517
B17: Sobrevuelo | F17: =+F10/$F$12 -> 24150236.47 | G17: =+G10/$G$12 -> 27729469.96 | H17: =+H10/$H$12 -> 29276987.18 | I17: =+I10/$I$12 -> 25397784.83 | J17: =+J10/$J$12 -> 26413339.68 | K17: =+K10/$K$12 -> 14908086.1 | L17: =+L10/$L$12 -> 18311160.15 | M17: =+M10/$M$12 -> 24407117.96 | N17: =+N10/$N$12 -> 22652767.09
B18: Pista y Rodadura | F18: =+F11/$F$12 -> 2410641.139 | G18: =+G11/$G$12 -> 2700309.562 | H18: =+H11/$H$12 -> 2739783.985 | I18: =+I11/$I$12 -> 3085357.27 | J18: =+J11/$J$12 -> 3030281.678 | K18: =+K11/$K$12 -> 799520.3056 | L18: =+L11/$L$12 -> 1203620.658 | M18: =+M11/$M$12 -> 2498784.138 | N18: =+N11/$N$12 -> 2675106.146
B19: Total | H19: =SUM(H14:H18) -> 76420290.37 | I19: 69797316.34 | J19: 73042573.06 | K19: 30586007.98 | L19: 39639386.07 | M19: 56875113.92 | N19: 56673728.08
B21: II. Tarifa por operaciones de carácter permanente y circunstancial
B23: Servicios | H23: 2017 | I23: 2018 | J23: 2019 | K23: 2020 | L23: 2021 | M23: 2022 | N23: 2023
B24: SNAR Nacional | H24: =+H14/$H$19 -> 0.1727538053 | I24: =+I14/$I$19 -> 0.1788621155 | J24: =+J14/$J$19 -> 0.1883570354 | K24: =+K14/$K$19 -> 0.1695913722 | L24: =+L14/$L$19 -> 0.196697519 | M24: =+M14/$M$19 -> 0.1778696839 | N24: =+N14/$N$19 -> 0.1694524213
B25: SNAR Internacional | H25: =+H15/$H$19 -> 0.34890251 | I25: =+I15/$I$19 -> 0.3436093626 | J25: =+J15/$J$19 -> 0.3376411925 | K25: =+K15/$K$19 -> 0.2566138753 | L25: =+L15/$L$19 -> 0.2420499516 | M25: =+M15/$M$19 -> 0.2689535774 | N25: =+N15/$N$19 -> 0.2817571461
B26: Aproximación | H26: =+H16/$H$19 -> 0.05938726605 | I26: =+I16/$I$19 -> 0.06944489357 | J26: =+J16/$J$19 -> 0.07089957939 | K26: =+K16/$K$19 -> 0.06023945567 | L26: =+L16/$L$19 -> 0.06894468238 | M26: =+M16/$M$19 -> 0.08010688011 | N26: =+N16/$N$19 -> 0.1018836543
B27: Sobrevuelo | H27: =+H17/$H$19 -> 0.3831048932 | I27: =+I17/$I$19 -> 0.3638791025 | J27: =+J17/$J$19 -> 0.3616156794 | K27: =+K17/$K$19 -> 0.4874152296 | L27: =+L17/$L$19 -> 0.4619435861 | M27: =+M17/$M$19 -> 0.4291352804 | N27: =+N17/$N$19 -> 0.3997049048
B28: Pista y Rodadura | H28: =+H18/$H$19 -> 0.03585152545 | I28: =+I18/$I$19 -> 0.04420452579 | J28: =+J18/$J$19 -> 0.04148651329 | K28: =+K18/$K$19 -> 0.02614006725 | L28: =+L18/$L$19 -> 0.03036426083 | M28: =+M18/$M$19 -> 0.04393457816 | N28: =+N18/$N$19 -> 0.04720187354
B29: Total | H29: =SUM(H24:H28) -> 1 | I29: 1 | J29: 1 | K29: 1 | L29: 1 | M29: 1 | N29: 1
B32: Servicios | H32: 2017 | I32: 2018 | J32: 2019 | K32: 2020 | L32: 2021 | M32: 2022 | N32: 2023
B33: SNAR Nacional | H33: =+H14/($H$14+$H$16+$H$18) -> 0.6446215581 | I33: =+I14/(I$14+I$16+I$18) -> 0.6114702984 | J33: 0.6263053677 | K33: 0.6625416226 | L33: 0.664504138 | M33: 0.5891458084 | N33: 0.531969336
B34: SNAR Internacional
B35: Aproximación | H35: =+H16/(H$14+H$16+H$18) -> 0.2216003978 | I35: 0.2374090772 | J35: 0.2357479615 | K35: 0.2353371294 | L35: 0.2329161393 | M35: 0.265332639 | N35: 0.319847775
B36: Sobrevuelo
B37: Pista y Rodadura | H37: =+H18/(H$14+H$16+H$18) -> 0.1337780442 | I37: 0.1511206244 | J37: 0.1379466708 | K37: 0.102121248 | L37: 0.1025797227 | M37: 0.1455215526 | N37: 0.148182889
B38: Total | H38: =SUM(H33:H37) -> 1 | I38: 1 | J38: 1 | K38: 1 | L38: 1 | M38: 1 | N38: 1
B40: III. Fuente de ingreso en USD, inc. IGV
B42: Fuente de ingresos | C42: Moneda | H42: 2017 | I42: 2018 | J42: 2019 | K42: 2020 | L42: 2021 | M42: 2022 | N42: 2023
B43: Tarifa por operaciones de carácter permanente y circunstancial | C43: USD | H43: 17428.6 | I43: 17013.24 | J43: 19428.7 | K43: 28620.9 | L43: 22427.24576 | M43: 18363.52 | N43: 6502
B44: Ingresos por cobro de tarifa por operaciones de servicio privado en la región amazonica y alto andina del Perú.** | C44: USD | H44: no registra | I44: no registra | J44: no registra | K44: 106.0584 | L44: 0 | M44: 0 | N44: 0
B45: Tarifa operacional anual por vuelos de prueba y/o entrenamiento aplicable solo en los aeropuertos de uso público administrados por CORPAC S.A. | C45: USD | H45: 7761.6034 | I45: 6876.8394 | J45: 11739.1946 | K45: 9499.7906 | L45: 9335.669492 | M45: 7016.34 | N45: 6640.26
B47: Fuente de ingresos | C47: Moneda | H47: 2017 | I47: 2018 | J47: 2019 | K47: 2020 | L47: 2021 | M47: 2022 | N47: 2023
B48: Tarifa por operaciones de carácter permanente y circunstancial | C48: USD | H48: =+H43/1.18 -> 14770 | I48: 14418 | J48: 16465 | K48: 24255 | L48: 19006.14048 | M48: 15562.30508 | N48: 5510.169492
B49: Ingresos por cobro de tarifa por operaciones de servicio privado en la región amazonica y alto andina del Perú.** | C49: USD | H49: - | I49: - | J49: - | K49: =+K44/1.18 -> 89.88 | L49: 0 | M49: 0 | N49: 0
B50: Tarifa operacional anual por vuelos de prueba y/o entrenamiento aplicable solo en los aeropuertos de uso público administrados por CORPAC S.A. | C50: USD | H50: =+H45/1.18 -> 6577.63 | I50: =+I45/1.18 -> 5827.83 | J50: =+J45/1.18 -> 9948.47 | K50: 8050.67 | L50: 7911.584315 | M50: 5946.050847 | N50: 5627.338983
B52: IV. Servicos que comprende cada fuente de ingreso en USD, inc. IGV
B54: Fuente de ingresos | C54: Servicios que comprende | H54: 2017 | I54: 2018 | J54: 2019 | K54: 2020 | L54: 2021 | M54: 2022 | N54: 2023
B55: Tarifa por operaciones de carácter permanente y circunstancial | C55: SNAR Nacional | H55: =+H48*H24 -> 2551.573704 | I55: 2578.833981 | J55: 3101.298588 | K55: 4113.438732 | L55: 3738.460678 | M55: 2768.062286 | N55: 933.7115619
C56: SNAR Internacional | H56: =+H48*H25 -> 5153.290073 | I56: 4954.15979 | J56: 5559.262235 | K56: 6224.169545 | L56: 4600.435383 | M56: 4185.537625 | N56: 1552.529631
C57: Aproximación | H57: =+H48*H26 -> 877.1499195 | I57: 1001.256476 | J57: 1167.361575 | K57: 1461.107997 | L57: 1310.372319 | M57: 1246.647708 | N57: 561.3962034
C58: Sobrevuelo | H58: =+H48*H27 -> 5658.459273 | I58: 5246.4089 | J58: 5954.002161 | K58: 11822.25639 | L58: 8779.76469 | M58: 6678.334157 | N58: 2202.441772
C59: Pista y Rodadura | H59: =+H48*H28 -> 529.5270308 | I59: 637.3408528 | J59: 683.0754413 | K59: 634.0273312 | L59: 577.1074068 | M59: 683.7233092 | N59: 260.0903235
B60: Tarifa operacional anual por vuelos de prueba y/o entrenamiento aplicable solo en los aeropuertos de uso público administrados por CORPAC S.A. | C60: SNAR Nacional | H60: =+H50*H33 -> 4240.082099 | I60: 3563.544949 | J60: 6230.780161 | K60: 5333.903965 | L60: 5257.280515 | M60: 3503.090933 | N60: 2993.571782
C61: Aproximación | H61: =+H50*H35 -> 1457.605424 | I61: 1383.579743 | J61: 2345.331523 | K61: 1894.621568 | L61: 1842.735674 | M61: 1577.681363 | N61: 1799.891853
C62: Pista y Rodadura | H62: =+H50*H37 -> 879.9424766 | I62: 880.7053084 | J62: 1372.358316 | K62: 822.1444674 | L62: 811.5681255 | M62: 865.2785513 | N62: 833.8753478
B64: V. Ingresos por usuarios no atribuibles, por servicio aeroportuario (Expresado en USD) | M64: =+Demanda_G3!M2 -> Pasajeros nacional | O64: 0.5 | P64: 0.07 | Q64: 0.07 | R64: 0.07
B66: Servicio | C66: Moneda | H66: 2017 | I66: 2018 | J66: 2019 | K66: 2020 | L66: 2021 | M66: 2022 | N66: 2023 | O66: 2024 | P66: 2025 | Q66: 2026 | R66: 2027
B67: Pista y rodadura | C67: USD | H67: =+H59+H62 -> 1409.469507 | I67: 1518.046161 | J67: 2055.433757 | K67: 1456.171799 | L67: 1388.675532 | M67: 1549.00186 | N67: 1093.965671 | O67: =+N67*(1+O64) -> 1640.948507 | P67: =+O67*(1+P64) -> 1755.814902 | Q67: =+P67*(1+Q64) -> 1878.721946 | R67: =+Q67*(1+R64) -> 2010.232482 | U67: =(O67/N67)-1 -> 0.5 | V67: =(P67/O67)-1 -> 0.07 | W67: =(Q67/P67)-1 -> 0.07 | X67: =(R67/Q67)-1 -> 0.07
B68: Total ingresos por usuarios no atribuibles | H68: =SUM(H67:H67) -> 1409.469507 | I68: 1518.046161 | J68: 2055.433757 | K68: 1456.171799 | L68: 1388.675532 | M68: 1549.00186 | N68: 1093.965671 | O68: 1640.948507 | P68: 1755.814902 | Q68: 1878.721946 | R68: 2010.232482

Sheet FuenteInversionesProgramadas
A1: Índice | B1: PROGRAMA DE INVERSIONES AEROPORTUARIO 2024 - 2027
B2: (En Soles)
B4: I. Fuente Inversiones
B5: AEROPORTUARIO - SIN CONCESIÓN
C6: SERVICIO | D6: Programación Anual
B7: DESCRIPCIÓN | C7: ASIGNADO | D7: 2024 | E7: 2025 | F7: 2026 | G7: 2027 | I7: TOTAL | K7: Tipo de activo | L7: ¿Incluida en el convenio? | M7: ¿Incluido en el PMI?
B9: AEROPUERTO DE CUSCO | D9: =+D10 -> 1302292 | E9: 1530000 | F9: 3400000 | G9: 1500000 | H9: 0 | I9: 7732292
B10: GASTOS DE CAPITAL NO LIGADO A PROYECTOS | D10: =SUM(D11:D13) -> 1302292 | E10: 1530000 | F10: 3400000 | G10: 1500000 | H10: 0 | I10: 7732292
B11: - Adquisición de equipos de terminal | C11: TUUA | D11: 550000 | E11: 1450000 | I11: =SUM(D11:H11) -> 2000000 | K11: Maquinaria y equipo | L11: No convenio | M11: No PMI
B12: - Equipos de seguridad | C12: TUUA | D12: 518137 | E12: 80000 | F12: 3000000 | I12: =SUM(D12:H12) -> 3598137 | K12: Maquinaria y equipo | L12: No convenio | M12: No PMI
B13: - Equipos de Salvamento y Extinción de Incendios | C13: A/D -TUUA | D13: 234155 | E13: 0 | F13: 400000 | G13: 1500000 | I13: =SUM(D13:H13) -> 2134155 | K13: Maquinaria y equipo | L13: No convenio | M13: No PMI
B15: AEROPUERTO DE CHIMBOTE | D15: =+D16 -> 9689686 | E15: 8280000 | F15: 1900000 | G15: 120000 | H15: 0 | I15: 19989686
B16: GASTOS DE CAPITAL NO LIGADO A PROYECTOS | D16: =SUM(D17:D21) -> 9689686 | E16: =SUM(E17:E21) -> 8280000 | F16: =SUM(F17:F21) -> 1900000 | G16: =SUM(G17:G21) -> 120000 | H16: =SUM(H18:H21) -> 0 | I16: =SUM(I17:I21) -> 19989686
B17: - Adquisición de equipos de terminal | D17: 176587 | E17: 0 | I17: =SUM(D17:H17) -> 176587 | K17: Maquinaria y equipo | L17: No convenio | M17: No PMI
B18: - Equipos de seguridad | C18: TUUA | D18: 13868 | E18: 80000 | G18: 120000 | I18: =SUM(D18:H18) -> 213868 | K18: Maquinaria y equipo | L18: No convenio | M18: No PMI
B19: - Equipos de Salvamento y Extinción de Incendios | C19: A/D | D19: 49231 | E19: 0 | I19: =SUM(D19:H19) -> 49231 | K19: Maquinaria y equipo | L19: No convenio | M19: No PMI
B20: - Cerco perimetrico | C20: A/D-TUUA | D20: 9450000 | E20: 8200000 | I20: =SUM(D20:H20) -> 17650000 | K20: Edificaciones y construcciones | L20: No convenio | M20: No PMI
B21: - Construcción Cuartel SEI | C21: A/D | F21: 1900000 | I21: =SUM(D21:H21) -> 1900000 | K21: Edificaciones y construcciones | L21: No convenio | M21: No PMI
B23: AEROPUERTO DE HUANUCO | D23: =+D24 -> 373004 | E23: 398738 | F23: 472000 | G23: 120800 | H23: 0 | I23: 1364542
B24: GASTOS DE CAPITAL NO LIGADO A PROYECTOS | D24: =SUM(D25:D27) -> 373004 | E24: 398738 | F24: 472000 | G24: 120800 | H24: 0 | I24: 1364542
B25: - Adquisición de equipos de terminal | C25: TUUA | D25: 339136 | E25: 53060 | F25: 72000 | G25: 800 | I25: =SUM(D25:H25) -> 464996 | K25: Maquinaria y equipo | L25: No convenio | M25: No PMI
B26: - Equipos de seguridad | C26: TUUA | D26: 13868 | E26: 345678 | G26: 120000 | I26: =SUM(D26:H26) -> 479546 | K26: Maquinaria y equipo | L26: No convenio | M26: No PMI
B27: - Equipos de Salvamento y Extinción de Incendios | C27: A/D -TUUA | D27: 20000 | E27: 0 | F27: 400000 | I27: =SUM(D27:H27) -> 420000 | K27: Maquinaria y equipo | L27: No convenio | M27: No PMI
B29: AEROPUERTO DE ILO | D29: =+D30 -> 105175 | E29: 0 | F29: 751079 | G29: 395518 | H29: 0 | I29: 1251772
B30: GASTOS DE CAPITAL NO LIGADO A PROYECTOS | D30: =SUM(D31:D33) -> 105175 | E30: 0 | F30: 751079 | G30: 395518 | H30: 0 | I30: 1251772
B31: - Adquisición de equipos de terminal | C31: TUUA | D31: 42077 | E31: 0 | F31: 663079 | G31: 140500 | I31: =SUM(D31:H31) -> 845656 | K31: Maquinaria y equipo | L31: No convenio | M31: No PMI
B32: - Equipos de seguridad | C32: TUUA | D32: 13867 | E32: 0 | F32: 88000 | G32: 255018 | I32: =SUM(D32:H32) -> 356885 | K32: Maquinaria y equipo | L32: No convenio | M32: No PMI
B33: - Equipos de Salvamento y Extinción de Incendios | C33: A/D -TUUA | D33: 49231 | E33: 0 | I33: =SUM(D33:H33) -> 49231 | K33: Maquinaria y equipo | L33: No convenio | M33: No PMI
B35: AERODROMO DE JAÉN | D35: =+D36 -> 100463 | E35: 393738 | F35: 610663 | G35: 2120000 | H35: 0 | I35: 3224864
B36: GASTOS DE CAPITAL NO LIGADO A PROYECTOS | D36: =SUM(D37:D40) -> 100463 | E36: 393738 | F36: 610663 | G36: 2120000 | H36: 0 | I36: 3224864
B37: - Adquisición de equipos de terminal | C37: TUUA | D37: 42077 | E37: 48060 | F37: 610663 | I37: =SUM(D37:H37) -> 700800 | K37: Maquinaria y equipo | L37: No convenio | M37: No PMI | O37: =D163+D170-D156 -> 0 | P37: =E163+E170-E156 -> 0 | Q37: =F163+F170-F156 -> 0 | R37: =G163+G170-G156 -> 0 | S37: =H163+H170-H156 -> 0
B38: - Equipos de seguridad | C38: TUUA | D38: 1155 | E38: 345678 | G38: 120000 | I38: =SUM(D38:H38) -> 466833 | K38: Maquinaria y equipo | L38: No convenio | M38: No PMI
B39: - Equipos de Salvamento y Extinción de Incendios | C39: A/D -TUUA | D39: 57231 | E39: 0 | G39: 400000 | I39: =SUM(D39:H39) -> 457231 | K39: Maquinaria y equipo | L39: No convenio | M39: No PMI
B40: - Ampliación Cuartel SEI | C40: A/D | G40: 1600000 | I40: =SUM(D40:H40) -> 1600000 | K40: Edificaciones y construcciones | L40: No convenio | M40: No PMI
B42: AEROPUERTO DE JAUJA | D42: =+D43 -> 877536 | E42: 80000 | F42: 306858 | G42: 6520000 | H42: 0 | I42: 7784394
B43: GASTOS DE CAPITAL NO LIGADO A PROYECTOS | D43: =SUM(D44:D47) -> 877536 | E43: 80000 | F43: 306858 | G43: 6520000 | H43: 0 | I43: 7784394
B44: - Adquisición de equipos de terminal | C44: TUUA | D44: 795361 | E44: 0 | I44: =SUM(D44:H44) -> 795361 | K44: Maquinaria y equipo | L44: No convenio | M44: No PMI
B45: - Equipos de seguridad | C45: TUUA | D45: 13867 | E45: 80000 | F45: 306858 | G45: 120000 | I45: =SUM(D45:H45) -> 520725 | K45: Maquinaria y equipo | L45: No convenio | M45: No PMI
B46: - Equipos de Salvamento y Extinción de Incendios | C46: A/D -TUUA | D46: 68308 | E46: 0 | G46: 400000 | I46: =SUM(D46:H46) -> 468308 | K46: Maquinaria y equipo | L46: No convenio | M46: No PMI
B47: - Cerco perimetrico | C47: A/D -TUUA | G47: 6000000 | I47: =SUM(D47:H47) -> 6000000 | K47: Edificaciones y construcciones | L47: No convenio | M47: No PMI
B49: AEROPUERTO DE JUANJUI | D49: =+D50 -> 37867 | E49: 0 | F49: 88000 | G49: 1635018 | H49: 0 | I49: 1760885
B50: GASTOS DE CAPITAL NO LIGADO A PROYECTOS | D50: =SUM(D51:D54) -> 37867 | E50: =SUM(E51:E53) -> 0 | F50: =SUM(F51:F54) -> 88000 | G50: =SUM(G51:G54) -> 1635018 | H50: =SUM(H51:H53) -> 0 | I50: =SUM(I51:I54) -> 1760885
B51: - Adquisición de equipos de terminal | C51: TUUA | D51: 12000 | E51: 0 | I51: =SUM(D51:H51) -> 12000 | K51: Maquinaria y equipo | L51: No convenio | M51: No PMI
B52: - Equipos de seguridad | C52: TUUA | D52: 13867 | E52: 0 | F52: 88000 | G52: 135018 | I52: =SUM(D52:H52) -> 236885 | K52: Maquinaria y equipo | L52: No convenio | M52: No PMI
B53: - Equipos de Salvamento y Extinción de Incendios | C53: A/D -TUUA | D53: 12000 | E53: 0 | I53: =SUM(D53:H53) -> 12000 | K53: Maquinaria y equipo | L53: No convenio | M53: No PMI
B54: - Ampliación Cuartel SEI | C54: A/D | G54: 1500000 | I54: =SUM(D54:H54) -> 1500000 | K54: Edificaciones y construcciones | L54: No convenio | M54: No PMI
B56: AERODROMO DE MAZAMARI | D56: =+D57 -> 15467 | E56: 96000 | F56: 306858 | G56: 1735018 | H56: 0 | I56: 2153343
B57: GASTOS DE CAPITAL NO LIGADO A PROYECTOS | D57: =SUM(D58:D61) -> 15467 | E57: 96000 | F57: 306858 | G57: 1735018 | H57: 0 | I57: 2153343
B58: - Adquisición de equipos de terminal | C58: TUUA | D58: 1600 | E58: 0 | I58: =SUM(D58:H58) -> 1600 | K58: Maquinaria y equipo | L58: No convenio | M58: No PMI
B59: - Equipos de seguridad | C59: TUUA | D59: 13867 | E59: 80000 | F59: 306858 | G59: 135018 | I59: =SUM(D59:H59) -> 535743 | K59: Maquinaria y equipo | L59: No convenio | M59: No PMI
B60: - Equipos de Salvamento y Extinción de Incendios | C60: A/D -TUUA | E60: 16000 | I60: =SUM(D60:H60) -> 16000 | K60: Maquinaria y equipo | L60: No convenio | M60: No PMI
B61: - Ampliación Cuartel SEI | C61: A/D | G61: 1600000 | I61: =SUM(D61:H61) -> 1600000 | K61: Edificaciones y construcciones | L61: No convenio | M61: No PMI
B63: AEROPUERTO DE NAZCA | D63: =+D64 -> 69498 | E63: 0 | F63: 0 | G63: 0 | H63: 0 | I63: 69498
B64: GASTOS DE CAPITAL NO LIGADO A PROYECTOS | D64: =SUM(D65:D69) -> 69498 | E64: 0 | F64: 0 | G64: 0 | H64: 0 | I64: 69498
B65: - Adquisición de equipos de terminal | C65: TUUA | D65: 2400 | E65: 0 | I65: =SUM(D65:H65) -> 2400 | K65: Maquinaria y equipo | L65: No convenio | M65: No PMI
B66: - Equipos de seguridad | C66: TUUA | D66: 13867 | E66: 0 | I66: =SUM(D66:H66) -> 13867 | K66: Maquinaria y equipo | L66: No convenio | M66: No PMI
B67: - Equipos de Salvamento y Extinción de Incendios | C67: A/D -TUUA | D67: 53231 | E67: 0 | I67: =SUM(D67:H67) -> 53231 | K67: Maquinaria y equipo | L67: No convenio | M67: No PMI
B68: - Cerco perimetrico | C68: A/D -TUUA | I68: =SUM(D68:H68) -> 0 | K68: Edificaciones y construcciones | L68: No convenio | M68: No PMI
B69: - Cuartel SEI | C69: A/D | I69: =SUM(D69:H69) -> 0 | K69: Edificaciones y construcciones | L69: No convenio | M69: No PMI
B71: AEROPUERTO DE RIOJA | D71: =+D72 -> 63098 | E71: 0 | F71: 1900000 | G71: 135018 | H71: 0 | I71: 2098116
B72: GASTOS DE CAPITAL NO LIGADO A PROYECTOS | D72: =SUM(D73:D76) -> 63098 | E72: 0 | F72: 1900000 | G72: 135018 | H72: 0 | I72: 2098116
B73: - Adquisición de equipos de terminal | C73: TUUA | E73: 0 | I73: =SUM(D73:H73) -> 0 | K73: Maquinaria y equipo | L73: No convenio | M73: No PMI
B74: - Equipos de seguridad | C74: TUUA | D74: 13867 | E74: 0 | G74: 135018 | I74: =SUM(D74:H74) -> 148885 | K74: Maquinaria y equipo | L74: No convenio | M74: No PMI
B75: - Equipos de Salvamento y Extinción de Incendios | C75: A/D -TUUA | D75: 49231 | E75: 0 | I75: =SUM(D75:H75) -> 49231 | K75: Maquinaria y equipo | L75: No convenio | M75: No PMI
B76: - Construcción Cuartel SEI | C76: A/D | F76: 1900000 | I76: =SUM(D76:H76) -> 1900000 | K76: Edificaciones y construcciones | L76: No convenio | M76: No PMI
B78: AEROPUERTO DE TINGO MARIA | D78: =+D79 -> 810689 | E78: 80000 | F78: 55916 | G78: 793668 | H78: 0 | I78: 1740273
B79: GASTOS DE CAPITAL NO LIGADO A PROYECTOS | D79: =SUM(D80:D82) -> 810689 | E79: 80000 | F79: 55916 | G79: 793668 | H79: 0 | I79: 1740273
B80: - Adquisición de equipos de terminal | C80: TUUA | D80: 780822 | E80: 0 | F80: 55916 | G80: 538650 | I80: =SUM(D80:H80) -> 1375388 | K80: Maquinaria y equipo | L80: No convenio | M80: No PMI
B81: - Equipos de seguridad | C81: TUUA | D81: 13867 | E81: 80000 | G81: 255018 | I81: =SUM(D81:H81) -> 348885 | K81: Maquinaria y equipo | L81: No convenio | M81: No PMI
B82: - Equipos de Salvamento y Extinción de Incendios | C82: A/D -TUUA | D82: 16000 | E82: 0 | I82: =SUM(D82:H82) -> 16000 | K82: Maquinaria y equipo | L82: No convenio | M82: No PMI
B84: AEROPUERTO DE TOCACHE | D84: =+D85 -> 0 | E84: 5080000 | F84: 0 | G84: 4635018 | H84: 0 | I84: 9715018
B85: GASTOS DE CAPITAL NO LIGADO A PROYECTOS | D85: =SUM(D86:D91) -> 0 | E85: 5080000 | F85: 0 | G85: 4635018 | H85: 0 | I85: 9715018
B86: - Adquisición de equipos de terminal | C86: TUUA | E86: 0 | I86: =SUM(D86:H86) -> 0 | K86: Maquinaria y equipo | L86: No convenio | M86: No PMI
B87: - Equipos de seguridad | C87: TUUA | E87: 80000 | I87: 80000 | K87: Maquinaria y equipo | L87: No convenio | M87: No PMI
B88: - Equipos de Salvamento y Extinción de Incendios | C88: A/D -TUUA | E88: 0 | G88: 135018 | I88: 135018 | K88: Maquinaria y equipo | L88: No convenio | M88: No PMI
B89: . Vehículo SEI | C89: A/D | G89: 3000000 | I89: 3000000 | K89: Vehículos | L89: No convenio | M89: No PMI
B90: - Cerco perimetrico | C90: A/D -TUUA | E90: 5000000 | I90: 5000000 | K90: Edificaciones y construcciones | L90: No convenio | M90: No PMI
B91: - Ampliación Cuartel SEI | C91: A/D | G91: 1500000 | I91: 1500000 | K91: Edificaciones y construcciones | L91: No convenio | M91: No PMI
B93: AEROPUERTO DE YURIMAGUAS | D93: =+D94 -> 409851 | E93: 83500 | F93: 0 | G93: 597018 | H93: 0 | I93: 1090369
B94: GASTOS DE CAPITAL NO LIGADO A PROYECTOS | D94: =SUM(D95:D97) -> 409851 | E94: 83500 | F94: 0 | G94: 597018 | H94: 0 | I94: 1090369
B95: - Adquisición de equipos de terminal | C95: TUUA | D95: 343915 | E95: 3500 | G95: 342000 | I95: =SUM(D95:H95) -> 689415 | K95: Maquinaria y equipo | L95: No convenio | M95: No PMI
B96: - Equipos de seguridad | C96: TUUA | D96: 12705 | E96: 80000 | G96: 255018 | I96: =SUM(D96:H96) -> 347723 | K96: Maquinaria y equipo | L96: No convenio | M96: No PMI
B97: - Equipos de Salvamento y Extinción de Incendios | C97: A/D -TUUA | D97: 53231 | E97: 0 | I97: =SUM(D97:H97) -> 53231 | K97: Maquinaria y equipo | L97: No convenio | M97: No PMI
B100: TOTAL | D100: =+D93+D84+D78+D71+D63+D56+D49+D42+D35+D29+D23+D15+D9 -> 13854626 | E100: 16021976 | F100: 9791374 | G100: 20307076 | H100: 0 | I100: 59975052
B102: AEROPORTUARIO
C103: SERVICIO | D103: Programación Anual
B104: DESCRIPCIÓN | C104: ASIGNADO | D104: 2024 | E104: 2025 | F104: 2026 | G104: 2027 | I104: TOTAL | K104: Tipo de activo | L104: ¿Incluida en el convenio? | M104: ¿Incluido en el PMI?
B106: AERÓDROMO DE ATALAYA | D106: =+D107 -> 37155 | E106: 800 | F106: 88000 | G106: 138518 | H106: 0 | I106: 264473
B107: GASTOS DE CAPITAL NO LIGADO A PROYECTOS | D107: =SUM(D108:D111) -> 37155 | E107: 800 | F107: 88000 | G107: =SUM(G108:G111) -> 138518 | H107: =SUM(H108:H111) -> 0 | I107: 264473
B108: - Adquisición de equipos de terminal | C108: TUUA | D108: 20000 | E108: 800 | G108: 3500 | I108: =SUM(D108:H108) -> 24300 | K108: Maquinaria y equipo | L108: No convenio | M108: No PMI
B109: - Equipos de seguridad | C109: TUUA | D109: 1155 | E109: 0 | F109: 88000 | G109: 135018 | I109: =SUM(D109:H109) -> 224173 | K109: Maquinaria y equipo | L109: No convenio | M109: No PMI
B110: - Equipos de Salvamento y Extinción de Incendios | C110: A/D -TUUA | D110: 16000 | E110: 0 | I110: =SUM(D110:H110) -> 16000 | K110: Maquinaria y equipo | L110: No convenio | M110: No PMI
B111: - Construcción Cuartel SEI | C111: A/D | I111: =SUM(D111:H111) -> 0 | K111: Edificaciones y construcciones | L111: No convenio | M111: No PMI
B113: AEROPUERTO DE ANDAHUAYLAS | D113: =+D114 -> 61944 | E113: 0 | F113: 344000 | G113: 5000 | H113: 0 | I113: 410944
B114: GASTOS DE CAPITAL NO LIGADO A PROYECTOS | D114: =SUM(D115:D117) -> 61944 | E114: 0 | F114: 344000 | G114: 5000 | H114: 0 | I114: 410944
B115: - Adquisición de equipos de terminal | C115: TUUA | E115: 0 | F115: 344000 | G115: 5000 | I115: =SUM(D115:H115) -> 349000 | K115: Maquinaria y equipo | L115: No convenio | M115: No PMI
B116: - Equipos de seguridad | C116: TUUA | D116: 12713 | E116: 0 | I116: =SUM(D116:H116) -> 12713 | K116: Maquinaria y equipo | L116: No convenio | M116: No PMI
B117: - Equipos de Salvamento y Extinción de Incendios | C117: A/D -TUUA | D117: 49231 | E117: 0 | I117: =SUM(D117:H117) -> 49231 | K117: Maquinaria y equipo | L117: No convenio | M117: No PMI
B119: AERODROMO DE MOQUEGUA | D119: =+D120 -> 26312 | E119: 0 | F119: 0 | G119: 235318 | H119: 0 | I119: 261630
B120: GASTOS DE CAPITAL NO LIGADO A PROYECTOS | D120: =SUM(D121:D123) -> 26312 | E120: 0 | F120: 0 | G120: 235318 | H120: 0 | I120: 261630
B121: - Equipos de terminal | C121: TUUA | D121: 1600 | E121: 0 | G121: 3500 | I121: =SUM(D121:H121) -> 5100 | K121: Maquinaria y equipo | L121: No convenio | M121: No PMI
B122: - Equipos de seguridad | C122: TUUA | D122: 12712 | E122: 0 | G122: 231818 | I122: =SUM(D122:H122) -> 244530 | K122: Maquinaria y equipo | L122: No convenio | M122: No PMI
B123: - Equipos de Salvamento y Extinción de Incendios | C123: A/D -TUUA | D123: 12000 | E123: 0 | I123: =SUM(D123:H123) -> 12000 | K123: Maquinaria y equipo | L123: No convenio | M123: No PMI
B125: AERODROMO RODRIGUEZ DE MENDOZA | D125: =+D126 -> 0 | E125: 0 | F125: 653150 | G125: 6000000 | H125: 0 | I125: 6653150
B126: GASTOS DE CAPITAL NO LIGADO A PROYECTOS | D126: =SUM(D127:D129) -> 0 | E126: 0 | F126: 653150 | G126: 6000000 | H126: 0 | I126: 6653150
B127: - Equipos de terminal | C127: TUUA | E127: 0 | F127: 609150 | I127: =SUM(D127:H127) -> 609150 | K127: Maquinaria y equipo | L127: No convenio | M127: No PMI
B128: - Equipos de seguridad | C128: TUUA | E128: 0 | F128: 44000 | I128: =SUM(D128:H128) -> 44000 | K128: Maquinaria y equipo | L128: No convenio | M128: No PMI
B129: - Cerco perimetrico | C129: A/D -TUUA | G129: 6000000 | I129: =SUM(D129:H129) -> 6000000 | K129: Edificaciones y construcciones | L129: No convenio | M129: No PMI
B131: AERODROMO DE SAPOSOA | D131: =+D132 -> 0 | E131: 0 | F131: 6000000 | G131: 0 | H131: 0 | I131: 6000000
B132: GASTOS DE CAPITAL NO LIGADO A PROYECTOS | D132: =+D133 -> 0 | E132: 0 | F132: 6000000 | G132: 0 | H132: =+H133+H134 -> 0 | I132: 6000000
B133: - Cerco perimetrico | C133: A/D -TUUA | F133: 6000000 | I133: =SUM(D133:H133) -> 6000000 | K133: Edificaciones y construcciones | L133: No convenio | M133: No PMI
B134: - Ampliación Cuartel SEI | C134: A/D | K134: Edificaciones y construcciones | L134: No convenio | M134: No PMI
B136: TOTAL | D136: =+D131+D125+D119+D113+D106 -> 125411 | E136: 800 | F136: 7085150 | G136: 6378836 | H136: 0 | I136: 13590197
C138: SERVICIO | D138: Programación Anual
B139: DESCRIPCIÓN | C139: ASIGNADO | D139: 2024 | E139: 2025 | F139: 2026 | G139: 2027 | I139: TOTAL | K139: Tipo de activo | L139: ¿Incluida en el convenio? | M139: ¿Incluido en el PMI?
B140: PROVINCIAS
B141: GASTOS DE CAPITAL NO LIGADO A PROYECTOS
B142: SEDE CENTRAL
B143: Equipos de Seguridad | C143: TUUA | D143: 0 | E143: 165000 | F143: 558500 | G143: 856075 | I143: =SUM(D143:H143) -> 1579575 | K143: Maquinaria y equipo | L143: No convenio | M143: No PMI
B144: Equipos de Salvamento y Extinción de Incendios | C144: TUUA | D144: 0 | E144: 760000 | F144: 60000 | G144: 360000 | I144: =SUM(D144:H144) -> 1180000 | K144: Maquinaria y equipo | L144: No convenio | M144: No PMI
B147: TOTAL | D147: =SUM(D143:D146) -> 0 | E147: 925000 | F147: 618500 | G147: 1216075 | H147: 0 | I147: 2759575
B149: Gastos de capital no ligado a Proyectos TOTALES FINALES | D149: =+D147+D136+D100 -> 13980037 | E149: 16947776 | F149: 17495024 | G149: 27901987 | H149: 0 | I149: 76324824
B152: II. Consolidado de Inversiones programadas 2024 Aprobación FONAFE)
D153: Programación Anual
B154: DESCRIPCIÓN | D154: 2024 | E154: 2025 | F154: 2026 | G154: 2027
B155: Total
B156: Edificaciones y construcciones | D156: =SUMIF($K$9:$K$149,$B156,D$9:D$149) -> 9450000 | E156: 13200000 | F156: 9800000 | G156: 18200000
B157: Maquinaria y equipo | D157: 4530037 | E157: 3747776 | F157: 7695024 | G157: 6701987
B158: Vehículos | D158: 0 | E158: 0 | F158: 0 | G158: 3000000
B159: Muebles y enseres | D159: 0 | E159: 0 | F159: 0 | G159: 0
B160: Otros | D160: 0 | E160: 0 | F160: 0 | G160: 0
B161: Equipos de informática | D161: 0 | E161: 0 | F161: 0 | G161: 0
B162: =L11 -> No convenio | D162: =SUMIF($L$9:$L$149,$B$162,D$9:D$149) -> 13980037 | E162: =SUMIF($L$9:$L$149,$B$162,E$9:E$149) -> 16947776 | F162: =SUMIF($L$9:$L$149,$B$162,F$9:F$149) -> 17495024 | G162: =SUMIF($L$9:$L$149,$B$162,G$9:G$149) -> 27901987
B163: Edificaciones y construcciones | D163: =SUMIFS(D$9:D$149,$K$9:$K$149,$B163,$L$9:$L$149,$B$162) -> 9450000 | E163: 13200000 | F163: 9800000 | G163: 18200000
B164: Maquinaria y equipo | D164: 4530037 | E164: 3747776 | F164: 7695024 | G164: 6701987
B165: Vehículos | D165: 0 | E165: 0 | F165: 0 | G165: 3000000
B166: Muebles y enseres | D166: 0 | E166: 0 | F166: 0 | G166: 0
B167: Otros | D167: 0 | E167: 0 | F167: 0 | G167: 0
B168: Equipos de informática | D168: 0 | E168: 0 | F168: 0 | G168: 0
B169: Convenio | D169: =SUMIF($L9:$L149,$B$169,D$9:D$149) -> 0 | E169: =SUMIF($L9:$L149,$B$169,E$9:E$149) -> 0 | F169: =SUMIF($L9:$L149,$B$169,F$9:F$149) -> 0 | G169: =SUMIF($L9:$L149,$B$169,G$9:G$149) -> 0
B170: Edificaciones y construcciones | D170: =SUMIFS(D$9:D$149,$K$9:$K$149,$B170,$L$9:$L$149,$B$169) -> 0 | E170: 0 | F170: 0 | G170: 0
B171: Maquinaria y equipo | D171: 0 | E171: 0 | F171: 0 | G171: 0
B172: Vehículos | D172: 0 | E172: 0 | F172: 0 | G172: 0
B173: Muebles y enseres | D173: 0 | E173: 0 | F173: 0 | G173: 0
B174: Otros | D174: 0 | E174: 0 | F174: 0 | G174: 0
B175: Equipos de informática | D175: 0 | E175: 0 | F175: 0 | G175: 0
B178: III. Consolidado inversiones incluidas en el PMI 2025- 2027
F180: Programación Anual
B181: DESCRIPCIÓN | F181: 2025 | G181: 2026 | H181: 2027
B182: Total
B183: Edificaciones y construcciones | F183: =SUMIF($K$9:$K$149,$B183,E$9:E$149) -> 13200000 | G183: =SUMIF($K$9:$K$149,$B183,F$9:F$149) -> 9800000 | H183: =SUMIF($K$9:$K$149,$B183,G$9:G$149) -> 18200000 | J183: =SUMIF($K$9:$K$149,$B183,J$9:J$149) -> 0
B184: Maquinaria y equipo | F184: =SUMIF($K$9:$K$149,$B184,E$9:E$149) -> 3747776 | G184: 7695024 | H184: 6701987 | J184: 0
B185: Vehículos | F185: 0 | G185: 0 | H185: 3000000 | J185: 0
B186: Muebles y enseres | F186: 0 | G186: 0 | H186: 0 | J186: 0
B187: Otros | F187: 0 | G187: 0 | H187: 0 | J187: 0
B188: Equipos de informática | F188: 0 | G188: 0 | H188: 0 | J188: 0
B189: =M134 -> No PMI | F189: =SUMIF($M$9:$M$149,$B$189,E$9:E$149) -> 16947776 | G189: =SUMIF($M$9:$M$149,$B$189,F$9:F$149) -> 17495024 | H189: =SUMIF($M$9:$M$149,$B$189,G$9:G$149) -> 27901987 | J189: =SUMIF($M$9:$M$149,$B$189,J$9:J$149) -> 0
B190: Edificaciones y construcciones | F190: =SUMIFS(E$9:E$149,$K$9:$K$149,$B190,$M$9:$M$149,$B$189) -> 13200000 | G190: =SUMIFS(F$9:F$149,$K$9:$K$149,$B190,$M$9:$M$149,$B$189) -> 9800000 | H190: =SUMIFS(G$9:G$149,$K$9:$K$149,$B190,$M$9:$M$149,$B$189) -> 18200000 | J190: =SUMIFS(J$9:J$149,$K$9:$K$149,$B190,$M$9:$M$149,$B$189) -> 0
B191: Maquinaria y equipo | F191: =SUMIFS(E$9:E$149,$K$9:$K$149,$B191,$M$9:$M$149,$B$189) -> 3747776 | G191: 7695024 | H191: 6701987 | J191: 0
B192: Vehículos | F192: 0 | G192: 0 | H192: 3000000 | J192: 0
B193: Muebles y enseres | F193: 0 | G193: 0 | H193: 0 | J193: 0
B194: Otros | F194: 0 | G194: 0 | H194: 0 | J194: 0
B195: Equipos de informática | F195: 0 | G195: 0 | H195: 0 | J195: 0
B196: =M144 -> No PMI | F196: =SUMIF($M9:$M149,$B$196,E$9:E$149) -> 16947776 | G196: =SUMIF($M9:$M149,$B$196,F$9:F$149) -> 17495024 | H196: =SUMIF($M9:$M149,$B$196,G$9:G$149) -> 27901987 | J196: =SUMIF($M9:$M149,$B$196,J$9:J$149) -> 0
B197: Edificaciones y construcciones | F197: =SUMIFS(E$9:E$149,$K$9:$K$149,$B197,$M$9:$M$149,$B$196) -> 13200000 | G197: =SUMIFS(F$9:F$149,$K$9:$K$149,$B197,$M$9:$M$149,$B$196) -> 9800000 | H197: =SUMIFS(G$9:G$149,$K$9:$K$149,$B197,$M$9:$M$149,$B$196) -> 18200000 | J197: =SUMIFS(J$9:J$149,$K$9:$K$149,$B197,$M$9:$M$149,$B$196) -> 0
B198: Maquinaria y equipo | F198: =SUMIFS(E$9:E$149,$K$9:$K$149,$B198,$M$9:$M$149,$B$196) -> 3747776 | G198: 7695024 | H198: 6701987 | J198: 0
B199: Vehículos | F199: 0 | G199: 0 | H199: 3000000 | J199: 0
B200: Muebles y enseres | F200: 0 | G200: 0 | H200: 0 | J200: 0
B201: Otros | F201: 0 | G201: 0 | H201: 0 | J201: 0
B202: Equipos de informática | F202: 0 | G202: 0 | H202: 0 | J202: 0

Sheet InversionesProgramadas
A1: Índice
B4: I. Inversiones Programadas
D5: =SupuestosGenerales!J14 -> 3.801626957 | E5: =SupuestosGenerales!K14 -> 3.802295786 | F5: =SupuestosGenerales!L14 -> 3.803525584 | G5: =SupuestosGenerales!M14 -> 3.807775487 | H5: Tipo de cambio real
C7: Unidad Monetaria | D7: 2024 | E7: 2025 | F7: 2026 | G7: 2027
B9: Inversiones total | C9: USD | D9: =+D11+D18 -> 2287214.759 | E9: =+E11+E18 -> 2772266.261 | F9: =+F11+F18 -> 2860858.14 | G9: =+G11+G18 -> 4557555.026
B11: Sin convenio | C11: USD | D11: =SUM(D12:D17) -> 2287214.759 | E11: =SUM(E12:E17) -> 2772266.261 | F11: =SUM(F12:F17) -> 2860858.14 | G11: =SUM(G12:G17) -> 4557555.026
B12: Edificaciones y construcciones | C12: USD | D12: =D27*D$33/D$5 -> 1546074.554 | E12: =E27*E$33/E$5 -> 2159216.327 | F12: 1602536.228 | G12: 2972817.007
B13: Maquinaria y equipo | C13: USD | D13: 741140.2049 | E13: 613049.9339 | F13: 1258321.912 | G13: 1094713.238
B14: Vehículos | C14: USD | D14: =D29*D$33/D$5 -> 0 | E14: 0 | F14: 0 | G14: =G29*G$33/G$5 -> 490024.7813
B15: Muebles y enseres | C15: USD | D15: 0 | E15: 0 | F15: 0 | G15: 0
B16: Otros | C16: USD | D16: 0 | E16: 0 | F16: 0 | G16: 0
B17: Equipos de informática | C17: USD | D17: 0 | E17: 0 | F17: 0 | G17: 0
B18: Con convenio | C18: USD | D18: =SUM(D19:D24) -> 0 | E18: =SUM(E19:E24) -> 0 | F18: =SUM(F19:F24) -> 0 | G18: =SUM(G19:G24) -> 0
B19: Edificaciones y construcciones | C19: USD | D19: =D35*D$41/D$5 -> 0 | E19: 0 | F19: 0 | G19: 0
B20: Maquinaria y equipo | C20: USD | D20: 0 | E20: 0 | F20: 0 | G20: 0
B21: Vehículos | C21: USD | D21: 0 | E21: 0 | F21: 0 | G21: 0
B22: Muebles y enseres | C22: USD | D22: 0 | E22: 0 | F22: 0 | G22: 0
B23: Otros | C23: USD | D23: 0 | E23: 0 | F23: 0 | G23: 0
B24: Equipos de informática | C24: USD | D24: 0 | E24: 0 | F24: 0 | G24: 0
B26: Sin convenio | C26: PEN | D26: =SUM(D27:D32) -> 13980037 | E26: =SUM(E27:E32) -> 16947776 | F26: =SUM(F27:F32) -> 17495024 | G26: =SUM(G27:G32) -> 27901987
B27: Edificaciones y construcciones | C27: PEN | D27: =FuenteInversionesProgramadas!D163 -> 9450000 | E27: =FuenteInversionesProgramadas!E163 -> 13200000 | F27: =FuenteInversionesProgramadas!F163 -> 9800000 | G27: =FuenteInversionesProgramadas!G163 -> 18200000
B28: Maquinaria y equipo | C28: PEN | D28: =FuenteInversionesProgramadas!D164 -> 4530037 | E28: =FuenteInversionesProgramadas!E164 -> 3747776 | F28: =FuenteInversionesProgramadas!F164 -> 7695024 | G28: =FuenteInversionesProgramadas!G164 -> 6701987
B29: Vehículos | C29: PEN | D29: =FuenteInversionesProgramadas!E165 -> 0 | E29: =FuenteInversionesProgramadas!F165 -> 0 | F29: =FuenteInversionesProgramadas!G192 -> 0 | G29: =FuenteInversionesProgramadas!G165 -> 3000000
B30: Muebles y enseres | C30: PEN | D30: =FuenteInversionesProgramadas!E166 -> 0 | E30: =FuenteInversionesProgramadas!F166 -> 0 | F30: =FuenteInversionesProgramadas!G193 -> 0 | G30: =FuenteInversionesProgramadas!H193 -> 0
B31: Otros | C31: PEN | D31: =FuenteInversionesProgramadas!E167 -> 0 | E31: =FuenteInversionesProgramadas!F167 -> 0 | F31: =FuenteInversionesProgramadas!G194 -> 0 | G31: =FuenteInversionesProgramadas!H194 -> 0
B32: Equipos de informática | C32: PEN | D32: =FuenteInversionesProgramadas!E168 -> 0 | E32: =FuenteInversionesProgramadas!F168 -> 0 | F32: =FuenteInversionesProgramadas!G195 -> 0 | G32: =FuenteInversionesProgramadas!H195 -> 0
B33: Supuesto ejecución | C33: PEN | D33: =EjecucionInversiones!D67 -> 0.6219681167 | E33: =EjecucionInversiones!E67 -> 0.6219681167 | F33: =EjecucionInversiones!F67 -> 0.6219681167 | G33: =EjecucionInversiones!G67 -> 0.6219681167
B34: Con convenio | C34: PEN | D34: =SUM(D35:D40) -> 0 | E34: =SUM(E35:E40) -> 0 | F34: =SUM(F35:F40) -> 0 | G34: =SUM(G35:G40) -> 0
B35: Edificaciones y construcciones | C35: PEN | D35: =FuenteInversionesProgramadas!E170 -> 0 | E35: =FuenteInversionesProgramadas!F170 -> 0 | F35: =FuenteInversionesProgramadas!G170 -> 0 | G35: =FuenteInversionesProgramadas!H170 -> 0
B36: Maquinaria y equipo | C36: PEN | D36: =FuenteInversionesProgramadas!E171 -> 0 | E36: =FuenteInversionesProgramadas!F171 -> 0 | F36: =FuenteInversionesProgramadas!G171 -> 0 | G36: =FuenteInversionesProgramadas!H171 -> 0
B37: Vehículos | C37: PEN | D37: =FuenteInversionesProgramadas!E172 -> 0 | E37: =FuenteInversionesProgramadas!F172 -> 0 | F37: =FuenteInversionesProgramadas!G172 -> 0 | G37: =FuenteInversionesProgramadas!H172 -> 0
B38: Muebles y enseres | C38: PEN | D38: =FuenteInversionesProgramadas!E173 -> 0 | E38: =FuenteInversionesProgramadas!F173 -> 0 | F38: =FuenteInversionesProgramadas!G173 -> 0 | G38: =FuenteInversionesProgramadas!H173 -> 0
B39: Otros | C39: PEN | D39: =FuenteInversionesProgramadas!E174 -> 0 | E39: =FuenteInversionesProgramadas!F174 -> 0 | F39: =FuenteInversionesProgramadas!G174 -> 0 | G39: =FuenteInversionesProgramadas!H174 -> 0
B40: Equipos de informática | C40: PEN | D40: =FuenteInversionesProgramadas!E175 -> 0 | E40: =FuenteInversionesProgramadas!F175 -> 0 | F40: =FuenteInversionesProgramadas!G175 -> 0 | G40: =FuenteInversionesProgramadas!H175 -> 0
B41: Supuesto ejecución | C41: PEN | D41: =EjecucionInversiones!D67 -> 0.6219681167 | E41: =EjecucionInversiones!E67 -> 0.6219681167 | F41: =EjecucionInversiones!F67 -> 0.6219681167 | G41: =EjecucionInversiones!G67 -> 0.6219681167
B43: II. Depreciación Inversiones Programadas
C45: Unidad Monetaria | D45: Tasa de Depreciación | E45: 2024 | F45: 2025 | G45: 2026 | H45: 2027
B47: Inversiones total | C47: USD | E47: =E49+E56 -> 151417.7482 | F47: =F49+F56 -> 320683.5579 | G47: =G49+G56 -> 526642.5605 | H47: =H49+H56 -> 882759.6909
B49: Sin convenio | C49: USD | E49: =SUM(E50:E55) -> 151417.7482 | F49: =SUM(F50:F55) -> 320683.5579 | G49: =SUM(G50:G55) -> 526642.5605 | H49: =SUM(H50:H55) -> 882759.6909
B50: Edificaciones y construcciones | C50: USD | D50: =SupuestosGenerales!C31 -> 0.05 | E50: =$D50*D12 -> 77303.72772 | F50: =$D50*SUM(D12:E12) -> 185264.5441 | G50: =$D50*SUM(D12:F12) -> 265391.3555 | H50: =$D50*SUM(D12:G12) -> 414032.2058
B51: Maquinaria y equipo | C51: USD | D51: =SupuestosGenerales!C32 -> 0.1 | E51: 74114.02049 | F51: 135419.0139 | G51: 261251.2051 | H51: =$D51*SUM(D13:G13) -> 370722.5289
B52: Vehículos | C52: USD | D52: =SupuestosGenerales!C33 -> 0.2 | E52: 0 | F52: 0 | G52: 0 | H52: =$D52*G14 -> 98004.95626
B53: Muebles y enseres | C53: USD | D53: =SupuestosGenerales!C34 -> 0.1 | E53: 0 | F53: 0 | G53: 0 | H53: =$D53*G15 -> 0
B54: Otros | C54: USD | D54: =SupuestosGenerales!C35 -> 0.1 | E54: 0 | F54: 0 | G54: 0 | H54: =$D54*G16 -> 0
B55: Equipos de informática | C55: USD | D55: =SupuestosGenerales!C36 -> 0.25 | E55: 0 | F55: 0 | G55: 0 | H55: =$D55*G17 -> 0
B56: Con convenio | C56: USD | E56: =SUM(E57:E62) -> 0 | F56: =SUM(F57:F62) -> 0 | G56: =SUM(G57:G62) -> 0 | H56: =SUM(H57:H62) -> 0
B57: Edificaciones y construcciones | C57: USD | D57: =SupuestosGenerales!C31 -> 0.05 | E57: =$D57*D19 -> 0 | F57: =$D57*SUM(D19:E19) -> 0 | G57: =$D57*SUM(D19:F19) -> 0 | H57: =$D57*G19 -> 0
B58: Maquinaria y equipo | C58: USD | D58: =SupuestosGenerales!C32 -> 0.1 | E58: 0 | F58: 0 | G58: 0 | H58: 0
B59: Vehículos | C59: USD | D59: =SupuestosGenerales!C33 -> 0.2 | E59: 0 | F59: 0 | G59: 0 | H59: 0
B60: Muebles y enseres | C60: USD | D60: =SupuestosGenerales!C34 -> 0.1 | E60: 0 | F60: 0 | G60: 0 | H60: 0
B61: Otros | C61: USD | D61: =SupuestosGenerales!C35 -> 0.1 | E61: 0 | F61: 0 | G61: 0 | H61: 0
B62: Equipos de informática | C62: USD | D62: =SupuestosGenerales!C36 -> 0.25 | E62: 0 | F62: 0 | G62: 0 | H62: 0

Sheet Fuente terrenos
A1: Índice
B2: N° Correlativo | C2: CÓDIGO RELACIONADO CON EL ACTIVO FIJO | D2: extaer | E2: Tipo de activo | F2: DESCRIPCIÓN CORTA | G2: DESCRIPCIÓN LARGA | H2: LOCALIDAD | I2: LOCALIDAD DESCRIPCION | J2: SALDO INICIAL al 01.01.2023 | K2: ADQUISICIONES ADICIONES | L2: MEJORAS | M2: RETIRO Y/O BAJAS | N2: OTROS AJUSTES | O2: ADICIÓN AL COSTO | P2: VALOR HISTÓRICO DEL ACTIVO FIJO al 31.12.2023 | Q2: IMPORTE DEPRECIABLE al 31.12.2023 | R2: OPT IMPORTE DEPRECIABLE al 31.12.2023 | S2: VALOR NETO al 31.12.2023 | T2: VALOR NETO al 31.12.2023 | U2: SERVICIO OPT | V2: MONTO AEROPORTUARIO | W2: Driver Aeroportuario | X2: Driver Aeronavegación | Y2: Comentarios
B3: 1 | C3: CC0000001-1 | D3: =C3 -> CC0000001-1 | E3: TERRENOS | F3: CALLAO | G3: TERRENOS INSCRITOS | H3: 001 | I3: Callao | J3: 20572005.46 | K3: 0 | L3: 0 | M3: 0 | N3: 0 | O3: 0 | P3: 20572005.46 | Q3: 0 | R3: 0 | S3: 20572005.46 | T3: 20572005.46 | U3: AERONAVEGACIÓN/AEROPORTUARIO | V3: =T3*W3 -> 13783243.66 | W3: 0.67 | X3: 0.33 | Y3: Ok
B4: 2 | C4: CC0000001-2 | D4: CC0000001-2 | E4: TERRENOS | F4: CALLAO | G4: TERRENOS INSCRITOS | H4: 001 | I4: Callao | J4: 21227574.21 | K4: 0 | L4: 0 | M4: 0 | N4: 0 | O4: 0 | P4: 21227574.21 | Q4: 0 | R4: 0 | S4: 21227574.21 | T4: 21227574.21 | U4: AERONAVEGACIÓN/AEROPORTUARIO | V4: 14222474.72 | W4: 0.67 | X4: 0.33 | Y4: Ok
B5: 6 | C5: CC0000005 | D5: CC0000005 | E5: TERRENOS | F5: SURQUILLO | G5: TERRENOS INSCRITOS | H5: 001 | I5: Callao | J5: 371378.25 | K5: 0 | L5: 0 | M5: 0 | N5: 0 | O5: 0 | P5: 371378.25 | Q5: 0 | R5: 0 | S5: 371378.25 | T5: 371378.25 | U5: AERONAVEGACIÓN/AEROPORTUARIO | V5: 0 | W5: 0 | X5: 1 | Y5: Ok
B6: 9 | C6: CC0000008 | D6: CC0000008 | E6: TERRENOS | F6: SAN ISIDRO | G6: TERRENOS INSCRITOS | H6: 007 | I6: San Isidro | J6: 1102643 | K6: 0 | L6: 0 | M6: 0 | N6: 0 | O6: 0 | P6: 1102643 | Q6: 0 | R6: 0 | S6: 1102643 | T6: 1102643 | U6: AERONAVEGACIÓN/AEROPORTUARIO | V6: 0 | W6: 0 | X6: 1 | Y6: Ok
B7: 10 | C7: CC0000009-1 | D7: CC0000009-1 | E7: TERRENOS | F7: RODRIGUEZ DE MENDOZA | G7: TERRENOS INSCRITOS | H7: 010 | I7: Rodriguez de Mendoza (Amazonas) | J7: 478694.35 | K7: 0 | L7: 0 | M7: 0 | N7: 0 | O7: 0 | P7: 478694.35 | Q7: 0 | R7: 0 | S7: 478694.35 | T7: 478694.35 | U7: AERONAVEGACIÓN/AEROPORTUARIO | V7: 426037.9715 | W7: 0.89 | X7: 0.11 | Y7: Ok
B8: 11 | C8: CC0000009-2 | D8: CC0000009-2 | E8: TERRENOS | F8: RODRIGUEZ DE MENDOZA | G8: TERRENOS INSCRITOS | H8: 010 | I8: Rodriguez de Mendoza (Amazonas) | J8: 879.46 | K8: 0 | L8: 0 | M8: 0 | N8: 0 | O8: 0 | P8: 879.46 | Q8: 0 | R8: 0 | S8: 879.46 | T8: 879.46 | U8: AERONAVEGACIÓN/AEROPORTUARIO | V8: 782.7194 | W8: 0.89 | X8: 0.11 | Y8: Ok
B9: 14 | C9: CC0000012-1 | D9: CC0000012-1 | E9: TERRENOS | F9: JAEN | G9: TERRENOS INSCRITOS | H9: 020 | I9: Jaen | J9: 390734.32 | K9: 0 | L9: 0 | M9: 0 | N9: 0 | O9: 0 | P9: 390734.32 | Q9: 0 | R9: 0 | S9: 390734.32 | T9: 390734.32 | U9: AERONAVEGACIÓN/AEROPORTUARIO | V9: 195367.16 | W9: 0.5 | X9: 0.5 | Y9: Ok
B10: 15 | C10: CC0000012-2 | D10: CC0000012-2 | E10: TERRENOS | F10: JAEN | G10: TERRENOS INSCRITOS | H10: 020 | I10: Jaen | J10: 3946.81 | K10: 0 | L10: 0 | M10: 0 | N10: 0 | O10: 0 | P10: 3946.81 | Q10: 0 | R10: 0 | S10: 3946.81 | T10: 3946.81 | U10: AERONAVEGACIÓN/AEROPORTUARIO | V10: 1973.405 | W10: 0.5 | X10: 0.5 | Y10: Ok
B11: 17 | C11: CC0000014-1 | D11: CC0000014-1 | E11: TERRENOS | F11: CUSCO | G11: TERRENOS INSCRITOS | H11: 023 | I11: Cuzco | J11: 101290471.8 | K11: 0 | L11: 0 | M11: 0 | N11: 0 | O11: 0 | P11: 101290471.8 | Q11: 0 | R11: 0 | S11: 101290471.8 | T11: 101290471.8 | U11: AERONAVEGACIÓN/AEROPORTUARIO | V11: 49632331.2 | W11: 0.49 | X11: 0.51 | Y11: Ok
B12: 18 | C12: CC0000014-2 | D12: CC0000014-2 | E12: TERRENOS | F12: CUSCO | G12: TERRENOS INSCRITOS | H12: 023 | I12: Cuzco | J12: 19758.09 | K12: 0 | L12: 0 | M12: 0 | N12: 0 | O12: 0 | P12: 19758.09 | Q12: 0 | R12: 0 | S12: 19758.09 | T12: 19758.09 | U12: AERONAVEGACIÓN/AEROPORTUARIO | V12: 9681.4641 | W12: 0.49 | X12: 0.51 | Y12: Ok
B13: 19 | C13: CC0000015 | D13: CC0000015 | E13: TERRENOS | F13: CHIRIORCO (CUSCO) | G13: TERRENOS INSCRITOS | H13: 023 | I13: Cuzco | J13: 17479.95 | K13: 0 | L13: 0 | M13: 0 | N13: 0 | O13: 0 | P13: 17479.95 | Q13: 0 | R13: 0 | S13: 17479.95 | T13: 17479.95 | U13: AERONAVEGACIÓN/AEROPORTUARIO | V13: 8739.975 | W13: 0.5 | X13: 0.5 | Y13: Ok
B14: 21 | C14: CC0000017-1 | D14: CC0000017-1 | E14: TERRENOS | F14: ATALAYA | G14: TERRENOS INSCRITOS | H14: 018 | I14: Atalaya | J14: 859588.23 | K14: 0 | L14: 0 | M14: 0 | N14: 0 | O14: 0 | P14: 859588.23 | Q14: 0 | R14: 0 | S14: 859588.23 | T14: 859588.23 | U14: AERONAVEGACIÓN/AEROPORTUARIO | V14: 206301.1752 | W14: 0.24 | X14: 0.76 | Y14: Ok
B15: 22 | C15: CC0000017-2 | D15: CC0000017-2 | E15: TERRENOS | F15: ATALAYA | G15: TERRENOS INSCRITOS | H15: 018 | I15: Atalaya | J15: 167.85 | K15: 0 | L15: 0 | M15: 0 | N15: 0 | O15: 0 | P15: 167.85 | Q15: 0 | R15: 0 | S15: 167.85 | T15: 167.85 | U15: AERONAVEGACIÓN/AEROPORTUARIO | V15: 40.284 | W15: 0.24 | X15: 0.76 | Y15: Ok
B16: 26 | C16: CC0000021-1 | D16: CC0000021-1 | E16: TERRENOS | F16: CABALLOCOCHA | G16: TERRENOS INSCRITOS | H16: 072 | I16: Caballococha (Loreto) | J16: 728892.89 | K16: 0 | L16: 0 | M16: 0 | N16: 0 | O16: 0 | P16: 728892.89 | Q16: 0 | R16: 0 | S16: 728892.89 | T16: 728892.89 | U16: AERONAVEGACIÓN/AEROPORTUARIO | V16: 364446.445 | W16: 0.5 | X16: 0.5 | Y16: Ok
B17: 27 | C17: CC0000021-2 | D17: CC0000021-2 | E17: TERRENOS | F17: CABALLOCOCHA | G17: TERRENOS INSCRITOS | H17: 072 | I17: Caballococha (Loreto) | J17: 40990.62 | K17: 0 | L17: 0 | M17: 0 | N17: 0 | O17: 0 | P17: 40990.62 | Q17: 0 | R17: 0 | S17: 40990.62 | T17: 40990.62 | U17: AERONAVEGACIÓN/AEROPORTUARIO | V17: 20495.31 | W17: 0.5 | X17: 0.5 | Y17: Ok
B18: 29 | C18: CC0000023-1 | D18: CC0000023-1 | E18: TERRENOS | F18: ANDAHUAYLAS | G18: TERRENOS INSCRITOS | H18: 052 | I18: Andahuaylas | J18: 8749544.36 | K18: 0 | L18: 0 | M18: 0 | N18: 0 | O18: 0 | P18: 8749544.36 | Q18: 0 | R18: 0 | S18: 8749544.36 | T18: 8749544.36 | U18: AERONAVEGACIÓN/AEROPORTUARIO | V18: 5074735.729 | W18: 0.58 | X18: 0.42 | Y18: Ok
B19: 30 | C19: CC0000023-2 | D19: CC0000023-2 | E19: TERRENOS | F19: ANDAHUAYLAS | G19: TERRENOS INSCRITOS | H19: 052 | I19: Andahuaylas | J19: 1893.23 | K19: 0 | L19: 0 | M19: 0 | N19: 0 | O19: 0 | P19: 1893.23 | Q19: 0 | R19: 0 | S19: 1893.23 | T19: 1893.23 | U19: AERONAVEGACIÓN/AEROPORTUARIO | V19: 1098.0734 | W19: 0.58 | X19: 0.42 | Y19: Ok
B20: 32 | C20: CC0000025-1 | D20: =C20 -> CC0000025-1 | E20: TERRENOS | F20: CHIMBOTE | G20: TERRENOS INSCRITOS | H20: 055 | I20: Chimbote | J20: 29888887.53 | K20: 0 | L20: 0 | M20: 0 | N20: 0 | O20: 0 | P20: 29888887.53 | Q20: 0 | R20: 0 | S20: 29888887.53 | T20: 29888887.53 | U20: AERONAVEGACIÓN/AEROPORTUARIO | V20: 21818887.9 | W20: 0.73 | X20: 0.27 | Y20: Ok
B21: 33 | C21: CC0000025-2 | D21: CC0000025-2 | E21: TERRENOS | F21: CHIMBOTE | G21: TERRENOS INSCRITOS | H21: 055 | I21: Chimbote | J21: 5245.33 | K21: 0 | L21: 0 | M21: 0 | N21: 0 | O21: 0 | P21: 5245.33 | Q21: 0 | R21: 0 | S21: 5245.33 | T21: 5245.33 | U21: AERONAVEGACIÓN/AEROPORTUARIO | V21: 3829.0909 | W21: 0.73 | X21: 0.27 | Y21: Ok
B22: 34 | C22: CC0000026-1 | D22: CC0000026-1 | E22: TERRENOS | F22: HUANUCO | G22: TERRENOS INSCRITOS | H22: 056 | I22: Huánuco | J22: 2864563.56 | K22: 0 | L22: 0 | M22: 0 | N22: 0 | O22: 0 | P22: 2864563.56 | Q22: 0 | R22: 0 | S22: 2864563.56 | T22: 2864563.56 | U22: AERONAVEGACIÓN/AEROPORTUARIO | V22: 2205713.941 | W22: 0.77 | X22: 0.23 | Y22: Ok
B23: 35 | C23: CC0000026-2 | D23: CC0000026-2 | E23: TERRENOS | F23: HUANUCO | G23: TERRENOS INSCRITOS | H23: 056 | I23: Huánuco | J23: 2280.88 | K23: 0 | L23: 0 | M23: 0 | N23: 0 | O23: 0 | P23: 2280.88 | Q23: 0 | R23: 0 | S23: 2280.88 | T23: 2280.88 | U23: AERONAVEGACIÓN/AEROPORTUARIO | V23: 1756.2776 | W23: 0.77 | X23: 0.23 | Y23: Ok
B24: 36 | C24: CC0000027-1 | D24: CC0000027-1 | E24: TERRENOS | F24: JAUJA | G24: TERRENOS INSCRITOS | H24: 059 | I24: Jauja | J24: 3989529.7 | K24: 0 | L24: 0 | M24: 0 | N24: 0 | O24: 0 | P24: 3989529.7 | Q24: 0 | R24: 0 | S24: 3989529.7 | T24: 3989529.7 | U24: AERONAVEGACIÓN/AEROPORTUARIO | V24: 1994764.85 | W24: 0.5 | X24: 0.5 | Y24: Ok
B25: 37 | C25: CC0000027-2 | D25: CC0000027-2 | E25: TERRENOS | F25: JAUJA | G25: TERRENOS INSCRITOS | H25: 059 | I25: Jauja | J25: 52419.49 | K25: 0 | L25: 0 | M25: 0 | N25: 0 | O25: 0 | P25: 52419.49 | Q25: 0 | R25: 0 | S25: 52419.49 | T25: 52419.49 | U25: AERONAVEGACIÓN/AEROPORTUARIO | V25: 26209.745 | W25: 0.5 | X25: 0.5 | Y25: Ok
B26: 38 | C26: CC0000028-1 | D26: CC0000028-1 | E26: TERRENOS | F26: JUANJUI | G26: TERRENOS INSCRITOS | H26: 060 | I26: Juanjui | J26: 6592926.05 | K26: 0 | L26: 0 | M26: 0 | N26: 0 | O26: 0 | P26: 6592926.05 | Q26: 0 | R26: 0 | S26: 6592926.05 | T26: 6592926.05 | U26: AERONAVEGACIÓN/AEROPORTUARIO | V26: 3164604.504 | W26: 0.48 | X26: 0.52 | Y26: Ok
B27: 39 | C27: CC0000028-2 | D27: CC0000028-2 | E27: TERRENOS | F27: JUANJUI | G27: TERRENOS INSCRITOS | H27: 060 | I27: Juanjui | J27: 306655.17 | K27: 0 | L27: 0 | M27: 0 | N27: 0 | O27: 0 | P27: 306655.17 | Q27: 0 | R27: 0 | S27: 306655.17 | T27: 306655.17 | U27: AERONAVEGACIÓN/AEROPORTUARIO | V27: 147194.4816 | W27: 0.48 | X27: 0.52 | Y27: Ok
B28: 41 | C28: CC0000031 | D28: CC0000031 | E28: TERRENOS | F28: QUINCEMIL | G28: TERRENOS INSCRITOS | H28: 065 | I28: Quincemil (Cuzco) | J28: 628773.19 | K28: 0 | L28: 0 | M28: 0 | N28: 0 | O28: 0 | P28: 628773.19 | Q28: 0 | R28: 0 | S28: 628773.19 | T28: 628773.19 | U28: AERONAVEGACIÓN/AEROPORTUARIO | V28: 308098.8631 | W28: 0.49 | X28: 0.51 | Y28: Ok
B29: 42 | C29: CC0000032-1 | D29: CC0000032-1 | E29: TERRENOS | F29: RIOJA | G29: TERRENOS INSCRITOS | H29: 066 | I29: Rioja | J29: 582109.81 | K29: 0 | L29: 0 | M29: 0 | N29: 0 | O29: 0 | P29: 582109.81 | Q29: 0 | R29: 0 | S29: 582109.81 | T29: 582109.81 | U29: AERONAVEGACIÓN/AEROPORTUARIO | V29: 273591.6107 | W29: 0.47 | X29: 0.53 | Y29: Ok
B30: 43 | C30: CC0000032-2 | D30: CC0000032-2 | E30: TERRENOS | F30: RIOJA | G30: TERRENOS INSCRITOS | H30: 066 | I30: Rioja | J30: 44197.09 | K30: 0 | L30: 0 | M30: 0 | N30: 0 | O30: 0 | P30: 44197.09 | Q30: 0 | R30: 0 | S30: 44197.09 | T30: 44197.09 | U30: AERONAVEGACIÓN/AEROPORTUARIO | V30: 20772.6323 | W30: 0.47 | X30: 0.53 | Y30: Ok
B31: 45 | C31: CC0000034-1 | D31: CC0000034-1 | E31: TERRENOS | F31: TINGO MARIA | G31: TERRENOS INSCRITOS | H31: 068 | I31: Shapajilla | J31: 6976642.46 | K31: 0 | L31: 0 | M31: 0 | N31: 0 | O31: 0 | P31: 6976642.46 | Q31: 0 | R31: 0 | S31: 6976642.46 | T31: 6976642.46 | U31: AERONAVEGACIÓN/AEROPORTUARIO | V31: 3767386.928 | W31: 0.54 | X31: 0.46 | Y31: Ok
B32: 46 | C32: CC0000034-2 | D32: CC0000034-2 | E32: TERRENOS | F32: TINGO MARIA | G32: TERRENOS INSCRITOS | H32: 068 | I32: Shapajilla | J32: 571.37 | K32: 0 | L32: 0 | M32: 0 | N32: 0 | O32: 0 | P32: 571.37 | Q32: 0 | R32: 0 | S32: 571.37 | T32: 571.37 | U32: AERONAVEGACIÓN/AEROPORTUARIO | V32: 308.5398 | W32: 0.54 | X32: 0.46 | Y32: Ok
B33: 47 | C33: CC0000035-1 | D33: CC0000035-1 | E33: TERRENOS | F33: YURIMAGUAS | G33: TERRENOS INSCRITOS | H33: 070 | I33: Yurimaguas | J33: 10811591.84 | K33: 0 | L33: 0 | M33: 0 | N33: 0 | O33: 0 | P33: 10811591.84 | Q33: 0 | R33: 0 | S33: 10811591.84 | T33: 10811591.84 | U33: AERONAVEGACIÓN/AEROPORTUARIO | V33: 5297680.002 | W33: 0.49 | X33: 0.51 | Y33: Ok
B34: 48 | C34: CC0000035-2 | D34: CC0000035-2 | E34: TERRENOS | F34: YURIMAGUAS | G34: TERRENOS INSCRITOS | H34: 070 | I34: Yurimaguas | J34: 12473.9 | K34: 0 | L34: 0 | M34: 0 | N34: 0 | O34: 0 | P34: 12473.9 | Q34: 0 | R34: 0 | S34: 12473.9 | T34: 12473.9 | U34: AERONAVEGACIÓN/AEROPORTUARIO | V34: 6112.211 | W34: 0.49 | X34: 0.51 | Y34: Ok
B35: 53 | C35: CC0000038 | D35: CC0000038 | E35: TERRENOS | F35: SAPOSOA | G35: TERRENOS INSCRITOS | H35: 088 | I35: Saposoa (San Martin) | J35: 213244.69 | K35: 0 | L35: 0 | M35: 0 | N35: 0 | O35: 0 | P35: 213244.69 | Q35: 0 | R35: 0 | S35: 213244.69 | T35: 213244.69 | U35: AERONAVEGACIÓN/AEROPORTUARIO | V35: =T35*W35 -> 106622.345 | W35: 0.5 | X35: 0.5 | Y35: Ok
B36: 54 | C36: CC0000039-1 | D36: CC0000039-1 | E36: TERRENOS | F36: TOCACHE | G36: TERRENOS INSCRITOS | H36: 089 | I36: Tocache | J36: 5228369.1 | K36: 0 | L36: 0 | M36: 0 | N36: 0 | O36: 0 | P36: 5228369.1 | Q36: 0 | R36: 0 | S36: 5228369.1 | T36: 5228369.1 | U36: AERONAVEGACIÓN/AEROPORTUARIO | V36: 2614184.55 | W36: 0.5 | X36: 0.5 | Y36: Ok
B37: 55 | C37: CC0000039-2 | D37: CC0000039-2 | E37: TERRENOS | F37: TOCACHE | G37: TERRENOS INSCRITOS | H37: 089 | I37: Tocache | J37: 17603.94 | K37: 0 | L37: 0 | M37: 0 | N37: 0 | O37: 0 | P37: 17603.94 | Q37: 0 | R37: 0 | S37: 17603.94 | T37: 17603.94 | U37: AERONAVEGACIÓN/AEROPORTUARIO | V37: 8801.97 | W37: 0.5 | X37: 0.5 | Y37: Ok
B38: 58 | C38: CC0000042-1 | D38: CC0000042-1 | E38: TERRENOS | F38: ILO | G38: TERRENOS INSCRITOS | H38: 092 | I38: Ilo | J38: 7566459.57 | K38: 0 | L38: 0 | M38: 0 | N38: 0 | O38: 0 | P38: 7566459.57 | Q38: 0 | R38: 0 | S38: 7566459.57 | T38: 7566459.57 | U38: AERONAVEGACIÓN/AEROPORTUARIO | V38: 5069527.912 | W38: 0.67 | X38: 0.33 | Y38: Ok
B39: 59 | C39: CC0000042-2 | D39: CC0000042-2 | E39: TERRENOS | F39: ILO | G39: TERRENOS INSCRITOS | H39: 092 | I39: Ilo | J39: 777.71 | K39: 0 | L39: 0 | M39: 0 | N39: 0 | O39: 0 | P39: 777.71 | Q39: 0 | R39: 0 | S39: 777.71 | T39: 777.71 | U39: AERONAVEGACIÓN/AEROPORTUARIO | V39: 521.0657 | W39: 0.67 | X39: 0.33 | Y39: Ok
B40: 60 | C40: CC0000043-1 | D40: CC0000043-1 | E40: TERRENOS | F40: MOQUEGUA | G40: TERRENOS INSCRITOS | H40: 093 | I40: Moquegua (Moquegua) | J40: 1147758.12 | K40: 0 | L40: 0 | M40: 0 | N40: 0 | O40: 0 | P40: 1147758.12 | Q40: 0 | R40: 0 | S40: 1147758.12 | T40: 1147758.12 | U40: AERONAVEGACIÓN/AEROPORTUARIO | V40: 573879.06 | W40: 0.5 | X40: 0.5 | Y40: Ok
B41: 61 | C41: CC0000043-2 | D41: CC0000043-2 | E41: TERRENOS | F41: MOQUEGUA | G41: TERRENOS INSCRITOS | H41: 093 | I41: Moquegua (Moquegua) | J41: 60408.32 | K41: 0 | L41: 0 | M41: 0 | N41: 0 | O41: 0 | P41: 60408.32 | Q41: 0 | R41: 0 | S41: 60408.32 | T41: 60408.32 | U41: AERONAVEGACIÓN/AEROPORTUARIO | V41: 30204.16 | W41: 0.5 | X41: 0.5 | Y41: Ok
B42: 62 | C42: CC0000044-1 | D42: CC0000044-1 | E42: TERRENOS | F42: IÑAPARI | G42: TERRENOS INSCRITOS | H42: 096 | I42: Iñapari (Madre de Dios) | J42: 260420.14 | K42: 0 | L42: 0 | M42: 0 | N42: 0 | O42: 0 | P42: 260420.14 | Q42: 0 | R42: 0 | S42: 260420.14 | T42: 260420.14 | U42: AERONAVEGACIÓN/AEROPORTUARIO | V42: 130210.07 | W42: 0.5 | X42: 0.5 | Y42: Ok
B43: 63 | C43: CC0000044-2 | D43: CC0000044-2 | E43: TERRENOS | F43: IÑAPARI | G43: TERRENOS INSCRITOS | H43: 096 | I43: Iñapari (Madre de Dios) | J43: 2630.51 | K43: 0 | L43: 0 | M43: 0 | N43: 0 | O43: 0 | P43: 2630.51 | Q43: 0 | R43: 0 | S43: 2630.51 | T43: 2630.51 | U43: AERONAVEGACIÓN/AEROPORTUARIO | V43: 1315.255 | W43: 0.5 | X43: 0.5 | Y43: Ok
B44: 72 | C44: CC0000050-1 | D44: CC0000050-1 | E44: TERRENOS | F44: PTO. ESPERANZA | G44: TERRENOS INSCRITOS | H44: 012 | I44: Pto. Esperanza | J44: 986886.48 | K44: 0 | L44: 0 | M44: 0 | N44: 0 | O44: 0 | P44: 986886.48 | Q44: 0 | R44: 0 | S44: 986886.48 | T44: 986886.48 | U44: AERONAVEGACIÓN/AEROPORTUARIO | V44: 493443.24 | W44: 0.5 | X44: 0.5 | Y44: Ok
B45: 73 | C45: CC0000050-2 | D45: CC0000050-2 | E45: TERRENOS | F45: PTO. ESPERANZA | G45: TERRENOS INSCRITOS | H45: 012 | I45: Pto. Esperanza | J45: 43612.41 | K45: 0 | L45: 0 | M45: 0 | N45: 0 | O45: 0 | P45: 43612.41 | Q45: 0 | R45: 0 | S45: 43612.41 | T45: 43612.41 | U45: AERONAVEGACIÓN/AEROPORTUARIO | V45: 21806.205 | W45: 0.5 | X45: 0.5 | Y45: Ok
C49: VALOR NETO al 31.12.2023 | D49: MONTO AEROPORTUARIO
B50: Corpac Total | C50: =SUM(T3:T45) -> 234143681.3 | D50: =SUM(V3:V45) -> 132035176.7
B51: G1 | C51: =SUM(T11:T13,T28) -> 101956483.1 | D51: =SUM(V11:V13,V28) -> 49958851.5
B52: G3 | C52: 0 | D52: 0
B53: G5 | C53: =SUM(T7:T10,T14:T27,T29:T45) -> 88913597.29 | D53: =SUM(V7:V10,V14:V27,V29:V45) -> 54070606.82

Sheet FuenteActivoInicialCR
A1: Índice | B1: Fuente Activo Inicial
B2: (Expresado en soles (S/.))
B4: A. Cusco
B6: Periodo: | C6: Activos y Depreciación al fin del periodo 2023
B7: A.1 Activos relacionados a los servicios Aeroportuarios
B8: Descripción | E8: Saldo Inicial (1) | F8: Adiciones / Mejoras (2) | G8: Ajuste por Depreciación de años anteriores (3) | H8: Retiros / Bajas (4) | I8: Reevaluación (5) | J8: Reclasificación de saldos iniciales | K8: Gasto de Depreciación del ejercicio (6) | L8: Saldo Final (7)
B10: ACTIVO FIJO
C12: Terrenos | E12: 0 | F12: 0 | G12: 0 | H12: 0 | I12: 0 | J12: 0 | K12: 0 | L12: 0
C15: Edificaciones y Construcciones | E15: 209217180.3 | L15: 209217180.3
C16: Depreciación Acumulada | E16: 165312592.2 | K16: 3361863.84 | L16: 168674456.1
C20: Maquinaria y Equipo | E20: 5657128.97 | L20: 5657128.97
C21: Depreciación Acumulada | E21: 5195461.81 | K21: 296043.27 | L21: 5491505.08
C25: Otros | E25: 13552949.29 | L25: 13552949.29
C26: Depreciación Acumulada | E26: 6440165.02 | K26: 1273066.05 | L26: 7713231.07
C30: Inmueble Maquinaria y Equipo - Arrendamiento Financiero | L30: 0
C31: Depreciación Acumulada | L31: 0
B34: ACTIVO INTANGIBLE
C37: Valor activo intangible | E37: 0 | L37: 0
C38: Amortización | E38: 0 | L38: 0
B41: TOTAL ACTIVO | E41: =E15+E20+E25 -> 228427258.6 | F41: 10020.45 | G41: 0 | H41: 0 | I41: 0 | J41: 0 | K41: 0 | L41: =L15+L20+L25 -> 228427258.6
B42: TOTAL DEPRECIACIÓN/AMORTIZACIÓN | E42: =E16+E21+E26+E31 -> 176948219.1 | F42: 0 | G42: 0 | H42: 0 | I42: 0 | J42: 0 | K42: =K16+K21+K26+K31 -> 4930973.16 | L42: =L16+L21+L26+L31 -> 181879192.2
B45: Periodo: | C45: Activos y Depreciación al fin del periodo 2023
B46: A.2. Activos relacionados a los servicios de Navegación Aérea
B47: Descripción | E47: Saldo Inicial (1) | F47: Adiciones / Mejoras (2) | G47: Ajuste por Depreciación de años anteriores (3) | H47: Retiros / Bajas (4) | I47: Reevaluación (5) | J47: Reclasificación de saldos iniciales | K47: Gasto de Depreciación del ejercicio (6) | L47: Saldo Final (7)
B49: ACTIVO FIJO
C51: Terrenos | E51: 823.85 | L51: 823.85
C54: Edificaciones y Construcciones | E54: 6180447.36 | L54: 6180447.36
C55: Depreciación Acumulada | E55: 2920655.83 | K55: 293405.07 | L55: 3214060.9
C59: Maquinaria y Equipo | E59: 20677833.61 | L59: 20677833.61
C60: Depreciación Acumulada | E60: 16903467.85 | K60: 1159931.54 | L60: 18063399.39
C64: Otros | E64: 43387266.1 | F64: 135957.3 | L64: 43523223.4
C65: Depreciación Acumulada | E65: 12873056.29 | K65: 4209313.76 | L65: 17082370.05
C69: Inmueble Maquinaria y Equipo - Arrendamiento Financiero | E69: 88822.8 | L69: 88822.8
C70: Depreciación Acumulada | E70: 88822.8 | L70: 88822.8
B73: ACTIVO INTANGIBLE
C76: Valor activo intangible | E76: 381684.7 | G76: 0 | H76: 0 | I76: 0 | J76: 0 | K76: 0 | L76: 381684.7
C77: Amortización | E77: 23469.48 | F77: 0 | G77: 0 | H77: 0 | I77: 0 | J77: 0 | K77: 0 | L77: 23469.48
B80: TOTAL ACTIVO | E80: =E51+E54+E59+E64+E69+E76 -> 70716878.42 | F80: =F51+F54+F59+F64+F69+F76 -> 135957.3 | G80: 0 | H80: 0 | I80: 0 | J80: 0 | K80: =K51+K54+K59+K64+K69+K76 -> 0 | L80: =L51+L54+L59+L64+L69+L76 -> 70852835.72
B81: TOTAL DEPRECIACIÓN/AMORTIZACIÓN | E81: =E55+E60+E65+E70+E77 -> 32809472.25 | F81: 0 | G81: 0 | H81: 0 | I81: 0 | J81: 0 | K81: =K55+K60+K65+K70+K77 -> 5662650.37 | L81: =L55+L60+L65+L70+L77 -> 38472122.62
B82: Notas:
B83: 1. Saldo Final de los rubros de activos (7) esta compuesto por: (1) + (2) + (3) + (4) + (5) + (6) + (7)
B84: 2. Saldo final de depreciación acumulada (7) esta compuesto por: (1) + (6)
B87: A.3. Activos relacionados a los servicios de Navegación Aérea/Aeroportuarios
B88: Descripción | E88: Saldo Inicial (1) | F88: Adiciones / Mejoras (2) | G88: Ajuste por Depreciación de años anteriores (3) | H88: Retiros / Bajas (4) | I88: Reevaluación (5) | J88: Reclasificación de saldos iniciales | K88: Gasto de Depreciación del ejercicio (6) | L88: Saldo Final (7)
B90: ACTIVO FIJO
C92: Terrenos | E92: 101956483.1 | L92: 101956483.1
C95: Edificaciones y Construcciones | E95: 1470295.55 | K95: 0 | L95: 1470295.55
C96: Depreciación Acumulada | E96: 417961.63 | K96: 45084.01 | L96: 463045.64
C100: Maquinaria y Equipo | E100: 6606170.74 | K100: 0 | L100: 6606170.74
C101: Depreciación Acumulada | E101: 6491653.18 | K101: 73595.94 | L101: 6565249.12
C105: Otros | E105: 1497819.77 | K105: 0 | L105: 1497819.77
C106: Depreciación Acumulada | E106: 1249285.81 | K106: 58546.28 | L106: 1307832.09
C110: Inmueble Maquinaria y Equipo - Arrendamiento Financiero | E110: 0 | F110: 0 | G110: 0 | H110: 0 | I110: 0 | J110: 0 | K110: 0 | L110: 0
C111: Depreciación Acumulada | E111: 0 | F111: 0 | G111: 0 | H111: 0 | I111: 0 | J111: 0 | K111: 0 | L111: 0
B114: ACTIVO INTANGIBLE
C117: Valor activo intangible | E117: 215217.44 | L117: 215217.44
C118: Amortización | E118: 64565.232 | K118: 21521.744 | L118: 86086.976
B121: TOTAL ACTIVO | E121: =E92+E95+E100+E105+E117 -> 111745986.6 | F121: 0 | G121: 0 | H121: 0 | I121: 0 | J121: 0 | K121: =K92+K95+K100+K105+K117 -> 0 | L121: =L92+L95+L100+L105+L117 -> 111745986.6
B122: TOTAL DEPRECIACIÓN/AMORTIZACIÓN | E122: =E96+E101+E106+E118 -> 8223465.852 | F122: 0 | G122: 0 | H122: 0 | I122: 0 | J122: 0 | K122: =K96+K101+K106+K118 -> 198747.974 | L122: =L96+L101+L106+L118 -> 8422213.826
B125: A.4. Activos totales
B126: Descripción | E126: Saldo Inicial (1) | F126: Adiciones / Mejoras (2) | G126: Ajuste por Depreciación de años anteriores (3) | H126: Retiros / Bajas (4) | I126: Reevaluación (5) | J126: Reclasificación de saldos iniciales | K126: Gasto de Depreciación del ejercicio (6) | L126: Saldo Final (7)
B128: ACTIVO FIJO
C130: Terrenos | E130: 101957306.9 | F130: 0 | G130: 0 | H130: 0 | I130: 0 | J130: 0 | K130: 0 | L130: 101957306.9
C133: Edificios y Construcciones | E133: 216867923.2 | F133: 0 | G133: 0 | H133: 0 | I133: 0 | J133: 0 | K133: 0 | L133: 216867923.2
C134: Depreciación Acumulada Edificios y Construcciones | E134: 168651209.7 | F134: 0 | G134: 0 | H134: 0 | I134: 0 | J134: 0 | K134: 3700352.92 | L134: 172351562.6
C138: Maquinaria y Equipo | E138: 32941133.32 | F138: 0 | G138: 0 | H138: 0 | I138: 0 | J138: 0 | K138: 0 | L138: 32941133.32
C139: Depreciación Acumulada Maquinaria y Equipo | E139: 28590582.84 | F139: 0 | H139: 0 | I139: 0 | J139: 0 | K139: 1529570.75 | L139: 30120153.59
C143: Otros | E143: 58438035.16 | F143: 135957.3 | G143: 0 | H143: 0 | I143: 0 | J143: 0 | K143: 0 | L143: 58573992.46
C144: Depreciación Acumulada | E144: 20562507.12 | F144: 0 | G144: 0 | H144: 0 | I144: 0 | J144: 0 | K144: 5540926.09 | L144: 26103433.21
C148: Inmueble Maquinaria y Equipo - Arrendamiento Financiero | E148: 88822.8 | F148: 0 | G148: 0 | H148: 0 | I148: 0 | J148: 0 | K148: 0 | L148: 88822.8
C149: Depreciación Acumulada | E149: 88822.8 | F149: 0 | G149: 0 | H149: 0 | I149: 0 | J149: 0 | K149: 0 | L149: 88822.8
B152: ACTIVO INTANGIBLE
C155: Valor activo intangible | E155: 596902.14 | F155: 0 | G155: 0 | H155: 0 | I155: 0 | J155: 0 | K155: 0 | L155: 596902.14
C156: Amortización | E156: 88034.712 | F156: 0 | G156: 0 | H156: 0 | I156: 0 | J156: 0 | K156: 21521.744 | L156: 109556.456
B159: TOTAL ACTIVO | E159: =E130+E133+E138+E143+E148+E155 -> 410890123.6 | F159: =F130+F133+F138+F143+F148 -> 135957.3 | G159: 0 | H159: 0 | I159: 0 | J159: =J130+J133+J138+J143+J148 -> 0 | K159: =K130+K133+K138+K143+K148 -> 0 | L159: =L130+L133+L138+L143+L148+L155 -> 411026080.9
B160: TOTAL DEPRECIACIÓN/AMORTIZACIÓN | E160: =E134+E139+E144+E149+E156 -> 217981157.2 | F160: =F134+F139+F144+F149+F156 -> 0 | G160: 0 | H160: 0 | I160: 0 | J160: =J134+J139+J144+J149+J156 -> 0 | K160: =K134+K139+K144+K149+K156 -> 10792371.5 | L160: =L134+L139+L144+L149+L156 -> 228773528.7
B163: B. Nazca
B165: Periodo: | C165: Activos y Depreciación al fin del periodo 2023
B166: B.1 Activos relacionados a los servicios Aeroportuarios
B167: Descripción | E167: Saldo Inicial (1) | F167: Adiciones / Mejoras (2) | G167: Ajuste por Depreciación de años anteriores (3) | H167: Retiros / Bajas (4) | I167: Reevaluación (5) | J167: Reclasificación de saldos iniciales | K167: Gasto de Depreciación del ejercicio (6) | L167: Saldo Final (7)
B169: ACTIVO FIJO
C171: Terrenos | F171: 0 | G171: 0 | H171: 0 | I171: 0 | J171: 0 | K171: 0 | L171: 0
C174: Edificaciones y Construcciones | E174: 3065223.15 | F174: 3069.53 | L174: 3068292.68
C175: Depreciación Acumulada | E175: 2631361.16 | G175: 409.27 | K175: 214232.61 | L175: 2846003.04
C179: Maquinaria y Equipo | E179: 133212.34 | L179: 133212.34
C180: Depreciación Acumulada | E180: 79733.77 | K180: 14472.8 | L180: 94206.57
C184: Otros | E184: 2957683.86 | F184: 79322.91 | L184: 2957683.86
C185: Depreciación Acumulada | E185: 1044445.36 | K185: 289037.37 | L185: 1333482.73
C189: Inmueble Maquinaria y Equipo - Arrendamiento Financiero
C190: Depreciación Acumulada
B193: ACTIVO INTANGIBLE
C196: Valor activo intangible
C197: Amortización
B200: TOTAL ACTIVO | E200: =E171+E174+E179+E184+E189+E196 -> 6156119.35 | F200: =F171+F174+F179+F184+F189+F196 -> 82392.44 | G200: =G171+G174+G179+G184+G189+G196 -> 0 | H200: 0 | I200: 0 | J200: 0 | K200: =K171+K174+K179+K184+K189+K196 -> 0 | L200: =L171+L174+L179+L184+L189+L196 -> 6159188.88
B201: TOTAL DEPRECIACIÓN/AMORTIZACIÓN | E201: =E175+E180+E185+E190+E197 -> 3755540.29 | F201: =F175+F180+F185+F190+F197 -> 0 | G201: =G175+G180+G185+G190+G197 -> 409.27 | H201: 0 | I201: 0 | J201: 0 | K201: =K175+K180+K185+K190+K197 -> 517742.78 | L201: =L175+L180+L185+L190+L197 -> 4273692.34
B204: B.2. Activos relacionados a los servicios de Navegación Aérea
B205: Descripción | E205: Saldo Inicial (1) | F205: Adiciones / Mejoras (2) | G205: Ajuste por Depreciación de años anteriores (3) | H205: Retiros / Bajas (4) | I205: Reevaluación (5) | J205: Reclasificación de saldos iniciales | K205: Gasto de Depreciación del ejercicio (6) | L205: Saldo Final (7)
B207: ACTIVO FIJO
C209: Terrenos | E209: 144927.0233 | L209: 144927.0233
C212: Edificaciones y Construcciones | E212: 902679.8 | F212: 24915.25 | L212: 927595.05
C213: Depreciación Acumulada | E213: 676843.71 | G213: 1591.81 | K213: 18514.48 | L213: 696950
C217: Maquinaria y Equipo | E217: 1538098.35 | L217: 1538098.35
C218: Depreciación Acumulada | E218: 1278201.17 | K218: 84394.47 | L218: 1362595.64
C222: Otros | E222: 4363508.6 | F222: 79322.91 | L222: 4442831.51
C223: Depreciación Acumulada | E223: 1569777.96 | K223: 421494.23 | L223: 1991272.19
C227: Inmueble Maquinaria y Equipo - Arrendamiento Financiero | E227: 35529.12 | L227: 35529.12
C228: Depreciación Acumulada | E228: 35529.12 | L228: 35529.12
B231: ACTIVO INTANGIBLE
C234: Valor activo intangible | E234: 131475.08 | F234: 0 | G234: 0 | H234: 0 | I234: 0 | J234: 0 | K234: 0 | L234: 131475.08
C235: Amortización | E235: 21099.46 | F235: 0 | G235: 0 | H235: 0 | I235: 0 | J235: 0 | K235: 0 | L235: 21099.46
L237: 0
B238: TOTAL ACTIVO | E238: =E209+E212+E217+E222+E227+E234 -> 7116217.973 | F238: =F209+F212+F217+F222+F227+F234 -> 104238.16 | G238: 0 | H238: 0 | I238: 0 | J238: 0 | K238: 0 | L238: 7220456.133
B239: TOTAL DEPRECIACIÓN/AMORTIZACIÓN | E239: =E213+E218+E223+E228+E235 -> 3581451.42 | F239: =F213+F218+F223+F228+F235 -> 0 | G239: 1591.81 | H239: 0 | I239: 0 | J239: 0 | K239: 524403.18 | L239: 4107446.41
B240: Notas:
B241: 1. Saldo Final de los rubros de activos (7) esta compuesto por: (1) + (2) + (3) + (4) + (5) + (6) + (7)
B242: 2. Saldo final de depreciación acumulada (7) esta compuesto por: (1) + (6)
B245: B.3. Activos relacionados a los servicios de Navegación Aérea/Aeroportuarios
B246: Descripción | E246: Saldo Inicial (1) | F246: Adiciones / Mejoras (2) | G246: Ajuste por Depreciación de años anteriores (3) | H246: Retiros / Bajas (4) | I246: Reevaluación (5) | J246: Reclasificación de saldos iniciales | K246: Gasto de Depreciación del ejercicio (6) | L246: Saldo Final (7)
B248: ACTIVO FIJO
C250: Terrenos | E250: 0 | F250: 0 | H250: 0 | L250: 0
C253: Edificaciones y Construcciones | E253: 28566.95 | F253: 0 | G253: 0 | H253: 0 | I253: 0 | J253: 0 | K253: 0 | L253: 28566.95
C254: Depreciación Acumulada | E254: 10632.74 | F254: 0 | G254: 0 | H254: 0 | I254: 0 | J254: 0 | K254: 782.05 | L254: 11414.79
C258: Maquinaria y Equipo | E258: 155062.55 | F258: 0 | G258: 0 | H258: 0 | I258: 0 | J258: 0 | K258: 0 | L258: 155062.55
C259: Depreciación Acumulada | E259: 150571.35 | F259: 0 | G259: 0 | H259: 0 | I259: 0 | J259: 0 | K259: 4491.2 | L259: 155062.55
C263: Otros | E263: 232874.35 | F263: 0 | G263: 0 | H263: 0 | I263: 0 | J263: 0 | K263: 0 | L263: 232874.35
C264: Depreciación Acumulada | E264: 203716.42 | F264: 0 | G264: 0 | H264: 0 | I264: 0 | J264: 0 | K264: 7272.44 | L264: 210988.86
C268: Inmueble Maquinaria y Equipo - Arrendamiento Financiero | E268: 0 | F268: 0 | G268: 0 | H268: 0 | I268: 0 | J268: 0 | K268: 0 | L268: 0
C269: Depreciación Acumulada | E269: 0 | F269: 0 | G269: 0 | H269: 0 | I269: 0 | J269: 0 | K269: 0 | L269: 0
B272: ACTIVO INTANGIBLE
C275: Valor activo intangible | D275: 0 | E275: 8610.15 | J275: 0 | K275: 0 | L275: 8610.15
C276: Amortización | D276: 0 | E276: 8610.15 | J276: 0 | K276: 0 | L276: 8610.15
B279: TOTAL ACTIVO | E279: =E250+E253+E258+E263+E275 -> 425114 | F279: 0 | G279: 0 | H279: 0 | I279: 0 | J279: =J250+J253+J258+J263+J275 -> 0 | K279: =K250+K253+K258+K263+K275 -> 0 | L279: =L250+L253+L258+L263+L275 -> 425114
B280: TOTAL DEPRECIACIÓN/AMORTIZACIÓN | E280: =+E254+E259+E264+E276 -> 373530.66 | F280: 0 | G280: 0 | H280: 0 | I280: 0 | J280: =+J254+J259+J264+J276 -> 0 | K280: =+K254+K259+K264+K276 -> 12545.69 | L280: =+L254+L259+L264+L276 -> 386076.35
L281: 0
B283: B.4. Activos totales
B284: Descripción | E284: Saldo Inicial (1) | F284: Adiciones / Mejoras (2) | G284: Ajuste por Depreciación de años anteriores (3) | H284: Retiros / Bajas (4) | I284: Reevaluación (5) | J284: Reclasificación de saldos iniciales | K284: Gasto de Depreciación del ejercicio (6) | L284: Saldo Final (7)
B286: ACTIVO FIJO
C288: Terrenos | E288: 144927.02 | F288: 0 | G288: 0 | H288: 0 | I288: 0 | J288: 0 | K288: 0 | L288: 144927.02
E289: 0
E290: 0
C291: Edificios y Construcciones | E291: 3996469.9 | F291: 27984.78 | G291: 0 | H291: 0 | I291: 0 | J291: 0 | K291: 0 | L291: 4024454.68
C292: Depreciación Acumulada Edificios y Construcciones | E292: 3318837.61 | F292: 0 | G292: 2001.08 | H292: 0 | I292: 0 | J292: 0 | K292: 233529.14 | L292: 3554367.83
C296: Maquinaria y Equipo | E296: 1826373.24 | F296: 0 | G296: 0 | H296: 0 | I296: 0 | J296: 0 | K296: 0 | L296: 1826373.24
C297: Depreciación Acumulada Maquinaria y Equipo | E297: 1508506.29 | F297: 0 | G297: 0 | H297: 0 | I297: 0 | J297: 0 | K297: 103358.47 | L297: 1611864.76
C301: Otros | E301: 7554066.81 | F301: 79322.91 | G301: 0 | H301: 0 | I301: 0 | J301: 0 | K301: 0 | L301: 7633389.72
C302: Depreciación Acumulada | E302: 2817939.74 | F302: 0 | G302: 0 | H302: 0 | I302: 0 | J302: 0 | K302: 717804.04 | L302: 3535743.78
E303: 0 | L303: 0
E304: 0 | L304: 0
E305: 0 | L305: 0
C306: Inmueble Maquinaria y Equipo - Arrendamiento Financiero | E306: 35529.12 | F306: 0 | G306: 0 | H306: 0 | I306: 0 | J306: 0 | K306: 0 | L306: 35529.12
C307: Depreciación Acumulada | E307: 35529.12 | F307: 0 | G307: 0 | H307: 0 | I307: 0 | J307: 0 | K307: 0 | L307: 35529.12
E308: 0 | L308: 0
E309: 0 | L309: 0
B310: ACTIVO INTANGIBLE | L310: 0
E311: 0 | L311: 0
E312: 0 | L312: 0
C313: Valor activo intangible | E313: 140085.23 | F313: 0 | G313: 0 | H313: 0 | I313: 0 | J313: 0 | K313: 0 | L313: 140085.23
C314: Amortización | E314: 29709.61 | F314: 0 | G314: 0 | H314: 0 | I314: 0 | J314: 0 | L314: 29709.61
L315: 0
L316: 0
B317: TOTAL ACTIVO | E317: =E288+E291+E296+E301+E306+E313 -> 13697451.32 | F317: =F288+F291+F296+F301+F306+F313 -> 107307.69 | G317: =G288+G291+G296+G301+G306+G313 -> 0 | H317: 0 | I317: 0 | J317: =J288+J291+J296+J301+J306+J313 -> 0 | K317: =K288+K291+K296+K301+K306+K313 -> 0 | L317: =L288+L291+L296+L301+L306+L313 -> 13804759.01
B318: TOTAL DEPRECIACIÓN/AMORTIZACIÓN | E318: =+E292+E297+E302+E307+E314 -> 7710522.37 | F318: =+F292+F297+F302+F307+F314 -> 0 | G318: =+G292+G297+G302+G307+G314 -> 2001.08 | H318: 0 | I318: 0 | J318: =+J292+J297+J302+J307+J314 -> 0 | K318: =+K292+K297+K302+K307+K314 -> 1054691.65 | L318: =+L292+L297+L302+L307+L314 -> 8767215.1
B321: C. Grupo V
B323: Periodo: | C323: Activos y Depreciación al fin del periodo 2023
B324: C.1 Activos relacionados a los servicios Aeroportuarios
B325: Descripción | E325: Saldo Inicial (1) | F325: Adiciones / Mejoras (2) | G325: Ajuste por Depreciación de años anteriores (3) | H325: Retiros / Bajas (4) | I325: Reevaluación (5) | J325: Reclasificación de saldos iniciales | K325: Gasto de Depreciación del ejercicio (6) | L325: Saldo Final (7)
B327: ACTIVO FIJO
C329: Terrenos | L329: 0
C332: Edificaciones y Construcciones | E332: 262312177.8 | F332: 2907467.31 | G332: 0 | L332: 265219645.2
C333: Depreciación Acumulada | E333: 199897296.9 | F333: 0 | G333: 404.6 | K333: 7193649.85 | L333: 207091351.3
C337: Maquinaria y Equipo | E337: 4955048.25 | L337: 4955048.25
C338: Depreciación Acumulada | E338: 4345057.03 | K338: 245766.66 | L338: 4590823.69
C342: Otros | E342: 39452281.89 | F342: 295779.02 | L342: 39748060.91
C343: Depreciación Acumulada | E343: 14588848.22 | F343: 0 | K343: 3721986.41 | L343: 18310834.63
C347: Inmueble Maquinaria y Equipo - Arrendamiento Financiero | L347: 0
C348: Depreciación Acumulada | L348: 0
B351: ACTIVO INTANGIBLE
C354: Valor activo intangible
C355: Amortización
B358: TOTAL ACTIVO | E358: =E329+E332+E337+E342+E347+E354 -> 306719508 | F358: =F329+F332+F337+F342+F347+F354 -> 3203246.33 | G358: 0 | H358: 0 | I358: 0 | J358: 0 | K358: 0 | L358: 309922754.3
B359: TOTAL DEPRECIACIÓN/AMORTIZACIÓN | E359: =+E333+E338+E343+E348+E355 -> 218831202.1 | F359: =+F333+F338+F343+F348+F355 -> 0 | G359: 404.6 | H359: 0 | I359: 0 | J359: 0 | K359: 11161402.92 | L359: 229993009.7
